Workbook

Sheet Introduction
A1: Alberta Milk Quota and Revenue Calculator v5.0
A2: Welcome to the Alberta Milk Quota and Revenue Calculator v5.0. This worksheet provides instructions on how to use the other worksheets in this program to improve the management of your dairy farm. This worksheet has three parts, the "Quick Quota Calculator", the "Quota Calculator", and the "Revenue Calculator". The "Quick Quota Calculator" is a useful tool for doing a single month assessment of your continuous quota position, while the "Quota Calculator" is a useful tool for doing long term production forecasting, and the "Revenue Calculator" is a useful tool for doing long term revenue forecasting. This spreadsheet has five tabs along the bottom where all of the sections of this worksheet can be found. Data for the producer must be entered on each of the "Quota Calculator" and "Revenue Calculator" spreadsheets, as well as the "Data Inputs" spreadsheet, in order to get satisfactory results from this calculator.
A10: Any sections that are this shade of blue may be edited, and may require data input. Non-producer specific data has been entered from July 2009 through August 2014, with status quo forecasts entered for each variable. Producer specific data will need to be entered by the user of the spreadsheet, as well as any non-producer specific data after August 2014, for the user to get accurate results.
A13: Any field with a small red triangle in the top right corner indicates that there is a comment on this field, and the user can hold their mouse over this cell to view the comment.
A15: Security Note: This worksheet requires Macros to be enabled. If you see a yellow "SECURITY WARNING" bar at the top of your Microsoft Excel window, you need to click on the "Enable Content" button in order for the Quota Calculator and Revenue Calculator to work. The Quick Quota Calculator does not require Macros, and will work even if Macros are disabled. The warning you may see is:
G18: Select "Enable Content" to ensure that this worksheet is able to function in it's entirety.
A21: Compatibility Note: In order for this calculator to be used, it must be run on a version of Microsoft Excel no older than Microsoft Excel 2007. This includes Microsoft Excel 2010 and 2013, and while this worksheet likely works on Microsoft Excel 2008 and 2011 for Mac, it has not been tested on any non-Windows based software.
A25: The Alberta Milk Quota Calculator (v5.0) was released in October 2014 by Alberta Milk. If you have any questions about this worksheet, please contact Alberta Milk at 780.453.5942 or at 1.877.361.1231.

Sheet Quick Quota Calculator
A2: Alberta Milk Quick Quota Calculator v5.0
B4: Name: | K4: Today's Date: | M4: =TODAY() -> 2021-11-26
B7: Current Month: | H7: 2022-12-01
B9: Previous Month End Cumulative Quota Position: | H9: 0 | I9: =" kg " -> kg | J9: =DATE(YEAR(H7),MONTH(H7),DAY(H7)-1) -> 2022-11-30
B11: Underproduction Credit Transfers: | G11: =IF(H11<0,"Sold",IF(H11>0,"Bought"," ")) ->  | H11: 0 | I11: =" kg " -> kg | J11: ="effective "&TEXT(H7, "mmmm d, yyyy")&"" -> effective December 1, 2022
B13: Daily Quota Holdings: | H13: 170 | I13: =" kg/day" -> kg/day | J13: ="effective "&TEXT(H7, "mmmm d, yyyy")&"" -> effective December 1, 2022
B15: Average Butterfat Density: | H15: 4 | I15: =" kg/hl" -> kg/hl
B17: Milk Volume: | H17: 3500 | I17: =" litres" -> litres | J17: per day
B19: Number of Pickups: | H19: 15 | I19: =" pickups in "&TEXT(H7, "mmmm")&"" -> pickups in December | K19: =IF(AND(J17="per pickup",H19=0),"Please Enter # of Pickups"," ") -> 
B21: Days of Quota Eligibility: | H21: =DAY(DATE(YEAR(H7),MONTH(H7)+1,)) -> 31 | I21: =" days in "&TEXT(H7, "mmmm")&"" -> days in December
B23: Monthly Quota Eligibility: | H23: =H13*H21 -> 5270 | I23: =" kg " -> kg
B25: Monthly Production: | H25: =IFERROR(H15*H17/100*(IF(J17="per day", H21, IF(J17="per pickup", H19, IF(J17="per month", 1, " ")))), "ERROR") -> 4340 | I25: =" kg " -> kg
B27: Monthly Over/Under Production: | H27: =IFERROR(IF(ABS(H25-H23)>0, H25-H23, 0), "ERROR") -> -930 | I27: =" kg " -> kg
B29: Monthly Over/Under Production: | H29: =IFERROR(H27/H13, " ") -> -5.470588235 | I29: =" days" -> days
B31: Incentive Days: | H31: 0 | I31: =" days" -> days
B33: Incentive Credit Eligibility: | H33: =H13*H31 -> 0 | I33: =" kg " -> kg
B35: Incentive Credit Utilization: | H35: =IF(OR(H31=" ", H31=0), "0", IF((H25-H23)>=H31*H13,H31*H13,IF(H31*H13>(H25-H23),IF((H25-H23)<0, 0, (H25-H23)),0))) -> 0 | I35: =" kg " -> kg
B37: Estimated Cumulative Quota Position: | H37: =IFERROR(H25-H23-H35+H9-IF(ABS(H11)>0, H11, 0), " ") -> -930 | I37: =" kg " -> kg | J37: =DATE(YEAR(H7),MONTH(H7)+1,DAY(H7)-1) -> 2022-12-31
B39: Estimated Cumulative Quota Position: | H39: =IFERROR(H37/H13, " ") -> -5.470588235 | I39: =" days" -> days | J39: =DATE(YEAR(H7),MONTH(H7)+1,DAY(H7)-1) -> 2022-12-31
B41: =IF(H13*H15=0,"","(1) At a butterfat density of "&TEXT(H15,"0.000")&" kg/hl, a milk volume of "&TEXT(H13/H15*100,"#,##0")&" litres/day will allow you to produce as closely to your quota holdings as possible.") -> (1) At a butterfat density of 4.000 kg/hl, a milk volume of 4,250 litres/day will allow you to produce as closely to your quota holdings as possible.
B43: =IFERROR(IF(ABS(H39)>=0, "(2) If your cumulative quota position on "& TEXT(J39, "mmmm d, yyyy") &" is higher than +5.0 days or lower than -15.0 days you will receive a penalty for producing outside your flexibility limits, and your cumulative quota position will be set to +5.0 days or -15.0 days depending on the flexibility limit exceeded.", " "), " ") -> (2) If your cumulative quota position on December 31, 2022 is higher than +5.0 days or lower than -15.0 days you will receive a penalty for producing outside your flexibility limits, and your cumulative quota position will be set to +5.0 days or -15.0 days depending on the flexibility limit exceeded.
B45: =IF(H27>0,"(3) Based on the data entered, in "&TEXT(H7,"mmmm yyyy")&", you will overproduce your quota holdings by "&TEXT(H27,"#,###")&" kg, or "&TEXT(H29, "##0.0")&" days. In a month where there are incentive days, this overproduction will fill any available incentive credits before affecting your cumulative quota position.",IF(H27<0,"(3) Based on the data entered, in "&TEXT(H7,"mmmm yyyy")&", you will underproduce your quota holdings by "&TEXT(H27,"#,###")&" kg, or "&TEXT(H29, "##0.0")&" days."," ")) -> (3) Based on the data entered, in December 2022, you will underproduce your quota holdings by -930 kg, or -5.5 days.
B47: =IF(H31>0, IF(H35=H33, "(4) Based on the data entered, in "&TEXT(H7,"MMMM YYYY")&" you will utilize all of your available incentive credits.", "(4) Based on the data entered, in "&TEXT(H7,"MMMM YYYY")&" you will not utilize all of your available incentive credits."), " ") -> 
B48: =IF(H19<1, " ", IF(H21<>H19, "NOTE: Every second day shippers, irregular shippers, shippers who have had a pickup schedule change, and shippers who have missed a pickup will not necessarily have their shipments and monthly quota eligibility matched precisely.", " ")) -> NOTE: Every second day shippers, irregular shippers, shippers who have had a pickup schedule change, and shippers who have missed a pickup will not necessarily have their shipments and monthly quota eligibility matched precisely.

Sheet Quota Calculator
A1: Alberta Milk Quota Calculator v5.0
C2: Period Begins | E2: Period Ends | K2: Farm Name:
C3: 2019-12-01 | E3: 2020-12-01 | K3: Date: | L3: =TODAY() -> 2021-11-26
A5: Month | B5: Quota Holdings (kg/day) | C5: Days of Milk Shipped (days) | D5: Monthly Quota Eligibility (kg) | E5: Monthly Milk Volume (L) | F5: Butterfat Density (kg/hl) | G5: Monthly Butterfat Production (kg) | H5: Underproduction Credit Purchases (kg) | I5: Underproduction Credit Sales (kg) | J5: Minimum Butterfat Policy Violation (kg) | K5: Incentive Credits Available (kg) | L5: Incentive Credits Filled (kg) | M5: Total Monthly Eligibility (kg) | N5: Total Monthly Over / Under Production (kg) | O5: Month End Cumulative Quota Position (kg) | P5: Month End Cumulative Quota Position (days) | Q5: Underproduction Credits Available (kg) | R5: Cumulative Quota Position Upper Limit (kg) | S5: Cumulative Quota Position Lower Limit (kg) | T5: Average Daily Butterfat Production (kg/day) | U5: Average Daily Total Eligibility (kg/day) | V5: Average Number of Cows Milking | W5: Average Daily Volume Per Cow (L/cow) | X5: Average Daily Butterfat Per Cow (kg/cow) | Y5: Penalty Notes (If Applicable) | Z5: Notes
A6: A
A7: ='Data Inputs'!C2 -> 2009-07-01 | B7: 0 | O7: -400 | P7: =IF(B7>0,IF(O7=0,0,O7/B7),"-") -> - | R7: =$B7*'Data Inputs'!D2 -> 0 | S7: =$B7*'Data Inputs'!E2 -> 0
A8: ='Data Inputs'!C3 -> 2009-08-01 | B8: 100 | C8: =EOMONTH(A7, 1)-EOMONTH(A7, 0) -> 31 | D8: =IF(B8*C8=0,0,B8*C8) -> 3100 | E8: 100000 | F8: 3.42 | G8: =IF(F8*E8>0,E8/100*F8,0) -> 3420 | J8: =-IF(F8<'Data Inputs'!F3,(F8-'Data Inputs'!F3)*E8/100,0) -> 0 | K8: =IF(OR('Data Inputs'!U3=0, 'Data Inputs'!U3=""), "N/A", 'Data Inputs'!U3*B8) -> 200 | L8: =IF(OR('Data Inputs'!U3=0, 'Data Inputs'!U3=""), "N/A", IF((G8-(D8-J8))>K8, K8, IF(K8>(G8-(D8-J8)), IF((G8-(D8-J8))<0, 0, (G8-(D8-J8))),0))) -> 200 | M8: =(IF(D8=0,0,D8))+(IF(L8="N/A",0,L8))+(H8)-(I8)-(IF(J8>0,J8,0)) -> 3300 | N8: =ROUND(G8-M8,2) -> 120 | O8: =ROUND(IF(O7+N8>=O7,IF(O7>='Data Inputs'!D3*B8,O7,IF(O7+N8>'Data Inputs'!D3*B8,'Data Inputs'!D3*B8,IF(O7+N8<'Data Inputs'!E3*B8,'Data Inputs'!E3*B8,O7+N8))),IF(O7+N8<O7,IF(O7+N8<'Data Inputs'!E3*B8,'Data Inputs'!E3*B8,O7+N8),"ERROR")),2) -> -280 | P8: -2.8 | Q8: =IF(O7>=0,0,IF(O7-I7>0,0,ROUNDDOWN(-O7-I8,0))) -> 400 | R8: =$B8*'Data Inputs'!D3 -> 1000 | S8: =$B8*'Data Inputs'!E3 -> -3000 | T8: =G8/$C8 -> 110.3225806 | U8: =M8/C8 -> 106.4516129 | V8: 100 | W8: =IF(E8*C8*V8>0,(E8/C8)/V8,0) -> 32.25806452 | X8: =IF(W8>0,W8*F8/100,0) -> 1.103225806 | Y8: =IF(AND(P8>=10,N8>0),"Upper Flexibility Limit Exceeded: "&TEXT((O7+N8-O8)/F8*100,"#,###")&" Litres Unpaid",IF(AND(P8<=-30,N8<0),"Lower Flexibility Limit Exceeded: "&TEXT(-(O7+N8-O8),"#,##0.00")&" Underproduction Credits Lost","")) -> 
A9: ='Data Inputs'!C4 -> 2009-09-01 | B9: =B8 -> 100 | C9: 30 | D9: 3000 | E9: 70000 | F9: =F8 -> 3.42 | G9: 2394 | J9: =-IF(F9<'Data Inputs'!F4,(F9-'Data Inputs'!F4)*E9/100,0) -> 0 | K9: =IF(OR('Data Inputs'!U4=0, 'Data Inputs'!U4=""), "N/A", 'Data Inputs'!U4*B9) -> N/A | L9: =IF(OR('Data Inputs'!U4=0, 'Data Inputs'!U4=""), "N/A", IF((G9-(D9-J9))>K9, K9, IF(K9>(G9-(D9-J9)), IF((G9-(D9-J9))<0, 0, (G9-(D9-J9))),0))) -> N/A | M9: 3000 | N9: -606 | O9: =ROUND(IF(O8+N9>=O8,IF(O8>='Data Inputs'!D4*B9,O8,IF(O8+N9>'Data Inputs'!D4*B9,'Data Inputs'!D4*B9,IF(O8+N9<'Data Inputs'!E4*B9,'Data Inputs'!E4*B9,O8+N9))),IF(O8+N9<O8,IF(O8+N9<'Data Inputs'!E4*B9,'Data Inputs'!E4*B9,O8+N9),"ERROR")),2) -> -886 | P9: -8.86 | Q9: 280 | R9: =$B9*'Data Inputs'!D4 -> 1000 | S9: =$B9*'Data Inputs'!E4 -> -3000 | T9: 79.8 | U9: 100 | V9: =V8 -> 100 | W9: 23.33333333 | X9: 0.798
A10: ='Data Inputs'!C5 -> 2009-10-01 | B10: =B9 -> 100 | C10: 31 | D10: 3100 | E10: =E9 -> 70000 | F10: =F9 -> 3.42 | G10: 2394 | J10: =-IF(F10<'Data Inputs'!F5,(F10-'Data Inputs'!F5)*E10/100,0) -> 0 | K10: =IF(OR('Data Inputs'!U5=0, 'Data Inputs'!U5=""), "N/A", 'Data Inputs'!U5*B10) -> 100 | L10: =IF(OR('Data Inputs'!U5=0, 'Data Inputs'!U5=""), "N/A", IF((G10-(D10-J10))>K10, K10, IF(K10>(G10-(D10-J10)), IF((G10-(D10-J10))<0, 0, (G10-(D10-J10))),0))) -> 0 | M10: 3100 | N10: -706 | O10: =ROUND(IF(O9+N10>=O9,IF(O9>='Data Inputs'!D5*B10,O9,IF(O9+N10>'Data Inputs'!D5*B10,'Data Inputs'!D5*B10,IF(O9+N10<'Data Inputs'!E5*B10,'Data Inputs'!E5*B10,O9+N10))),IF(O9+N10<O9,IF(O9+N10<'Data Inputs'!E5*B10,'Data Inputs'!E5*B10,O9+N10),"ERROR")),2) -> -1592 | P10: -15.92 | Q10: 886 | R10: =$B10*'Data Inputs'!D5 -> 1000 | S10: =$B10*'Data Inputs'!E5 -> -3000 | T10: 77.22580645 | U10: 100 | V10: 100 | W10: 22.58064516 | X10: 0.7722580645
A11: ='Data Inputs'!C6 -> 2009-11-01 | B11: 100 | C11: 30 | D11: 3000 | E11: 70000 | F11: 3.42 | G11: 2394 | J11: =-IF(F11<'Data Inputs'!F6,(F11-'Data Inputs'!F6)*E11/100,0) -> 0 | K11: =IF(OR('Data Inputs'!U6=0, 'Data Inputs'!U6=""), "N/A", 'Data Inputs'!U6*B11) -> N/A | L11: =IF(OR('Data Inputs'!U6=0, 'Data Inputs'!U6=""), "N/A", IF((G11-(D11-J11))>K11, K11, IF(K11>(G11-(D11-J11)), IF((G11-(D11-J11))<0, 0, (G11-(D11-J11))),0))) -> N/A | M11: 3000 | N11: -606 | O11: =ROUND(IF(O10+N11>=O10,IF(O10>='Data Inputs'!D6*B11,O10,IF(O10+N11>'Data Inputs'!D6*B11,'Data Inputs'!D6*B11,IF(O10+N11<'Data Inputs'!E6*B11,'Data Inputs'!E6*B11,O10+N11))),IF(O10+N11<O10,IF(O10+N11<'Data Inputs'!E6*B11,'Data Inputs'!E6*B11,O10+N11),"ERROR")),2) -> -2198 | P11: -21.98 | Q11: 1592 | R11: =$B11*'Data Inputs'!D6 -> 1000 | S11: =$B11*'Data Inputs'!E6 -> -3000 | T11: 79.8 | U11: 100 | V11: 100 | W11: 23.33333333 | X11: 0.798
A12: ='Data Inputs'!C7 -> 2009-12-01 | B12: 100 | C12: 31 | D12: 3100 | E12: 70000 | F12: 3.42 | G12: 2394 | J12: =-IF(F12<'Data Inputs'!F7,(F12-'Data Inputs'!F7)*E12/100,0) -> 0 | K12: =IF(OR('Data Inputs'!U7=0, 'Data Inputs'!U7=""), "N/A", 'Data Inputs'!U7*B12) -> N/A | L12: =IF(OR('Data Inputs'!U7=0, 'Data Inputs'!U7=""), "N/A", IF((G12-(D12-J12))>K12, K12, IF(K12>(G12-(D12-J12)), IF((G12-(D12-J12))<0, 0, (G12-(D12-J12))),0))) -> N/A | M12: 3100 | N12: -706 | O12: =ROUND(IF(O11+N12>=O11,IF(O11>='Data Inputs'!D7*B12,O11,IF(O11+N12>'Data Inputs'!D7*B12,'Data Inputs'!D7*B12,IF(O11+N12<'Data Inputs'!E7*B12,'Data Inputs'!E7*B12,O11+N12))),IF(O11+N12<O11,IF(O11+N12<'Data Inputs'!E7*B12,'Data Inputs'!E7*B12,O11+N12),"ERROR")),2) -> -2904 | P12: -29.04 | Q12: 2198 | R12: =$B12*'Data Inputs'!D7 -> 1000 | S12: =$B12*'Data Inputs'!E7 -> -3000 | T12: 77.22580645 | U12: 100 | V12: 100 | W12: 22.58064516 | X12: 0.7722580645
A13: ='Data Inputs'!C8 -> 2010-01-01 | B13: 100 | C13: 31 | D13: 3100 | E13: 70000 | F13: 3.42 | G13: 2394 | J13: =-IF(F13<'Data Inputs'!F8,(F13-'Data Inputs'!F8)*E13/100,0) -> 0 | K13: =IF(OR('Data Inputs'!U8=0, 'Data Inputs'!U8=""), "N/A", 'Data Inputs'!U8*B13) -> N/A | L13: =IF(OR('Data Inputs'!U8=0, 'Data Inputs'!U8=""), "N/A", IF((G13-(D13-J13))>K13, K13, IF(K13>(G13-(D13-J13)), IF((G13-(D13-J13))<0, 0, (G13-(D13-J13))),0))) -> N/A | M13: 3100 | N13: -706 | O13: =ROUND(IF(O12+N13>=O12,IF(O12>='Data Inputs'!D8*B13,O12,IF(O12+N13>'Data Inputs'!D8*B13,'Data Inputs'!D8*B13,IF(O12+N13<'Data Inputs'!E8*B13,'Data Inputs'!E8*B13,O12+N13))),IF(O12+N13<O12,IF(O12+N13<'Data Inputs'!E8*B13,'Data Inputs'!E8*B13,O12+N13),"ERROR")),2) -> -3000 | P13: -30 | Q13: 2904 | R13: =$B13*'Data Inputs'!D8 -> 1000 | S13: =$B13*'Data Inputs'!E8 -> -3000 | T13: 77.22580645 | U13: 100 | V13: 100 | W13: 22.58064516 | X13: 0.7722580645 | Y13: Lower Flexibility Limit Exceeded: 610.00 Underproduction Credits Lost
A14: ='Data Inputs'!C9 -> 2010-02-01 | B14: 100 | C14: 28 | D14: 2800 | E14: 70000 | F14: 3.42 | G14: 2394 | J14: =-IF(F14<'Data Inputs'!F9,(F14-'Data Inputs'!F9)*E14/100,0) -> 0 | K14: =IF(OR('Data Inputs'!U9=0, 'Data Inputs'!U9=""), "N/A", 'Data Inputs'!U9*B14) -> N/A | L14: =IF(OR('Data Inputs'!U9=0, 'Data Inputs'!U9=""), "N/A", IF((G14-(D14-J14))>K14, K14, IF(K14>(G14-(D14-J14)), IF((G14-(D14-J14))<0, 0, (G14-(D14-J14))),0))) -> N/A | M14: 2800 | N14: -406 | O14: =ROUND(IF(O13+N14>=O13,IF(O13>='Data Inputs'!D9*B14,O13,IF(O13+N14>'Data Inputs'!D9*B14,'Data Inputs'!D9*B14,IF(O13+N14<'Data Inputs'!E9*B14,'Data Inputs'!E9*B14,O13+N14))),IF(O13+N14<O13,IF(O13+N14<'Data Inputs'!E9*B14,'Data Inputs'!E9*B14,O13+N14),"ERROR")),2) -> -3000 | P14: -30 | Q14: 3000 | R14: =$B14*'Data Inputs'!D9 -> 1000 | S14: =$B14*'Data Inputs'!E9 -> -3000 | T14: 85.5 | U14: 100 | V14: 100 | W14: 25 | X14: 0.855 | Y14: Lower Flexibility Limit Exceeded: 406.00 Underproduction Credits Lost
A15: ='Data Inputs'!C10 -> 2010-03-01 | B15: 100 | C15: 31 | D15: 3100 | E15: 70000 | F15: 3.42 | G15: 2394 | J15: =-IF(F15<'Data Inputs'!F10,(F15-'Data Inputs'!F10)*E15/100,0) -> 0 | K15: =IF(OR('Data Inputs'!U10=0, 'Data Inputs'!U10=""), "N/A", 'Data Inputs'!U10*B15) -> N/A | L15: =IF(OR('Data Inputs'!U10=0, 'Data Inputs'!U10=""), "N/A", IF((G15-(D15-J15))>K15, K15, IF(K15>(G15-(D15-J15)), IF((G15-(D15-J15))<0, 0, (G15-(D15-J15))),0))) -> N/A | M15: 3100 | N15: -706 | O15: =ROUND(IF(O14+N15>=O14,IF(O14>='Data Inputs'!D10*B15,O14,IF(O14+N15>'Data Inputs'!D10*B15,'Data Inputs'!D10*B15,IF(O14+N15<'Data Inputs'!E10*B15,'Data Inputs'!E10*B15,O14+N15))),IF(O14+N15<O14,IF(O14+N15<'Data Inputs'!E10*B15,'Data Inputs'!E10*B15,O14+N15),"ERROR")),2) -> -3000 | P15: -30 | Q15: 3000 | R15: =$B15*'Data Inputs'!D10 -> 1000 | S15: =$B15*'Data Inputs'!E10 -> -3000 | T15: 77.22580645 | U15: 100 | V15: 100 | W15: 22.58064516 | X15: 0.7722580645 | Y15: Lower Flexibility Limit Exceeded: 706.00 Underproduction Credits Lost
A16: ='Data Inputs'!C11 -> 2010-04-01 | B16: 100 | C16: 30 | D16: 3000 | E16: 70000 | F16: 3.42 | G16: 2394 | J16: =-IF(F16<'Data Inputs'!F11,(F16-'Data Inputs'!F11)*E16/100,0) -> 0 | K16: =IF(OR('Data Inputs'!U11=0, 'Data Inputs'!U11=""), "N/A", 'Data Inputs'!U11*B16) -> N/A | L16: =IF(OR('Data Inputs'!U11=0, 'Data Inputs'!U11=""), "N/A", IF((G16-(D16-J16))>K16, K16, IF(K16>(G16-(D16-J16)), IF((G16-(D16-J16))<0, 0, (G16-(D16-J16))),0))) -> N/A | M16: 3000 | N16: -606 | O16: =ROUND(IF(O15+N16>=O15,IF(O15>='Data Inputs'!D11*B16,O15,IF(O15+N16>'Data Inputs'!D11*B16,'Data Inputs'!D11*B16,IF(O15+N16<'Data Inputs'!E11*B16,'Data Inputs'!E11*B16,O15+N16))),IF(O15+N16<O15,IF(O15+N16<'Data Inputs'!E11*B16,'Data Inputs'!E11*B16,O15+N16),"ERROR")),2) -> -3000 | P16: -30 | Q16: 3000 | R16: =$B16*'Data Inputs'!D11 -> 1000 | S16: =$B16*'Data Inputs'!E11 -> -3000 | T16: 79.8 | U16: 100 | V16: 100 | W16: 23.33333333 | X16: 0.798 | Y16: Lower Flexibility Limit Exceeded: 606.00 Underproduction Credits Lost
A17: ='Data Inputs'!C12 -> 2010-05-01 | B17: 100 | C17: 31 | D17: 3100 | E17: 70000 | F17: 3.42 | G17: 2394 | J17: =-IF(F17<'Data Inputs'!F12,(F17-'Data Inputs'!F12)*E17/100,0) -> 0 | K17: =IF(OR('Data Inputs'!U12=0, 'Data Inputs'!U12=""), "N/A", 'Data Inputs'!U12*B17) -> N/A | L17: =IF(OR('Data Inputs'!U12=0, 'Data Inputs'!U12=""), "N/A", IF((G17-(D17-J17))>K17, K17, IF(K17>(G17-(D17-J17)), IF((G17-(D17-J17))<0, 0, (G17-(D17-J17))),0))) -> N/A | M17: 3100 | N17: -706 | O17: =ROUND(IF(O16+N17>=O16,IF(O16>='Data Inputs'!D12*B17,O16,IF(O16+N17>'Data Inputs'!D12*B17,'Data Inputs'!D12*B17,IF(O16+N17<'Data Inputs'!E12*B17,'Data Inputs'!E12*B17,O16+N17))),IF(O16+N17<O16,IF(O16+N17<'Data Inputs'!E12*B17,'Data Inputs'!E12*B17,O16+N17),"ERROR")),2) -> -3000 | P17: -30 | Q17: 3000 | R17: =$B17*'Data Inputs'!D12 -> 1000 | S17: =$B17*'Data Inputs'!E12 -> -3000 | T17: 77.22580645 | U17: 100 | V17: 100 | W17: 22.58064516 | X17: 0.7722580645 | Y17: Lower Flexibility Limit Exceeded: 706.00 Underproduction Credits Lost
A18: ='Data Inputs'!C13 -> 2010-06-01 | B18: 100 | C18: 30 | D18: 3000 | E18: 70000 | F18: 3.42 | G18: 2394 | J18: =-IF(F18<'Data Inputs'!F13,(F18-'Data Inputs'!F13)*E18/100,0) -> 0 | K18: =IF(OR('Data Inputs'!U13=0, 'Data Inputs'!U13=""), "N/A", 'Data Inputs'!U13*B18) -> N/A | L18: =IF(OR('Data Inputs'!U13=0, 'Data Inputs'!U13=""), "N/A", IF((G18-(D18-J18))>K18, K18, IF(K18>(G18-(D18-J18)), IF((G18-(D18-J18))<0, 0, (G18-(D18-J18))),0))) -> N/A | M18: 3000 | N18: -606 | O18: =ROUND(IF(O17+N18>=O17,IF(O17>='Data Inputs'!D13*B18,O17,IF(O17+N18>'Data Inputs'!D13*B18,'Data Inputs'!D13*B18,IF(O17+N18<'Data Inputs'!E13*B18,'Data Inputs'!E13*B18,O17+N18))),IF(O17+N18<O17,IF(O17+N18<'Data Inputs'!E13*B18,'Data Inputs'!E13*B18,O17+N18),"ERROR")),2) -> -3000 | P18: -30 | Q18: 3000 | R18: =$B18*'Data Inputs'!D13 -> 1000 | S18: =$B18*'Data Inputs'!E13 -> -3000 | T18: 79.8 | U18: 100 | V18: 100 | W18: 23.33333333 | X18: 0.798 | Y18: Lower Flexibility Limit Exceeded: 606.00 Underproduction Credits Lost
A19: ='Data Inputs'!C14 -> 2010-07-01 | B19: 100 | C19: 31 | D19: 3100 | E19: 70000 | F19: 3.42 | G19: 2394 | J19: =-IF(F19<'Data Inputs'!F14,(F19-'Data Inputs'!F14)*E19/100,0) -> 0 | K19: =IF(OR('Data Inputs'!U14=0, 'Data Inputs'!U14=""), "N/A", 'Data Inputs'!U14*B19) -> N/A | L19: =IF(OR('Data Inputs'!U14=0, 'Data Inputs'!U14=""), "N/A", IF((G19-(D19-J19))>K19, K19, IF(K19>(G19-(D19-J19)), IF((G19-(D19-J19))<0, 0, (G19-(D19-J19))),0))) -> N/A | M19: 3100 | N19: -706 | O19: =ROUND(IF(O18+N19>=O18,IF(O18>='Data Inputs'!D14*B19,O18,IF(O18+N19>'Data Inputs'!D14*B19,'Data Inputs'!D14*B19,IF(O18+N19<'Data Inputs'!E14*B19,'Data Inputs'!E14*B19,O18+N19))),IF(O18+N19<O18,IF(O18+N19<'Data Inputs'!E14*B19,'Data Inputs'!E14*B19,O18+N19),"ERROR")),2) -> -3000 | P19: -30 | Q19: 3000 | R19: =$B19*'Data Inputs'!D14 -> 1000 | S19: =$B19*'Data Inputs'!E14 -> -3000 | T19: 77.22580645 | U19: 100 | V19: 100 | W19: 22.58064516 | X19: 0.7722580645 | Y19: Lower Flexibility Limit Exceeded: 706.00 Underproduction Credits Lost
A20: ='Data Inputs'!C15 -> 2010-08-01 | B20: 100 | C20: 31 | D20: 3100 | E20: 70000 | F20: 3.42 | G20: 2394 | J20: =-IF(F20<'Data Inputs'!F15,(F20-'Data Inputs'!F15)*E20/100,0) -> 0 | K20: =IF(OR('Data Inputs'!U15=0, 'Data Inputs'!U15=""), "N/A", 'Data Inputs'!U15*B20) -> 200 | L20: =IF(OR('Data Inputs'!U15=0, 'Data Inputs'!U15=""), "N/A", IF((G20-(D20-J20))>K20, K20, IF(K20>(G20-(D20-J20)), IF((G20-(D20-J20))<0, 0, (G20-(D20-J20))),0))) -> 0 | M20: 3100 | N20: -706 | O20: =ROUND(IF(O19+N20>=O19,IF(O19>='Data Inputs'!D15*B20,O19,IF(O19+N20>'Data Inputs'!D15*B20,'Data Inputs'!D15*B20,IF(O19+N20<'Data Inputs'!E15*B20,'Data Inputs'!E15*B20,O19+N20))),IF(O19+N20<O19,IF(O19+N20<'Data Inputs'!E15*B20,'Data Inputs'!E15*B20,O19+N20),"ERROR")),2) -> -3000 | P20: -30 | Q20: 3000 | R20: =$B20*'Data Inputs'!D15 -> 1000 | S20: =$B20*'Data Inputs'!E15 -> -3000 | T20: 77.22580645 | U20: 100 | V20: 100 | W20: 22.58064516 | X20: 0.7722580645 | Y20: Lower Flexibility Limit Exceeded: 706.00 Underproduction Credits Lost
A21: ='Data Inputs'!C16 -> 2010-09-01 | B21: 100 | C21: 30 | D21: 3000 | E21: 70000 | F21: 3.42 | G21: 2394 | J21: =-IF(F21<'Data Inputs'!F16,(F21-'Data Inputs'!F16)*E21/100,0) -> 0 | K21: =IF(OR('Data Inputs'!U16=0, 'Data Inputs'!U16=""), "N/A", 'Data Inputs'!U16*B21) -> 200 | L21: =IF(OR('Data Inputs'!U16=0, 'Data Inputs'!U16=""), "N/A", IF((G21-(D21-J21))>K21, K21, IF(K21>(G21-(D21-J21)), IF((G21-(D21-J21))<0, 0, (G21-(D21-J21))),0))) -> 0 | M21: 3000 | N21: -606 | O21: =ROUND(IF(O20+N21>=O20,IF(O20>='Data Inputs'!D16*B21,O20,IF(O20+N21>'Data Inputs'!D16*B21,'Data Inputs'!D16*B21,IF(O20+N21<'Data Inputs'!E16*B21,'Data Inputs'!E16*B21,O20+N21))),IF(O20+N21<O20,IF(O20+N21<'Data Inputs'!E16*B21,'Data Inputs'!E16*B21,O20+N21),"ERROR")),2) -> -3000 | P21: -30 | Q21: 3000 | R21: =$B21*'Data Inputs'!D16 -> 1000 | S21: =$B21*'Data Inputs'!E16 -> -3000 | T21: 79.8 | U21: 100 | V21: 100 | W21: 23.33333333 | X21: 0.798 | Y21: Lower Flexibility Limit Exceeded: 606.00 Underproduction Credits Lost
A22: ='Data Inputs'!C17 -> 2010-10-01 | B22: 100 | C22: 31 | D22: 3100 | E22: 70000 | F22: 3.42 | G22: 2394 | J22: =-IF(F22<'Data Inputs'!F17,(F22-'Data Inputs'!F17)*E22/100,0) -> 0 | K22: =IF(OR('Data Inputs'!U17=0, 'Data Inputs'!U17=""), "N/A", 'Data Inputs'!U17*B22) -> 100 | L22: =IF(OR('Data Inputs'!U17=0, 'Data Inputs'!U17=""), "N/A", IF((G22-(D22-J22))>K22, K22, IF(K22>(G22-(D22-J22)), IF((G22-(D22-J22))<0, 0, (G22-(D22-J22))),0))) -> 0 | M22: 3100 | N22: -706 | O22: =ROUND(IF(O21+N22>=O21,IF(O21>='Data Inputs'!D17*B22,O21,IF(O21+N22>'Data Inputs'!D17*B22,'Data Inputs'!D17*B22,IF(O21+N22<'Data Inputs'!E17*B22,'Data Inputs'!E17*B22,O21+N22))),IF(O21+N22<O21,IF(O21+N22<'Data Inputs'!E17*B22,'Data Inputs'!E17*B22,O21+N22),"ERROR")),2) -> -3000 | P22: -30 | Q22: 3000 | R22: =$B22*'Data Inputs'!D17 -> 1000 | S22: =$B22*'Data Inputs'!E17 -> -3000 | T22: 77.22580645 | U22: 100 | V22: 100 | W22: 22.58064516 | X22: 0.7722580645 | Y22: Lower Flexibility Limit Exceeded: 706.00 Underproduction Credits Lost
A23: ='Data Inputs'!C18 -> 2010-11-01 | B23: 100 | C23: 30 | D23: 3000 | E23: 70000 | F23: 3.42 | G23: 2394 | J23: =-IF(F23<'Data Inputs'!F18,(F23-'Data Inputs'!F18)*E23/100,0) -> 0 | K23: =IF(OR('Data Inputs'!U18=0, 'Data Inputs'!U18=""), "N/A", 'Data Inputs'!U18*B23) -> N/A | L23: =IF(OR('Data Inputs'!U18=0, 'Data Inputs'!U18=""), "N/A", IF((G23-(D23-J23))>K23, K23, IF(K23>(G23-(D23-J23)), IF((G23-(D23-J23))<0, 0, (G23-(D23-J23))),0))) -> N/A | M23: 3000 | N23: -606 | O23: =ROUND(IF(O22+N23>=O22,IF(O22>='Data Inputs'!D18*B23,O22,IF(O22+N23>'Data Inputs'!D18*B23,'Data Inputs'!D18*B23,IF(O22+N23<'Data Inputs'!E18*B23,'Data Inputs'!E18*B23,O22+N23))),IF(O22+N23<O22,IF(O22+N23<'Data Inputs'!E18*B23,'Data Inputs'!E18*B23,O22+N23),"ERROR")),2) -> -3000 | P23: -30 | Q23: 3000 | R23: =$B23*'Data Inputs'!D18 -> 1000 | S23: =$B23*'Data Inputs'!E18 -> -3000 | T23: 79.8 | U23: 100 | V23: 100 | W23: 23.33333333 | X23: 0.798 | Y23: Lower Flexibility Limit Exceeded: 606.00 Underproduction Credits Lost
A24: ='Data Inputs'!C19 -> 2010-12-01 | B24: 100 | C24: 31 | D24: 3100 | E24: 70000 | F24: 3.42 | G24: 2394 | J24: =-IF(F24<'Data Inputs'!F19,(F24-'Data Inputs'!F19)*E24/100,0) -> 0 | K24: =IF(OR('Data Inputs'!U19=0, 'Data Inputs'!U19=""), "N/A", 'Data Inputs'!U19*B24) -> N/A | L24: =IF(OR('Data Inputs'!U19=0, 'Data Inputs'!U19=""), "N/A", IF((G24-(D24-J24))>K24, K24, IF(K24>(G24-(D24-J24)), IF((G24-(D24-J24))<0, 0, (G24-(D24-J24))),0))) -> N/A | M24: 3100 | N24: -706 | O24: =ROUND(IF(O23+N24>=O23,IF(O23>='Data Inputs'!D19*B24,O23,IF(O23+N24>'Data Inputs'!D19*B24,'Data Inputs'!D19*B24,IF(O23+N24<'Data Inputs'!E19*B24,'Data Inputs'!E19*B24,O23+N24))),IF(O23+N24<O23,IF(O23+N24<'Data Inputs'!E19*B24,'Data Inputs'!E19*B24,O23+N24),"ERROR")),2) -> -3000 | P24: -30 | Q24: 3000 | R24: =$B24*'Data Inputs'!D19 -> 1000 | S24: =$B24*'Data Inputs'!E19 -> -3000 | T24: 77.22580645 | U24: 100 | V24: 100 | W24: 22.58064516 | X24: 0.7722580645 | Y24: Lower Flexibility Limit Exceeded: 706.00 Underproduction Credits Lost
A25: ='Data Inputs'!C20 -> 2011-01-01 | B25: 100 | C25: 31 | D25: 3100 | E25: 70000 | F25: 3.42 | G25: 2394 | J25: =-IF(F25<'Data Inputs'!F20,(F25-'Data Inputs'!F20)*E25/100,0) -> 0 | K25: =IF(OR('Data Inputs'!U20=0, 'Data Inputs'!U20=""), "N/A", 'Data Inputs'!U20*B25) -> N/A | L25: =IF(OR('Data Inputs'!U20=0, 'Data Inputs'!U20=""), "N/A", IF((G25-(D25-J25))>K25, K25, IF(K25>(G25-(D25-J25)), IF((G25-(D25-J25))<0, 0, (G25-(D25-J25))),0))) -> N/A | M25: 3100 | N25: -706 | O25: =ROUND(IF(O24+N25>=O24,IF(O24>='Data Inputs'!D20*B25,O24,IF(O24+N25>'Data Inputs'!D20*B25,'Data Inputs'!D20*B25,IF(O24+N25<'Data Inputs'!E20*B25,'Data Inputs'!E20*B25,O24+N25))),IF(O24+N25<O24,IF(O24+N25<'Data Inputs'!E20*B25,'Data Inputs'!E20*B25,O24+N25),"ERROR")),2) -> -3000 | P25: -30 | Q25: 3000 | R25: =$B25*'Data Inputs'!D20 -> 1000 | S25: =$B25*'Data Inputs'!E20 -> -3000 | T25: 77.22580645 | U25: 100 | V25: 100 | W25: 22.58064516 | X25: 0.7722580645 | Y25: Lower Flexibility Limit Exceeded: 706.00 Underproduction Credits Lost
A26: ='Data Inputs'!C21 -> 2011-02-01 | B26: 100 | C26: 28 | D26: 2800 | E26: 70000 | F26: 3.42 | G26: 2394 | J26: =-IF(F26<'Data Inputs'!F21,(F26-'Data Inputs'!F21)*E26/100,0) -> 0 | K26: =IF(OR('Data Inputs'!U21=0, 'Data Inputs'!U21=""), "N/A", 'Data Inputs'!U21*B26) -> N/A | L26: =IF(OR('Data Inputs'!U21=0, 'Data Inputs'!U21=""), "N/A", IF((G26-(D26-J26))>K26, K26, IF(K26>(G26-(D26-J26)), IF((G26-(D26-J26))<0, 0, (G26-(D26-J26))),0))) -> N/A | M26: 2800 | N26: -406 | O26: =ROUND(IF(O25+N26>=O25,IF(O25>='Data Inputs'!D21*B26,O25,IF(O25+N26>'Data Inputs'!D21*B26,'Data Inputs'!D21*B26,IF(O25+N26<'Data Inputs'!E21*B26,'Data Inputs'!E21*B26,O25+N26))),IF(O25+N26<O25,IF(O25+N26<'Data Inputs'!E21*B26,'Data Inputs'!E21*B26,O25+N26),"ERROR")),2) -> -3000 | P26: -30 | Q26: 3000 | R26: =$B26*'Data Inputs'!D21 -> 1000 | S26: =$B26*'Data Inputs'!E21 -> -3000 | T26: 85.5 | U26: 100 | V26: 100 | W26: 25 | X26: 0.855 | Y26: Lower Flexibility Limit Exceeded: 406.00 Underproduction Credits Lost
A27: ='Data Inputs'!C22 -> 2011-03-01 | B27: 100 | C27: 31 | D27: 3100 | E27: 70000 | F27: 3.42 | G27: 2394 | J27: =-IF(F27<'Data Inputs'!F22,(F27-'Data Inputs'!F22)*E27/100,0) -> 0 | K27: =IF(OR('Data Inputs'!U22=0, 'Data Inputs'!U22=""), "N/A", 'Data Inputs'!U22*B27) -> N/A | L27: =IF(OR('Data Inputs'!U22=0, 'Data Inputs'!U22=""), "N/A", IF((G27-(D27-J27))>K27, K27, IF(K27>(G27-(D27-J27)), IF((G27-(D27-J27))<0, 0, (G27-(D27-J27))),0))) -> N/A | M27: 3100 | N27: -706 | O27: =ROUND(IF(O26+N27>=O26,IF(O26>='Data Inputs'!D22*B27,O26,IF(O26+N27>'Data Inputs'!D22*B27,'Data Inputs'!D22*B27,IF(O26+N27<'Data Inputs'!E22*B27,'Data Inputs'!E22*B27,O26+N27))),IF(O26+N27<O26,IF(O26+N27<'Data Inputs'!E22*B27,'Data Inputs'!E22*B27,O26+N27),"ERROR")),2) -> -3000 | P27: -30 | Q27: 3000 | R27: =$B27*'Data Inputs'!D22 -> 1000 | S27: =$B27*'Data Inputs'!E22 -> -3000 | T27: 77.22580645 | U27: 100 | V27: 100 | W27: 22.58064516 | X27: 0.7722580645 | Y27: Lower Flexibility Limit Exceeded: 706.00 Underproduction Credits Lost
A28: ='Data Inputs'!C23 -> 2011-04-01 | B28: 100 | C28: 30 | D28: 3000 | E28: 70000 | F28: 3.42 | G28: 2394 | J28: =-IF(F28<'Data Inputs'!F23,(F28-'Data Inputs'!F23)*E28/100,0) -> 0 | K28: =IF(OR('Data Inputs'!U23=0, 'Data Inputs'!U23=""), "N/A", 'Data Inputs'!U23*B28) -> N/A | L28: =IF(OR('Data Inputs'!U23=0, 'Data Inputs'!U23=""), "N/A", IF((G28-(D28-J28))>K28, K28, IF(K28>(G28-(D28-J28)), IF((G28-(D28-J28))<0, 0, (G28-(D28-J28))),0))) -> N/A | M28: 3000 | N28: -606 | O28: =ROUND(IF(O27+N28>=O27,IF(O27>='Data Inputs'!D23*B28,O27,IF(O27+N28>'Data Inputs'!D23*B28,'Data Inputs'!D23*B28,IF(O27+N28<'Data Inputs'!E23*B28,'Data Inputs'!E23*B28,O27+N28))),IF(O27+N28<O27,IF(O27+N28<'Data Inputs'!E23*B28,'Data Inputs'!E23*B28,O27+N28),"ERROR")),2) -> -3000 | P28: -30 | Q28: 3000 | R28: =$B28*'Data Inputs'!D23 -> 1000 | S28: =$B28*'Data Inputs'!E23 -> -3000 | T28: 79.8 | U28: 100 | V28: 100 | W28: 23.33333333 | X28: 0.798 | Y28: Lower Flexibility Limit Exceeded: 606.00 Underproduction Credits Lost
A29: ='Data Inputs'!C24 -> 2011-05-01 | B29: 100 | C29: 31 | D29: 3100 | E29: 70000 | F29: 3.42 | G29: 2394 | J29: =-IF(F29<'Data Inputs'!F24,(F29-'Data Inputs'!F24)*E29/100,0) -> 0 | K29: =IF(OR('Data Inputs'!U24=0, 'Data Inputs'!U24=""), "N/A", 'Data Inputs'!U24*B29) -> N/A | L29: =IF(OR('Data Inputs'!U24=0, 'Data Inputs'!U24=""), "N/A", IF((G29-(D29-J29))>K29, K29, IF(K29>(G29-(D29-J29)), IF((G29-(D29-J29))<0, 0, (G29-(D29-J29))),0))) -> N/A | M29: 3100 | N29: -706 | O29: =ROUND(IF(O28+N29>=O28,IF(O28>='Data Inputs'!D24*B29,O28,IF(O28+N29>'Data Inputs'!D24*B29,'Data Inputs'!D24*B29,IF(O28+N29<'Data Inputs'!E24*B29,'Data Inputs'!E24*B29,O28+N29))),IF(O28+N29<O28,IF(O28+N29<'Data Inputs'!E24*B29,'Data Inputs'!E24*B29,O28+N29),"ERROR")),2) -> -3000 | P29: -30 | Q29: 3000 | R29: =$B29*'Data Inputs'!D24 -> 1000 | S29: =$B29*'Data Inputs'!E24 -> -3000 | T29: 77.22580645 | U29: 100 | V29: 100 | W29: 22.58064516 | X29: 0.7722580645 | Y29: Lower Flexibility Limit Exceeded: 706.00 Underproduction Credits Lost
A30: ='Data Inputs'!C25 -> 2011-06-01 | B30: 100 | C30: 30 | D30: 3000 | E30: 70000 | F30: 3.42 | G30: 2394 | J30: =-IF(F30<'Data Inputs'!F25,(F30-'Data Inputs'!F25)*E30/100,0) -> 0 | K30: =IF(OR('Data Inputs'!U25=0, 'Data Inputs'!U25=""), "N/A", 'Data Inputs'!U25*B30) -> N/A | L30: =IF(OR('Data Inputs'!U25=0, 'Data Inputs'!U25=""), "N/A", IF((G30-(D30-J30))>K30, K30, IF(K30>(G30-(D30-J30)), IF((G30-(D30-J30))<0, 0, (G30-(D30-J30))),0))) -> N/A | M30: 3000 | N30: -606 | O30: =ROUND(IF(O29+N30>=O29,IF(O29>='Data Inputs'!D25*B30,O29,IF(O29+N30>'Data Inputs'!D25*B30,'Data Inputs'!D25*B30,IF(O29+N30<'Data Inputs'!E25*B30,'Data Inputs'!E25*B30,O29+N30))),IF(O29+N30<O29,IF(O29+N30<'Data Inputs'!E25*B30,'Data Inputs'!E25*B30,O29+N30),"ERROR")),2) -> -3000 | P30: -30 | Q30: 3000 | R30: =$B30*'Data Inputs'!D25 -> 1000 | S30: =$B30*'Data Inputs'!E25 -> -3000 | T30: 79.8 | U30: 100 | V30: 100 | W30: 23.33333333 | X30: 0.798 | Y30: Lower Flexibility Limit Exceeded: 606.00 Underproduction Credits Lost
A31: ='Data Inputs'!C26 -> 2011-07-01 | B31: 100 | C31: 31 | D31: 3100 | E31: 70000 | F31: 3.42 | G31: 2394 | J31: =-IF(F31<'Data Inputs'!F26,(F31-'Data Inputs'!F26)*E31/100,0) -> 0 | K31: =IF(OR('Data Inputs'!U26=0, 'Data Inputs'!U26=""), "N/A", 'Data Inputs'!U26*B31) -> 100 | L31: =IF(OR('Data Inputs'!U26=0, 'Data Inputs'!U26=""), "N/A", IF((G31-(D31-J31))>K31, K31, IF(K31>(G31-(D31-J31)), IF((G31-(D31-J31))<0, 0, (G31-(D31-J31))),0))) -> 0 | M31: 3100 | N31: -706 | O31: =ROUND(IF(O30+N31>=O30,IF(O30>='Data Inputs'!D26*B31,O30,IF(O30+N31>'Data Inputs'!D26*B31,'Data Inputs'!D26*B31,IF(O30+N31<'Data Inputs'!E26*B31,'Data Inputs'!E26*B31,O30+N31))),IF(O30+N31<O30,IF(O30+N31<'Data Inputs'!E26*B31,'Data Inputs'!E26*B31,O30+N31),"ERROR")),2) -> -3000 | P31: -30 | Q31: 3000 | R31: =$B31*'Data Inputs'!D26 -> 1000 | S31: =$B31*'Data Inputs'!E26 -> -3000 | T31: 77.22580645 | U31: 100 | V31: 100 | W31: 22.58064516 | X31: 0.7722580645 | Y31: Lower Flexibility Limit Exceeded: 706.00 Underproduction Credits Lost
A32: ='Data Inputs'!C27 -> 2011-08-01 | B32: 100 | C32: 31 | D32: 3100 | E32: 70000 | F32: 3.42 | G32: 2394 | J32: =-IF(F32<'Data Inputs'!F27,(F32-'Data Inputs'!F27)*E32/100,0) -> 0 | K32: =IF(OR('Data Inputs'!U27=0, 'Data Inputs'!U27=""), "N/A", 'Data Inputs'!U27*B32) -> 200 | L32: =IF(OR('Data Inputs'!U27=0, 'Data Inputs'!U27=""), "N/A", IF((G32-(D32-J32))>K32, K32, IF(K32>(G32-(D32-J32)), IF((G32-(D32-J32))<0, 0, (G32-(D32-J32))),0))) -> 0 | M32: 3100 | N32: -706 | O32: =ROUND(IF(O31+N32>=O31,IF(O31>='Data Inputs'!D27*B32,O31,IF(O31+N32>'Data Inputs'!D27*B32,'Data Inputs'!D27*B32,IF(O31+N32<'Data Inputs'!E27*B32,'Data Inputs'!E27*B32,O31+N32))),IF(O31+N32<O31,IF(O31+N32<'Data Inputs'!E27*B32,'Data Inputs'!E27*B32,O31+N32),"ERROR")),2) -> -3000 | P32: -30 | Q32: 3000 | R32: =$B32*'Data Inputs'!D27 -> 1000 | S32: =$B32*'Data Inputs'!E27 -> -3000 | T32: 77.22580645 | U32: 100 | V32: 100 | W32: 22.58064516 | X32: 0.7722580645 | Y32: Lower Flexibility Limit Exceeded: 706.00 Underproduction Credits Lost
A33: ='Data Inputs'!C28 -> 2011-09-01 | B33: 100 | C33: 30 | D33: 3000 | E33: 70000 | F33: 3.42 | G33: 2394 | J33: =-IF(F33<'Data Inputs'!F28,(F33-'Data Inputs'!F28)*E33/100,0) -> 0 | K33: =IF(OR('Data Inputs'!U28=0, 'Data Inputs'!U28=""), "N/A", 'Data Inputs'!U28*B33) -> 200 | L33: =IF(OR('Data Inputs'!U28=0, 'Data Inputs'!U28=""), "N/A", IF((G33-(D33-J33))>K33, K33, IF(K33>(G33-(D33-J33)), IF((G33-(D33-J33))<0, 0, (G33-(D33-J33))),0))) -> 0 | M33: 3000 | N33: -606 | O33: =ROUND(IF(O32+N33>=O32,IF(O32>='Data Inputs'!D28*B33,O32,IF(O32+N33>'Data Inputs'!D28*B33,'Data Inputs'!D28*B33,IF(O32+N33<'Data Inputs'!E28*B33,'Data Inputs'!E28*B33,O32+N33))),IF(O32+N33<O32,IF(O32+N33<'Data Inputs'!E28*B33,'Data Inputs'!E28*B33,O32+N33),"ERROR")),2) -> -3000 | P33: -30 | Q33: 3000 | R33: =$B33*'Data Inputs'!D28 -> 1000 | S33: =$B33*'Data Inputs'!E28 -> -3000 | T33: 79.8 | U33: 100 | V33: 100 | W33: 23.33333333 | X33: 0.798 | Y33: Lower Flexibility Limit Exceeded: 606.00 Underproduction Credits Lost
A34: ='Data Inputs'!C29 -> 2011-10-01 | B34: 100 | C34: 31 | D34: 3100 | E34: 70000 | F34: 3.42 | G34: 2394 | J34: =-IF(F34<'Data Inputs'!F29,(F34-'Data Inputs'!F29)*E34/100,0) -> 0 | K34: =IF(OR('Data Inputs'!U29=0, 'Data Inputs'!U29=""), "N/A", 'Data Inputs'!U29*B34) -> 100 | L34: =IF(OR('Data Inputs'!U29=0, 'Data Inputs'!U29=""), "N/A", IF((G34-(D34-J34))>K34, K34, IF(K34>(G34-(D34-J34)), IF((G34-(D34-J34))<0, 0, (G34-(D34-J34))),0))) -> 0 | M34: 3100 | N34: -706 | O34: =ROUND(IF(O33+N34>=O33,IF(O33>='Data Inputs'!D29*B34,O33,IF(O33+N34>'Data Inputs'!D29*B34,'Data Inputs'!D29*B34,IF(O33+N34<'Data Inputs'!E29*B34,'Data Inputs'!E29*B34,O33+N34))),IF(O33+N34<O33,IF(O33+N34<'Data Inputs'!E29*B34,'Data Inputs'!E29*B34,O33+N34),"ERROR")),2) -> -3000 | P34: -30 | Q34: 3000 | R34: =$B34*'Data Inputs'!D29 -> 1000 | S34: =$B34*'Data Inputs'!E29 -> -3000 | T34: 77.22580645 | U34: 100 | V34: 100 | W34: 22.58064516 | X34: 0.7722580645 | Y34: Lower Flexibility Limit Exceeded: 706.00 Underproduction Credits Lost
A35: ='Data Inputs'!C30 -> 2011-11-01 | B35: 100 | C35: 30 | D35: 3000 | E35: 70000 | F35: 3.42 | G35: 2394 | J35: =-IF(F35<'Data Inputs'!F30,(F35-'Data Inputs'!F30)*E35/100,0) -> 0 | K35: =IF(OR('Data Inputs'!U30=0, 'Data Inputs'!U30=""), "N/A", 'Data Inputs'!U30*B35) -> N/A | L35: =IF(OR('Data Inputs'!U30=0, 'Data Inputs'!U30=""), "N/A", IF((G35-(D35-J35))>K35, K35, IF(K35>(G35-(D35-J35)), IF((G35-(D35-J35))<0, 0, (G35-(D35-J35))),0))) -> N/A | M35: 3000 | N35: -606 | O35: =ROUND(IF(O34+N35>=O34,IF(O34>='Data Inputs'!D30*B35,O34,IF(O34+N35>'Data Inputs'!D30*B35,'Data Inputs'!D30*B35,IF(O34+N35<'Data Inputs'!E30*B35,'Data Inputs'!E30*B35,O34+N35))),IF(O34+N35<O34,IF(O34+N35<'Data Inputs'!E30*B35,'Data Inputs'!E30*B35,O34+N35),"ERROR")),2) -> -3000 | P35: -30 | Q35: 3000 | R35: =$B35*'Data Inputs'!D30 -> 1000 | S35: =$B35*'Data Inputs'!E30 -> -3000 | T35: 79.8 | U35: 100 | V35: 100 | W35: 23.33333333 | X35: 0.798 | Y35: Lower Flexibility Limit Exceeded: 606.00 Underproduction Credits Lost
A36: ='Data Inputs'!C31 -> 2011-12-01 | B36: 100 | C36: 31 | D36: 3100 | E36: 70000 | F36: 3.42 | G36: 2394 | J36: =-IF(F36<'Data Inputs'!F31,(F36-'Data Inputs'!F31)*E36/100,0) -> 0 | K36: =IF(OR('Data Inputs'!U31=0, 'Data Inputs'!U31=""), "N/A", 'Data Inputs'!U31*B36) -> N/A | L36: =IF(OR('Data Inputs'!U31=0, 'Data Inputs'!U31=""), "N/A", IF((G36-(D36-J36))>K36, K36, IF(K36>(G36-(D36-J36)), IF((G36-(D36-J36))<0, 0, (G36-(D36-J36))),0))) -> N/A | M36: 3100 | N36: -706 | O36: =ROUND(IF(O35+N36>=O35,IF(O35>='Data Inputs'!D31*B36,O35,IF(O35+N36>'Data Inputs'!D31*B36,'Data Inputs'!D31*B36,IF(O35+N36<'Data Inputs'!E31*B36,'Data Inputs'!E31*B36,O35+N36))),IF(O35+N36<O35,IF(O35+N36<'Data Inputs'!E31*B36,'Data Inputs'!E31*B36,O35+N36),"ERROR")),2) -> -3000 | P36: -30 | Q36: 3000 | R36: =$B36*'Data Inputs'!D31 -> 1000 | S36: =$B36*'Data Inputs'!E31 -> -3000 | T36: 77.22580645 | U36: 100 | V36: 100 | W36: 22.58064516 | X36: 0.7722580645 | Y36: Lower Flexibility Limit Exceeded: 706.00 Underproduction Credits Lost
A37: ='Data Inputs'!C32 -> 2012-01-01 | B37: 100 | C37: 31 | D37: 3100 | E37: 70000 | F37: 3.42 | G37: 2394 | J37: =-IF(F37<'Data Inputs'!F32,(F37-'Data Inputs'!F32)*E37/100,0) -> 0 | K37: =IF(OR('Data Inputs'!U32=0, 'Data Inputs'!U32=""), "N/A", 'Data Inputs'!U32*B37) -> N/A | L37: =IF(OR('Data Inputs'!U32=0, 'Data Inputs'!U32=""), "N/A", IF((G37-(D37-J37))>K37, K37, IF(K37>(G37-(D37-J37)), IF((G37-(D37-J37))<0, 0, (G37-(D37-J37))),0))) -> N/A | M37: 3100 | N37: -706 | O37: =ROUND(IF(O36+N37>=O36,IF(O36>='Data Inputs'!D32*B37,O36,IF(O36+N37>'Data Inputs'!D32*B37,'Data Inputs'!D32*B37,IF(O36+N37<'Data Inputs'!E32*B37,'Data Inputs'!E32*B37,O36+N37))),IF(O36+N37<O36,IF(O36+N37<'Data Inputs'!E32*B37,'Data Inputs'!E32*B37,O36+N37),"ERROR")),2) -> -3000 | P37: -30 | Q37: 3000 | R37: =$B37*'Data Inputs'!D32 -> 1000 | S37: =$B37*'Data Inputs'!E32 -> -3000 | T37: 77.22580645 | U37: 100 | V37: 100 | W37: 22.58064516 | X37: 0.7722580645 | Y37: Lower Flexibility Limit Exceeded: 706.00 Underproduction Credits Lost
A38: ='Data Inputs'!C33 -> 2012-02-01 | B38: 100 | C38: 29 | D38: 2900 | E38: 70000 | F38: 3.42 | G38: 2394 | J38: =-IF(F38<'Data Inputs'!F33,(F38-'Data Inputs'!F33)*E38/100,0) -> 0 | K38: =IF(OR('Data Inputs'!U33=0, 'Data Inputs'!U33=""), "N/A", 'Data Inputs'!U33*B38) -> N/A | L38: =IF(OR('Data Inputs'!U33=0, 'Data Inputs'!U33=""), "N/A", IF((G38-(D38-J38))>K38, K38, IF(K38>(G38-(D38-J38)), IF((G38-(D38-J38))<0, 0, (G38-(D38-J38))),0))) -> N/A | M38: 2900 | N38: -506 | O38: =ROUND(IF(O37+N38>=O37,IF(O37>='Data Inputs'!D33*B38,O37,IF(O37+N38>'Data Inputs'!D33*B38,'Data Inputs'!D33*B38,IF(O37+N38<'Data Inputs'!E33*B38,'Data Inputs'!E33*B38,O37+N38))),IF(O37+N38<O37,IF(O37+N38<'Data Inputs'!E33*B38,'Data Inputs'!E33*B38,O37+N38),"ERROR")),2) -> -3000 | P38: -30 | Q38: 3000 | R38: =$B38*'Data Inputs'!D33 -> 1000 | S38: =$B38*'Data Inputs'!E33 -> -3000 | T38: 82.55172414 | U38: 100 | V38: 100 | W38: 24.13793103 | X38: 0.8255172414 | Y38: Lower Flexibility Limit Exceeded: 506.00 Underproduction Credits Lost
A39: ='Data Inputs'!C34 -> 2012-03-01 | B39: 100 | C39: 31 | D39: 3100 | E39: 70000 | F39: 3.42 | G39: 2394 | J39: =-IF(F39<'Data Inputs'!F34,(F39-'Data Inputs'!F34)*E39/100,0) -> 0 | K39: =IF(OR('Data Inputs'!U34=0, 'Data Inputs'!U34=""), "N/A", 'Data Inputs'!U34*B39) -> N/A | L39: =IF(OR('Data Inputs'!U34=0, 'Data Inputs'!U34=""), "N/A", IF((G39-(D39-J39))>K39, K39, IF(K39>(G39-(D39-J39)), IF((G39-(D39-J39))<0, 0, (G39-(D39-J39))),0))) -> N/A | M39: 3100 | N39: -706 | O39: =ROUND(IF(O38+N39>=O38,IF(O38>='Data Inputs'!D34*B39,O38,IF(O38+N39>'Data Inputs'!D34*B39,'Data Inputs'!D34*B39,IF(O38+N39<'Data Inputs'!E34*B39,'Data Inputs'!E34*B39,O38+N39))),IF(O38+N39<O38,IF(O38+N39<'Data Inputs'!E34*B39,'Data Inputs'!E34*B39,O38+N39),"ERROR")),2) -> -3000 | P39: -30 | Q39: 3000 | R39: =$B39*'Data Inputs'!D34 -> 1000 | S39: =$B39*'Data Inputs'!E34 -> -3000 | T39: 77.22580645 | U39: 100 | V39: 100 | W39: 22.58064516 | X39: 0.7722580645 | Y39: Lower Flexibility Limit Exceeded: 706.00 Underproduction Credits Lost
A40: ='Data Inputs'!C35 -> 2012-04-01 | B40: 100 | C40: =EOMONTH(A39, 1)-EOMONTH(A39, 0) -> 30 | D40: 3000 | E40: 70000 | F40: 3.42 | G40: 2394 | J40: =-IF(F40<'Data Inputs'!F35,(F40-'Data Inputs'!F35)*E40/100,0) -> 0 | K40: =IF(OR('Data Inputs'!U35=0, 'Data Inputs'!U35=""), "N/A", 'Data Inputs'!U35*B40) -> N/A | L40: =IF(OR('Data Inputs'!U35=0, 'Data Inputs'!U35=""), "N/A", IF((G40-(D40-J40))>K40, K40, IF(K40>(G40-(D40-J40)), IF((G40-(D40-J40))<0, 0, (G40-(D40-J40))),0))) -> N/A | M40: 3000 | N40: -606 | O40: =ROUND(IF(O39+N40>=O39,IF(O39>='Data Inputs'!D35*B40,O39,IF(O39+N40>'Data Inputs'!D35*B40,'Data Inputs'!D35*B40,IF(O39+N40<'Data Inputs'!E35*B40,'Data Inputs'!E35*B40,O39+N40))),IF(O39+N40<O39,IF(O39+N40<'Data Inputs'!E35*B40,'Data Inputs'!E35*B40,O39+N40),"ERROR")),2) -> -3000 | P40: -30 | Q40: 3000 | R40: =$B40*'Data Inputs'!D35 -> 1000 | S40: =$B40*'Data Inputs'!E35 -> -3000 | T40: 79.8 | U40: 100 | V40: 100 | W40: 23.33333333 | X40: 0.798 | Y40: Lower Flexibility Limit Exceeded: 606.00 Underproduction Credits Lost
A41: ='Data Inputs'!C36 -> 2012-05-01 | B41: 100 | C41: 31 | D41: 3100 | E41: 70000 | F41: 3.42 | G41: 2394 | J41: =-IF(F41<'Data Inputs'!F36,(F41-'Data Inputs'!F36)*E41/100,0) -> 0 | K41: =IF(OR('Data Inputs'!U36=0, 'Data Inputs'!U36=""), "N/A", 'Data Inputs'!U36*B41) -> N/A | L41: =IF(OR('Data Inputs'!U36=0, 'Data Inputs'!U36=""), "N/A", IF((G41-(D41-J41))>K41, K41, IF(K41>(G41-(D41-J41)), IF((G41-(D41-J41))<0, 0, (G41-(D41-J41))),0))) -> N/A | M41: 3100 | N41: -706 | O41: =ROUND(IF(O40+N41>=O40,IF(O40>='Data Inputs'!D36*B41,O40,IF(O40+N41>'Data Inputs'!D36*B41,'Data Inputs'!D36*B41,IF(O40+N41<'Data Inputs'!E36*B41,'Data Inputs'!E36*B41,O40+N41))),IF(O40+N41<O40,IF(O40+N41<'Data Inputs'!E36*B41,'Data Inputs'!E36*B41,O40+N41),"ERROR")),2) -> -3000 | P41: -30 | Q41: 3000 | R41: =$B41*'Data Inputs'!D36 -> 1000 | S41: =$B41*'Data Inputs'!E36 -> -3000 | T41: 77.22580645 | U41: 100 | V41: 100 | W41: 22.58064516 | X41: 0.7722580645 | Y41: Lower Flexibility Limit Exceeded: 706.00 Underproduction Credits Lost
A42: ='Data Inputs'!C37 -> 2012-06-01 | B42: 100 | C42: 30 | D42: 3000 | E42: 70000 | F42: 3.42 | G42: 2394 | J42: =-IF(F42<'Data Inputs'!F37,(F42-'Data Inputs'!F37)*E42/100,0) -> 0 | K42: =IF(OR('Data Inputs'!U37=0, 'Data Inputs'!U37=""), "N/A", 'Data Inputs'!U37*B42) -> N/A | L42: =IF(OR('Data Inputs'!U37=0, 'Data Inputs'!U37=""), "N/A", IF((G42-(D42-J42))>K42, K42, IF(K42>(G42-(D42-J42)), IF((G42-(D42-J42))<0, 0, (G42-(D42-J42))),0))) -> N/A | M42: 3000 | N42: -606 | O42: =ROUND(IF(O41+N42>=O41,IF(O41>='Data Inputs'!D37*B42,O41,IF(O41+N42>'Data Inputs'!D37*B42,'Data Inputs'!D37*B42,IF(O41+N42<'Data Inputs'!E37*B42,'Data Inputs'!E37*B42,O41+N42))),IF(O41+N42<O41,IF(O41+N42<'Data Inputs'!E37*B42,'Data Inputs'!E37*B42,O41+N42),"ERROR")),2) -> -3000 | P42: -30 | Q42: 3000 | R42: =$B42*'Data Inputs'!D37 -> 1000 | S42: =$B42*'Data Inputs'!E37 -> -3000 | T42: 79.8 | U42: 100 | V42: 100 | W42: 23.33333333 | X42: 0.798 | Y42: Lower Flexibility Limit Exceeded: 606.00 Underproduction Credits Lost
A43: ='Data Inputs'!C38 -> 2012-07-01 | B43: 100 | C43: 31 | D43: 3100 | E43: 70000 | F43: 3.42 | G43: 2394 | J43: =-IF(F43<'Data Inputs'!F38,(F43-'Data Inputs'!F38)*E43/100,0) -> 0 | K43: =IF(OR('Data Inputs'!U38=0, 'Data Inputs'!U38=""), "N/A", 'Data Inputs'!U38*B43) -> N/A | L43: =IF(OR('Data Inputs'!U38=0, 'Data Inputs'!U38=""), "N/A", IF((G43-(D43-J43))>K43, K43, IF(K43>(G43-(D43-J43)), IF((G43-(D43-J43))<0, 0, (G43-(D43-J43))),0))) -> N/A | M43: 3100 | N43: -706 | O43: =ROUND(IF(O42+N43>=O42,IF(O42>='Data Inputs'!D38*B43,O42,IF(O42+N43>'Data Inputs'!D38*B43,'Data Inputs'!D38*B43,IF(O42+N43<'Data Inputs'!E38*B43,'Data Inputs'!E38*B43,O42+N43))),IF(O42+N43<O42,IF(O42+N43<'Data Inputs'!E38*B43,'Data Inputs'!E38*B43,O42+N43),"ERROR")),2) -> -3000 | P43: -30 | Q43: 3000 | R43: =$B43*'Data Inputs'!D38 -> 1000 | S43: =$B43*'Data Inputs'!E38 -> -3000 | T43: 77.22580645 | U43: 100 | V43: 100 | W43: 22.58064516 | X43: 0.7722580645 | Y43: Lower Flexibility Limit Exceeded: 706.00 Underproduction Credits Lost
A44: ='Data Inputs'!C39 -> 2012-08-01 | B44: 100 | C44: 31 | D44: 3100 | E44: 70000 | F44: 3.42 | G44: 2394 | J44: =-IF(F44<'Data Inputs'!F39,(F44-'Data Inputs'!F39)*E44/100,0) -> 0 | K44: =IF(OR('Data Inputs'!U39=0, 'Data Inputs'!U39=""), "N/A", 'Data Inputs'!U39*B44) -> 200 | L44: =IF(OR('Data Inputs'!U39=0, 'Data Inputs'!U39=""), "N/A", IF((G44-(D44-J44))>K44, K44, IF(K44>(G44-(D44-J44)), IF((G44-(D44-J44))<0, 0, (G44-(D44-J44))),0))) -> 0 | M44: 3100 | N44: -706 | O44: =ROUND(IF(O43+N44>=O43,IF(O43>='Data Inputs'!D39*B44,O43,IF(O43+N44>'Data Inputs'!D39*B44,'Data Inputs'!D39*B44,IF(O43+N44<'Data Inputs'!E39*B44,'Data Inputs'!E39*B44,O43+N44))),IF(O43+N44<O43,IF(O43+N44<'Data Inputs'!E39*B44,'Data Inputs'!E39*B44,O43+N44),"ERROR")),2) -> -3000 | P44: -30 | Q44: 3000 | R44: =$B44*'Data Inputs'!D39 -> 1000 | S44: =$B44*'Data Inputs'!E39 -> -3000 | T44: 77.22580645 | U44: 100 | V44: 100 | W44: 22.58064516 | X44: 0.7722580645 | Y44: Lower Flexibility Limit Exceeded: 706.00 Underproduction Credits Lost
A45: ='Data Inputs'!C40 -> 2012-09-01 | B45: 100 | C45: 30 | D45: 3000 | E45: 70000 | F45: 3.42 | G45: 2394 | J45: =-IF(F45<'Data Inputs'!F40,(F45-'Data Inputs'!F40)*E45/100,0) -> 0 | K45: =IF(OR('Data Inputs'!U40=0, 'Data Inputs'!U40=""), "N/A", 'Data Inputs'!U40*B45) -> 200 | L45: =IF(OR('Data Inputs'!U40=0, 'Data Inputs'!U40=""), "N/A", IF((G45-(D45-J45))>K45, K45, IF(K45>(G45-(D45-J45)), IF((G45-(D45-J45))<0, 0, (G45-(D45-J45))),0))) -> 0 | M45: 3000 | N45: -606 | O45: =ROUND(IF(O44+N45>=O44,IF(O44>='Data Inputs'!D40*B45,O44,IF(O44+N45>'Data Inputs'!D40*B45,'Data Inputs'!D40*B45,IF(O44+N45<'Data Inputs'!E40*B45,'Data Inputs'!E40*B45,O44+N45))),IF(O44+N45<O44,IF(O44+N45<'Data Inputs'!E40*B45,'Data Inputs'!E40*B45,O44+N45),"ERROR")),2) -> -3000 | P45: -30 | Q45: 3000 | R45: =$B45*'Data Inputs'!D40 -> 1000 | S45: =$B45*'Data Inputs'!E40 -> -3000 | T45: 79.8 | U45: 100 | V45: 100 | W45: 23.33333333 | X45: 0.798 | Y45: Lower Flexibility Limit Exceeded: 606.00 Underproduction Credits Lost
A46: ='Data Inputs'!C41 -> 2012-10-01 | B46: 100 | C46: 31 | D46: 3100 | E46: 70000 | F46: 3.42 | G46: 2394 | J46: =-IF(F46<'Data Inputs'!F41,(F46-'Data Inputs'!F41)*E46/100,0) -> 0 | K46: =IF(OR('Data Inputs'!U41=0, 'Data Inputs'!U41=""), "N/A", 'Data Inputs'!U41*B46) -> 100 | L46: =IF(OR('Data Inputs'!U41=0, 'Data Inputs'!U41=""), "N/A", IF((G46-(D46-J46))>K46, K46, IF(K46>(G46-(D46-J46)), IF((G46-(D46-J46))<0, 0, (G46-(D46-J46))),0))) -> 0 | M46: 3100 | N46: -706 | O46: =ROUND(IF(O45+N46>=O45,IF(O45>='Data Inputs'!D41*B46,O45,IF(O45+N46>'Data Inputs'!D41*B46,'Data Inputs'!D41*B46,IF(O45+N46<'Data Inputs'!E41*B46,'Data Inputs'!E41*B46,O45+N46))),IF(O45+N46<O45,IF(O45+N46<'Data Inputs'!E41*B46,'Data Inputs'!E41*B46,O45+N46),"ERROR")),2) -> -3000 | P46: -30 | Q46: 3000 | R46: =$B46*'Data Inputs'!D41 -> 1000 | S46: =$B46*'Data Inputs'!E41 -> -3000 | T46: 77.22580645 | U46: 100 | V46: 100 | W46: 22.58064516 | X46: 0.7722580645 | Y46: Lower Flexibility Limit Exceeded: 706.00 Underproduction Credits Lost
A47: ='Data Inputs'!C42 -> 2012-11-01 | B47: 100 | C47: 30 | D47: 3000 | E47: 70000 | F47: 3.42 | G47: 2394 | J47: =-IF(F47<'Data Inputs'!F42,(F47-'Data Inputs'!F42)*E47/100,0) -> 0 | K47: =IF(OR('Data Inputs'!U42=0, 'Data Inputs'!U42=""), "N/A", 'Data Inputs'!U42*B47) -> N/A | L47: =IF(OR('Data Inputs'!U42=0, 'Data Inputs'!U42=""), "N/A", IF((G47-(D47-J47))>K47, K47, IF(K47>(G47-(D47-J47)), IF((G47-(D47-J47))<0, 0, (G47-(D47-J47))),0))) -> N/A | M47: 3000 | N47: -606 | O47: =ROUND(IF(O46+N47>=O46,IF(O46>='Data Inputs'!D42*B47,O46,IF(O46+N47>'Data Inputs'!D42*B47,'Data Inputs'!D42*B47,IF(O46+N47<'Data Inputs'!E42*B47,'Data Inputs'!E42*B47,O46+N47))),IF(O46+N47<O46,IF(O46+N47<'Data Inputs'!E42*B47,'Data Inputs'!E42*B47,O46+N47),"ERROR")),2) -> -3000 | P47: -30 | Q47: 3000 | R47: =$B47*'Data Inputs'!D42 -> 1000 | S47: =$B47*'Data Inputs'!E42 -> -3000 | T47: 79.8 | U47: 100 | V47: 100 | W47: 23.33333333 | X47: 0.798 | Y47: Lower Flexibility Limit Exceeded: 606.00 Underproduction Credits Lost
A48: ='Data Inputs'!C43 -> 2012-12-01 | B48: 100 | C48: 31 | D48: 3100 | E48: 70000 | F48: 3.42 | G48: 2394 | J48: =-IF(F48<'Data Inputs'!F43,(F48-'Data Inputs'!F43)*E48/100,0) -> 0 | K48: =IF(OR('Data Inputs'!U43=0, 'Data Inputs'!U43=""), "N/A", 'Data Inputs'!U43*B48) -> N/A | L48: =IF(OR('Data Inputs'!U43=0, 'Data Inputs'!U43=""), "N/A", IF((G48-(D48-J48))>K48, K48, IF(K48>(G48-(D48-J48)), IF((G48-(D48-J48))<0, 0, (G48-(D48-J48))),0))) -> N/A | M48: 3100 | N48: -706 | O48: =ROUND(IF(O47+N48>=O47,IF(O47>='Data Inputs'!D43*B48,O47,IF(O47+N48>'Data Inputs'!D43*B48,'Data Inputs'!D43*B48,IF(O47+N48<'Data Inputs'!E43*B48,'Data Inputs'!E43*B48,O47+N48))),IF(O47+N48<O47,IF(O47+N48<'Data Inputs'!E43*B48,'Data Inputs'!E43*B48,O47+N48),"ERROR")),2) -> -3000 | P48: -30 | Q48: 3000 | R48: =$B48*'Data Inputs'!D43 -> 1000 | S48: =$B48*'Data Inputs'!E43 -> -3000 | T48: 77.22580645 | U48: 100 | V48: 100 | W48: 22.58064516 | X48: 0.7722580645 | Y48: Lower Flexibility Limit Exceeded: 706.00 Underproduction Credits Lost
A49: ='Data Inputs'!C44 -> 2013-01-01 | B49: 100 | C49: 31 | D49: 3100 | E49: 70000 | F49: 3.42 | G49: 2394 | J49: =-IF(F49<'Data Inputs'!F44,(F49-'Data Inputs'!F44)*E49/100,0) -> 0 | K49: =IF(OR('Data Inputs'!U44=0, 'Data Inputs'!U44=""), "N/A", 'Data Inputs'!U44*B49) -> N/A | L49: =IF(OR('Data Inputs'!U44=0, 'Data Inputs'!U44=""), "N/A", IF((G49-(D49-J49))>K49, K49, IF(K49>(G49-(D49-J49)), IF((G49-(D49-J49))<0, 0, (G49-(D49-J49))),0))) -> N/A | M49: 3100 | N49: -706 | O49: =ROUND(IF(O48+N49>=O48,IF(O48>='Data Inputs'!D44*B49,O48,IF(O48+N49>'Data Inputs'!D44*B49,'Data Inputs'!D44*B49,IF(O48+N49<'Data Inputs'!E44*B49,'Data Inputs'!E44*B49,O48+N49))),IF(O48+N49<O48,IF(O48+N49<'Data Inputs'!E44*B49,'Data Inputs'!E44*B49,O48+N49),"ERROR")),2) -> -3000 | P49: -30 | Q49: 3000 | R49: =$B49*'Data Inputs'!D44 -> 1000 | S49: =$B49*'Data Inputs'!E44 -> -3000 | T49: 77.22580645 | U49: 100 | V49: 100 | W49: 22.58064516 | X49: 0.7722580645 | Y49: Lower Flexibility Limit Exceeded: 706.00 Underproduction Credits Lost
A50: ='Data Inputs'!C45 -> 2013-02-01 | B50: 100 | C50: 28 | D50: 2800 | E50: 70000 | F50: 3.42 | G50: 2394 | J50: =-IF(F50<'Data Inputs'!F45,(F50-'Data Inputs'!F45)*E50/100,0) -> 0 | K50: =IF(OR('Data Inputs'!U45=0, 'Data Inputs'!U45=""), "N/A", 'Data Inputs'!U45*B50) -> N/A | L50: =IF(OR('Data Inputs'!U45=0, 'Data Inputs'!U45=""), "N/A", IF((G50-(D50-J50))>K50, K50, IF(K50>(G50-(D50-J50)), IF((G50-(D50-J50))<0, 0, (G50-(D50-J50))),0))) -> N/A | M50: 2800 | N50: -406 | O50: =ROUND(IF(O49+N50>=O49,IF(O49>='Data Inputs'!D45*B50,O49,IF(O49+N50>'Data Inputs'!D45*B50,'Data Inputs'!D45*B50,IF(O49+N50<'Data Inputs'!E45*B50,'Data Inputs'!E45*B50,O49+N50))),IF(O49+N50<O49,IF(O49+N50<'Data Inputs'!E45*B50,'Data Inputs'!E45*B50,O49+N50),"ERROR")),2) -> -3000 | P50: -30 | Q50: 3000 | R50: =$B50*'Data Inputs'!D45 -> 1000 | S50: =$B50*'Data Inputs'!E45 -> -3000 | T50: 85.5 | U50: 100 | V50: 100 | W50: 25 | X50: 0.855 | Y50: Lower Flexibility Limit Exceeded: 406.00 Underproduction Credits Lost
A51: ='Data Inputs'!C46 -> 2013-03-01 | B51: 100 | C51: 31 | D51: 3100 | E51: 70000 | F51: 3.42 | G51: 2394 | J51: =-IF(F51<'Data Inputs'!F46,(F51-'Data Inputs'!F46)*E51/100,0) -> 0 | K51: =IF(OR('Data Inputs'!U46=0, 'Data Inputs'!U46=""), "N/A", 'Data Inputs'!U46*B51) -> N/A | L51: =IF(OR('Data Inputs'!U46=0, 'Data Inputs'!U46=""), "N/A", IF((G51-(D51-J51))>K51, K51, IF(K51>(G51-(D51-J51)), IF((G51-(D51-J51))<0, 0, (G51-(D51-J51))),0))) -> N/A | M51: 3100 | N51: -706 | O51: =ROUND(IF(O50+N51>=O50,IF(O50>='Data Inputs'!D46*B51,O50,IF(O50+N51>'Data Inputs'!D46*B51,'Data Inputs'!D46*B51,IF(O50+N51<'Data Inputs'!E46*B51,'Data Inputs'!E46*B51,O50+N51))),IF(O50+N51<O50,IF(O50+N51<'Data Inputs'!E46*B51,'Data Inputs'!E46*B51,O50+N51),"ERROR")),2) -> -3000 | P51: -30 | Q51: 3000 | R51: =$B51*'Data Inputs'!D46 -> 1000 | S51: =$B51*'Data Inputs'!E46 -> -3000 | T51: 77.22580645 | U51: 100 | V51: 100 | W51: 22.58064516 | X51: 0.7722580645 | Y51: Lower Flexibility Limit Exceeded: 706.00 Underproduction Credits Lost
A52: ='Data Inputs'!C47 -> 2013-04-01 | B52: 100 | C52: 30 | D52: 3000 | E52: 70000 | F52: 3.42 | G52: 2394 | J52: =-IF(F52<'Data Inputs'!F47,(F52-'Data Inputs'!F47)*E52/100,0) -> 0 | K52: =IF(OR('Data Inputs'!U47=0, 'Data Inputs'!U47=""), "N/A", 'Data Inputs'!U47*B52) -> N/A | L52: =IF(OR('Data Inputs'!U47=0, 'Data Inputs'!U47=""), "N/A", IF((G52-(D52-J52))>K52, K52, IF(K52>(G52-(D52-J52)), IF((G52-(D52-J52))<0, 0, (G52-(D52-J52))),0))) -> N/A | M52: 3000 | N52: -606 | O52: =ROUND(IF(O51+N52>=O51,IF(O51>='Data Inputs'!D47*B52,O51,IF(O51+N52>'Data Inputs'!D47*B52,'Data Inputs'!D47*B52,IF(O51+N52<'Data Inputs'!E47*B52,'Data Inputs'!E47*B52,O51+N52))),IF(O51+N52<O51,IF(O51+N52<'Data Inputs'!E47*B52,'Data Inputs'!E47*B52,O51+N52),"ERROR")),2) -> -3000 | P52: -30 | Q52: 3000 | R52: =$B52*'Data Inputs'!D47 -> 1000 | S52: =$B52*'Data Inputs'!E47 -> -3000 | T52: 79.8 | U52: 100 | V52: 100 | W52: 23.33333333 | X52: 0.798 | Y52: Lower Flexibility Limit Exceeded: 606.00 Underproduction Credits Lost
A53: ='Data Inputs'!C48 -> 2013-05-01 | B53: 100 | C53: 31 | D53: 3100 | E53: 70000 | F53: 3.42 | G53: 2394 | J53: =-IF(F53<'Data Inputs'!F48,(F53-'Data Inputs'!F48)*E53/100,0) -> 0 | K53: =IF(OR('Data Inputs'!U48=0, 'Data Inputs'!U48=""), "N/A", 'Data Inputs'!U48*B53) -> N/A | L53: =IF(OR('Data Inputs'!U48=0, 'Data Inputs'!U48=""), "N/A", IF((G53-(D53-J53))>K53, K53, IF(K53>(G53-(D53-J53)), IF((G53-(D53-J53))<0, 0, (G53-(D53-J53))),0))) -> N/A | M53: 3100 | N53: -706 | O53: =ROUND(IF(O52+N53>=O52,IF(O52>='Data Inputs'!D48*B53,O52,IF(O52+N53>'Data Inputs'!D48*B53,'Data Inputs'!D48*B53,IF(O52+N53<'Data Inputs'!E48*B53,'Data Inputs'!E48*B53,O52+N53))),IF(O52+N53<O52,IF(O52+N53<'Data Inputs'!E48*B53,'Data Inputs'!E48*B53,O52+N53),"ERROR")),2) -> -3000 | P53: -30 | Q53: 3000 | R53: =$B53*'Data Inputs'!D48 -> 1000 | S53: =$B53*'Data Inputs'!E48 -> -3000 | T53: 77.22580645 | U53: 100 | V53: 100 | W53: 22.58064516 | X53: 0.7722580645 | Y53: Lower Flexibility Limit Exceeded: 706.00 Underproduction Credits Lost
A54: ='Data Inputs'!C49 -> 2013-06-01 | B54: 100 | C54: 30 | D54: 3000 | E54: 70000 | F54: 3.42 | G54: 2394 | J54: =-IF(F54<'Data Inputs'!F49,(F54-'Data Inputs'!F49)*E54/100,0) -> 0 | K54: =IF(OR('Data Inputs'!U49=0, 'Data Inputs'!U49=""), "N/A", 'Data Inputs'!U49*B54) -> N/A | L54: =IF(OR('Data Inputs'!U49=0, 'Data Inputs'!U49=""), "N/A", IF((G54-(D54-J54))>K54, K54, IF(K54>(G54-(D54-J54)), IF((G54-(D54-J54))<0, 0, (G54-(D54-J54))),0))) -> N/A | M54: 3000 | N54: -606 | O54: =ROUND(IF(O53+N54>=O53,IF(O53>='Data Inputs'!D49*B54,O53,IF(O53+N54>'Data Inputs'!D49*B54,'Data Inputs'!D49*B54,IF(O53+N54<'Data Inputs'!E49*B54,'Data Inputs'!E49*B54,O53+N54))),IF(O53+N54<O53,IF(O53+N54<'Data Inputs'!E49*B54,'Data Inputs'!E49*B54,O53+N54),"ERROR")),2) -> -3000 | P54: -30 | Q54: 3000 | R54: =$B54*'Data Inputs'!D49 -> 1000 | S54: =$B54*'Data Inputs'!E49 -> -3000 | T54: 79.8 | U54: 100 | V54: 100 | W54: 23.33333333 | X54: 0.798 | Y54: Lower Flexibility Limit Exceeded: 606.00 Underproduction Credits Lost
A55: ='Data Inputs'!C50 -> 2013-07-01 | B55: 100 | C55: 31 | D55: 3100 | E55: 70000 | F55: 3.42 | G55: 2394 | J55: =-IF(F55<'Data Inputs'!F50,(F55-'Data Inputs'!F50)*E55/100,0) -> 0 | K55: =IF(OR('Data Inputs'!U50=0, 'Data Inputs'!U50=""), "N/A", 'Data Inputs'!U50*B55) -> N/A | L55: =IF(OR('Data Inputs'!U50=0, 'Data Inputs'!U50=""), "N/A", IF((G55-(D55-J55))>K55, K55, IF(K55>(G55-(D55-J55)), IF((G55-(D55-J55))<0, 0, (G55-(D55-J55))),0))) -> N/A | M55: 3100 | N55: -706 | O55: =ROUND(IF(O54+N55>=O54,IF(O54>='Data Inputs'!D50*B55,O54,IF(O54+N55>'Data Inputs'!D50*B55,'Data Inputs'!D50*B55,IF(O54+N55<'Data Inputs'!E50*B55,'Data Inputs'!E50*B55,O54+N55))),IF(O54+N55<O54,IF(O54+N55<'Data Inputs'!E50*B55,'Data Inputs'!E50*B55,O54+N55),"ERROR")),2) -> -3000 | P55: -30 | Q55: 3000 | R55: =$B55*'Data Inputs'!D50 -> 1000 | S55: =$B55*'Data Inputs'!E50 -> -3000 | T55: 77.22580645 | U55: 100 | V55: 100 | W55: 22.58064516 | X55: 0.7722580645 | Y55: Lower Flexibility Limit Exceeded: 706.00 Underproduction Credits Lost
A56: ='Data Inputs'!C51 -> 2013-08-01 | B56: 100 | C56: 31 | D56: 3100 | E56: 70000 | F56: 3.42 | G56: 2394 | J56: =-IF(F56<'Data Inputs'!F51,(F56-'Data Inputs'!F51)*E56/100,0) -> 0 | K56: =IF(OR('Data Inputs'!U51=0, 'Data Inputs'!U51=""), "N/A", 'Data Inputs'!U51*B56) -> N/A | L56: =IF(OR('Data Inputs'!U51=0, 'Data Inputs'!U51=""), "N/A", IF((G56-(D56-J56))>K56, K56, IF(K56>(G56-(D56-J56)), IF((G56-(D56-J56))<0, 0, (G56-(D56-J56))),0))) -> N/A | M56: 3100 | N56: -706 | O56: =ROUND(IF(O55+N56>=O55,IF(O55>='Data Inputs'!D51*B56,O55,IF(O55+N56>'Data Inputs'!D51*B56,'Data Inputs'!D51*B56,IF(O55+N56<'Data Inputs'!E51*B56,'Data Inputs'!E51*B56,O55+N56))),IF(O55+N56<O55,IF(O55+N56<'Data Inputs'!E51*B56,'Data Inputs'!E51*B56,O55+N56),"ERROR")),2) -> -3000 | P56: -30 | Q56: 3000 | R56: =$B56*'Data Inputs'!D51 -> 1000 | S56: =$B56*'Data Inputs'!E51 -> -3000 | T56: 77.22580645 | U56: 100 | V56: 100 | W56: 22.58064516 | X56: 0.7722580645 | Y56: Lower Flexibility Limit Exceeded: 706.00 Underproduction Credits Lost
A57: ='Data Inputs'!C52 -> 2013-09-01 | B57: 100 | C57: 30 | D57: 3000 | E57: 70000 | F57: 3.42 | G57: 2394 | J57: =-IF(F57<'Data Inputs'!F52,(F57-'Data Inputs'!F52)*E57/100,0) -> 0 | K57: =IF(OR('Data Inputs'!U52=0, 'Data Inputs'!U52=""), "N/A", 'Data Inputs'!U52*B57) -> 100 | L57: =IF(OR('Data Inputs'!U52=0, 'Data Inputs'!U52=""), "N/A", IF((G57-(D57-J57))>K57, K57, IF(K57>(G57-(D57-J57)), IF((G57-(D57-J57))<0, 0, (G57-(D57-J57))),0))) -> 0 | M57: 3000 | N57: -606 | O57: =ROUND(IF(O56+N57>=O56,IF(O56>='Data Inputs'!D52*B57,O56,IF(O56+N57>'Data Inputs'!D52*B57,'Data Inputs'!D52*B57,IF(O56+N57<'Data Inputs'!E52*B57,'Data Inputs'!E52*B57,O56+N57))),IF(O56+N57<O56,IF(O56+N57<'Data Inputs'!E52*B57,'Data Inputs'!E52*B57,O56+N57),"ERROR")),2) -> -3000 | P57: -30 | Q57: 3000 | R57: =$B57*'Data Inputs'!D52 -> 1000 | S57: =$B57*'Data Inputs'!E52 -> -3000 | T57: 79.8 | U57: 100 | V57: 100 | W57: 23.33333333 | X57: 0.798 | Y57: Lower Flexibility Limit Exceeded: 606.00 Underproduction Credits Lost
A58: ='Data Inputs'!C53 -> 2013-10-01 | B58: 100 | C58: 31 | D58: 3100 | E58: 70000 | F58: 3.42 | G58: 2394 | J58: =-IF(F58<'Data Inputs'!F53,(F58-'Data Inputs'!F53)*E58/100,0) -> 0 | K58: =IF(OR('Data Inputs'!U53=0, 'Data Inputs'!U53=""), "N/A", 'Data Inputs'!U53*B58) -> 100 | L58: =IF(OR('Data Inputs'!U53=0, 'Data Inputs'!U53=""), "N/A", IF((G58-(D58-J58))>K58, K58, IF(K58>(G58-(D58-J58)), IF((G58-(D58-J58))<0, 0, (G58-(D58-J58))),0))) -> 0 | M58: 3100 | N58: -706 | O58: =ROUND(IF(O57+N58>=O57,IF(O57>='Data Inputs'!D53*B58,O57,IF(O57+N58>'Data Inputs'!D53*B58,'Data Inputs'!D53*B58,IF(O57+N58<'Data Inputs'!E53*B58,'Data Inputs'!E53*B58,O57+N58))),IF(O57+N58<O57,IF(O57+N58<'Data Inputs'!E53*B58,'Data Inputs'!E53*B58,O57+N58),"ERROR")),2) -> -3000 | P58: -30 | Q58: 3000 | R58: =$B58*'Data Inputs'!D53 -> 1000 | S58: =$B58*'Data Inputs'!E53 -> -3000 | T58: 77.22580645 | U58: 100 | V58: 100 | W58: 22.58064516 | X58: 0.7722580645 | Y58: Lower Flexibility Limit Exceeded: 706.00 Underproduction Credits Lost
A59: ='Data Inputs'!C54 -> 2013-11-01 | B59: 100 | C59: 30 | D59: 3000 | E59: 70000 | F59: 3.42 | G59: 2394 | J59: =-IF(F59<'Data Inputs'!F54,(F59-'Data Inputs'!F54)*E59/100,0) -> 0 | K59: =IF(OR('Data Inputs'!U54=0, 'Data Inputs'!U54=""), "N/A", 'Data Inputs'!U54*B59) -> N/A | L59: =IF(OR('Data Inputs'!U54=0, 'Data Inputs'!U54=""), "N/A", IF((G59-(D59-J59))>K59, K59, IF(K59>(G59-(D59-J59)), IF((G59-(D59-J59))<0, 0, (G59-(D59-J59))),0))) -> N/A | M59: 3000 | N59: -606 | O59: =ROUND(IF(O58+N59>=O58,IF(O58>='Data Inputs'!D54*B59,O58,IF(O58+N59>'Data Inputs'!D54*B59,'Data Inputs'!D54*B59,IF(O58+N59<'Data Inputs'!E54*B59,'Data Inputs'!E54*B59,O58+N59))),IF(O58+N59<O58,IF(O58+N59<'Data Inputs'!E54*B59,'Data Inputs'!E54*B59,O58+N59),"ERROR")),2) -> -3000 | P59: -30 | Q59: 3000 | R59: =$B59*'Data Inputs'!D54 -> 1000 | S59: =$B59*'Data Inputs'!E54 -> -3000 | T59: 79.8 | U59: 100 | V59: 100 | W59: 23.33333333 | X59: 0.798 | Y59: Lower Flexibility Limit Exceeded: 606.00 Underproduction Credits Lost
A60: ='Data Inputs'!C55 -> 2013-12-01 | B60: 100 | C60: 31 | D60: 3100 | E60: 70000 | F60: 3.42 | G60: 2394 | J60: =-IF(F60<'Data Inputs'!F55,(F60-'Data Inputs'!F55)*E60/100,0) -> 0 | K60: =IF(OR('Data Inputs'!U55=0, 'Data Inputs'!U55=""), "N/A", 'Data Inputs'!U55*B60) -> N/A | L60: =IF(OR('Data Inputs'!U55=0, 'Data Inputs'!U55=""), "N/A", IF((G60-(D60-J60))>K60, K60, IF(K60>(G60-(D60-J60)), IF((G60-(D60-J60))<0, 0, (G60-(D60-J60))),0))) -> N/A | M60: 3100 | N60: -706 | O60: =ROUND(IF(O59+N60>=O59,IF(O59>='Data Inputs'!D55*B60,O59,IF(O59+N60>'Data Inputs'!D55*B60,'Data Inputs'!D55*B60,IF(O59+N60<'Data Inputs'!E55*B60,'Data Inputs'!E55*B60,O59+N60))),IF(O59+N60<O59,IF(O59+N60<'Data Inputs'!E55*B60,'Data Inputs'!E55*B60,O59+N60),"ERROR")),2) -> -3000 | P60: -30 | Q60: 3000 | R60: =$B60*'Data Inputs'!D55 -> 1000 | S60: =$B60*'Data Inputs'!E55 -> -3000 | T60: 77.22580645 | U60: 100 | V60: 100 | W60: 22.58064516 | X60: 0.7722580645 | Y60: Lower Flexibility Limit Exceeded: 706.00 Underproduction Credits Lost
A61: ='Data Inputs'!C56 -> 2014-01-01 | B61: 100 | C61: =EOMONTH(A60, 1)-EOMONTH(A60, 0) -> 31 | D61: 3100 | E61: 70000 | F61: 3.42 | G61: 2394 | J61: =-IF(F61<'Data Inputs'!F56,(F61-'Data Inputs'!F56)*E61/100,0) -> 0 | K61: =IF(OR('Data Inputs'!U56=0, 'Data Inputs'!U56=""), "N/A", 'Data Inputs'!U56*B61) -> N/A | L61: =IF(OR('Data Inputs'!U56=0, 'Data Inputs'!U56=""), "N/A", IF((G61-(D61-J61))>K61, K61, IF(K61>(G61-(D61-J61)), IF((G61-(D61-J61))<0, 0, (G61-(D61-J61))),0))) -> N/A | M61: 3100 | N61: -706 | O61: =ROUND(IF(O60+N61>=O60,IF(O60>='Data Inputs'!D56*B61,O60,IF(O60+N61>'Data Inputs'!D56*B61,'Data Inputs'!D56*B61,IF(O60+N61<'Data Inputs'!E56*B61,'Data Inputs'!E56*B61,O60+N61))),IF(O60+N61<O60,IF(O60+N61<'Data Inputs'!E56*B61,'Data Inputs'!E56*B61,O60+N61),"ERROR")),2) -> -3000 | P61: -30 | Q61: 3000 | R61: =$B61*'Data Inputs'!D56 -> 1000 | S61: =$B61*'Data Inputs'!E56 -> -3000 | T61: 77.22580645 | U61: 100 | V61: 100 | W61: 22.58064516 | X61: 0.7722580645 | Y61: Lower Flexibility Limit Exceeded: 706.00 Underproduction Credits Lost
A62: ='Data Inputs'!C57 -> 2014-02-01 | B62: 100 | C62: 28 | D62: 2800 | E62: 70000 | F62: 3.42 | G62: 2394 | J62: =-IF(F62<'Data Inputs'!F57,(F62-'Data Inputs'!F57)*E62/100,0) -> 0 | K62: =IF(OR('Data Inputs'!U57=0, 'Data Inputs'!U57=""), "N/A", 'Data Inputs'!U57*B62) -> N/A | L62: =IF(OR('Data Inputs'!U57=0, 'Data Inputs'!U57=""), "N/A", IF((G62-(D62-J62))>K62, K62, IF(K62>(G62-(D62-J62)), IF((G62-(D62-J62))<0, 0, (G62-(D62-J62))),0))) -> N/A | M62: 2800 | N62: -406 | O62: =ROUND(IF(O61+N62>=O61,IF(O61>='Data Inputs'!D57*B62,O61,IF(O61+N62>'Data Inputs'!D57*B62,'Data Inputs'!D57*B62,IF(O61+N62<'Data Inputs'!E57*B62,'Data Inputs'!E57*B62,O61+N62))),IF(O61+N62<O61,IF(O61+N62<'Data Inputs'!E57*B62,'Data Inputs'!E57*B62,O61+N62),"ERROR")),2) -> -3000 | P62: -30 | Q62: 3000 | R62: =$B62*'Data Inputs'!D57 -> 1000 | S62: =$B62*'Data Inputs'!E57 -> -3000 | T62: 85.5 | U62: 100 | V62: 100 | W62: 25 | X62: 0.855 | Y62: Lower Flexibility Limit Exceeded: 406.00 Underproduction Credits Lost
A63: ='Data Inputs'!C58 -> 2014-03-01 | B63: 100 | C63: 31 | D63: 3100 | E63: 70000 | F63: 3.42 | G63: 2394 | J63: =-IF(F63<'Data Inputs'!F58,(F63-'Data Inputs'!F58)*E63/100,0) -> 0 | K63: =IF(OR('Data Inputs'!U58=0, 'Data Inputs'!U58=""), "N/A", 'Data Inputs'!U58*B63) -> N/A | L63: =IF(OR('Data Inputs'!U58=0, 'Data Inputs'!U58=""), "N/A", IF((G63-(D63-J63))>K63, K63, IF(K63>(G63-(D63-J63)), IF((G63-(D63-J63))<0, 0, (G63-(D63-J63))),0))) -> N/A | M63: 3100 | N63: -706 | O63: =ROUND(IF(O62+N63>=O62,IF(O62>='Data Inputs'!D58*B63,O62,IF(O62+N63>'Data Inputs'!D58*B63,'Data Inputs'!D58*B63,IF(O62+N63<'Data Inputs'!E58*B63,'Data Inputs'!E58*B63,O62+N63))),IF(O62+N63<O62,IF(O62+N63<'Data Inputs'!E58*B63,'Data Inputs'!E58*B63,O62+N63),"ERROR")),2) -> -3000 | P63: -30 | Q63: 3000 | R63: =$B63*'Data Inputs'!D58 -> 1000 | S63: =$B63*'Data Inputs'!E58 -> -3000 | T63: 77.22580645 | U63: 100 | V63: 100 | W63: 22.58064516 | X63: 0.7722580645 | Y63: Lower Flexibility Limit Exceeded: 706.00 Underproduction Credits Lost
A64: ='Data Inputs'!C59 -> 2014-04-01 | B64: 100 | C64: 30 | D64: 3000 | E64: 70000 | F64: 3.42 | G64: 2394 | J64: =-IF(F64<'Data Inputs'!F59,(F64-'Data Inputs'!F59)*E64/100,0) -> 0 | K64: =IF(OR('Data Inputs'!U59=0, 'Data Inputs'!U59=""), "N/A", 'Data Inputs'!U59*B64) -> N/A | L64: =IF(OR('Data Inputs'!U59=0, 'Data Inputs'!U59=""), "N/A", IF((G64-(D64-J64))>K64, K64, IF(K64>(G64-(D64-J64)), IF((G64-(D64-J64))<0, 0, (G64-(D64-J64))),0))) -> N/A | M64: 3000 | N64: -606 | O64: =ROUND(IF(O63+N64>=O63,IF(O63>='Data Inputs'!D59*B64,O63,IF(O63+N64>'Data Inputs'!D59*B64,'Data Inputs'!D59*B64,IF(O63+N64<'Data Inputs'!E59*B64,'Data Inputs'!E59*B64,O63+N64))),IF(O63+N64<O63,IF(O63+N64<'Data Inputs'!E59*B64,'Data Inputs'!E59*B64,O63+N64),"ERROR")),2) -> -3000 | P64: -30 | Q64: 3000 | R64: =$B64*'Data Inputs'!D59 -> 1000 | S64: =$B64*'Data Inputs'!E59 -> -3000 | T64: 79.8 | U64: 100 | V64: 100 | W64: 23.33333333 | X64: 0.798 | Y64: Lower Flexibility Limit Exceeded: 606.00 Underproduction Credits Lost
A65: ='Data Inputs'!C60 -> 2014-05-01 | B65: 100 | C65: 31 | D65: 3100 | E65: 70000 | F65: 3.42 | G65: 2394 | J65: =-IF(F65<'Data Inputs'!F60,(F65-'Data Inputs'!F60)*E65/100,0) -> 0 | K65: =IF(OR('Data Inputs'!U60=0, 'Data Inputs'!U60=""), "N/A", 'Data Inputs'!U60*B65) -> 100 | L65: =IF(OR('Data Inputs'!U60=0, 'Data Inputs'!U60=""), "N/A", IF((G65-(D65-J65))>K65, K65, IF(K65>(G65-(D65-J65)), IF((G65-(D65-J65))<0, 0, (G65-(D65-J65))),0))) -> 0 | M65: 3100 | N65: -706 | O65: =ROUND(IF(O64+N65>=O64,IF(O64>='Data Inputs'!D60*B65,O64,IF(O64+N65>'Data Inputs'!D60*B65,'Data Inputs'!D60*B65,IF(O64+N65<'Data Inputs'!E60*B65,'Data Inputs'!E60*B65,O64+N65))),IF(O64+N65<O64,IF(O64+N65<'Data Inputs'!E60*B65,'Data Inputs'!E60*B65,O64+N65),"ERROR")),2) -> -3000 | P65: -30 | Q65: 3000 | R65: =$B65*'Data Inputs'!D60 -> 1000 | S65: =$B65*'Data Inputs'!E60 -> -3000 | T65: 77.22580645 | U65: 100 | V65: 100 | W65: 22.58064516 | X65: 0.7722580645 | Y65: Lower Flexibility Limit Exceeded: 706.00 Underproduction Credits Lost
A66: ='Data Inputs'!C61 -> 2014-06-01 | B66: 100 | C66: 30 | D66: 3000 | E66: 70000 | F66: 3.42 | G66: 2394 | J66: =-IF(F66<'Data Inputs'!F61,(F66-'Data Inputs'!F61)*E66/100,0) -> 0 | K66: =IF(OR('Data Inputs'!U61=0, 'Data Inputs'!U61=""), "N/A", 'Data Inputs'!U61*B66) -> 100 | L66: =IF(OR('Data Inputs'!U61=0, 'Data Inputs'!U61=""), "N/A", IF((G66-(D66-J66))>K66, K66, IF(K66>(G66-(D66-J66)), IF((G66-(D66-J66))<0, 0, (G66-(D66-J66))),0))) -> 0 | M66: 3000 | N66: -606 | O66: =ROUND(IF(O65+N66>=O65,IF(O65>='Data Inputs'!D61*B66,O65,IF(O65+N66>'Data Inputs'!D61*B66,'Data Inputs'!D61*B66,IF(O65+N66<'Data Inputs'!E61*B66,'Data Inputs'!E61*B66,O65+N66))),IF(O65+N66<O65,IF(O65+N66<'Data Inputs'!E61*B66,'Data Inputs'!E61*B66,O65+N66),"ERROR")),2) -> -3000 | P66: -30 | Q66: 3000 | R66: =$B66*'Data Inputs'!D61 -> 1000 | S66: =$B66*'Data Inputs'!E61 -> -3000 | T66: 79.8 | U66: 100 | V66: 100 | W66: 23.33333333 | X66: 0.798 | Y66: Lower Flexibility Limit Exceeded: 606.00 Underproduction Credits Lost
A67: ='Data Inputs'!C62 -> 2014-07-01 | B67: 100 | C67: 31 | D67: 3100 | E67: 70000 | F67: 3.42 | G67: 2394 | J67: =-IF(F67<'Data Inputs'!F62,(F67-'Data Inputs'!F62)*E67/100,0) -> 0 | K67: =IF(OR('Data Inputs'!U62=0, 'Data Inputs'!U62=""), "N/A", 'Data Inputs'!U62*B67) -> 100 | L67: =IF(OR('Data Inputs'!U62=0, 'Data Inputs'!U62=""), "N/A", IF((G67-(D67-J67))>K67, K67, IF(K67>(G67-(D67-J67)), IF((G67-(D67-J67))<0, 0, (G67-(D67-J67))),0))) -> 0 | M67: 3100 | N67: -706 | O67: =ROUND(IF(O66+N67>=O66,IF(O66>='Data Inputs'!D62*B67,O66,IF(O66+N67>'Data Inputs'!D62*B67,'Data Inputs'!D62*B67,IF(O66+N67<'Data Inputs'!E62*B67,'Data Inputs'!E62*B67,O66+N67))),IF(O66+N67<O66,IF(O66+N67<'Data Inputs'!E62*B67,'Data Inputs'!E62*B67,O66+N67),"ERROR")),2) -> -3000 | P67: -30 | Q67: 3000 | R67: =$B67*'Data Inputs'!D62 -> 1000 | S67: =$B67*'Data Inputs'!E62 -> -3000 | T67: 77.22580645 | U67: 100 | V67: 100 | W67: 22.58064516 | X67: 0.7722580645 | Y67: Lower Flexibility Limit Exceeded: 706.00 Underproduction Credits Lost
A68: ='Data Inputs'!C63 -> 2014-08-01 | B68: 100 | C68: 31 | D68: 3100 | E68: 70000 | F68: 3.42 | G68: 2394 | J68: =-IF(F68<'Data Inputs'!F63,(F68-'Data Inputs'!F63)*E68/100,0) -> 0 | K68: =IF(OR('Data Inputs'!U63=0, 'Data Inputs'!U63=""), "N/A", 'Data Inputs'!U63*B68) -> 200 | L68: =IF(OR('Data Inputs'!U63=0, 'Data Inputs'!U63=""), "N/A", IF((G68-(D68-J68))>K68, K68, IF(K68>(G68-(D68-J68)), IF((G68-(D68-J68))<0, 0, (G68-(D68-J68))),0))) -> 0 | M68: 3100 | N68: -706 | O68: =ROUND(IF(O67+N68>=O67,IF(O67>='Data Inputs'!D63*B68,O67,IF(O67+N68>'Data Inputs'!D63*B68,'Data Inputs'!D63*B68,IF(O67+N68<'Data Inputs'!E63*B68,'Data Inputs'!E63*B68,O67+N68))),IF(O67+N68<O67,IF(O67+N68<'Data Inputs'!E63*B68,'Data Inputs'!E63*B68,O67+N68),"ERROR")),2) -> -3000 | P68: -30 | Q68: 3000 | R68: =$B68*'Data Inputs'!D63 -> 1000 | S68: =$B68*'Data Inputs'!E63 -> -3000 | T68: 77.22580645 | U68: 100 | V68: 100 | W68: 22.58064516 | X68: 0.7722580645 | Y68: Lower Flexibility Limit Exceeded: 706.00 Underproduction Credits Lost
A69: ='Data Inputs'!C64 -> 2014-09-01 | B69: 100 | C69: 30 | D69: 3000 | E69: 70000 | F69: 3.42 | G69: 2394 | J69: =-IF(F69<'Data Inputs'!F64,(F69-'Data Inputs'!F64)*E69/100,0) -> 0 | K69: =IF(OR('Data Inputs'!U64=0, 'Data Inputs'!U64=""), "N/A", 'Data Inputs'!U64*B69) -> 200 | L69: =IF(OR('Data Inputs'!U64=0, 'Data Inputs'!U64=""), "N/A", IF((G69-(D69-J69))>K69, K69, IF(K69>(G69-(D69-J69)), IF((G69-(D69-J69))<0, 0, (G69-(D69-J69))),0))) -> 0 | M69: 3000 | N69: -606 | O69: =ROUND(IF(O68+N69>=O68,IF(O68>='Data Inputs'!D64*B69,O68,IF(O68+N69>'Data Inputs'!D64*B69,'Data Inputs'!D64*B69,IF(O68+N69<'Data Inputs'!E64*B69,'Data Inputs'!E64*B69,O68+N69))),IF(O68+N69<O68,IF(O68+N69<'Data Inputs'!E64*B69,'Data Inputs'!E64*B69,O68+N69),"ERROR")),2) -> -3000 | P69: -30 | Q69: 3000 | R69: =$B69*'Data Inputs'!D64 -> 1000 | S69: =$B69*'Data Inputs'!E64 -> -3000 | T69: 79.8 | U69: 100 | V69: 100 | W69: 23.33333333 | X69: 0.798 | Y69: Lower Flexibility Limit Exceeded: 606.00 Underproduction Credits Lost
A70: ='Data Inputs'!C65 -> 2014-10-01 | B70: 100 | C70: 31 | D70: 3100 | E70: 70000 | F70: 3.42 | G70: 2394 | J70: =-IF(F70<'Data Inputs'!F65,(F70-'Data Inputs'!F65)*E70/100,0) -> 0 | K70: =IF(OR('Data Inputs'!U65=0, 'Data Inputs'!U65=""), "N/A", 'Data Inputs'!U65*B70) -> 200 | L70: =IF(OR('Data Inputs'!U65=0, 'Data Inputs'!U65=""), "N/A", IF((G70-(D70-J70))>K70, K70, IF(K70>(G70-(D70-J70)), IF((G70-(D70-J70))<0, 0, (G70-(D70-J70))),0))) -> 0 | M70: 3100 | N70: -706 | O70: =ROUND(IF(O69+N70>=O69,IF(O69>='Data Inputs'!D65*B70,O69,IF(O69+N70>'Data Inputs'!D65*B70,'Data Inputs'!D65*B70,IF(O69+N70<'Data Inputs'!E65*B70,'Data Inputs'!E65*B70,O69+N70))),IF(O69+N70<O69,IF(O69+N70<'Data Inputs'!E65*B70,'Data Inputs'!E65*B70,O69+N70),"ERROR")),2) -> -3000 | P70: -30 | Q70: 3000 | R70: =$B70*'Data Inputs'!D65 -> 1000 | S70: =$B70*'Data Inputs'!E65 -> -3000 | T70: 77.22580645 | U70: 100 | V70: 100 | W70: 22.58064516 | X70: 0.7722580645 | Y70: Lower Flexibility Limit Exceeded: 706.00 Underproduction Credits Lost
A71: ='Data Inputs'!C66 -> 2014-11-01 | B71: 100 | C71: 30 | D71: 3000 | E71: 70000 | F71: 3.42 | G71: 2394 | J71: =-IF(F71<'Data Inputs'!F66,(F71-'Data Inputs'!F66)*E71/100,0) -> 0 | K71: =IF(OR('Data Inputs'!U66=0, 'Data Inputs'!U66=""), "N/A", 'Data Inputs'!U66*B71) -> 200 | L71: =IF(OR('Data Inputs'!U66=0, 'Data Inputs'!U66=""), "N/A", IF((G71-(D71-J71))>K71, K71, IF(K71>(G71-(D71-J71)), IF((G71-(D71-J71))<0, 0, (G71-(D71-J71))),0))) -> 0 | M71: 3000 | N71: -606 | O71: =ROUND(IF(O70+N71>=O70,IF(O70>='Data Inputs'!D66*B71,O70,IF(O70+N71>'Data Inputs'!D66*B71,'Data Inputs'!D66*B71,IF(O70+N71<'Data Inputs'!E66*B71,'Data Inputs'!E66*B71,O70+N71))),IF(O70+N71<O70,IF(O70+N71<'Data Inputs'!E66*B71,'Data Inputs'!E66*B71,O70+N71),"ERROR")),2) -> -3000 | P71: =IF(B71>0,IF(O71=0,0,O71/B71),"-") -> -30 | Q71: 3000 | R71: =$B71*'Data Inputs'!D66 -> 1000 | S71: =$B71*'Data Inputs'!E66 -> -3000 | T71: 79.8 | U71: 100 | V71: 100 | W71: 23.33333333 | X71: 0.798 | Y71: Lower Flexibility Limit Exceeded: 606.00 Underproduction Credits Lost
A72: ='Data Inputs'!C67 -> 2014-12-01 | B72: 100 | C72: 31 | D72: =IF(B72*C72=0,0,B72*C72) -> 3100 | E72: 70000 | F72: 3.42 | G72: =IF(F72*E72>0,E72/100*F72,0) -> 2394 | J72: =-IF(F72<'Data Inputs'!F67,(F72-'Data Inputs'!F67)*E72/100,0) -> 0 | K72: =IF(OR('Data Inputs'!U67=0, 'Data Inputs'!U67=""), "N/A", 'Data Inputs'!U67*B72) -> 100 | L72: =IF(OR('Data Inputs'!U67=0, 'Data Inputs'!U67=""), "N/A", IF((G72-(D72-J72))>K72, K72, IF(K72>(G72-(D72-J72)), IF((G72-(D72-J72))<0, 0, (G72-(D72-J72))),0))) -> 0 | M72: =(IF(D72=0,0,D72))+(IF(L72="N/A",0,L72))+(H72)-(I72)-(IF(J72>0,J72,0)) -> 3100 | N72: =ROUND(G72-M72,2) -> -706 | O72: =ROUND(IF(O71+N72>=O71,IF(O71>='Data Inputs'!D67*B72,O71,IF(O71+N72>'Data Inputs'!D67*B72,'Data Inputs'!D67*B72,IF(O71+N72<'Data Inputs'!E67*B72,'Data Inputs'!E67*B72,O71+N72))),IF(O71+N72<O71,IF(O71+N72<'Data Inputs'!E67*B72,'Data Inputs'!E67*B72,O71+N72),"ERROR")),2) -> -3000 | P72: -30 | Q72: =IF(O71>=0,0,IF(O71-I71>0,0,ROUNDDOWN(-O71-I72,0))) -> 3000 | R72: =$B72*'Data Inputs'!D67 -> 1000 | S72: =$B72*'Data Inputs'!E67 -> -3000 | T72: =G72/$C72 -> 77.22580645 | U72: =M72/C72 -> 100 | V72: 100 | W72: =IF(E72*C72*V72>0,(E72/C72)/V72,0) -> 22.58064516 | X72: =IF(W72>0,W72*F72/100,0) -> 0.7722580645 | Y72: =IF(AND(P72>=10,N72>0),"Upper Flexibility Limit Exceeded: "&TEXT((O71+N72-O72)/F72*100,"#,###")&" Litres Unpaid",IF(AND(P72<=-30,N72<0),"Lower Flexibility Limit Exceeded: "&TEXT(-(O71+N72-O72),"#,##0.00")&" Underproduction Credits Lost","")) -> Lower Flexibility Limit Exceeded: 706.00 Underproduction Credits Lost
A73: ='Data Inputs'!C68 -> 2015-01-01 | B73: 100 | C73: 31 | D73: 3100 | E73: 70000 | F73: 3.42 | G73: 2394 | J73: =-IF(F73<'Data Inputs'!F68,(F73-'Data Inputs'!F68)*E73/100,0) -> 0 | K73: =IF(OR('Data Inputs'!U68=0, 'Data Inputs'!U68=""), "N/A", 'Data Inputs'!U68*B73) -> 100 | L73: =IF(OR('Data Inputs'!U68=0, 'Data Inputs'!U68=""), "N/A", IF((G73-(D73-J73))>K73, K73, IF(K73>(G73-(D73-J73)), IF((G73-(D73-J73))<0, 0, (G73-(D73-J73))),0))) -> 0 | M73: 3100 | N73: -706 | O73: =ROUND(IF(O72+N73>=O72,IF(O72>='Data Inputs'!D68*B73,O72,IF(O72+N73>'Data Inputs'!D68*B73,'Data Inputs'!D68*B73,IF(O72+N73<'Data Inputs'!E68*B73,'Data Inputs'!E68*B73,O72+N73))),IF(O72+N73<O72,IF(O72+N73<'Data Inputs'!E68*B73,'Data Inputs'!E68*B73,O72+N73),"ERROR")),2) -> -3000 | P73: -30 | Q73: 3000 | R73: =$B73*'Data Inputs'!D68 -> 1000 | S73: =$B73*'Data Inputs'!E68 -> -3000 | T73: 77.22580645 | U73: 100 | V73: =V72 -> 100 | W73: 22.58064516 | X73: 0.7722580645 | Y73: Lower Flexibility Limit Exceeded: 706.00 Underproduction Credits Lost
A74: ='Data Inputs'!C69 -> 2015-02-01 | B74: =B73 -> 100 | C74: 28 | D74: 2800 | E74: =E73 -> 70000 | F74: =F73 -> 3.42 | G74: 2394 | J74: =-IF(F74<'Data Inputs'!F69,(F74-'Data Inputs'!F69)*E74/100,0) -> 0 | K74: =IF(OR('Data Inputs'!U69=0, 'Data Inputs'!U69=""), "N/A", 'Data Inputs'!U69*B74) -> 100 | L74: =IF(OR('Data Inputs'!U69=0, 'Data Inputs'!U69=""), "N/A", IF((G74-(D74-J74))>K74, K74, IF(K74>(G74-(D74-J74)), IF((G74-(D74-J74))<0, 0, (G74-(D74-J74))),0))) -> 0 | M74: 2800 | N74: -406 | O74: =ROUND(IF(O73+N74>=O73,IF(O73>='Data Inputs'!D69*B74,O73,IF(O73+N74>'Data Inputs'!D69*B74,'Data Inputs'!D69*B74,IF(O73+N74<'Data Inputs'!E69*B74,'Data Inputs'!E69*B74,O73+N74))),IF(O73+N74<O73,IF(O73+N74<'Data Inputs'!E69*B74,'Data Inputs'!E69*B74,O73+N74),"ERROR")),2) -> -3000 | P74: -30 | Q74: 3000 | R74: =$B74*'Data Inputs'!D69 -> 1000 | S74: =$B74*'Data Inputs'!E69 -> -3000 | T74: 85.5 | U74: 100 | V74: 100 | W74: 25 | X74: 0.855 | Y74: Lower Flexibility Limit Exceeded: 406.00 Underproduction Credits Lost
A75: ='Data Inputs'!C70 -> 2015-03-01 | B75: 100 | C75: 31 | D75: 3100 | E75: 70000 | F75: 3.42 | G75: 2394 | J75: =-IF(F75<'Data Inputs'!F70,(F75-'Data Inputs'!F70)*E75/100,0) -> 0 | K75: =IF(OR('Data Inputs'!U70=0, 'Data Inputs'!U70=""), "N/A", 'Data Inputs'!U70*B75) -> N/A | L75: =IF(OR('Data Inputs'!U70=0, 'Data Inputs'!U70=""), "N/A", IF((G75-(D75-J75))>K75, K75, IF(K75>(G75-(D75-J75)), IF((G75-(D75-J75))<0, 0, (G75-(D75-J75))),0))) -> N/A | M75: 3100 | N75: -706 | O75: =ROUND(IF(O74+N75>=O74,IF(O74>='Data Inputs'!D70*B75,O74,IF(O74+N75>'Data Inputs'!D70*B75,'Data Inputs'!D70*B75,IF(O74+N75<'Data Inputs'!E70*B75,'Data Inputs'!E70*B75,O74+N75))),IF(O74+N75<O74,IF(O74+N75<'Data Inputs'!E70*B75,'Data Inputs'!E70*B75,O74+N75),"ERROR")),2) -> -3000 | P75: -30 | Q75: 3000 | R75: =$B75*'Data Inputs'!D70 -> 1000 | S75: =$B75*'Data Inputs'!E70 -> -3000 | T75: 77.22580645 | U75: 100 | V75: 100 | W75: 22.58064516 | X75: 0.7722580645 | Y75: Lower Flexibility Limit Exceeded: 706.00 Underproduction Credits Lost
A76: ='Data Inputs'!C71 -> 2015-04-01 | B76: 100 | C76: 30 | D76: 3000 | E76: 70000 | F76: 3.42 | G76: 2394 | J76: =-IF(F76<'Data Inputs'!F71,(F76-'Data Inputs'!F71)*E76/100,0) -> 0 | K76: =IF(OR('Data Inputs'!U71=0, 'Data Inputs'!U71=""), "N/A", 'Data Inputs'!U71*B76) -> N/A | L76: =IF(OR('Data Inputs'!U71=0, 'Data Inputs'!U71=""), "N/A", IF((G76-(D76-J76))>K76, K76, IF(K76>(G76-(D76-J76)), IF((G76-(D76-J76))<0, 0, (G76-(D76-J76))),0))) -> N/A | M76: 3000 | N76: -606 | O76: =ROUND(IF(O75+N76>=O75,IF(O75>='Data Inputs'!D71*B76,O75,IF(O75+N76>'Data Inputs'!D71*B76,'Data Inputs'!D71*B76,IF(O75+N76<'Data Inputs'!E71*B76,'Data Inputs'!E71*B76,O75+N76))),IF(O75+N76<O75,IF(O75+N76<'Data Inputs'!E71*B76,'Data Inputs'!E71*B76,O75+N76),"ERROR")),2) -> -3000 | P76: -30 | Q76: 3000 | R76: =$B76*'Data Inputs'!D71 -> 1000 | S76: =$B76*'Data Inputs'!E71 -> -3000 | T76: 79.8 | U76: 100 | V76: 100 | W76: 23.33333333 | X76: 0.798 | Y76: Lower Flexibility Limit Exceeded: 606.00 Underproduction Credits Lost
A77: ='Data Inputs'!C72 -> 2015-05-01 | B77: 100 | C77: 31 | D77: 3100 | E77: 70000 | F77: 3.42 | G77: 2394 | J77: =-IF(F77<'Data Inputs'!F72,(F77-'Data Inputs'!F72)*E77/100,0) -> 0 | K77: =IF(OR('Data Inputs'!U72=0, 'Data Inputs'!U72=""), "N/A", 'Data Inputs'!U72*B77) -> N/A | L77: =IF(OR('Data Inputs'!U72=0, 'Data Inputs'!U72=""), "N/A", IF((G77-(D77-J77))>K77, K77, IF(K77>(G77-(D77-J77)), IF((G77-(D77-J77))<0, 0, (G77-(D77-J77))),0))) -> N/A | M77: 3100 | N77: -706 | O77: =ROUND(IF(O76+N77>=O76,IF(O76>='Data Inputs'!D72*B77,O76,IF(O76+N77>'Data Inputs'!D72*B77,'Data Inputs'!D72*B77,IF(O76+N77<'Data Inputs'!E72*B77,'Data Inputs'!E72*B77,O76+N77))),IF(O76+N77<O76,IF(O76+N77<'Data Inputs'!E72*B77,'Data Inputs'!E72*B77,O76+N77),"ERROR")),2) -> -3000 | P77: -30 | Q77: 3000 | R77: =$B77*'Data Inputs'!D72 -> 1000 | S77: =$B77*'Data Inputs'!E72 -> -3000 | T77: 77.22580645 | U77: 100 | V77: 100 | W77: 22.58064516 | X77: 0.7722580645 | Y77: Lower Flexibility Limit Exceeded: 706.00 Underproduction Credits Lost
A78: ='Data Inputs'!C73 -> 2015-06-01 | B78: 100 | C78: 30 | D78: 3000 | E78: 70000 | F78: 3.42 | G78: 2394 | J78: =-IF(F78<'Data Inputs'!F73,(F78-'Data Inputs'!F73)*E78/100,0) -> 0 | K78: =IF(OR('Data Inputs'!U73=0, 'Data Inputs'!U73=""), "N/A", 'Data Inputs'!U73*B78) -> N/A | L78: =IF(OR('Data Inputs'!U73=0, 'Data Inputs'!U73=""), "N/A", IF((G78-(D78-J78))>K78, K78, IF(K78>(G78-(D78-J78)), IF((G78-(D78-J78))<0, 0, (G78-(D78-J78))),0))) -> N/A | M78: 3000 | N78: -606 | O78: =ROUND(IF(O77+N78>=O77,IF(O77>='Data Inputs'!D73*B78,O77,IF(O77+N78>'Data Inputs'!D73*B78,'Data Inputs'!D73*B78,IF(O77+N78<'Data Inputs'!E73*B78,'Data Inputs'!E73*B78,O77+N78))),IF(O77+N78<O77,IF(O77+N78<'Data Inputs'!E73*B78,'Data Inputs'!E73*B78,O77+N78),"ERROR")),2) -> -3000 | P78: -30 | Q78: 3000 | R78: =$B78*'Data Inputs'!D73 -> 1000 | S78: =$B78*'Data Inputs'!E73 -> -3000 | T78: 79.8 | U78: 100 | V78: 100 | W78: 23.33333333 | X78: 0.798 | Y78: Lower Flexibility Limit Exceeded: 606.00 Underproduction Credits Lost
A79: ='Data Inputs'!C74 -> 2015-07-01 | B79: 100 | C79: 31 | D79: 3100 | E79: 70000 | F79: 3.42 | G79: 2394 | J79: =-IF(F79<'Data Inputs'!F74,(F79-'Data Inputs'!F74)*E79/100,0) -> 0 | K79: =IF(OR('Data Inputs'!U74=0, 'Data Inputs'!U74=""), "N/A", 'Data Inputs'!U74*B79) -> N/A | L79: =IF(OR('Data Inputs'!U74=0, 'Data Inputs'!U74=""), "N/A", IF((G79-(D79-J79))>K79, K79, IF(K79>(G79-(D79-J79)), IF((G79-(D79-J79))<0, 0, (G79-(D79-J79))),0))) -> N/A | M79: 3100 | N79: -706 | O79: =ROUND(IF(O78+N79>=O78,IF(O78>='Data Inputs'!D74*B79,O78,IF(O78+N79>'Data Inputs'!D74*B79,'Data Inputs'!D74*B79,IF(O78+N79<'Data Inputs'!E74*B79,'Data Inputs'!E74*B79,O78+N79))),IF(O78+N79<O78,IF(O78+N79<'Data Inputs'!E74*B79,'Data Inputs'!E74*B79,O78+N79),"ERROR")),2) -> -3000 | P79: -30 | Q79: 3000 | R79: =$B79*'Data Inputs'!D74 -> 1000 | S79: =$B79*'Data Inputs'!E74 -> -3000 | T79: 77.22580645 | U79: 100 | V79: 100 | W79: 22.58064516 | X79: 0.7722580645 | Y79: Lower Flexibility Limit Exceeded: 706.00 Underproduction Credits Lost
A80: ='Data Inputs'!C75 -> 2015-08-01 | B80: 100 | C80: 31 | D80: 3100 | E80: 70000 | F80: 3.42 | G80: 2394 | J80: =-IF(F80<'Data Inputs'!F75,(F80-'Data Inputs'!F75)*E80/100,0) -> 0 | K80: =IF(OR('Data Inputs'!U75=0, 'Data Inputs'!U75=""), "N/A", 'Data Inputs'!U75*B80) -> 200 | L80: =IF(OR('Data Inputs'!U75=0, 'Data Inputs'!U75=""), "N/A", IF((G80-(D80-J80))>K80, K80, IF(K80>(G80-(D80-J80)), IF((G80-(D80-J80))<0, 0, (G80-(D80-J80))),0))) -> 0 | M80: 3100 | N80: -706 | O80: =ROUND(IF(O79+N80>=O79,IF(O79>='Data Inputs'!D75*B80,O79,IF(O79+N80>'Data Inputs'!D75*B80,'Data Inputs'!D75*B80,IF(O79+N80<'Data Inputs'!E75*B80,'Data Inputs'!E75*B80,O79+N80))),IF(O79+N80<O79,IF(O79+N80<'Data Inputs'!E75*B80,'Data Inputs'!E75*B80,O79+N80),"ERROR")),2) -> -3000 | P80: -30 | Q80: 3000 | R80: =$B80*'Data Inputs'!D75 -> 1000 | S80: =$B80*'Data Inputs'!E75 -> -3000 | T80: 77.22580645 | U80: 100 | V80: 100 | W80: 22.58064516 | X80: 0.7722580645 | Y80: Lower Flexibility Limit Exceeded: 706.00 Underproduction Credits Lost
A81: ='Data Inputs'!C76 -> 2015-09-01 | B81: 100 | C81: 30 | D81: 3000 | E81: 70000 | F81: 3.42 | G81: 2394 | J81: =-IF(F81<'Data Inputs'!F76,(F81-'Data Inputs'!F76)*E81/100,0) -> 0 | K81: =IF(OR('Data Inputs'!U76=0, 'Data Inputs'!U76=""), "N/A", 'Data Inputs'!U76*B81) -> 200 | L81: =IF(OR('Data Inputs'!U76=0, 'Data Inputs'!U76=""), "N/A", IF((G81-(D81-J81))>K81, K81, IF(K81>(G81-(D81-J81)), IF((G81-(D81-J81))<0, 0, (G81-(D81-J81))),0))) -> 0 | M81: 3000 | N81: -606 | O81: =ROUND(IF(O80+N81>=O80,IF(O80>='Data Inputs'!D76*B81,O80,IF(O80+N81>'Data Inputs'!D76*B81,'Data Inputs'!D76*B81,IF(O80+N81<'Data Inputs'!E76*B81,'Data Inputs'!E76*B81,O80+N81))),IF(O80+N81<O80,IF(O80+N81<'Data Inputs'!E76*B81,'Data Inputs'!E76*B81,O80+N81),"ERROR")),2) -> -3000 | P81: -30 | Q81: 3000 | R81: =$B81*'Data Inputs'!D76 -> 1000 | S81: =$B81*'Data Inputs'!E76 -> -3000 | T81: 79.8 | U81: 100 | V81: 100 | W81: 23.33333333 | X81: 0.798 | Y81: Lower Flexibility Limit Exceeded: 606.00 Underproduction Credits Lost
A82: ='Data Inputs'!C77 -> 2015-10-01 | B82: 100 | C82: 31 | D82: 3100 | E82: 70000 | F82: 3.42 | G82: 2394 | J82: =-IF(F82<'Data Inputs'!F77,(F82-'Data Inputs'!F77)*E82/100,0) -> 0 | K82: =IF(OR('Data Inputs'!U77=0, 'Data Inputs'!U77=""), "N/A", 'Data Inputs'!U77*B82) -> 200 | L82: =IF(OR('Data Inputs'!U77=0, 'Data Inputs'!U77=""), "N/A", IF((G82-(D82-J82))>K82, K82, IF(K82>(G82-(D82-J82)), IF((G82-(D82-J82))<0, 0, (G82-(D82-J82))),0))) -> 0 | M82: 3100 | N82: -706 | O82: =ROUND(IF(O81+N82>=O81,IF(O81>='Data Inputs'!D77*B82,O81,IF(O81+N82>'Data Inputs'!D77*B82,'Data Inputs'!D77*B82,IF(O81+N82<'Data Inputs'!E77*B82,'Data Inputs'!E77*B82,O81+N82))),IF(O81+N82<O81,IF(O81+N82<'Data Inputs'!E77*B82,'Data Inputs'!E77*B82,O81+N82),"ERROR")),2) -> -3000 | P82: -30 | Q82: 3000 | R82: =$B82*'Data Inputs'!D77 -> 1000 | S82: =$B82*'Data Inputs'!E77 -> -3000 | T82: 77.22580645 | U82: 100 | V82: 100 | W82: 22.58064516 | X82: 0.7722580645 | Y82: Lower Flexibility Limit Exceeded: 706.00 Underproduction Credits Lost
A83: ='Data Inputs'!C78 -> 2015-11-01 | B83: 100 | C83: 30 | D83: 3000 | E83: 70000 | F83: 3.42 | G83: 2394 | J83: =-IF(F83<'Data Inputs'!F78,(F83-'Data Inputs'!F78)*E83/100,0) -> 0 | K83: =IF(OR('Data Inputs'!U78=0, 'Data Inputs'!U78=""), "N/A", 'Data Inputs'!U78*B83) -> N/A | L83: =IF(OR('Data Inputs'!U78=0, 'Data Inputs'!U78=""), "N/A", IF((G83-(D83-J83))>K83, K83, IF(K83>(G83-(D83-J83)), IF((G83-(D83-J83))<0, 0, (G83-(D83-J83))),0))) -> N/A | M83: 3000 | N83: -606 | O83: =ROUND(IF(O82+N83>=O82,IF(O82>='Data Inputs'!D78*B83,O82,IF(O82+N83>'Data Inputs'!D78*B83,'Data Inputs'!D78*B83,IF(O82+N83<'Data Inputs'!E78*B83,'Data Inputs'!E78*B83,O82+N83))),IF(O82+N83<O82,IF(O82+N83<'Data Inputs'!E78*B83,'Data Inputs'!E78*B83,O82+N83),"ERROR")),2) -> -3000 | P83: -30 | Q83: 3000 | R83: =$B83*'Data Inputs'!D78 -> 1000 | S83: =$B83*'Data Inputs'!E78 -> -3000 | T83: 79.8 | U83: 100 | V83: 100 | W83: 23.33333333 | X83: 0.798 | Y83: Lower Flexibility Limit Exceeded: 606.00 Underproduction Credits Lost
A84: ='Data Inputs'!C79 -> 2015-12-01 | B84: 100 | C84: 31 | D84: 3100 | E84: 70000 | F84: 3.42 | G84: 2394 | J84: =-IF(F84<'Data Inputs'!F79,(F84-'Data Inputs'!F79)*E84/100,0) -> 0 | K84: =IF(OR('Data Inputs'!U79=0, 'Data Inputs'!U79=""), "N/A", 'Data Inputs'!U79*B84) -> N/A | L84: =IF(OR('Data Inputs'!U79=0, 'Data Inputs'!U79=""), "N/A", IF((G84-(D84-J84))>K84, K84, IF(K84>(G84-(D84-J84)), IF((G84-(D84-J84))<0, 0, (G84-(D84-J84))),0))) -> N/A | M84: 3100 | N84: -706 | O84: =ROUND(IF(O83+N84>=O83,IF(O83>='Data Inputs'!D79*B84,O83,IF(O83+N84>'Data Inputs'!D79*B84,'Data Inputs'!D79*B84,IF(O83+N84<'Data Inputs'!E79*B84,'Data Inputs'!E79*B84,O83+N84))),IF(O83+N84<O83,IF(O83+N84<'Data Inputs'!E79*B84,'Data Inputs'!E79*B84,O83+N84),"ERROR")),2) -> -3000 | P84: -30 | Q84: 3000 | R84: =$B84*'Data Inputs'!D79 -> 1000 | S84: =$B84*'Data Inputs'!E79 -> -3000 | T84: 77.22580645 | U84: 100 | V84: 100 | W84: 22.58064516 | X84: 0.7722580645 | Y84: Lower Flexibility Limit Exceeded: 706.00 Underproduction Credits Lost
A85: ='Data Inputs'!C80 -> 2016-01-01 | B85: 131.16 | C85: 31 | D85: 4065.96 | E85: 98036 | F85: 4.07 | G85: 3990.0652 | H85: 1052.99 | I85: 3075.89 | J85: =-IF(F85<'Data Inputs'!F80,(F85-'Data Inputs'!F80)*E85/100,0) -> 0 | K85: =IF(OR('Data Inputs'!U80=0, 'Data Inputs'!U80=""), "N/A", 'Data Inputs'!U80*B85) -> N/A | L85: =IF(OR('Data Inputs'!U80=0, 'Data Inputs'!U80=""), "N/A", IF((G85-(D85-J85))>K85, K85, IF(K85>(G85-(D85-J85)), IF((G85-(D85-J85))<0, 0, (G85-(D85-J85))),0))) -> N/A | M85: 2043.06 | N85: 1947.01 | O85: =ROUND(IF(O84+N85>=O84,IF(O84>='Data Inputs'!D80*B85,O84,IF(O84+N85>'Data Inputs'!D80*B85,'Data Inputs'!D80*B85,IF(O84+N85<'Data Inputs'!E80*B85,'Data Inputs'!E80*B85,O84+N85))),IF(O84+N85<O84,IF(O84+N85<'Data Inputs'!E80*B85,'Data Inputs'!E80*B85,O84+N85),"ERROR")),2) -> -1052.99 | P85: -8.028286063 | Q85: -75 | R85: =$B85*'Data Inputs'!D80 -> 1311.6 | S85: =$B85*'Data Inputs'!E80 -> -3934.8 | T85: 128.7117806 | U85: 65.90516129 | V85: 100 | W85: 31.62451613 | X85: 1.287117806
A86: ='Data Inputs'!C81 -> 2016-02-01 | B86: 131.16 | C86: 29 | D86: 3803.64 | E86: 86134 | F86: 4.08 | G86: 3514.2672 | J86: =-IF(F86<'Data Inputs'!F81,(F86-'Data Inputs'!F81)*E86/100,0) -> 0 | K86: =IF(OR('Data Inputs'!U81=0, 'Data Inputs'!U81=""), "N/A", 'Data Inputs'!U81*B86) -> N/A | L86: =IF(OR('Data Inputs'!U81=0, 'Data Inputs'!U81=""), "N/A", IF((G86-(D86-J86))>K86, K86, IF(K86>(G86-(D86-J86)), IF((G86-(D86-J86))<0, 0, (G86-(D86-J86))),0))) -> N/A | M86: 3803.64 | N86: -289.37 | O86: =ROUND(IF(O85+N86>=O85,IF(O85>='Data Inputs'!D81*B86,O85,IF(O85+N86>'Data Inputs'!D81*B86,'Data Inputs'!D81*B86,IF(O85+N86<'Data Inputs'!E81*B86,'Data Inputs'!E81*B86,O85+N86))),IF(O85+N86<O85,IF(O85+N86<'Data Inputs'!E81*B86,'Data Inputs'!E81*B86,O85+N86),"ERROR")),2) -> -1342.36 | P86: -10.23452272 | Q86: 1052 | R86: =$B86*'Data Inputs'!D81 -> 1311.6 | S86: =$B86*'Data Inputs'!E81 -> -3934.8 | T86: 121.1816276 | U86: 131.16 | V86: 100 | W86: 29.70137931 | X86: 1.211816276
A87: ='Data Inputs'!C82 -> 2016-03-01 | B87: 132.47 | C87: 31 | D87: 4106.57 | E87: 100752 | F87: 4.2 | G87: 4231.584 | J87: =-IF(F87<'Data Inputs'!F82,(F87-'Data Inputs'!F82)*E87/100,0) -> 0 | K87: =IF(OR('Data Inputs'!U82=0, 'Data Inputs'!U82=""), "N/A", 'Data Inputs'!U82*B87) -> N/A | L87: =IF(OR('Data Inputs'!U82=0, 'Data Inputs'!U82=""), "N/A", IF((G87-(D87-J87))>K87, K87, IF(K87>(G87-(D87-J87)), IF((G87-(D87-J87))<0, 0, (G87-(D87-J87))),0))) -> N/A | M87: 4106.57 | N87: 125.01 | O87: =ROUND(IF(O86+N87>=O86,IF(O86>='Data Inputs'!D82*B87,O86,IF(O86+N87>'Data Inputs'!D82*B87,'Data Inputs'!D82*B87,IF(O86+N87<'Data Inputs'!E82*B87,'Data Inputs'!E82*B87,O86+N87))),IF(O86+N87<O86,IF(O86+N87<'Data Inputs'!E82*B87,'Data Inputs'!E82*B87,O86+N87),"ERROR")),2) -> -1217.35 | P87: -9.18962784 | Q87: 1342 | R87: =$B87*'Data Inputs'!D82 -> 1324.7 | S87: =$B87*'Data Inputs'!E82 -> -3974.1 | T87: 136.5027097 | U87: 132.47 | V87: 100 | W87: 32.50064516 | X87: 1.365027097
A88: ='Data Inputs'!C83 -> 2016-04-01 | B88: 132.47 | C88: 30 | D88: 3974.1 | E88: 101703 | F88: 4.16 | G88: 4230.8448 | J88: =-IF(F88<'Data Inputs'!F83,(F88-'Data Inputs'!F83)*E88/100,0) -> 0 | K88: =IF(OR('Data Inputs'!U83=0, 'Data Inputs'!U83=""), "N/A", 'Data Inputs'!U83*B88) -> 264.94 | L88: =IF(OR('Data Inputs'!U83=0, 'Data Inputs'!U83=""), "N/A", IF((G88-(D88-J88))>K88, K88, IF(K88>(G88-(D88-J88)), IF((G88-(D88-J88))<0, 0, (G88-(D88-J88))),0))) -> 256.7448 | M88: 4230.8448 | N88: 0 | O88: =ROUND(IF(O87+N88>=O87,IF(O87>='Data Inputs'!D83*B88,O87,IF(O87+N88>'Data Inputs'!D83*B88,'Data Inputs'!D83*B88,IF(O87+N88<'Data Inputs'!E83*B88,'Data Inputs'!E83*B88,O87+N88))),IF(O87+N88<O87,IF(O87+N88<'Data Inputs'!E83*B88,'Data Inputs'!E83*B88,O87+N88),"ERROR")),2) -> -1217.35 | P88: -9.18962784 | Q88: 1217 | R88: =$B88*'Data Inputs'!D83 -> 1324.7 | S88: =$B88*'Data Inputs'!E83 -> -3974.1 | T88: 141.02816 | U88: 141.02816 | V88: 100 | W88: 33.901 | X88: 1.4102816
A89: ='Data Inputs'!C84 -> 2016-05-01 | B89: 132.47 | C89: 31 | D89: 4106.57 | E89: 103750 | F89: 4.16 | G89: 4316 | J89: =-IF(F89<'Data Inputs'!F84,(F89-'Data Inputs'!F84)*E89/100,0) -> 0 | K89: =IF(OR('Data Inputs'!U84=0, 'Data Inputs'!U84=""), "N/A", 'Data Inputs'!U84*B89) -> 264.94 | L89: =IF(OR('Data Inputs'!U84=0, 'Data Inputs'!U84=""), "N/A", IF((G89-(D89-J89))>K89, K89, IF(K89>(G89-(D89-J89)), IF((G89-(D89-J89))<0, 0, (G89-(D89-J89))),0))) -> 209.43 | M89: 4316 | N89: 0 | O89: =ROUND(IF(O88+N89>=O88,IF(O88>='Data Inputs'!D84*B89,O88,IF(O88+N89>'Data Inputs'!D84*B89,'Data Inputs'!D84*B89,IF(O88+N89<'Data Inputs'!E84*B89,'Data Inputs'!E84*B89,O88+N89))),IF(O88+N89<O88,IF(O88+N89<'Data Inputs'!E84*B89,'Data Inputs'!E84*B89,O88+N89),"ERROR")),2) -> -1217.35 | P89: -9.18962784 | Q89: 1217 | R89: =$B89*'Data Inputs'!D84 -> 1324.7 | S89: =$B89*'Data Inputs'!E84 -> -3974.1 | T89: 139.2258065 | U89: 139.2258065 | V89: 100 | W89: 33.46774194 | X89: 1.392258065
A90: ='Data Inputs'!C85 -> 2016-06-01 | B90: 132.47 | C90: 30 | D90: 3974.1 | E90: 103845 | F90: 4.08 | G90: 4236.876 | J90: =-IF(F90<'Data Inputs'!F85,(F90-'Data Inputs'!F85)*E90/100,0) -> 0 | K90: =IF(OR('Data Inputs'!U85=0, 'Data Inputs'!U85=""), "N/A", 'Data Inputs'!U85*B90) -> 264.94 | L90: =IF(OR('Data Inputs'!U85=0, 'Data Inputs'!U85=""), "N/A", IF((G90-(D90-J90))>K90, K90, IF(K90>(G90-(D90-J90)), IF((G90-(D90-J90))<0, 0, (G90-(D90-J90))),0))) -> 262.776 | M90: 4236.876 | N90: 0 | O90: =ROUND(IF(O89+N90>=O89,IF(O89>='Data Inputs'!D85*B90,O89,IF(O89+N90>'Data Inputs'!D85*B90,'Data Inputs'!D85*B90,IF(O89+N90<'Data Inputs'!E85*B90,'Data Inputs'!E85*B90,O89+N90))),IF(O89+N90<O89,IF(O89+N90<'Data Inputs'!E85*B90,'Data Inputs'!E85*B90,O89+N90),"ERROR")),2) -> -1217.35 | P90: -9.18962784 | Q90: 1217 | R90: =$B90*'Data Inputs'!D85 -> 1324.7 | S90: =$B90*'Data Inputs'!E85 -> -3974.1 | T90: 141.2292 | U90: 141.2292 | V90: 100 | W90: 34.615 | X90: 1.412292
A91: ='Data Inputs'!C86 -> 2016-07-01 | B91: 132.47 | C91: 31 | D91: 4106.57 | E91: 114103 | F91: 4 | G91: 4564.12 | J91: =-IF(F91<'Data Inputs'!F86,(F91-'Data Inputs'!F86)*E91/100,0) -> 0 | K91: =IF(OR('Data Inputs'!U86=0, 'Data Inputs'!U86=""), "N/A", 'Data Inputs'!U86*B91) -> 264.94 | L91: =IF(OR('Data Inputs'!U86=0, 'Data Inputs'!U86=""), "N/A", IF((G91-(D91-J91))>K91, K91, IF(K91>(G91-(D91-J91)), IF((G91-(D91-J91))<0, 0, (G91-(D91-J91))),0))) -> 264.94 | M91: 4371.51 | N91: 192.61 | O91: =ROUND(IF(O90+N91>=O90,IF(O90>='Data Inputs'!D86*B91,O90,IF(O90+N91>'Data Inputs'!D86*B91,'Data Inputs'!D86*B91,IF(O90+N91<'Data Inputs'!E86*B91,'Data Inputs'!E86*B91,O90+N91))),IF(O90+N91<O90,IF(O90+N91<'Data Inputs'!E86*B91,'Data Inputs'!E86*B91,O90+N91),"ERROR")),2) -> -1024.74 | P91: =IF(B91>0,IF(O91=0,0,O91/B91),"-") -> -7.735638258 | Q91: 1217 | R91: =$B91*'Data Inputs'!D86 -> 1324.7 | S91: =$B91*'Data Inputs'!E86 -> -3974.1 | T91: 147.2296774 | U91: 141.0164516 | V91: 100 | W91: 36.80741935 | X91: 1.472296774
A92: ='Data Inputs'!C87 -> 2016-08-01 | B92: 132.47 | C92: 31 | D92: 4106.57 | E92: 107616 | F92: 4.06 | G92: 4369.2096 | J92: =-IF(F92<'Data Inputs'!F87,(F92-'Data Inputs'!F87)*E92/100,0) -> 0 | K92: =IF(OR('Data Inputs'!U87=0, 'Data Inputs'!U87=""), "N/A", 'Data Inputs'!U87*B92) -> 264.94 | L92: =IF(OR('Data Inputs'!U87=0, 'Data Inputs'!U87=""), "N/A", IF((G92-(D92-J92))>K92, K92, IF(K92>(G92-(D92-J92)), IF((G92-(D92-J92))<0, 0, (G92-(D92-J92))),0))) -> 262.6396 | M92: 4369.2096 | N92: 0 | O92: =ROUND(IF(O91+N92>=O91,IF(O91>='Data Inputs'!D87*B92,O91,IF(O91+N92>'Data Inputs'!D87*B92,'Data Inputs'!D87*B92,IF(O91+N92<'Data Inputs'!E87*B92,'Data Inputs'!E87*B92,O91+N92))),IF(O91+N92<O91,IF(O91+N92<'Data Inputs'!E87*B92,'Data Inputs'!E87*B92,O91+N92),"ERROR")),2) -> -1024.74 | P92: -7.735638258 | Q92: 1024 | R92: =$B92*'Data Inputs'!D87 -> 1324.7 | S92: =$B92*'Data Inputs'!E87 -> -3974.1 | T92: 140.9422452 | U92: 140.9422452 | V92: 100 | W92: 34.71483871 | X92: 1.409422452
A93: ='Data Inputs'!C88 -> 2016-09-01 | B93: 134.46 | C93: 30 | D93: 4033.8 | E93: 101083 | F93: 4.13 | G93: 4174.7279 | J93: =-IF(F93<'Data Inputs'!F88,(F93-'Data Inputs'!F88)*E93/100,0) -> 0 | K93: =IF(OR('Data Inputs'!U88=0, 'Data Inputs'!U88=""), "N/A", 'Data Inputs'!U88*B93) -> 268.92 | L93: =IF(OR('Data Inputs'!U88=0, 'Data Inputs'!U88=""), "N/A", IF((G93-(D93-J93))>K93, K93, IF(K93>(G93-(D93-J93)), IF((G93-(D93-J93))<0, 0, (G93-(D93-J93))),0))) -> 140.9279 | M93: 4174.7279 | N93: 0 | O93: =ROUND(IF(O92+N93>=O92,IF(O92>='Data Inputs'!D88*B93,O92,IF(O92+N93>'Data Inputs'!D88*B93,'Data Inputs'!D88*B93,IF(O92+N93<'Data Inputs'!E88*B93,'Data Inputs'!E88*B93,O92+N93))),IF(O92+N93<O92,IF(O92+N93<'Data Inputs'!E88*B93,'Data Inputs'!E88*B93,O92+N93),"ERROR")),2) -> -1024.74 | P93: -7.621151272 | Q93: 1024 | R93: =$B93*'Data Inputs'!D88 -> 1344.6 | S93: =$B93*'Data Inputs'!E88 -> -4033.8 | T93: 139.1575967 | U93: 139.1575967 | V93: 100 | W93: 33.69433333 | X93: 1.391575967
A94: ='Data Inputs'!C89 -> 2016-10-01 | B94: 134.46 | C94: 31 | D94: 4168.26 | E94: 109698 | F94: 4.21 | G94: 4618.2858 | J94: =-IF(F94<'Data Inputs'!F89,(F94-'Data Inputs'!F89)*E94/100,0) -> 0 | K94: =IF(OR('Data Inputs'!U89=0, 'Data Inputs'!U89=""), "N/A", 'Data Inputs'!U89*B94) -> 268.92 | L94: =IF(OR('Data Inputs'!U89=0, 'Data Inputs'!U89=""), "N/A", IF((G94-(D94-J94))>K94, K94, IF(K94>(G94-(D94-J94)), IF((G94-(D94-J94))<0, 0, (G94-(D94-J94))),0))) -> 268.92 | M94: 4437.18 | N94: 181.11 | O94: =ROUND(IF(O93+N94>=O93,IF(O93>='Data Inputs'!D89*B94,O93,IF(O93+N94>'Data Inputs'!D89*B94,'Data Inputs'!D89*B94,IF(O93+N94<'Data Inputs'!E89*B94,'Data Inputs'!E89*B94,O93+N94))),IF(O93+N94<O93,IF(O93+N94<'Data Inputs'!E89*B94,'Data Inputs'!E89*B94,O93+N94),"ERROR")),2) -> -843.63 | P94: -6.274207943 | Q94: 1024 | R94: =$B94*'Data Inputs'!D89 -> 1344.6 | S94: =$B94*'Data Inputs'!E89 -> -4033.8 | T94: 148.9769613 | U94: 143.1348387 | V94: 100 | W94: 35.38645161 | X94: 1.489769613
A95: ='Data Inputs'!C90 -> 2016-11-01 | B95: 134.46 | C95: 30 | D95: 4033.8 | E95: 100441 | F95: 4.12 | G95: 4138.1692 | J95: =-IF(F95<'Data Inputs'!F90,(F95-'Data Inputs'!F90)*E95/100,0) -> 0 | K95: =IF(OR('Data Inputs'!U90=0, 'Data Inputs'!U90=""), "N/A", 'Data Inputs'!U90*B95) -> 268.92 | L95: =IF(OR('Data Inputs'!U90=0, 'Data Inputs'!U90=""), "N/A", IF((G95-(D95-J95))>K95, K95, IF(K95>(G95-(D95-J95)), IF((G95-(D95-J95))<0, 0, (G95-(D95-J95))),0))) -> 104.3692 | M95: 4138.1692 | N95: 0 | O95: =ROUND(IF(O94+N95>=O94,IF(O94>='Data Inputs'!D90*B95,O94,IF(O94+N95>'Data Inputs'!D90*B95,'Data Inputs'!D90*B95,IF(O94+N95<'Data Inputs'!E90*B95,'Data Inputs'!E90*B95,O94+N95))),IF(O94+N95<O94,IF(O94+N95<'Data Inputs'!E90*B95,'Data Inputs'!E90*B95,O94+N95),"ERROR")),2) -> -843.63 | P95: -6.274207943 | Q95: 843 | R95: =$B95*'Data Inputs'!D90 -> 1344.6 | S95: =$B95*'Data Inputs'!E90 -> -4033.8 | T95: 137.9389733 | U95: 137.9389733 | V95: 100 | W95: 33.48033333 | X95: 1.379389733
A96: ='Data Inputs'!C91 -> 2016-12-01 | B96: 134.46 | C96: 31 | D96: 4168.26 | E96: 96683 | F96: 4.11 | G96: 3973.6713 | J96: =-IF(F96<'Data Inputs'!F91,(F96-'Data Inputs'!F91)*E96/100,0) -> 0 | K96: =IF(OR('Data Inputs'!U91=0, 'Data Inputs'!U91=""), "N/A", 'Data Inputs'!U91*B96) -> 268.92 | L96: =IF(OR('Data Inputs'!U91=0, 'Data Inputs'!U91=""), "N/A", IF((G96-(D96-J96))>K96, K96, IF(K96>(G96-(D96-J96)), IF((G96-(D96-J96))<0, 0, (G96-(D96-J96))),0))) -> 0 | M96: =(IF(D96=0,0,D96))+(IF(L96="N/A",0,L96))+(H96)-(I96)-(IF(J96>0,J96,0)) -> 4168.26 | N96: -194.59 | O96: =ROUND(IF(O95+N96>=O95,IF(O95>='Data Inputs'!D91*B96,O95,IF(O95+N96>'Data Inputs'!D91*B96,'Data Inputs'!D91*B96,IF(O95+N96<'Data Inputs'!E91*B96,'Data Inputs'!E91*B96,O95+N96))),IF(O95+N96<O95,IF(O95+N96<'Data Inputs'!E91*B96,'Data Inputs'!E91*B96,O95+N96),"ERROR")),2) -> -1038.22 | P96: -7.721404135 | Q96: 843 | R96: =$B96*'Data Inputs'!D91 -> 1344.6 | S96: =$B96*'Data Inputs'!E91 -> -4033.8 | T96: 128.1829452 | U96: 134.46 | V96: 100 | W96: 31.18806452 | X96: 1.281829452
A97: ='Data Inputs'!C92 -> 2017-01-01 | B97: 136.48 | C97: 31 | D97: 4230.88 | E97: 105427 | F97: 4.14 | G97: 4364.6778 | J97: =-IF(F97<'Data Inputs'!F92,(F97-'Data Inputs'!F92)*E97/100,0) -> 0 | K97: =IF(OR('Data Inputs'!U92=0, 'Data Inputs'!U92=""), "N/A", 'Data Inputs'!U92*B97) -> 136.48 | L97: =IF(OR('Data Inputs'!U92=0, 'Data Inputs'!U92=""), "N/A", IF((G97-(D97-J97))>K97, K97, IF(K97>(G97-(D97-J97)), IF((G97-(D97-J97))<0, 0, (G97-(D97-J97))),0))) -> 133.7978 | M97: 4364.6778 | N97: 0 | O97: =ROUND(IF(O96+N97>=O96,IF(O96>='Data Inputs'!D92*B97,O96,IF(O96+N97>'Data Inputs'!D92*B97,'Data Inputs'!D92*B97,IF(O96+N97<'Data Inputs'!E92*B97,'Data Inputs'!E92*B97,O96+N97))),IF(O96+N97<O96,IF(O96+N97<'Data Inputs'!E92*B97,'Data Inputs'!E92*B97,O96+N97),"ERROR")),2) -> -1038.22 | P97: -7.607121923 | Q97: 1038 | R97: =$B97*'Data Inputs'!D92 -> 1364.8 | S97: =$B97*'Data Inputs'!E92 -> -4094.4 | T97: 140.7960581 | U97: 140.7960581 | V97: 100 | W97: 34.00870968 | X97: 1.407960581
A98: ='Data Inputs'!C93 -> 2017-02-01 | B98: 139.21 | C98: 28 | D98: 3897.88 | E98: 88203 | F98: 4.27 | G98: 3766.2681 | J98: =-IF(F98<'Data Inputs'!F93,(F98-'Data Inputs'!F93)*E98/100,0) -> 0 | K98: =IF(OR('Data Inputs'!U93=0, 'Data Inputs'!U93=""), "N/A", 'Data Inputs'!U93*B98) -> 278.42 | L98: =IF(OR('Data Inputs'!U93=0, 'Data Inputs'!U93=""), "N/A", IF((G98-(D98-J98))>K98, K98, IF(K98>(G98-(D98-J98)), IF((G98-(D98-J98))<0, 0, (G98-(D98-J98))),0))) -> 0 | M98: 3897.88 | N98: -131.61 | O98: =ROUND(IF(O97+N98>=O97,IF(O97>='Data Inputs'!D93*B98,O97,IF(O97+N98>'Data Inputs'!D93*B98,'Data Inputs'!D93*B98,IF(O97+N98<'Data Inputs'!E93*B98,'Data Inputs'!E93*B98,O97+N98))),IF(O97+N98<O97,IF(O97+N98<'Data Inputs'!E93*B98,'Data Inputs'!E93*B98,O97+N98),"ERROR")),2) -> -1169.83 | P98: -8.403347461 | Q98: 1038 | R98: =$B98*'Data Inputs'!D93 -> 1392.1 | S98: =$B98*'Data Inputs'!E93 -> -4176.3 | T98: 134.509575 | U98: 139.21 | V98: 100 | W98: 31.50107143 | X98: 1.34509575
A99: ='Data Inputs'!C94 -> 2017-03-01 | B99: 141.99 | C99: 31 | D99: 4401.69 | E99: 97443 | F99: 4.32 | G99: 4209.5376 | J99: =-IF(F99<'Data Inputs'!F94,(F99-'Data Inputs'!F94)*E99/100,0) -> 0 | K99: =IF(OR('Data Inputs'!U94=0, 'Data Inputs'!U94=""), "N/A", 'Data Inputs'!U94*B99) -> 283.98 | L99: =IF(OR('Data Inputs'!U94=0, 'Data Inputs'!U94=""), "N/A", IF((G99-(D99-J99))>K99, K99, IF(K99>(G99-(D99-J99)), IF((G99-(D99-J99))<0, 0, (G99-(D99-J99))),0))) -> 0 | M99: 4401.69 | N99: -192.15 | O99: =ROUND(IF(O98+N99>=O98,IF(O98>='Data Inputs'!D94*B99,O98,IF(O98+N99>'Data Inputs'!D94*B99,'Data Inputs'!D94*B99,IF(O98+N99<'Data Inputs'!E94*B99,'Data Inputs'!E94*B99,O98+N99))),IF(O98+N99<O98,IF(O98+N99<'Data Inputs'!E94*B99,'Data Inputs'!E94*B99,O98+N99),"ERROR")),2) -> -1361.98 | P99: -9.59208395 | Q99: 1169 | R99: =$B99*'Data Inputs'!D94 -> 1419.9 | S99: =$B99*'Data Inputs'!E94 -> -4259.7 | T99: 135.7915355 | U99: 141.99 | V99: 100 | W99: 31.43322581 | X99: 1.357915355
A100: ='Data Inputs'!C95 -> 2017-04-01 | B100: 141.99 | C100: 30 | D100: 4259.7 | E100: 101007 | F100: 4.16 | G100: 4201.8912 | J100: =-IF(F100<'Data Inputs'!F95,(F100-'Data Inputs'!F95)*E100/100,0) -> 0 | K100: =IF(OR('Data Inputs'!U95=0, 'Data Inputs'!U95=""), "N/A", 'Data Inputs'!U95*B100) -> 425.97 | L100: =IF(OR('Data Inputs'!U95=0, 'Data Inputs'!U95=""), "N/A", IF((G100-(D100-J100))>K100, K100, IF(K100>(G100-(D100-J100)), IF((G100-(D100-J100))<0, 0, (G100-(D100-J100))),0))) -> 0 | M100: 4259.7 | N100: -57.81 | O100: =ROUND(IF(O99+N100>=O99,IF(O99>='Data Inputs'!D95*B100,O99,IF(O99+N100>'Data Inputs'!D95*B100,'Data Inputs'!D95*B100,IF(O99+N100<'Data Inputs'!E95*B100,'Data Inputs'!E95*B100,O99+N100))),IF(O99+N100<O99,IF(O99+N100<'Data Inputs'!E95*B100,'Data Inputs'!E95*B100,O99+N100),"ERROR")),2) -> -1419.79 | P100: -9.999225298 | Q100: 1361 | R100: =$B100*'Data Inputs'!D95 -> 1419.9 | S100: =$B100*'Data Inputs'!E95 -> -4259.7 | T100: 140.06304 | U100: 141.99 | V100: 100 | W100: 33.669 | X100: 1.4006304
A101: ='Data Inputs'!C96 -> 2017-05-01 | B101: 141.99 | C101: 31 | D101: 4401.69 | E101: 116259 | F101: 3.96 | G101: 4603.8564 | J101: =-IF(F101<'Data Inputs'!F96,(F101-'Data Inputs'!F96)*E101/100,0) -> 0 | K101: =IF(OR('Data Inputs'!U96=0, 'Data Inputs'!U96=""), "N/A", 'Data Inputs'!U96*B101) -> 425.97 | L101: =IF(OR('Data Inputs'!U96=0, 'Data Inputs'!U96=""), "N/A", IF((G101-(D101-J101))>K101, K101, IF(K101>(G101-(D101-J101)), IF((G101-(D101-J101))<0, 0, (G101-(D101-J101))),0))) -> 202.1664 | M101: 4603.8564 | N101: 0 | O101: =ROUND(IF(O100+N101>=O100,IF(O100>='Data Inputs'!D96*B101,O100,IF(O100+N101>'Data Inputs'!D96*B101,'Data Inputs'!D96*B101,IF(O100+N101<'Data Inputs'!E96*B101,'Data Inputs'!E96*B101,O100+N101))),IF(O100+N101<O100,IF(O100+N101<'Data Inputs'!E96*B101,'Data Inputs'!E96*B101,O100+N101),"ERROR")),2) -> -1419.79 | P101: -9.999225298 | Q101: 1419 | R101: =$B101*'Data Inputs'!D96 -> 1419.9 | S101: =$B101*'Data Inputs'!E96 -> -4259.7 | T101: 148.5114968 | U101: 148.5114968 | V101: 100 | W101: 37.50290323 | X101: 1.485114968
A102: ='Data Inputs'!C97 -> 2017-06-01 | B102: 141.99 | C102: 30 | D102: 4259.7 | E102: 118678 | F102: 3.92 | G102: 4652.1776 | J102: =-IF(F102<'Data Inputs'!F97,(F102-'Data Inputs'!F97)*E102/100,0) -> 0 | K102: =IF(OR('Data Inputs'!U97=0, 'Data Inputs'!U97=""), "N/A", 'Data Inputs'!U97*B102) -> 283.98 | L102: =IF(OR('Data Inputs'!U97=0, 'Data Inputs'!U97=""), "N/A", IF((G102-(D102-J102))>K102, K102, IF(K102>(G102-(D102-J102)), IF((G102-(D102-J102))<0, 0, (G102-(D102-J102))),0))) -> 283.98 | M102: 4543.68 | N102: 108.5 | O102: =ROUND(IF(O101+N102>=O101,IF(O101>='Data Inputs'!D97*B102,O101,IF(O101+N102>'Data Inputs'!D97*B102,'Data Inputs'!D97*B102,IF(O101+N102<'Data Inputs'!E97*B102,'Data Inputs'!E97*B102,O101+N102))),IF(O101+N102<O101,IF(O101+N102<'Data Inputs'!E97*B102,'Data Inputs'!E97*B102,O101+N102),"ERROR")),2) -> -1311.29 | P102: -9.235086978 | Q102: 1419 | R102: =$B102*'Data Inputs'!D97 -> 1419.9 | S102: =$B102*'Data Inputs'!E97 -> -4259.7 | T102: 155.0725867 | U102: 151.456 | V102: 100 | W102: 39.55933333 | X102: 1.550725867
A103: ='Data Inputs'!C98 -> 2017-07-01 | B103: 141.99 | C103: 31 | D103: 4401.69 | E103: 124315 | F103: 3.87 | G103: 4810.9905 | J103: =-IF(F103<'Data Inputs'!F98,(F103-'Data Inputs'!F98)*E103/100,0) -> 0 | K103: =IF(OR('Data Inputs'!U98=0, 'Data Inputs'!U98=""), "N/A", 'Data Inputs'!U98*B103) -> 283.98 | L103: =IF(OR('Data Inputs'!U98=0, 'Data Inputs'!U98=""), "N/A", IF((G103-(D103-J103))>K103, K103, IF(K103>(G103-(D103-J103)), IF((G103-(D103-J103))<0, 0, (G103-(D103-J103))),0))) -> 283.98 | M103: 4685.67 | N103: 125.32 | O103: =ROUND(IF(O102+N103>=O102,IF(O102>='Data Inputs'!D98*B103,O102,IF(O102+N103>'Data Inputs'!D98*B103,'Data Inputs'!D98*B103,IF(O102+N103<'Data Inputs'!E98*B103,'Data Inputs'!E98*B103,O102+N103))),IF(O102+N103<O102,IF(O102+N103<'Data Inputs'!E98*B103,'Data Inputs'!E98*B103,O102+N103),"ERROR")),2) -> -1185.97 | P103: -8.352489612 | Q103: 1311 | R103: =$B103*'Data Inputs'!D98 -> 1419.9 | S103: =$B103*'Data Inputs'!E98 -> -4259.7 | T103: 155.1932419 | U103: 151.1506452 | V103: 100 | W103: 40.1016129 | X103: 1.551932419
A104: ='Data Inputs'!C99 -> 2017-08-01 | B104: 141.99 | C104: 31 | D104: 4401.69 | E104: 129402 | F104: 3.88 | G104: 5020.7976 | J104: =-IF(F104<'Data Inputs'!F99,(F104-'Data Inputs'!F99)*E104/100,0) -> 0 | K104: =IF(OR('Data Inputs'!U99=0, 'Data Inputs'!U99=""), "N/A", 'Data Inputs'!U99*B104) -> 283.98 | L104: =IF(OR('Data Inputs'!U99=0, 'Data Inputs'!U99=""), "N/A", IF((G104-(D104-J104))>K104, K104, IF(K104>(G104-(D104-J104)), IF((G104-(D104-J104))<0, 0, (G104-(D104-J104))),0))) -> 283.98 | M104: 4685.67 | N104: 335.13 | O104: =ROUND(IF(O103+N104>=O103,IF(O103>='Data Inputs'!D99*B104,O103,IF(O103+N104>'Data Inputs'!D99*B104,'Data Inputs'!D99*B104,IF(O103+N104<'Data Inputs'!E99*B104,'Data Inputs'!E99*B104,O103+N104))),IF(O103+N104<O103,IF(O103+N104<'Data Inputs'!E99*B104,'Data Inputs'!E99*B104,O103+N104),"ERROR")),2) -> -850.84 | P104: -5.992252976 | Q104: 1185 | R104: =$B104*'Data Inputs'!D99 -> 1419.9 | S104: =$B104*'Data Inputs'!E99 -> -4259.7 | T104: 161.9612129 | U104: 151.1506452 | V104: 100 | W104: 41.74258065 | X104: 1.619612129
A105: ='Data Inputs'!C100 -> 2017-09-01 | B105: 144.83 | C105: 30 | D105: 4344.9 | E105: 114030 | F105: 4.03 | G105: 4595.409 | J105: =-IF(F105<'Data Inputs'!F100,(F105-'Data Inputs'!F100)*E105/100,0) -> 0 | K105: =IF(OR('Data Inputs'!U100=0, 'Data Inputs'!U100=""), "N/A", 'Data Inputs'!U100*B105) -> 289.66 | L105: =IF(OR('Data Inputs'!U100=0, 'Data Inputs'!U100=""), "N/A", IF((G105-(D105-J105))>K105, K105, IF(K105>(G105-(D105-J105)), IF((G105-(D105-J105))<0, 0, (G105-(D105-J105))),0))) -> 250.509 | M105: 4595.409 | N105: 0 | O105: =ROUND(IF(O104+N105>=O104,IF(O104>='Data Inputs'!D100*B105,O104,IF(O104+N105>'Data Inputs'!D100*B105,'Data Inputs'!D100*B105,IF(O104+N105<'Data Inputs'!E100*B105,'Data Inputs'!E100*B105,O104+N105))),IF(O104+N105<O104,IF(O104+N105<'Data Inputs'!E100*B105,'Data Inputs'!E100*B105,O104+N105),"ERROR")),2) -> -850.84 | P105: -5.874749707 | Q105: 850 | R105: =$B105*'Data Inputs'!D100 -> 1448.3 | S105: =$B105*'Data Inputs'!E100 -> -4344.9 | T105: 153.1803 | U105: 153.1803 | V105: 100 | W105: 38.01 | X105: 1.531803
A106: ='Data Inputs'!C101 -> 2017-10-01 | B106: 147.73 | C106: 31 | D106: 4579.63 | E106: 105273 | F106: 4.18 | G106: 4400.4114 | J106: =-IF(F106<'Data Inputs'!F101,(F106-'Data Inputs'!F101)*E106/100,0) -> 0 | K106: =IF(OR('Data Inputs'!U101=0, 'Data Inputs'!U101=""), "N/A", 'Data Inputs'!U101*B106) -> 295.46 | L106: =IF(OR('Data Inputs'!U101=0, 'Data Inputs'!U101=""), "N/A", IF((G106-(D106-J106))>K106, K106, IF(K106>(G106-(D106-J106)), IF((G106-(D106-J106))<0, 0, (G106-(D106-J106))),0))) -> 0 | M106: 4579.63 | N106: -179.22 | O106: =ROUND(IF(O105+N106>=O105,IF(O105>='Data Inputs'!D101*B106,O105,IF(O105+N106>'Data Inputs'!D101*B106,'Data Inputs'!D101*B106,IF(O105+N106<'Data Inputs'!E101*B106,'Data Inputs'!E101*B106,O105+N106))),IF(O105+N106<O105,IF(O105+N106<'Data Inputs'!E101*B106,'Data Inputs'!E101*B106,O105+N106),"ERROR")),2) -> -1030.06 | P106: -6.972585122 | Q106: 850 | R106: =$B106*'Data Inputs'!D101 -> 1477.3 | S106: =$B106*'Data Inputs'!E101 -> -4431.9 | T106: 141.9487548 | U106: 147.73 | V106: 100 | W106: 33.95903226 | X106: 1.419487548
A107: ='Data Inputs'!C102 -> 2017-11-01 | B107: 150.68 | C107: 30 | D107: 4520.4 | E107: 98068 | F107: 4.25 | G107: 4167.89 | J107: =-IF(F107<'Data Inputs'!F102,(F107-'Data Inputs'!F102)*E107/100,0) -> 0 | K107: =IF(OR('Data Inputs'!U102=0, 'Data Inputs'!U102=""), "N/A", 'Data Inputs'!U102*B107) -> 301.36 | L107: =IF(OR('Data Inputs'!U102=0, 'Data Inputs'!U102=""), "N/A", IF((G107-(D107-J107))>K107, K107, IF(K107>(G107-(D107-J107)), IF((G107-(D107-J107))<0, 0, (G107-(D107-J107))),0))) -> 0 | M107: 4520.4 | N107: -352.51 | O107: =ROUND(IF(O106+N107>=O106,IF(O106>='Data Inputs'!D102*B107,O106,IF(O106+N107>'Data Inputs'!D102*B107,'Data Inputs'!D102*B107,IF(O106+N107<'Data Inputs'!E102*B107,'Data Inputs'!E102*B107,O106+N107))),IF(O106+N107<O106,IF(O106+N107<'Data Inputs'!E102*B107,'Data Inputs'!E102*B107,O106+N107),"ERROR")),2) -> -1382.57 | P107: -9.175537563 | Q107: 1030 | R107: =$B107*'Data Inputs'!D102 -> 1506.8 | S107: =$B107*'Data Inputs'!E102 -> -4520.4 | T107: 138.9296667 | U107: 150.68 | V107: 100 | W107: 32.68933333 | X107: 1.389296667
A108: ='Data Inputs'!C103 -> 2017-12-01 | B108: 150.68 | C108: 31 | D108: 4671.08 | E108: 104098 | F108: 4.31 | G108: 4486.6238 | J108: =-IF(F108<'Data Inputs'!F103,(F108-'Data Inputs'!F103)*E108/100,0) -> 0 | K108: =IF(OR('Data Inputs'!U103=0, 'Data Inputs'!U103=""), "N/A", 'Data Inputs'!U103*B108) -> 150.68 | L108: =IF(OR('Data Inputs'!U103=0, 'Data Inputs'!U103=""), "N/A", IF((G108-(D108-J108))>K108, K108, IF(K108>(G108-(D108-J108)), IF((G108-(D108-J108))<0, 0, (G108-(D108-J108))),0))) -> 0 | M108: 4671.08 | N108: -184.46 | O108: =ROUND(IF(O107+N108>=O107,IF(O107>='Data Inputs'!D103*B108,O107,IF(O107+N108>'Data Inputs'!D103*B108,'Data Inputs'!D103*B108,IF(O107+N108<'Data Inputs'!E103*B108,'Data Inputs'!E103*B108,O107+N108))),IF(O107+N108<O107,IF(O107+N108<'Data Inputs'!E103*B108,'Data Inputs'!E103*B108,O107+N108),"ERROR")),2) -> -1567.03 | P108: -10.39972126 | Q108: 1382 | R108: =$B108*'Data Inputs'!D103 -> 1506.8 | S108: =$B108*'Data Inputs'!E103 -> -3767 | T108: 144.7298 | U108: 150.68 | V108: 100 | W108: 33.58 | X108: 1.447298
A109: ='Data Inputs'!C104 -> 2018-01-01 | B109: 150.68 | C109: 31 | D109: 4671.08 | E109: 100551 | F109: 4.31 | G109: 4333.7481 | J109: =-IF(F109<'Data Inputs'!F104,(F109-'Data Inputs'!F104)*E109/100,0) -> 0 | K109: =IF(OR('Data Inputs'!U104=0, 'Data Inputs'!U104=""), "N/A", 'Data Inputs'!U104*B109) -> 150.68 | L109: =IF(OR('Data Inputs'!U104=0, 'Data Inputs'!U104=""), "N/A", IF((G109-(D109-J109))>K109, K109, IF(K109>(G109-(D109-J109)), IF((G109-(D109-J109))<0, 0, (G109-(D109-J109))),0))) -> 0 | M109: 4671.08 | N109: -337.33 | O109: =ROUND(IF(O108+N109>=O108,IF(O108>='Data Inputs'!D104*B109,O108,IF(O108+N109>'Data Inputs'!D104*B109,'Data Inputs'!D104*B109,IF(O108+N109<'Data Inputs'!E104*B109,'Data Inputs'!E104*B109,O108+N109))),IF(O108+N109<O108,IF(O108+N109<'Data Inputs'!E104*B109,'Data Inputs'!E104*B109,O108+N109),"ERROR")),2) -> -1904.36 | P109: -12.63843908 | Q109: 1567 | R109: =$B109*'Data Inputs'!D104 -> 1506.8 | S109: =$B109*'Data Inputs'!E104 -> -3767 | T109: 139.7983258 | U109: 150.68 | V109: 100 | W109: 32.43580645 | X109: 1.397983258
A110: ='Data Inputs'!C105 -> 2018-02-01 | B110: 153.69 | C110: 28 | D110: 4303.32 | E110: 96296 | F110: 4.27 | G110: 4111.8392 | J110: =-IF(F110<'Data Inputs'!F105,(F110-'Data Inputs'!F105)*E110/100,0) -> 0 | K110: =IF(OR('Data Inputs'!U105=0, 'Data Inputs'!U105=""), "N/A", 'Data Inputs'!U105*B110) -> N/A | L110: =IF(OR('Data Inputs'!U105=0, 'Data Inputs'!U105=""), "N/A", IF((G110-(D110-J110))>K110, K110, IF(K110>(G110-(D110-J110)), IF((G110-(D110-J110))<0, 0, (G110-(D110-J110))),0))) -> N/A | M110: 4303.32 | N110: -191.48 | O110: =ROUND(IF(O109+N110>=O109,IF(O109>='Data Inputs'!D105*B110,O109,IF(O109+N110>'Data Inputs'!D105*B110,'Data Inputs'!D105*B110,IF(O109+N110<'Data Inputs'!E105*B110,'Data Inputs'!E105*B110,O109+N110))),IF(O109+N110<O109,IF(O109+N110<'Data Inputs'!E105*B110,'Data Inputs'!E105*B110,O109+N110),"ERROR")),2) -> -2095.84 | P110: -13.63680135 | Q110: 1904 | R110: =$B110*'Data Inputs'!D105 -> 1536.9 | S110: =$B110*'Data Inputs'!E105 -> -3842.25 | T110: 146.8514 | U110: 153.69 | V110: =V109 -> 100 | W110: 34.39142857 | X110: 1.468514
A111: ='Data Inputs'!C106 -> 2018-03-01 | B111: 153.69 | C111: 31 | D111: 4764.39 | E111: 113435 | F111: 4.22 | G111: 4786.957 | J111: =-IF(F111<'Data Inputs'!F106,(F111-'Data Inputs'!F106)*E111/100,0) -> 0 | K111: =IF(OR('Data Inputs'!U106=0, 'Data Inputs'!U106=""), "N/A", 'Data Inputs'!U106*B111) -> N/A | L111: =IF(OR('Data Inputs'!U106=0, 'Data Inputs'!U106=""), "N/A", IF((G111-(D111-J111))>K111, K111, IF(K111>(G111-(D111-J111)), IF((G111-(D111-J111))<0, 0, (G111-(D111-J111))),0))) -> N/A | M111: 4764.39 | N111: 22.57 | O111: =ROUND(IF(O110+N111>=O110,IF(O110>='Data Inputs'!D106*B111,O110,IF(O110+N111>'Data Inputs'!D106*B111,'Data Inputs'!D106*B111,IF(O110+N111<'Data Inputs'!E106*B111,'Data Inputs'!E106*B111,O110+N111))),IF(O110+N111<O110,IF(O110+N111<'Data Inputs'!E106*B111,'Data Inputs'!E106*B111,O110+N111),"ERROR")),2) -> -2073.27 | P111: -13.4899473 | Q111: 2095 | R111: =$B111*'Data Inputs'!D106 -> 1536.9 | S111: =$B111*'Data Inputs'!E106 -> -3073.8 | T111: 154.4179677 | U111: 153.69 | V111: 100 | W111: 36.59193548 | X111: 1.544179677
A112: ='Data Inputs'!C107 -> 2018-04-01 | B112: 153.69 | C112: 30 | D112: 4610.7 | E112: 106020 | F112: 4.23 | G112: 4484.646 | J112: =-IF(F112<'Data Inputs'!F107,(F112-'Data Inputs'!F107)*E112/100,0) -> 0 | K112: =IF(OR('Data Inputs'!U107=0, 'Data Inputs'!U107=""), "N/A", 'Data Inputs'!U107*B112) -> N/A | L112: =IF(OR('Data Inputs'!U107=0, 'Data Inputs'!U107=""), "N/A", IF((G112-(D112-J112))>K112, K112, IF(K112>(G112-(D112-J112)), IF((G112-(D112-J112))<0, 0, (G112-(D112-J112))),0))) -> N/A | M112: 4610.7 | N112: -126.05 | O112: =ROUND(IF(O111+N112>=O111,IF(O111>='Data Inputs'!D107*B112,O111,IF(O111+N112>'Data Inputs'!D107*B112,'Data Inputs'!D107*B112,IF(O111+N112<'Data Inputs'!E107*B112,'Data Inputs'!E107*B112,O111+N112))),IF(O111+N112<O111,IF(O111+N112<'Data Inputs'!E107*B112,'Data Inputs'!E107*B112,O111+N112),"ERROR")),2) -> -2199.32 | P112: -14.31010476 | Q112: 2073 | R112: =$B112*'Data Inputs'!D107 -> 1536.9 | S112: =$B112*'Data Inputs'!E107 -> -3073.8 | T112: 149.4882 | U112: 153.69 | V112: 100 | W112: 35.34 | X112: 1.494882
A113: ='Data Inputs'!C108 -> 2018-05-01 | B113: 152.15 | C113: 31 | D113: 4716.65 | E113: 111552 | F113: 4.05 | G113: 4517.856 | J113: =-IF(F113<'Data Inputs'!F108,(F113-'Data Inputs'!F108)*E113/100,0) -> 0 | K113: =IF(OR('Data Inputs'!U108=0, 'Data Inputs'!U108=""), "N/A", 'Data Inputs'!U108*B113) -> N/A | L113: =IF(OR('Data Inputs'!U108=0, 'Data Inputs'!U108=""), "N/A", IF((G113-(D113-J113))>K113, K113, IF(K113>(G113-(D113-J113)), IF((G113-(D113-J113))<0, 0, (G113-(D113-J113))),0))) -> N/A | M113: 4716.65 | N113: -198.79 | O113: =ROUND(IF(O112+N113>=O112,IF(O112>='Data Inputs'!D108*B113,O112,IF(O112+N113>'Data Inputs'!D108*B113,'Data Inputs'!D108*B113,IF(O112+N113<'Data Inputs'!E108*B113,'Data Inputs'!E108*B113,O112+N113))),IF(O112+N113<O112,IF(O112+N113<'Data Inputs'!E108*B113,'Data Inputs'!E108*B113,O112+N113),"ERROR")),2) -> -2398.11 | P113: -15.76148538 | Q113: 2199 | R113: =$B113*'Data Inputs'!D108 -> 1521.5 | S113: =$B113*'Data Inputs'!E108 -> -3043 | T113: 145.7372903 | U113: 152.15 | V113: 100 | W113: 35.98451613 | X113: 1.457372903
A114: ='Data Inputs'!C109 -> 2018-06-01 | B114: 152.15 | C114: 30 | D114: 4564.5 | E114: 120635 | F114: 4.09 | G114: 4933.9715 | J114: =-IF(F114<'Data Inputs'!F109,(F114-'Data Inputs'!F109)*E114/100,0) -> 0 | K114: =IF(OR('Data Inputs'!U109=0, 'Data Inputs'!U109=""), "N/A", 'Data Inputs'!U109*B114) -> N/A | L114: =IF(OR('Data Inputs'!U109=0, 'Data Inputs'!U109=""), "N/A", IF((G114-(D114-J114))>K114, K114, IF(K114>(G114-(D114-J114)), IF((G114-(D114-J114))<0, 0, (G114-(D114-J114))),0))) -> N/A | M114: 4564.5 | N114: 369.47 | O114: =ROUND(IF(O113+N114>=O113,IF(O113>='Data Inputs'!D109*B114,O113,IF(O113+N114>'Data Inputs'!D109*B114,'Data Inputs'!D109*B114,IF(O113+N114<'Data Inputs'!E109*B114,'Data Inputs'!E109*B114,O113+N114))),IF(O113+N114<O113,IF(O113+N114<'Data Inputs'!E109*B114,'Data Inputs'!E109*B114,O113+N114),"ERROR")),2) -> -2028.64 | P114: -13.33315807 | Q114: 2398 | R114: =$B114*'Data Inputs'!D109 -> 1521.5 | S114: =$B114*'Data Inputs'!E109 -> -3043 | T114: 164.4657167 | U114: 152.15 | V114: 100 | W114: 40.21166667 | X114: 1.644657167
A115: ='Data Inputs'!C110 -> 2018-07-01 | B115: 152.15 | C115: 31 | D115: 4716.65 | E115: 135094 | F115: 3.97 | G115: 5363.2318 | J115: =-IF(F115<'Data Inputs'!F110,(F115-'Data Inputs'!F110)*E115/100,0) -> 0 | K115: =IF(OR('Data Inputs'!U110=0, 'Data Inputs'!U110=""), "N/A", 'Data Inputs'!U110*B115) -> N/A | L115: =IF(OR('Data Inputs'!U110=0, 'Data Inputs'!U110=""), "N/A", IF((G115-(D115-J115))>K115, K115, IF(K115>(G115-(D115-J115)), IF((G115-(D115-J115))<0, 0, (G115-(D115-J115))),0))) -> N/A | M115: 4716.65 | N115: 646.58 | O115: =ROUND(IF(O114+N115>=O114,IF(O114>='Data Inputs'!D110*B115,O114,IF(O114+N115>'Data Inputs'!D110*B115,'Data Inputs'!D110*B115,IF(O114+N115<'Data Inputs'!E110*B115,'Data Inputs'!E110*B115,O114+N115))),IF(O114+N115<O114,IF(O114+N115<'Data Inputs'!E110*B115,'Data Inputs'!E110*B115,O114+N115),"ERROR")),2) -> -1382.06 | P115: -9.083535984 | Q115: 2028 | R115: =$B115*'Data Inputs'!D110 -> 1521.5 | S115: =$B115*'Data Inputs'!E110 -> -3043 | T115: 173.0074774 | U115: 152.15 | V115: 100 | W115: 43.57870968 | X115: 1.730074774
A116: ='Data Inputs'!C111 -> 2018-08-01 | B116: 152.15 | C116: 31 | D116: 4716.65 | E116: 123104 | F116: 3.89 | G116: 4788.7456 | J116: =-IF(F116<'Data Inputs'!F111,(F116-'Data Inputs'!F111)*E116/100,0) -> 0 | K116: =IF(OR('Data Inputs'!U111=0, 'Data Inputs'!U111=""), "N/A", 'Data Inputs'!U111*B116) -> 152.15 | L116: =IF(OR('Data Inputs'!U111=0, 'Data Inputs'!U111=""), "N/A", IF((G116-(D116-J116))>K116, K116, IF(K116>(G116-(D116-J116)), IF((G116-(D116-J116))<0, 0, (G116-(D116-J116))),0))) -> 72.0956 | M116: 4788.7456 | N116: 0 | O116: =ROUND(IF(O115+N116>=O115,IF(O115>='Data Inputs'!D111*B116,O115,IF(O115+N116>'Data Inputs'!D111*B116,'Data Inputs'!D111*B116,IF(O115+N116<'Data Inputs'!E111*B116,'Data Inputs'!E111*B116,O115+N116))),IF(O115+N116<O115,IF(O115+N116<'Data Inputs'!E111*B116,'Data Inputs'!E111*B116,O115+N116),"ERROR")),2) -> -1382.06 | P116: -9.083535984 | Q116: 1382 | R116: =$B116*'Data Inputs'!D111 -> 1521.5 | S116: =$B116*'Data Inputs'!E111 -> -3043 | T116: 154.4756645 | U116: 154.4756645 | V116: 100 | W116: 39.71096774 | X116: 1.544756645
A117: ='Data Inputs'!C112 -> 2018-09-01 | B117: 153.67 | C117: 30 | D117: 4610.1 | E117: 122306 | F117: 4.05 | G117: 4953.393 | J117: =-IF(F117<'Data Inputs'!F112,(F117-'Data Inputs'!F112)*E117/100,0) -> 0 | K117: =IF(OR('Data Inputs'!U112=0, 'Data Inputs'!U112=""), "N/A", 'Data Inputs'!U112*B117) -> 307.34 | L117: =IF(OR('Data Inputs'!U112=0, 'Data Inputs'!U112=""), "N/A", IF((G117-(D117-J117))>K117, K117, IF(K117>(G117-(D117-J117)), IF((G117-(D117-J117))<0, 0, (G117-(D117-J117))),0))) -> 307.34 | M117: 4917.44 | N117: 35.95 | O117: =ROUND(IF(O116+N117>=O116,IF(O116>='Data Inputs'!D112*B117,O116,IF(O116+N117>'Data Inputs'!D112*B117,'Data Inputs'!D112*B117,IF(O116+N117<'Data Inputs'!E112*B117,'Data Inputs'!E112*B117,O116+N117))),IF(O116+N117<O116,IF(O116+N117<'Data Inputs'!E112*B117,'Data Inputs'!E112*B117,O116+N117),"ERROR")),2) -> -1346.11 | P117: -8.759744908 | Q117: 1382 | R117: =$B117*'Data Inputs'!D112 -> 1536.7 | S117: =$B117*'Data Inputs'!E112 -> -3073.4 | T117: 165.1131 | U117: 163.9146667 | V117: 100 | W117: 40.76866667 | X117: 1.651131
A118: ='Data Inputs'!C113 -> 2018-10-01 | B118: 153.67 | C118: 31 | D118: 4763.77 | E118: 122976 | F118: 4.24 | G118: 5214.1824 | J118: =-IF(F118<'Data Inputs'!F113,(F118-'Data Inputs'!F113)*E118/100,0) -> 0 | K118: =IF(OR('Data Inputs'!U113=0, 'Data Inputs'!U113=""), "N/A", 'Data Inputs'!U113*B118) -> 307.34 | L118: =IF(OR('Data Inputs'!U113=0, 'Data Inputs'!U113=""), "N/A", IF((G118-(D118-J118))>K118, K118, IF(K118>(G118-(D118-J118)), IF((G118-(D118-J118))<0, 0, (G118-(D118-J118))),0))) -> 307.34 | M118: 5071.11 | N118: 143.07 | O118: =ROUND(IF(O117+N118>=O117,IF(O117>='Data Inputs'!D113*B118,O117,IF(O117+N118>'Data Inputs'!D113*B118,'Data Inputs'!D113*B118,IF(O117+N118<'Data Inputs'!E113*B118,'Data Inputs'!E113*B118,O117+N118))),IF(O117+N118<O117,IF(O117+N118<'Data Inputs'!E113*B118,'Data Inputs'!E113*B118,O117+N118),"ERROR")),2) -> -1203.04 | P118: -7.828723889 | Q118: 1346 | R118: =$B118*'Data Inputs'!D113 -> 1536.7 | S118: =$B118*'Data Inputs'!E113 -> -3073.4 | T118: 168.1994323 | U118: 163.5841935 | V118: 100 | W118: 39.66967742 | X118: 1.681994323
A119: ='Data Inputs'!C114 -> 2018-11-01 | B119: 153.67 | C119: 30 | D119: 4610.1 | E119: 111211 | F119: 4.22 | G119: 4693.1042 | J119: =-IF(F119<'Data Inputs'!F114,(F119-'Data Inputs'!F114)*E119/100,0) -> 0 | K119: =IF(OR('Data Inputs'!U114=0, 'Data Inputs'!U114=""), "N/A", 'Data Inputs'!U114*B119) -> 307.34 | L119: =IF(OR('Data Inputs'!U114=0, 'Data Inputs'!U114=""), "N/A", IF((G119-(D119-J119))>K119, K119, IF(K119>(G119-(D119-J119)), IF((G119-(D119-J119))<0, 0, (G119-(D119-J119))),0))) -> 83.0042 | M119: 4693.1042 | N119: 0 | O119: =ROUND(IF(O118+N119>=O118,IF(O118>='Data Inputs'!D114*B119,O118,IF(O118+N119>'Data Inputs'!D114*B119,'Data Inputs'!D114*B119,IF(O118+N119<'Data Inputs'!E114*B119,'Data Inputs'!E114*B119,O118+N119))),IF(O118+N119<O118,IF(O118+N119<'Data Inputs'!E114*B119,'Data Inputs'!E114*B119,O118+N119),"ERROR")),2) -> -1203.04 | P119: -7.828723889 | Q119: 1203 | R119: =$B119*'Data Inputs'!D114 -> 1536.7 | S119: =$B119*'Data Inputs'!E114 -> -3073.4 | T119: 156.4368067 | U119: 156.4368067 | V119: 100 | W119: 37.07033333 | X119: 1.564368067
A120: ='Data Inputs'!C115 -> 2018-12-01 | B120: 153.67 | C120: 31 | D120: 4763.77 | E120: 118657 | F120: 4.17 | G120: 4947.9969 | J120: =-IF(F120<'Data Inputs'!F115,(F120-'Data Inputs'!F115)*E120/100,0) -> 0 | K120: =IF(OR('Data Inputs'!U115=0, 'Data Inputs'!U115=""), "N/A", 'Data Inputs'!U115*B120) -> 153.67 | L120: =IF(OR('Data Inputs'!U115=0, 'Data Inputs'!U115=""), "N/A", IF((G120-(D120-J120))>K120, K120, IF(K120>(G120-(D120-J120)), IF((G120-(D120-J120))<0, 0, (G120-(D120-J120))),0))) -> 153.67 | M120: 4917.44 | N120: 30.56 | O120: =ROUND(IF(O119+N120>=O119,IF(O119>='Data Inputs'!D115*B120,O119,IF(O119+N120>'Data Inputs'!D115*B120,'Data Inputs'!D115*B120,IF(O119+N120<'Data Inputs'!E115*B120,'Data Inputs'!E115*B120,O119+N120))),IF(O119+N120<O119,IF(O119+N120<'Data Inputs'!E115*B120,'Data Inputs'!E115*B120,O119+N120),"ERROR")),2) -> -1172.48 | P120: -7.629856185 | Q120: 1203 | R120: =$B120*'Data Inputs'!D115 -> 1536.7 | S120: =$B120*'Data Inputs'!E115 -> -3073.4 | T120: 159.6128032 | U120: 158.6270968 | V120: 100 | W120: 38.27645161 | X120: 1.596128032
A121: ='Data Inputs'!C116 -> 2019-01-01 | B121: 153.67 | C121: 31 | D121: 4763.77 | E121: 130490 | F121: 4.09 | G121: 5337.041 | J121: =-IF(F121<'Data Inputs'!F116,(F121-'Data Inputs'!F116)*E121/100,0) -> 0 | K121: =IF(OR('Data Inputs'!U116=0, 'Data Inputs'!U116=""), "N/A", 'Data Inputs'!U116*B121) -> N/A | L121: =IF(OR('Data Inputs'!U116=0, 'Data Inputs'!U116=""), "N/A", IF((G121-(D121-J121))>K121, K121, IF(K121>(G121-(D121-J121)), IF((G121-(D121-J121))<0, 0, (G121-(D121-J121))),0))) -> N/A | M121: 4763.77 | N121: 573.27 | O121: =ROUND(IF(O120+N121>=O120,IF(O120>='Data Inputs'!D116*B121,O120,IF(O120+N121>'Data Inputs'!D116*B121,'Data Inputs'!D116*B121,IF(O120+N121<'Data Inputs'!E116*B121,'Data Inputs'!E116*B121,O120+N121))),IF(O120+N121<O120,IF(O120+N121<'Data Inputs'!E116*B121,'Data Inputs'!E116*B121,O120+N121),"ERROR")),2) -> -599.21 | P121: -3.899329733 | Q121: 1172 | R121: =$B121*'Data Inputs'!D116 -> 1536.7 | S121: =$B121*'Data Inputs'!E116 -> -3073.4 | T121: 172.1626129 | U121: 153.67 | V121: 100 | W121: 42.09354839 | X121: 1.721626129
A122: ='Data Inputs'!C117 -> 2019-02-01 | B122: 159.82 | C122: 28 | D122: 4474.96 | E122: 110905 | F122: 4.12 | G122: 4569.286 | J122: =-IF(F122<'Data Inputs'!F117,(F122-'Data Inputs'!F117)*E122/100,0) -> 0 | K122: =IF(OR('Data Inputs'!U117=0, 'Data Inputs'!U117=""), "N/A", 'Data Inputs'!U117*B122) -> N/A | L122: =IF(OR('Data Inputs'!U117=0, 'Data Inputs'!U117=""), "N/A", IF((G122-(D122-J122))>K122, K122, IF(K122>(G122-(D122-J122)), IF((G122-(D122-J122))<0, 0, (G122-(D122-J122))),0))) -> N/A | M122: 4474.96 | N122: 94.33 | O122: =ROUND(IF(O121+N122>=O121,IF(O121>='Data Inputs'!D117*B122,O121,IF(O121+N122>'Data Inputs'!D117*B122,'Data Inputs'!D117*B122,IF(O121+N122<'Data Inputs'!E117*B122,'Data Inputs'!E117*B122,O121+N122))),IF(O121+N122<O121,IF(O121+N122<'Data Inputs'!E117*B122,'Data Inputs'!E117*B122,O121+N122),"ERROR")),2) -> -504.88 | P122: -3.159053936 | Q122: 599 | R122: =$B122*'Data Inputs'!D117 -> 1118.74 | S122: =$B122*'Data Inputs'!E117 -> -3196.4 | T122: 163.1887857 | U122: 159.82 | V122: 100 | W122: 39.60892857 | X122: 1.631887857
A123: ='Data Inputs'!C118 -> 2019-03-01 | B123: 159.82 | C123: 31 | D123: 4954.42 | E123: 108530 | F123: 4.11 | G123: 4460.583 | J123: =-IF(F123<'Data Inputs'!F118,(F123-'Data Inputs'!F118)*E123/100,0) -> 0 | K123: =IF(OR('Data Inputs'!U118=0, 'Data Inputs'!U118=""), "N/A", 'Data Inputs'!U118*B123) -> N/A | L123: =IF(OR('Data Inputs'!U118=0, 'Data Inputs'!U118=""), "N/A", IF((G123-(D123-J123))>K123, K123, IF(K123>(G123-(D123-J123)), IF((G123-(D123-J123))<0, 0, (G123-(D123-J123))),0))) -> N/A | M123: 4954.42 | N123: -493.84 | O123: =ROUND(IF(O122+N123>=O122,IF(O122>='Data Inputs'!D118*B123,O122,IF(O122+N123>'Data Inputs'!D118*B123,'Data Inputs'!D118*B123,IF(O122+N123<'Data Inputs'!E118*B123,'Data Inputs'!E118*B123,O122+N123))),IF(O122+N123<O122,IF(O122+N123<'Data Inputs'!E118*B123,'Data Inputs'!E118*B123,O122+N123),"ERROR")),2) -> -998.72 | P123: -6.249030159 | Q123: 504 | R123: =$B123*'Data Inputs'!D118 -> 1118.74 | S123: =$B123*'Data Inputs'!E118 -> -3196.4 | T123: 143.8897742 | U123: 159.82 | V123: 100 | W123: 35.00967742 | X123: 1.438897742
A124: ='Data Inputs'!C119 -> 2019-04-01 | B124: 159.82 | C124: 30 | D124: 4794.6 | E124: 102528 | F124: 4.07 | G124: 4172.8896 | J124: =-IF(F124<'Data Inputs'!F119,(F124-'Data Inputs'!F119)*E124/100,0) -> 0 | K124: =IF(OR('Data Inputs'!U119=0, 'Data Inputs'!U119=""), "N/A", 'Data Inputs'!U119*B124) -> N/A | L124: =IF(OR('Data Inputs'!U119=0, 'Data Inputs'!U119=""), "N/A", IF((G124-(D124-J124))>K124, K124, IF(K124>(G124-(D124-J124)), IF((G124-(D124-J124))<0, 0, (G124-(D124-J124))),0))) -> N/A | M124: 4794.6 | N124: -621.71 | O124: =ROUND(IF(O123+N124>=O123,IF(O123>='Data Inputs'!D119*B124,O123,IF(O123+N124>'Data Inputs'!D119*B124,'Data Inputs'!D119*B124,IF(O123+N124<'Data Inputs'!E119*B124,'Data Inputs'!E119*B124,O123+N124))),IF(O123+N124<O123,IF(O123+N124<'Data Inputs'!E119*B124,'Data Inputs'!E119*B124,O123+N124),"ERROR")),2) -> -1620.43 | P124: -10.13909398 | Q124: 998 | R124: =$B124*'Data Inputs'!D119 -> 799.1 | S124: =$B124*'Data Inputs'!E119 -> -3196.4 | T124: 139.09632 | U124: 159.82 | V124: 100 | W124: 34.176 | X124: 1.3909632
A125: ='Data Inputs'!C120 -> 2019-05-01 | B125: 159.82 | C125: =EOMONTH(A124, 1)-EOMONTH(A124, 0) -> 31 | D125: 4954.42 | E125: 117131 | F125: 4.07 | G125: 4767.2317 | J125: =-IF(F125<'Data Inputs'!F120,(F125-'Data Inputs'!F120)*E125/100,0) -> 0 | K125: =IF(OR('Data Inputs'!U120=0, 'Data Inputs'!U120=""), "N/A", 'Data Inputs'!U120*B125) -> N/A | L125: =IF(OR('Data Inputs'!U120=0, 'Data Inputs'!U120=""), "N/A", IF((G125-(D125-J125))>K125, K125, IF(K125>(G125-(D125-J125)), IF((G125-(D125-J125))<0, 0, (G125-(D125-J125))),0))) -> N/A | M125: 4954.42 | N125: -187.19 | O125: =ROUND(IF(O124+N125>=O124,IF(O124>='Data Inputs'!D120*B125,O124,IF(O124+N125>'Data Inputs'!D120*B125,'Data Inputs'!D120*B125,IF(O124+N125<'Data Inputs'!E120*B125,'Data Inputs'!E120*B125,O124+N125))),IF(O124+N125<O124,IF(O124+N125<'Data Inputs'!E120*B125,'Data Inputs'!E120*B125,O124+N125),"ERROR")),2) -> -1807.62 | P125: -11.31034914 | Q125: 1620 | R125: =$B125*'Data Inputs'!D120 -> 799.1 | S125: =$B125*'Data Inputs'!E120 -> -3196.4 | T125: 153.7816677 | U125: 159.82 | V125: 100 | W125: 37.78419355 | X125: 1.537816677
A126: ='Data Inputs'!C121 -> 2019-06-01 | B126: 159.82 | C126: 30 | D126: 4794.6 | E126: 121670 | F126: 4.07 | G126: 4951.969 | J126: =-IF(F126<'Data Inputs'!F121,(F126-'Data Inputs'!F121)*E126/100,0) -> 0 | K126: =IF(OR('Data Inputs'!U121=0, 'Data Inputs'!U121=""), "N/A", 'Data Inputs'!U121*B126) -> N/A | L126: =IF(OR('Data Inputs'!U121=0, 'Data Inputs'!U121=""), "N/A", IF((G126-(D126-J126))>K126, K126, IF(K126>(G126-(D126-J126)), IF((G126-(D126-J126))<0, 0, (G126-(D126-J126))),0))) -> N/A | M126: 4794.6 | N126: 157.37 | O126: =ROUND(IF(O125+N126>=O125,IF(O125>='Data Inputs'!D121*B126,O125,IF(O125+N126>'Data Inputs'!D121*B126,'Data Inputs'!D121*B126,IF(O125+N126<'Data Inputs'!E121*B126,'Data Inputs'!E121*B126,O125+N126))),IF(O125+N126<O125,IF(O125+N126<'Data Inputs'!E121*B126,'Data Inputs'!E121*B126,O125+N126),"ERROR")),2) -> -1650.25 | P126: -10.32567889 | Q126: 1807 | R126: =$B126*'Data Inputs'!D121 -> 799.1 | S126: =$B126*'Data Inputs'!E121 -> -3196.4 | T126: 165.0656333 | U126: 159.82 | V126: 100 | W126: 40.55666667 | X126: 1.650656333
A127: ='Data Inputs'!C122 -> 2019-07-01 | B127: 159.82 | C127: =EOMONTH(A126, 1)-EOMONTH(A126, 0) -> 31 | D127: 4954.42 | E127: 125636 | F127: 4.03 | G127: 5063.1308 | J127: =-IF(F127<'Data Inputs'!F122,(F127-'Data Inputs'!F122)*E127/100,0) -> 0 | K127: =IF(OR('Data Inputs'!U122=0, 'Data Inputs'!U122=""), "N/A", 'Data Inputs'!U122*B127) -> N/A | L127: =IF(OR('Data Inputs'!U122=0, 'Data Inputs'!U122=""), "N/A", IF((G127-(D127-J127))>K127, K127, IF(K127>(G127-(D127-J127)), IF((G127-(D127-J127))<0, 0, (G127-(D127-J127))),0))) -> N/A | M127: 4954.42 | N127: 108.71 | O127: =ROUND(IF(O126+N127>=O126,IF(O126>='Data Inputs'!D122*B127,O126,IF(O126+N127>'Data Inputs'!D122*B127,'Data Inputs'!D122*B127,IF(O126+N127<'Data Inputs'!E122*B127,'Data Inputs'!E122*B127,O126+N127))),IF(O126+N127<O126,IF(O126+N127<'Data Inputs'!E122*B127,'Data Inputs'!E122*B127,O126+N127),"ERROR")),2) -> -1541.54 | P127: -9.645476161 | Q127: 1650 | R127: =$B127*'Data Inputs'!D122 -> 799.1 | S127: =$B127*'Data Inputs'!E122 -> -3196.4 | T127: 163.3268 | U127: 159.82 | V127: 100 | W127: 40.52774194 | X127: 1.633268
A128: ='Data Inputs'!C123 -> 2019-08-01 | B128: 159.82 | C128: =EOMONTH(A127, 1)-EOMONTH(A127, 0) -> 31 | D128: 4954.42 | E128: 139009 | F128: 4.059 | G128: 5642.37531 | J128: =-IF(F128<'Data Inputs'!F123,(F128-'Data Inputs'!F123)*E128/100,0) -> 0 | K128: =IF(OR('Data Inputs'!U123=0, 'Data Inputs'!U123=""), "N/A", 'Data Inputs'!U123*B128) -> 639.28 | L128: =IF(OR('Data Inputs'!U123=0, 'Data Inputs'!U123=""), "N/A", IF((G128-(D128-J128))>K128, K128, IF(K128>(G128-(D128-J128)), IF((G128-(D128-J128))<0, 0, (G128-(D128-J128))),0))) -> 639.28 | M128: 5593.7 | N128: 48.68 | O128: =ROUND(IF(O127+N128>=O127,IF(O127>='Data Inputs'!D123*B128,O127,IF(O127+N128>'Data Inputs'!D123*B128,'Data Inputs'!D123*B128,IF(O127+N128<'Data Inputs'!E123*B128,'Data Inputs'!E123*B128,O127+N128))),IF(O127+N128<O127,IF(O127+N128<'Data Inputs'!E123*B128,'Data Inputs'!E123*B128,O127+N128),"ERROR")),2) -> -1492.86 | P128: -9.340883494 | Q128: 1541 | R128: =$B128*'Data Inputs'!D123 -> 799.1 | S128: =$B128*'Data Inputs'!E123 -> -2716.94 | T128: 182.0121068 | U128: 180.4419355 | V128: 100 | W128: 44.8416129 | X128: 1.820121068
A129: ='Data Inputs'!C124 -> 2019-09-01 | B129: 159.82 | C129: 30 | D129: 4794.6 | E129: 130673 | F129: 4.1569 | G129: 5431.945937 | J129: =-IF(F129<'Data Inputs'!F124,(F129-'Data Inputs'!F124)*E129/100,0) -> 0 | K129: =IF(OR('Data Inputs'!U124=0, 'Data Inputs'!U124=""), "N/A", 'Data Inputs'!U124*B129) -> 639.28 | L129: =IF(OR('Data Inputs'!U124=0, 'Data Inputs'!U124=""), "N/A", IF((G129-(D129-J129))>K129, K129, IF(K129>(G129-(D129-J129)), IF((G129-(D129-J129))<0, 0, (G129-(D129-J129))),0))) -> 637.345937 | M129: 5431.945937 | N129: 0 | O129: =ROUND(IF(O128+N129>=O128,IF(O128>='Data Inputs'!D124*B129,O128,IF(O128+N129>'Data Inputs'!D124*B129,'Data Inputs'!D124*B129,IF(O128+N129<'Data Inputs'!E124*B129,'Data Inputs'!E124*B129,O128+N129))),IF(O128+N129<O128,IF(O128+N129<'Data Inputs'!E124*B129,'Data Inputs'!E124*B129,O128+N129),"ERROR")),2) -> -1492.86 | P129: -9.340883494 | Q129: 1492 | R129: =$B129*'Data Inputs'!D124 -> 799.1 | S129: =$B129*'Data Inputs'!E124 -> -2716.94 | T129: 181.0648646 | U129: 181.0648646 | V129: 100 | W129: 43.55766667 | X129: 1.810648646
A130: ='Data Inputs'!C125 -> 2019-10-01 | B130: 159.82 | C130: 31 | D130: 4954.42 | E130: 130673 | F130: 4.1569 | G130: 5431.945937 | J130: =-IF(F130<'Data Inputs'!F125,(F130-'Data Inputs'!F125)*E130/100,0) -> 0 | K130: =IF(OR('Data Inputs'!U125=0, 'Data Inputs'!U125=""), "N/A", 'Data Inputs'!U125*B130) -> 639.28 | L130: =IF(OR('Data Inputs'!U125=0, 'Data Inputs'!U125=""), "N/A", IF((G130-(D130-J130))>K130, K130, IF(K130>(G130-(D130-J130)), IF((G130-(D130-J130))<0, 0, (G130-(D130-J130))),0))) -> 477.525937 | M130: 5431.945937 | N130: 0 | O130: =ROUND(IF(O129+N130>=O129,IF(O129>='Data Inputs'!D125*B130,O129,IF(O129+N130>'Data Inputs'!D125*B130,'Data Inputs'!D125*B130,IF(O129+N130<'Data Inputs'!E125*B130,'Data Inputs'!E125*B130,O129+N130))),IF(O129+N130<O129,IF(O129+N130<'Data Inputs'!E125*B130,'Data Inputs'!E125*B130,O129+N130),"ERROR")),2) -> -1492.86 | P130: -9.340883494 | Q130: 1492 | R130: =$B130*'Data Inputs'!D125 -> 799.1 | S130: =$B130*'Data Inputs'!E125 -> -2397.3 | T130: 175.2240625 | U130: 175.2240625 | V130: 100 | W130: 42.15258065 | X130: 1.752240625
A131: ='Data Inputs'!C126 -> 2019-11-01 | B131: 159.82 | C131: 30 | D131: 4794.6 | E131: 130673 | F131: 4.1569 | G131: 5431.945937 | J131: =-IF(F131<'Data Inputs'!F126,(F131-'Data Inputs'!F126)*E131/100,0) -> 0 | K131: =IF(OR('Data Inputs'!U126=0, 'Data Inputs'!U126=""), "N/A", 'Data Inputs'!U126*B131) -> 639.28 | L131: =IF(OR('Data Inputs'!U126=0, 'Data Inputs'!U126=""), "N/A", IF((G131-(D131-J131))>K131, K131, IF(K131>(G131-(D131-J131)), IF((G131-(D131-J131))<0, 0, (G131-(D131-J131))),0))) -> 637.345937 | M131: 5431.945937 | N131: 0 | O131: =ROUND(IF(O130+N131>=O130,IF(O130>='Data Inputs'!D126*B131,O130,IF(O130+N131>'Data Inputs'!D126*B131,'Data Inputs'!D126*B131,IF(O130+N131<'Data Inputs'!E126*B131,'Data Inputs'!E126*B131,O130+N131))),IF(O130+N131<O130,IF(O130+N131<'Data Inputs'!E126*B131,'Data Inputs'!E126*B131,O130+N131),"ERROR")),2) -> -1492.86 | P131: -9.340883494 | Q131: 1492 | R131: =$B131*'Data Inputs'!D126 -> 799.1 | S131: =$B131*'Data Inputs'!E126 -> -2397.3 | T131: 181.0648646 | U131: 181.0648646 | V131: 100 | W131: 43.55766667 | X131: 1.810648646
A132: ='Data Inputs'!C127 -> 2019-12-01 | B132: 159.82 | C132: 31 | D132: 4954.42 | E132: 130673 | F132: 4.1569 | G132: 5431.945937 | J132: =-IF(F132<'Data Inputs'!F127,(F132-'Data Inputs'!F127)*E132/100,0) -> 0 | K132: =IF(OR('Data Inputs'!U127=0, 'Data Inputs'!U127=""), "N/A", 'Data Inputs'!U127*B132) -> 319.64 | L132: =IF(OR('Data Inputs'!U127=0, 'Data Inputs'!U127=""), "N/A", IF((G132-(D132-J132))>K132, K132, IF(K132>(G132-(D132-J132)), IF((G132-(D132-J132))<0, 0, (G132-(D132-J132))),0))) -> 319.64 | M132: 5274.06 | N132: 157.89 | O132: =ROUND(IF(O131+N132>=O131,IF(O131>='Data Inputs'!D127*B132,O131,IF(O131+N132>'Data Inputs'!D127*B132,'Data Inputs'!D127*B132,IF(O131+N132<'Data Inputs'!E127*B132,'Data Inputs'!E127*B132,O131+N132))),IF(O131+N132<O131,IF(O131+N132<'Data Inputs'!E127*B132,'Data Inputs'!E127*B132,O131+N132),"ERROR")),2) -> -1334.97 | P132: -8.35295958 | Q132: 1492 | R132: =$B132*'Data Inputs'!D127 -> 799.1 | S132: =$B132*'Data Inputs'!E127 -> -2397.3 | T132: 175.2240625 | U132: 170.1309677 | V132: 100 | W132: 42.15258065 | X132: 1.752240625
A133: ='Data Inputs'!C128 -> 2020-01-01 | B133: =B132 -> 159.82 | C133: 31 | D133: 4954.42 | E133: =E132 -> 130673 | F133: 4.1569 | G133: 5431.945937 | J133: =-IF(F133<'Data Inputs'!F128,(F133-'Data Inputs'!F128)*E133/100,0) -> 0 | K133: =IF(OR('Data Inputs'!U128=0, 'Data Inputs'!U128=""), "N/A", 'Data Inputs'!U128*B133) -> N/A | L133: =IF(OR('Data Inputs'!U128=0, 'Data Inputs'!U128=""), "N/A", IF((G133-(D133-J133))>K133, K133, IF(K133>(G133-(D133-J133)), IF((G133-(D133-J133))<0, 0, (G133-(D133-J133))),0))) -> N/A | M133: 4954.42 | N133: 477.53 | O133: =ROUND(IF(O132+N133>=O132,IF(O132>='Data Inputs'!D128*B133,O132,IF(O132+N133>'Data Inputs'!D128*B133,'Data Inputs'!D128*B133,IF(O132+N133<'Data Inputs'!E128*B133,'Data Inputs'!E128*B133,O132+N133))),IF(O132+N133<O132,IF(O132+N133<'Data Inputs'!E128*B133,'Data Inputs'!E128*B133,O132+N133),"ERROR")),2) -> -857.44 | P133: -5.365035665 | Q133: 1334 | R133: =$B133*'Data Inputs'!D128 -> 799.1 | S133: =$B133*'Data Inputs'!E128 -> -2397.3 | T133: 175.2240625 | U133: 159.82 | V133: 100 | W133: 42.15258065 | X133: 1.752240625
A134: ='Data Inputs'!C129 -> 2020-02-01 | B134: 159.82 | C134: 29 | D134: 4634.78 | E134: 130673 | F134: 4.1569 | G134: 5431.945937 | J134: =-IF(F134<'Data Inputs'!F129,(F134-'Data Inputs'!F129)*E134/100,0) -> 0 | K134: =IF(OR('Data Inputs'!U129=0, 'Data Inputs'!U129=""), "N/A", 'Data Inputs'!U129*B134) -> N/A | L134: =IF(OR('Data Inputs'!U129=0, 'Data Inputs'!U129=""), "N/A", IF((G134-(D134-J134))>K134, K134, IF(K134>(G134-(D134-J134)), IF((G134-(D134-J134))<0, 0, (G134-(D134-J134))),0))) -> N/A | M134: 4634.78 | N134: 797.17 | O134: =ROUND(IF(O133+N134>=O133,IF(O133>='Data Inputs'!D129*B134,O133,IF(O133+N134>'Data Inputs'!D129*B134,'Data Inputs'!D129*B134,IF(O133+N134<'Data Inputs'!E129*B134,'Data Inputs'!E129*B134,O133+N134))),IF(O133+N134<O133,IF(O133+N134<'Data Inputs'!E129*B134,'Data Inputs'!E129*B134,O133+N134),"ERROR")),2) -> -60.27 | P134: -0.3771117507 | Q134: 857 | R134: =$B134*'Data Inputs'!D129 -> 799.1 | S134: =$B134*'Data Inputs'!E129 -> -2397.3 | T134: 187.3084806 | U134: 159.82 | V134: 100 | W134: 45.05965517 | X134: 1.873084806
A135: ='Data Inputs'!C130 -> 2020-03-01 | B135: 159.82 | C135: 31 | D135: 4954.42 | E135: 130673 | F135: 4.1569 | G135: 5431.945937 | J135: =-IF(F135<'Data Inputs'!F130,(F135-'Data Inputs'!F130)*E135/100,0) -> 0 | K135: =IF(OR('Data Inputs'!U130=0, 'Data Inputs'!U130=""), "N/A", 'Data Inputs'!U130*B135) -> N/A | L135: =IF(OR('Data Inputs'!U130=0, 'Data Inputs'!U130=""), "N/A", IF((G135-(D135-J135))>K135, K135, IF(K135>(G135-(D135-J135)), IF((G135-(D135-J135))<0, 0, (G135-(D135-J135))),0))) -> N/A | M135: 4954.42 | N135: 477.53 | O135: =ROUND(IF(O134+N135>=O134,IF(O134>='Data Inputs'!D130*B135,O134,IF(O134+N135>'Data Inputs'!D130*B135,'Data Inputs'!D130*B135,IF(O134+N135<'Data Inputs'!E130*B135,'Data Inputs'!E130*B135,O134+N135))),IF(O134+N135<O134,IF(O134+N135<'Data Inputs'!E130*B135,'Data Inputs'!E130*B135,O134+N135),"ERROR")),2) -> 417.26 | P135: =IF(B135>0,IF(O135=0,0,O135/B135),"-") -> 2.610812164 | Q135: 60 | R135: =$B135*'Data Inputs'!D130 -> 799.1 | S135: =$B135*'Data Inputs'!E130 -> -2397.3 | T135: 175.2240625 | U135: 159.82 | V135: 100 | W135: 42.15258065 | X135: 1.752240625
A136: ='Data Inputs'!C131 -> 2020-04-01 | B136: 159.82 | C136: 30 | D136: =IF(B136*C136=0,0,B136*C136) -> 4794.6 | E136: 130673 | F136: 4.1569 | G136: =IF(F136*E136>0,E136/100*F136,0) -> 5431.945937 | J136: =-IF(F136<'Data Inputs'!F131,(F136-'Data Inputs'!F131)*E136/100,0) -> 0 | K136: =IF(OR('Data Inputs'!U131=0, 'Data Inputs'!U131=""), "N/A", 'Data Inputs'!U131*B136) -> N/A | L136: =IF(OR('Data Inputs'!U131=0, 'Data Inputs'!U131=""), "N/A", IF((G136-(D136-J136))>K136, K136, IF(K136>(G136-(D136-J136)), IF((G136-(D136-J136))<0, 0, (G136-(D136-J136))),0))) -> N/A | M136: =(IF(D136=0,0,D136))+(IF(L136="N/A",0,L136))+(H136)-(I136)-(IF(J136>0,J136,0)) -> 4794.6 | N136: =ROUND(G136-M136,2) -> 637.35 | O136: =ROUND(IF(O135+N136>=O135,IF(O135>='Data Inputs'!D131*B136,O135,IF(O135+N136>'Data Inputs'!D131*B136,'Data Inputs'!D131*B136,IF(O135+N136<'Data Inputs'!E131*B136,'Data Inputs'!E131*B136,O135+N136))),IF(O135+N136<O135,IF(O135+N136<'Data Inputs'!E131*B136,'Data Inputs'!E131*B136,O135+N136),"ERROR")),2) -> 799.1 | P136: 5 | Q136: =IF(O135>=0,0,IF(O135-I135>0,0,ROUNDDOWN(-O135-I136,0))) -> 0 | R136: =$B136*'Data Inputs'!D131 -> 799.1 | S136: =$B136*'Data Inputs'!E131 -> -2397.3 | T136: =G136/$C136 -> 181.0648646 | U136: =M136/C136 -> 159.82 | V136: 100 | W136: =IF(E136*C136*V136>0,(E136/C136)/V136,0) -> 43.55766667 | X136: =IF(W136>0,W136*F136/100,0) -> 1.810648646 | Y136: =IF(AND(P136>=10,N136>0),"Upper Flexibility Limit Exceeded: "&TEXT((O135+N136-O136)/F136*100,"#,###")&" Litres Unpaid",IF(AND(P136<=-30,N136<0),"Lower Flexibility Limit Exceeded: "&TEXT(-(O135+N136-O136),"#,##0.00")&" Underproduction Credits Lost","")) -> 
A137: ='Data Inputs'!C132 -> 2020-05-01 | B137: =B136 -> 159.82 | C137: 31 | D137: 4954.42 | E137: =E136 -> 130673 | F137: 4.1569 | G137: 5431.945937 | J137: =-IF(F137<'Data Inputs'!F132,(F137-'Data Inputs'!F132)*E137/100,0) -> 0 | K137: =IF(OR('Data Inputs'!U132=0, 'Data Inputs'!U132=""), "N/A", 'Data Inputs'!U132*B137) -> N/A | L137: =IF(OR('Data Inputs'!U132=0, 'Data Inputs'!U132=""), "N/A", IF((G137-(D137-J137))>K137, K137, IF(K137>(G137-(D137-J137)), IF((G137-(D137-J137))<0, 0, (G137-(D137-J137))),0))) -> N/A | M137: 4954.42 | N137: 477.53 | O137: =ROUND(IF(O136+N137>=O136,IF(O136>='Data Inputs'!D132*B137,O136,IF(O136+N137>'Data Inputs'!D132*B137,'Data Inputs'!D132*B137,IF(O136+N137<'Data Inputs'!E132*B137,'Data Inputs'!E132*B137,O136+N137))),IF(O136+N137<O136,IF(O136+N137<'Data Inputs'!E132*B137,'Data Inputs'!E132*B137,O136+N137),"ERROR")),2) -> 799.1 | P137: 5 | Q137: 0 | R137: =$B137*'Data Inputs'!D132 -> 799.1 | S137: =$B137*'Data Inputs'!E132 -> -2397.3 | T137: 175.2240625 | U137: 159.82 | V137: 100 | W137: 42.15258065 | X137: 1.752240625
A138: ='Data Inputs'!C133 -> 2020-06-01 | B138: 159.82 | C138: 30 | D138: 4794.6 | E138: 130673 | F138: 4.1569 | G138: 5431.945937 | J138: =-IF(F138<'Data Inputs'!F133,(F138-'Data Inputs'!F133)*E138/100,0) -> 0 | K138: =IF(OR('Data Inputs'!U133=0, 'Data Inputs'!U133=""), "N/A", 'Data Inputs'!U133*B138) -> N/A | L138: =IF(OR('Data Inputs'!U133=0, 'Data Inputs'!U133=""), "N/A", IF((G138-(D138-J138))>K138, K138, IF(K138>(G138-(D138-J138)), IF((G138-(D138-J138))<0, 0, (G138-(D138-J138))),0))) -> N/A | M138: 4794.6 | N138: 637.35 | O138: =ROUND(IF(O137+N138>=O137,IF(O137>='Data Inputs'!D133*B138,O137,IF(O137+N138>'Data Inputs'!D133*B138,'Data Inputs'!D133*B138,IF(O137+N138<'Data Inputs'!E133*B138,'Data Inputs'!E133*B138,O137+N138))),IF(O137+N138<O137,IF(O137+N138<'Data Inputs'!E133*B138,'Data Inputs'!E133*B138,O137+N138),"ERROR")),2) -> 799.1 | P138: 5 | Q138: 0 | R138: =$B138*'Data Inputs'!D133 -> 799.1 | S138: =$B138*'Data Inputs'!E133 -> -2397.3 | T138: 181.0648646 | U138: 159.82 | V138: =V137 -> 100 | W138: 43.55766667 | X138: 1.810648646
A139: ='Data Inputs'!C134 -> 2020-07-01 | B139: 159.82 | C139: 31 | D139: 4954.42 | E139: 130673 | F139: 4.1569 | G139: 5431.945937 | J139: =-IF(F139<'Data Inputs'!F134,(F139-'Data Inputs'!F134)*E139/100,0) -> 0 | K139: =IF(OR('Data Inputs'!U134=0, 'Data Inputs'!U134=""), "N/A", 'Data Inputs'!U134*B139) -> N/A | L139: =IF(OR('Data Inputs'!U134=0, 'Data Inputs'!U134=""), "N/A", IF((G139-(D139-J139))>K139, K139, IF(K139>(G139-(D139-J139)), IF((G139-(D139-J139))<0, 0, (G139-(D139-J139))),0))) -> N/A | M139: 4954.42 | N139: 477.53 | O139: =ROUND(IF(O138+N139>=O138,IF(O138>='Data Inputs'!D134*B139,O138,IF(O138+N139>'Data Inputs'!D134*B139,'Data Inputs'!D134*B139,IF(O138+N139<'Data Inputs'!E134*B139,'Data Inputs'!E134*B139,O138+N139))),IF(O138+N139<O138,IF(O138+N139<'Data Inputs'!E134*B139,'Data Inputs'!E134*B139,O138+N139),"ERROR")),2) -> 799.1 | P139: 5 | Q139: 0 | R139: =$B139*'Data Inputs'!D134 -> 799.1 | S139: =$B139*'Data Inputs'!E134 -> -2397.3 | T139: 175.2240625 | U139: 159.82 | V139: 100 | W139: 42.15258065 | X139: 1.752240625
A140: ='Data Inputs'!C135 -> 2020-08-01 | B140: 159.82 | C140: 31 | D140: 4954.42 | E140: 130673 | F140: 4.1569 | G140: 5431.945937 | J140: =-IF(F140<'Data Inputs'!F135,(F140-'Data Inputs'!F135)*E140/100,0) -> 0 | K140: =IF(OR('Data Inputs'!U135=0, 'Data Inputs'!U135=""), "N/A", 'Data Inputs'!U135*B140) -> 319.64 | L140: =IF(OR('Data Inputs'!U135=0, 'Data Inputs'!U135=""), "N/A", IF((G140-(D140-J140))>K140, K140, IF(K140>(G140-(D140-J140)), IF((G140-(D140-J140))<0, 0, (G140-(D140-J140))),0))) -> 319.64 | M140: 5274.06 | N140: 157.89 | O140: =ROUND(IF(O139+N140>=O139,IF(O139>='Data Inputs'!D135*B140,O139,IF(O139+N140>'Data Inputs'!D135*B140,'Data Inputs'!D135*B140,IF(O139+N140<'Data Inputs'!E135*B140,'Data Inputs'!E135*B140,O139+N140))),IF(O139+N140<O139,IF(O139+N140<'Data Inputs'!E135*B140,'Data Inputs'!E135*B140,O139+N140),"ERROR")),2) -> 799.1 | P140: 5 | Q140: 0 | R140: =$B140*'Data Inputs'!D135 -> 799.1 | S140: =$B140*'Data Inputs'!E135 -> -2397.3 | T140: 175.2240625 | U140: 170.1309677 | V140: 100 | W140: 42.15258065 | X140: 1.752240625
A141: ='Data Inputs'!C136 -> 2020-09-01 | B141: 159.82 | C141: 30 | D141: 4794.6 | E141: 130673 | F141: 4.1569 | G141: 5431.945937 | J141: =-IF(F141<'Data Inputs'!F136,(F141-'Data Inputs'!F136)*E141/100,0) -> 0 | K141: =IF(OR('Data Inputs'!U136=0, 'Data Inputs'!U136=""), "N/A", 'Data Inputs'!U136*B141) -> 958.92 | L141: =IF(OR('Data Inputs'!U136=0, 'Data Inputs'!U136=""), "N/A", IF((G141-(D141-J141))>K141, K141, IF(K141>(G141-(D141-J141)), IF((G141-(D141-J141))<0, 0, (G141-(D141-J141))),0))) -> 637.345937 | M141: 5431.945937 | N141: 0 | O141: =ROUND(IF(O140+N141>=O140,IF(O140>='Data Inputs'!D136*B141,O140,IF(O140+N141>'Data Inputs'!D136*B141,'Data Inputs'!D136*B141,IF(O140+N141<'Data Inputs'!E136*B141,'Data Inputs'!E136*B141,O140+N141))),IF(O140+N141<O140,IF(O140+N141<'Data Inputs'!E136*B141,'Data Inputs'!E136*B141,O140+N141),"ERROR")),2) -> 799.1 | P141: 5 | Q141: 0 | R141: =$B141*'Data Inputs'!D136 -> 799.1 | S141: =$B141*'Data Inputs'!E136 -> -2397.3 | T141: 181.0648646 | U141: 181.0648646 | V141: 100 | W141: 43.55766667 | X141: 1.810648646
A142: ='Data Inputs'!C137 -> 2020-10-01 | B142: 159.82 | C142: 31 | D142: 4954.42 | E142: 130673 | F142: 4.1569 | G142: 5431.945937 | J142: =-IF(F142<'Data Inputs'!F137,(F142-'Data Inputs'!F137)*E142/100,0) -> 0 | K142: =IF(OR('Data Inputs'!U137=0, 'Data Inputs'!U137=""), "N/A", 'Data Inputs'!U137*B142) -> 958.92 | L142: =IF(OR('Data Inputs'!U137=0, 'Data Inputs'!U137=""), "N/A", IF((G142-(D142-J142))>K142, K142, IF(K142>(G142-(D142-J142)), IF((G142-(D142-J142))<0, 0, (G142-(D142-J142))),0))) -> 477.525937 | M142: 5431.945937 | N142: 0 | O142: =ROUND(IF(O141+N142>=O141,IF(O141>='Data Inputs'!D137*B142,O141,IF(O141+N142>'Data Inputs'!D137*B142,'Data Inputs'!D137*B142,IF(O141+N142<'Data Inputs'!E137*B142,'Data Inputs'!E137*B142,O141+N142))),IF(O141+N142<O141,IF(O141+N142<'Data Inputs'!E137*B142,'Data Inputs'!E137*B142,O141+N142),"ERROR")),2) -> 799.1 | P142: 5 | Q142: 0 | R142: =$B142*'Data Inputs'!D137 -> 799.1 | S142: =$B142*'Data Inputs'!E137 -> -2397.3 | T142: 175.2240625 | U142: 175.2240625 | V142: 100 | W142: 42.15258065 | X142: 1.752240625
A143: ='Data Inputs'!C138 -> 2020-11-01 | B143: 159.82 | C143: 30 | D143: 4794.6 | E143: 130673 | F143: 4.1569 | G143: 5431.945937 | J143: =-IF(F143<'Data Inputs'!F138,(F143-'Data Inputs'!F138)*E143/100,0) -> 0 | K143: =IF(OR('Data Inputs'!U138=0, 'Data Inputs'!U138=""), "N/A", 'Data Inputs'!U138*B143) -> 958.92 | L143: =IF(OR('Data Inputs'!U138=0, 'Data Inputs'!U138=""), "N/A", IF((G143-(D143-J143))>K143, K143, IF(K143>(G143-(D143-J143)), IF((G143-(D143-J143))<0, 0, (G143-(D143-J143))),0))) -> 637.345937 | M143: 5431.945937 | N143: 0 | O143: =ROUND(IF(O142+N143>=O142,IF(O142>='Data Inputs'!D138*B143,O142,IF(O142+N143>'Data Inputs'!D138*B143,'Data Inputs'!D138*B143,IF(O142+N143<'Data Inputs'!E138*B143,'Data Inputs'!E138*B143,O142+N143))),IF(O142+N143<O142,IF(O142+N143<'Data Inputs'!E138*B143,'Data Inputs'!E138*B143,O142+N143),"ERROR")),2) -> 799.1 | P143: 5 | Q143: 0 | R143: =$B143*'Data Inputs'!D138 -> 799.1 | S143: =$B143*'Data Inputs'!E138 -> -2397.3 | T143: 181.0648646 | U143: 181.0648646 | V143: 100 | W143: 43.55766667 | X143: 1.810648646
A144: ='Data Inputs'!C139 -> 2020-12-01 | B144: 159.82 | C144: 31 | D144: 4954.42 | E144: 130673 | F144: 4.1569 | G144: 5431.945937 | J144: =-IF(F144<'Data Inputs'!F139,(F144-'Data Inputs'!F139)*E144/100,0) -> 0 | K144: =IF(OR('Data Inputs'!U139=0, 'Data Inputs'!U139=""), "N/A", 'Data Inputs'!U139*B144) -> N/A | L144: =IF(OR('Data Inputs'!U139=0, 'Data Inputs'!U139=""), "N/A", IF((G144-(D144-J144))>K144, K144, IF(K144>(G144-(D144-J144)), IF((G144-(D144-J144))<0, 0, (G144-(D144-J144))),0))) -> N/A | M144: 4954.42 | N144: 477.53 | O144: =ROUND(IF(O143+N144>=O143,IF(O143>='Data Inputs'!D139*B144,O143,IF(O143+N144>'Data Inputs'!D139*B144,'Data Inputs'!D139*B144,IF(O143+N144<'Data Inputs'!E139*B144,'Data Inputs'!E139*B144,O143+N144))),IF(O143+N144<O143,IF(O143+N144<'Data Inputs'!E139*B144,'Data Inputs'!E139*B144,O143+N144),"ERROR")),2) -> 799.1 | P144: 5 | Q144: 0 | R144: =$B144*'Data Inputs'!D139 -> 799.1 | S144: =$B144*'Data Inputs'!E139 -> -2397.3 | T144: 175.2240625 | U144: 159.82 | V144: 100 | W144: 42.15258065 | X144: 1.752240625
A145: ='Data Inputs'!C140 -> 2021-01-01 | B145: 159.82 | C145: 31 | D145: 4954.42 | E145: 130673 | F145: 4.1569 | G145: 5431.945937 | J145: =-IF(F145<'Data Inputs'!F140,(F145-'Data Inputs'!F140)*E145/100,0) -> 0 | K145: =IF(OR('Data Inputs'!U140=0, 'Data Inputs'!U140=""), "N/A", 'Data Inputs'!U140*B145) -> N/A | L145: =IF(OR('Data Inputs'!U140=0, 'Data Inputs'!U140=""), "N/A", IF((G145-(D145-J145))>K145, K145, IF(K145>(G145-(D145-J145)), IF((G145-(D145-J145))<0, 0, (G145-(D145-J145))),0))) -> N/A | M145: 4954.42 | N145: 477.53 | O145: =ROUND(IF(O144+N145>=O144,IF(O144>='Data Inputs'!D140*B145,O144,IF(O144+N145>'Data Inputs'!D140*B145,'Data Inputs'!D140*B145,IF(O144+N145<'Data Inputs'!E140*B145,'Data Inputs'!E140*B145,O144+N145))),IF(O144+N145<O144,IF(O144+N145<'Data Inputs'!E140*B145,'Data Inputs'!E140*B145,O144+N145),"ERROR")),2) -> 799.1 | P145: 5 | Q145: 0 | R145: =$B145*'Data Inputs'!D140 -> 799.1 | S145: =$B145*'Data Inputs'!E140 -> -2397.3 | T145: 175.2240625 | U145: 159.82 | V145: 100 | W145: 42.15258065 | X145: 1.752240625
A146: ='Data Inputs'!C141 -> 2021-02-01 | B146: 159.82 | C146: 28 | D146: 4474.96 | E146: 130673 | F146: 4.1569 | G146: 5431.945937 | J146: =-IF(F146<'Data Inputs'!F141,(F146-'Data Inputs'!F141)*E146/100,0) -> 0 | K146: =IF(OR('Data Inputs'!U141=0, 'Data Inputs'!U141=""), "N/A", 'Data Inputs'!U141*B146) -> N/A | L146: =IF(OR('Data Inputs'!U141=0, 'Data Inputs'!U141=""), "N/A", IF((G146-(D146-J146))>K146, K146, IF(K146>(G146-(D146-J146)), IF((G146-(D146-J146))<0, 0, (G146-(D146-J146))),0))) -> N/A | M146: 4474.96 | N146: 956.99 | O146: =ROUND(IF(O145+N146>=O145,IF(O145>='Data Inputs'!D141*B146,O145,IF(O145+N146>'Data Inputs'!D141*B146,'Data Inputs'!D141*B146,IF(O145+N146<'Data Inputs'!E141*B146,'Data Inputs'!E141*B146,O145+N146))),IF(O145+N146<O145,IF(O145+N146<'Data Inputs'!E141*B146,'Data Inputs'!E141*B146,O145+N146),"ERROR")),2) -> 799.1 | P146: 5 | Q146: 0 | R146: =$B146*'Data Inputs'!D141 -> 799.1 | S146: =$B146*'Data Inputs'!E141 -> -2397.3 | T146: 193.9980692 | U146: 159.82 | V146: 100 | W146: 46.66892857 | X146: 1.939980692
A147: ='Data Inputs'!C142 -> 2021-03-01 | B147: 159.82 | C147: 31 | D147: 4954.42 | E147: 130673 | F147: 4.1569 | G147: 5431.945937 | J147: =-IF(F147<'Data Inputs'!F142,(F147-'Data Inputs'!F142)*E147/100,0) -> 0 | K147: =IF(OR('Data Inputs'!U142=0, 'Data Inputs'!U142=""), "N/A", 'Data Inputs'!U142*B147) -> N/A | L147: =IF(OR('Data Inputs'!U142=0, 'Data Inputs'!U142=""), "N/A", IF((G147-(D147-J147))>K147, K147, IF(K147>(G147-(D147-J147)), IF((G147-(D147-J147))<0, 0, (G147-(D147-J147))),0))) -> N/A | M147: 4954.42 | N147: 477.53 | O147: =ROUND(IF(O146+N147>=O146,IF(O146>='Data Inputs'!D142*B147,O146,IF(O146+N147>'Data Inputs'!D142*B147,'Data Inputs'!D142*B147,IF(O146+N147<'Data Inputs'!E142*B147,'Data Inputs'!E142*B147,O146+N147))),IF(O146+N147<O146,IF(O146+N147<'Data Inputs'!E142*B147,'Data Inputs'!E142*B147,O146+N147),"ERROR")),2) -> 799.1 | P147: 5 | Q147: 0 | R147: =$B147*'Data Inputs'!D142 -> 799.1 | S147: =$B147*'Data Inputs'!E142 -> -2397.3 | T147: 175.2240625 | U147: 159.82 | V147: 100 | W147: 42.15258065 | X147: 1.752240625
A148: ='Data Inputs'!C143 -> 2021-04-01 | B148: 159.82 | C148: 30 | D148: 4794.6 | E148: 130673 | F148: 4.1569 | G148: 5431.945937 | J148: =-IF(F148<'Data Inputs'!F143,(F148-'Data Inputs'!F143)*E148/100,0) -> 0 | K148: =IF(OR('Data Inputs'!U143=0, 'Data Inputs'!U143=""), "N/A", 'Data Inputs'!U143*B148) -> N/A | L148: =IF(OR('Data Inputs'!U143=0, 'Data Inputs'!U143=""), "N/A", IF((G148-(D148-J148))>K148, K148, IF(K148>(G148-(D148-J148)), IF((G148-(D148-J148))<0, 0, (G148-(D148-J148))),0))) -> N/A | M148: 4794.6 | N148: 637.35 | O148: =ROUND(IF(O147+N148>=O147,IF(O147>='Data Inputs'!D143*B148,O147,IF(O147+N148>'Data Inputs'!D143*B148,'Data Inputs'!D143*B148,IF(O147+N148<'Data Inputs'!E143*B148,'Data Inputs'!E143*B148,O147+N148))),IF(O147+N148<O147,IF(O147+N148<'Data Inputs'!E143*B148,'Data Inputs'!E143*B148,O147+N148),"ERROR")),2) -> 799.1 | P148: 5 | Q148: 0 | R148: =$B148*'Data Inputs'!D143 -> 799.1 | S148: =$B148*'Data Inputs'!E143 -> -2397.3 | T148: 181.0648646 | U148: 159.82 | V148: 100 | W148: 43.55766667 | X148: 1.810648646
A149: ='Data Inputs'!C144 -> 2021-05-01 | B149: 159.82 | C149: 31 | D149: 4954.42 | E149: 130673 | F149: 4.1569 | G149: 5431.945937 | J149: =-IF(F149<'Data Inputs'!F144,(F149-'Data Inputs'!F144)*E149/100,0) -> 0 | K149: =IF(OR('Data Inputs'!U144=0, 'Data Inputs'!U144=""), "N/A", 'Data Inputs'!U144*B149) -> N/A | L149: =IF(OR('Data Inputs'!U144=0, 'Data Inputs'!U144=""), "N/A", IF((G149-(D149-J149))>K149, K149, IF(K149>(G149-(D149-J149)), IF((G149-(D149-J149))<0, 0, (G149-(D149-J149))),0))) -> N/A | M149: 4954.42 | N149: 477.53 | O149: =ROUND(IF(O148+N149>=O148,IF(O148>='Data Inputs'!D144*B149,O148,IF(O148+N149>'Data Inputs'!D144*B149,'Data Inputs'!D144*B149,IF(O148+N149<'Data Inputs'!E144*B149,'Data Inputs'!E144*B149,O148+N149))),IF(O148+N149<O148,IF(O148+N149<'Data Inputs'!E144*B149,'Data Inputs'!E144*B149,O148+N149),"ERROR")),2) -> 799.1 | P149: 5 | Q149: 0 | R149: =$B149*'Data Inputs'!D144 -> 799.1 | S149: =$B149*'Data Inputs'!E144 -> -2397.3 | T149: 175.2240625 | U149: 159.82 | V149: 100 | W149: 42.15258065 | X149: 1.752240625
A150: ='Data Inputs'!C145 -> 2021-06-01 | B150: 159.82 | C150: 30 | D150: 4794.6 | E150: 130673 | F150: 4.1569 | G150: 5431.945937 | J150: =-IF(F150<'Data Inputs'!F145,(F150-'Data Inputs'!F145)*E150/100,0) -> 0 | K150: =IF(OR('Data Inputs'!U145=0, 'Data Inputs'!U145=""), "N/A", 'Data Inputs'!U145*B150) -> N/A | L150: =IF(OR('Data Inputs'!U145=0, 'Data Inputs'!U145=""), "N/A", IF((G150-(D150-J150))>K150, K150, IF(K150>(G150-(D150-J150)), IF((G150-(D150-J150))<0, 0, (G150-(D150-J150))),0))) -> N/A | M150: 4794.6 | N150: 637.35 | O150: =ROUND(IF(O149+N150>=O149,IF(O149>='Data Inputs'!D145*B150,O149,IF(O149+N150>'Data Inputs'!D145*B150,'Data Inputs'!D145*B150,IF(O149+N150<'Data Inputs'!E145*B150,'Data Inputs'!E145*B150,O149+N150))),IF(O149+N150<O149,IF(O149+N150<'Data Inputs'!E145*B150,'Data Inputs'!E145*B150,O149+N150),"ERROR")),2) -> 799.1 | P150: 5 | Q150: 0 | R150: =$B150*'Data Inputs'!D145 -> 799.1 | S150: =$B150*'Data Inputs'!E145 -> -2397.3 | T150: 181.0648646 | U150: 159.82 | V150: 100 | W150: 43.55766667 | X150: 1.810648646
A151: ='Data Inputs'!C146 -> 2021-07-01 | B151: 159.82 | C151: 31 | D151: 4954.42 | E151: 130673 | F151: 4.1569 | G151: 5431.945937 | J151: =-IF(F151<'Data Inputs'!F146,(F151-'Data Inputs'!F146)*E151/100,0) -> 0 | K151: =IF(OR('Data Inputs'!U146=0, 'Data Inputs'!U146=""), "N/A", 'Data Inputs'!U146*B151) -> N/A | L151: =IF(OR('Data Inputs'!U146=0, 'Data Inputs'!U146=""), "N/A", IF((G151-(D151-J151))>K151, K151, IF(K151>(G151-(D151-J151)), IF((G151-(D151-J151))<0, 0, (G151-(D151-J151))),0))) -> N/A | M151: 4954.42 | N151: 477.53 | O151: =ROUND(IF(O150+N151>=O150,IF(O150>='Data Inputs'!D146*B151,O150,IF(O150+N151>'Data Inputs'!D146*B151,'Data Inputs'!D146*B151,IF(O150+N151<'Data Inputs'!E146*B151,'Data Inputs'!E146*B151,O150+N151))),IF(O150+N151<O150,IF(O150+N151<'Data Inputs'!E146*B151,'Data Inputs'!E146*B151,O150+N151),"ERROR")),2) -> 799.1 | P151: 5 | Q151: 0 | R151: =$B151*'Data Inputs'!D146 -> 799.1 | S151: =$B151*'Data Inputs'!E146 -> -2397.3 | T151: 175.2240625 | U151: 159.82 | V151: 100 | W151: 42.15258065 | X151: 1.752240625
A152: ='Data Inputs'!C147 -> 2021-08-01 | B152: 159.82 | C152: 31 | D152: 4954.42 | E152: 130673 | F152: 4.1569 | G152: 5431.945937 | J152: =-IF(F152<'Data Inputs'!F147,(F152-'Data Inputs'!F147)*E152/100,0) -> 0 | K152: =IF(OR('Data Inputs'!U147=0, 'Data Inputs'!U147=""), "N/A", 'Data Inputs'!U147*B152) -> N/A | L152: =IF(OR('Data Inputs'!U147=0, 'Data Inputs'!U147=""), "N/A", IF((G152-(D152-J152))>K152, K152, IF(K152>(G152-(D152-J152)), IF((G152-(D152-J152))<0, 0, (G152-(D152-J152))),0))) -> N/A | M152: 4954.42 | N152: 477.53 | O152: =ROUND(IF(O151+N152>=O151,IF(O151>='Data Inputs'!D147*B152,O151,IF(O151+N152>'Data Inputs'!D147*B152,'Data Inputs'!D147*B152,IF(O151+N152<'Data Inputs'!E147*B152,'Data Inputs'!E147*B152,O151+N152))),IF(O151+N152<O151,IF(O151+N152<'Data Inputs'!E147*B152,'Data Inputs'!E147*B152,O151+N152),"ERROR")),2) -> 799.1 | P152: 5 | Q152: 0 | R152: =$B152*'Data Inputs'!D147 -> 799.1 | S152: =$B152*'Data Inputs'!E147 -> -2397.3 | T152: 175.2240625 | U152: 159.82 | V152: 100 | W152: 42.15258065 | X152: 1.752240625
A153: ='Data Inputs'!C148 -> 2021-09-01 | B153: 159.82 | C153: 30 | D153: 4794.6 | E153: 130673 | F153: 4.1569 | G153: 5431.945937 | J153: =-IF(F153<'Data Inputs'!F148,(F153-'Data Inputs'!F148)*E153/100,0) -> 0 | K153: =IF(OR('Data Inputs'!U148=0, 'Data Inputs'!U148=""), "N/A", 'Data Inputs'!U148*B153) -> N/A | L153: =IF(OR('Data Inputs'!U148=0, 'Data Inputs'!U148=""), "N/A", IF((G153-(D153-J153))>K153, K153, IF(K153>(G153-(D153-J153)), IF((G153-(D153-J153))<0, 0, (G153-(D153-J153))),0))) -> N/A | M153: 4794.6 | N153: 637.35 | O153: =ROUND(IF(O152+N153>=O152,IF(O152>='Data Inputs'!D148*B153,O152,IF(O152+N153>'Data Inputs'!D148*B153,'Data Inputs'!D148*B153,IF(O152+N153<'Data Inputs'!E148*B153,'Data Inputs'!E148*B153,O152+N153))),IF(O152+N153<O152,IF(O152+N153<'Data Inputs'!E148*B153,'Data Inputs'!E148*B153,O152+N153),"ERROR")),2) -> 799.1 | P153: 5 | Q153: 0 | R153: =$B153*'Data Inputs'!D148 -> 799.1 | S153: =$B153*'Data Inputs'!E148 -> -2397.3 | T153: 181.0648646 | U153: 159.82 | V153: 100 | W153: 43.55766667 | X153: 1.810648646
A154: ='Data Inputs'!C149 -> 2021-10-01 | B154: 159.82 | C154: 31 | D154: 4954.42 | E154: 130673 | F154: 4.1569 | G154: 5431.945937 | J154: =-IF(F154<'Data Inputs'!F149,(F154-'Data Inputs'!F149)*E154/100,0) -> 0 | K154: =IF(OR('Data Inputs'!U149=0, 'Data Inputs'!U149=""), "N/A", 'Data Inputs'!U149*B154) -> N/A | L154: =IF(OR('Data Inputs'!U149=0, 'Data Inputs'!U149=""), "N/A", IF((G154-(D154-J154))>K154, K154, IF(K154>(G154-(D154-J154)), IF((G154-(D154-J154))<0, 0, (G154-(D154-J154))),0))) -> N/A | M154: 4954.42 | N154: 477.53 | O154: =ROUND(IF(O153+N154>=O153,IF(O153>='Data Inputs'!D149*B154,O153,IF(O153+N154>'Data Inputs'!D149*B154,'Data Inputs'!D149*B154,IF(O153+N154<'Data Inputs'!E149*B154,'Data Inputs'!E149*B154,O153+N154))),IF(O153+N154<O153,IF(O153+N154<'Data Inputs'!E149*B154,'Data Inputs'!E149*B154,O153+N154),"ERROR")),2) -> 799.1 | P154: 5 | Q154: 0 | R154: =$B154*'Data Inputs'!D149 -> 799.1 | S154: =$B154*'Data Inputs'!E149 -> -2397.3 | T154: 175.2240625 | U154: 159.82 | V154: 100 | W154: 42.15258065 | X154: 1.752240625
A155: ='Data Inputs'!C150 -> 2021-11-01 | B155: 159.82 | C155: 30 | D155: 4794.6 | E155: 130673 | F155: 4.1569 | G155: 5431.945937 | J155: =-IF(F155<'Data Inputs'!F150,(F155-'Data Inputs'!F150)*E155/100,0) -> 0 | K155: =IF(OR('Data Inputs'!U150=0, 'Data Inputs'!U150=""), "N/A", 'Data Inputs'!U150*B155) -> N/A | L155: =IF(OR('Data Inputs'!U150=0, 'Data Inputs'!U150=""), "N/A", IF((G155-(D155-J155))>K155, K155, IF(K155>(G155-(D155-J155)), IF((G155-(D155-J155))<0, 0, (G155-(D155-J155))),0))) -> N/A | M155: 4794.6 | N155: 637.35 | O155: =ROUND(IF(O154+N155>=O154,IF(O154>='Data Inputs'!D150*B155,O154,IF(O154+N155>'Data Inputs'!D150*B155,'Data Inputs'!D150*B155,IF(O154+N155<'Data Inputs'!E150*B155,'Data Inputs'!E150*B155,O154+N155))),IF(O154+N155<O154,IF(O154+N155<'Data Inputs'!E150*B155,'Data Inputs'!E150*B155,O154+N155),"ERROR")),2) -> 799.1 | P155: 5 | Q155: 0 | R155: =$B155*'Data Inputs'!D150 -> 799.1 | S155: =$B155*'Data Inputs'!E150 -> -2397.3 | T155: 181.0648646 | U155: 159.82 | V155: 100 | W155: 43.55766667 | X155: 1.810648646
A156: ='Data Inputs'!C151 -> 2021-12-01 | B156: 159.82 | C156: 31 | D156: 4954.42 | E156: 130673 | F156: 4.1569 | G156: 5431.945937 | J156: =-IF(F156<'Data Inputs'!F151,(F156-'Data Inputs'!F151)*E156/100,0) -> 0 | K156: =IF(OR('Data Inputs'!U151=0, 'Data Inputs'!U151=""), "N/A", 'Data Inputs'!U151*B156) -> N/A | L156: =IF(OR('Data Inputs'!U151=0, 'Data Inputs'!U151=""), "N/A", IF((G156-(D156-J156))>K156, K156, IF(K156>(G156-(D156-J156)), IF((G156-(D156-J156))<0, 0, (G156-(D156-J156))),0))) -> N/A | M156: 4954.42 | N156: 477.53 | O156: =ROUND(IF(O155+N156>=O155,IF(O155>='Data Inputs'!D151*B156,O155,IF(O155+N156>'Data Inputs'!D151*B156,'Data Inputs'!D151*B156,IF(O155+N156<'Data Inputs'!E151*B156,'Data Inputs'!E151*B156,O155+N156))),IF(O155+N156<O155,IF(O155+N156<'Data Inputs'!E151*B156,'Data Inputs'!E151*B156,O155+N156),"ERROR")),2) -> 799.1 | P156: 5 | Q156: 0 | R156: =$B156*'Data Inputs'!D151 -> 799.1 | S156: =$B156*'Data Inputs'!E151 -> -2397.3 | T156: 175.2240625 | U156: 159.82 | V156: 100 | W156: 42.15258065 | X156: 1.752240625
A157: ='Data Inputs'!C152 -> 2022-01-01 | B157: 159.82 | C157: 31 | D157: 4954.42 | E157: 130673 | F157: 4.1569 | G157: 5431.945937 | J157: =-IF(F157<'Data Inputs'!F152,(F157-'Data Inputs'!F152)*E157/100,0) -> 0 | K157: =IF(OR('Data Inputs'!U152=0, 'Data Inputs'!U152=""), "N/A", 'Data Inputs'!U152*B157) -> N/A | L157: =IF(OR('Data Inputs'!U152=0, 'Data Inputs'!U152=""), "N/A", IF((G157-(D157-J157))>K157, K157, IF(K157>(G157-(D157-J157)), IF((G157-(D157-J157))<0, 0, (G157-(D157-J157))),0))) -> N/A | M157: 4954.42 | N157: 477.53 | O157: =ROUND(IF(O156+N157>=O156,IF(O156>='Data Inputs'!D152*B157,O156,IF(O156+N157>'Data Inputs'!D152*B157,'Data Inputs'!D152*B157,IF(O156+N157<'Data Inputs'!E152*B157,'Data Inputs'!E152*B157,O156+N157))),IF(O156+N157<O156,IF(O156+N157<'Data Inputs'!E152*B157,'Data Inputs'!E152*B157,O156+N157),"ERROR")),2) -> 799.1 | P157: 5 | Q157: 0 | R157: =$B157*'Data Inputs'!D152 -> 799.1 | S157: =$B157*'Data Inputs'!E152 -> -2397.3 | T157: 175.2240625 | U157: 159.82 | V157: 100 | W157: 42.15258065 | X157: 1.752240625
A158: ='Data Inputs'!C153 -> 2022-02-01 | B158: 159.82 | C158: 28 | D158: 4474.96 | E158: 130673 | F158: 4.1569 | G158: 5431.945937 | J158: =-IF(F158<'Data Inputs'!F153,(F158-'Data Inputs'!F153)*E158/100,0) -> 0 | K158: =IF(OR('Data Inputs'!U153=0, 'Data Inputs'!U153=""), "N/A", 'Data Inputs'!U153*B158) -> N/A | L158: =IF(OR('Data Inputs'!U153=0, 'Data Inputs'!U153=""), "N/A", IF((G158-(D158-J158))>K158, K158, IF(K158>(G158-(D158-J158)), IF((G158-(D158-J158))<0, 0, (G158-(D158-J158))),0))) -> N/A | M158: 4474.96 | N158: 956.99 | O158: =ROUND(IF(O157+N158>=O157,IF(O157>='Data Inputs'!D153*B158,O157,IF(O157+N158>'Data Inputs'!D153*B158,'Data Inputs'!D153*B158,IF(O157+N158<'Data Inputs'!E153*B158,'Data Inputs'!E153*B158,O157+N158))),IF(O157+N158<O157,IF(O157+N158<'Data Inputs'!E153*B158,'Data Inputs'!E153*B158,O157+N158),"ERROR")),2) -> 799.1 | P158: 5 | Q158: 0 | R158: =$B158*'Data Inputs'!D153 -> 799.1 | S158: =$B158*'Data Inputs'!E153 -> -2397.3 | T158: 193.9980692 | U158: 159.82 | V158: 100 | W158: 46.66892857 | X158: 1.939980692
A159: ='Data Inputs'!C154 -> 2022-03-01 | B159: 159.82 | C159: 31 | D159: 4954.42 | E159: 130673 | F159: 4.1569 | G159: 5431.945937 | J159: =-IF(F159<'Data Inputs'!F154,(F159-'Data Inputs'!F154)*E159/100,0) -> 0 | K159: =IF(OR('Data Inputs'!U154=0, 'Data Inputs'!U154=""), "N/A", 'Data Inputs'!U154*B159) -> N/A | L159: =IF(OR('Data Inputs'!U154=0, 'Data Inputs'!U154=""), "N/A", IF((G159-(D159-J159))>K159, K159, IF(K159>(G159-(D159-J159)), IF((G159-(D159-J159))<0, 0, (G159-(D159-J159))),0))) -> N/A | M159: 4954.42 | N159: 477.53 | O159: =ROUND(IF(O158+N159>=O158,IF(O158>='Data Inputs'!D154*B159,O158,IF(O158+N159>'Data Inputs'!D154*B159,'Data Inputs'!D154*B159,IF(O158+N159<'Data Inputs'!E154*B159,'Data Inputs'!E154*B159,O158+N159))),IF(O158+N159<O158,IF(O158+N159<'Data Inputs'!E154*B159,'Data Inputs'!E154*B159,O158+N159),"ERROR")),2) -> 799.1 | P159: 5 | Q159: 0 | R159: =$B159*'Data Inputs'!D154 -> 799.1 | S159: =$B159*'Data Inputs'!E154 -> -2397.3 | T159: 175.2240625 | U159: 159.82 | V159: 100 | W159: 42.15258065 | X159: 1.752240625
A160: ='Data Inputs'!C155 -> 2022-04-01 | B160: 159.82 | C160: 30 | D160: 4794.6 | E160: 130673 | F160: 4.1569 | G160: 5431.945937 | J160: =-IF(F160<'Data Inputs'!F155,(F160-'Data Inputs'!F155)*E160/100,0) -> 0 | K160: =IF(OR('Data Inputs'!U155=0, 'Data Inputs'!U155=""), "N/A", 'Data Inputs'!U155*B160) -> N/A | L160: =IF(OR('Data Inputs'!U155=0, 'Data Inputs'!U155=""), "N/A", IF((G160-(D160-J160))>K160, K160, IF(K160>(G160-(D160-J160)), IF((G160-(D160-J160))<0, 0, (G160-(D160-J160))),0))) -> N/A | M160: 4794.6 | N160: 637.35 | O160: =ROUND(IF(O159+N160>=O159,IF(O159>='Data Inputs'!D155*B160,O159,IF(O159+N160>'Data Inputs'!D155*B160,'Data Inputs'!D155*B160,IF(O159+N160<'Data Inputs'!E155*B160,'Data Inputs'!E155*B160,O159+N160))),IF(O159+N160<O159,IF(O159+N160<'Data Inputs'!E155*B160,'Data Inputs'!E155*B160,O159+N160),"ERROR")),2) -> 799.1 | P160: 5 | Q160: 0 | R160: =$B160*'Data Inputs'!D155 -> 799.1 | S160: =$B160*'Data Inputs'!E155 -> -2397.3 | T160: 181.0648646 | U160: 159.82 | V160: 100 | W160: 43.55766667 | X160: 1.810648646
A161: ='Data Inputs'!C156 -> 2022-05-01 | B161: 159.82 | C161: 31 | D161: 4954.42 | E161: 130673 | F161: 4.1569 | G161: 5431.945937 | J161: =-IF(F161<'Data Inputs'!F156,(F161-'Data Inputs'!F156)*E161/100,0) -> 0 | K161: =IF(OR('Data Inputs'!U156=0, 'Data Inputs'!U156=""), "N/A", 'Data Inputs'!U156*B161) -> N/A | L161: =IF(OR('Data Inputs'!U156=0, 'Data Inputs'!U156=""), "N/A", IF((G161-(D161-J161))>K161, K161, IF(K161>(G161-(D161-J161)), IF((G161-(D161-J161))<0, 0, (G161-(D161-J161))),0))) -> N/A | M161: 4954.42 | N161: 477.53 | O161: =ROUND(IF(O160+N161>=O160,IF(O160>='Data Inputs'!D156*B161,O160,IF(O160+N161>'Data Inputs'!D156*B161,'Data Inputs'!D156*B161,IF(O160+N161<'Data Inputs'!E156*B161,'Data Inputs'!E156*B161,O160+N161))),IF(O160+N161<O160,IF(O160+N161<'Data Inputs'!E156*B161,'Data Inputs'!E156*B161,O160+N161),"ERROR")),2) -> 799.1 | P161: 5 | Q161: 0 | R161: =$B161*'Data Inputs'!D156 -> 799.1 | S161: =$B161*'Data Inputs'!E156 -> -2397.3 | T161: 175.2240625 | U161: 159.82 | V161: 100 | W161: 42.15258065 | X161: 1.752240625
A162: ='Data Inputs'!C157 -> 2022-06-01 | B162: 159.82 | C162: 30 | D162: 4794.6 | E162: 130673 | F162: 4.1569 | G162: 5431.945937 | J162: =-IF(F162<'Data Inputs'!F157,(F162-'Data Inputs'!F157)*E162/100,0) -> 0 | K162: =IF(OR('Data Inputs'!U157=0, 'Data Inputs'!U157=""), "N/A", 'Data Inputs'!U157*B162) -> N/A | L162: =IF(OR('Data Inputs'!U157=0, 'Data Inputs'!U157=""), "N/A", IF((G162-(D162-J162))>K162, K162, IF(K162>(G162-(D162-J162)), IF((G162-(D162-J162))<0, 0, (G162-(D162-J162))),0))) -> N/A | M162: 4794.6 | N162: 637.35 | O162: =ROUND(IF(O161+N162>=O161,IF(O161>='Data Inputs'!D157*B162,O161,IF(O161+N162>'Data Inputs'!D157*B162,'Data Inputs'!D157*B162,IF(O161+N162<'Data Inputs'!E157*B162,'Data Inputs'!E157*B162,O161+N162))),IF(O161+N162<O161,IF(O161+N162<'Data Inputs'!E157*B162,'Data Inputs'!E157*B162,O161+N162),"ERROR")),2) -> 799.1 | P162: 5 | Q162: 0 | R162: =$B162*'Data Inputs'!D157 -> 799.1 | S162: =$B162*'Data Inputs'!E157 -> -2397.3 | T162: 181.0648646 | U162: 159.82 | V162: 100 | W162: 43.55766667 | X162: 1.810648646
A163: ='Data Inputs'!C158 -> 2022-07-01 | B163: 159.82 | C163: 31 | D163: 4954.42 | E163: 130673 | F163: 4.1569 | G163: 5431.945937 | J163: =-IF(F163<'Data Inputs'!F158,(F163-'Data Inputs'!F158)*E163/100,0) -> 0 | K163: =IF(OR('Data Inputs'!U158=0, 'Data Inputs'!U158=""), "N/A", 'Data Inputs'!U158*B163) -> N/A | L163: =IF(OR('Data Inputs'!U158=0, 'Data Inputs'!U158=""), "N/A", IF((G163-(D163-J163))>K163, K163, IF(K163>(G163-(D163-J163)), IF((G163-(D163-J163))<0, 0, (G163-(D163-J163))),0))) -> N/A | M163: 4954.42 | N163: 477.53 | O163: =ROUND(IF(O162+N163>=O162,IF(O162>='Data Inputs'!D158*B163,O162,IF(O162+N163>'Data Inputs'!D158*B163,'Data Inputs'!D158*B163,IF(O162+N163<'Data Inputs'!E158*B163,'Data Inputs'!E158*B163,O162+N163))),IF(O162+N163<O162,IF(O162+N163<'Data Inputs'!E158*B163,'Data Inputs'!E158*B163,O162+N163),"ERROR")),2) -> 799.1 | P163: 5 | Q163: 0 | R163: =$B163*'Data Inputs'!D158 -> 799.1 | S163: =$B163*'Data Inputs'!E158 -> -2397.3 | T163: 175.2240625 | U163: 159.82 | V163: 100 | W163: 42.15258065 | X163: 1.752240625
A164: ='Data Inputs'!C159 -> 2022-08-01 | B164: 159.82 | C164: 31 | D164: 4954.42 | E164: 130673 | F164: 4.1569 | G164: 5431.945937 | J164: =-IF(F164<'Data Inputs'!F159,(F164-'Data Inputs'!F159)*E164/100,0) -> 0 | K164: =IF(OR('Data Inputs'!U159=0, 'Data Inputs'!U159=""), "N/A", 'Data Inputs'!U159*B164) -> N/A | L164: =IF(OR('Data Inputs'!U159=0, 'Data Inputs'!U159=""), "N/A", IF((G164-(D164-J164))>K164, K164, IF(K164>(G164-(D164-J164)), IF((G164-(D164-J164))<0, 0, (G164-(D164-J164))),0))) -> N/A | M164: 4954.42 | N164: 477.53 | O164: =ROUND(IF(O163+N164>=O163,IF(O163>='Data Inputs'!D159*B164,O163,IF(O163+N164>'Data Inputs'!D159*B164,'Data Inputs'!D159*B164,IF(O163+N164<'Data Inputs'!E159*B164,'Data Inputs'!E159*B164,O163+N164))),IF(O163+N164<O163,IF(O163+N164<'Data Inputs'!E159*B164,'Data Inputs'!E159*B164,O163+N164),"ERROR")),2) -> 799.1 | P164: 5 | Q164: 0 | R164: =$B164*'Data Inputs'!D159 -> 799.1 | S164: =$B164*'Data Inputs'!E159 -> -2397.3 | T164: 175.2240625 | U164: 159.82 | V164: 100 | W164: 42.15258065 | X164: 1.752240625
A165: ='Data Inputs'!C160 -> 2022-09-01 | B165: 159.82 | C165: 30 | D165: 4794.6 | E165: 130673 | F165: 4.1569 | G165: 5431.945937 | J165: =-IF(F165<'Data Inputs'!F160,(F165-'Data Inputs'!F160)*E165/100,0) -> 0 | K165: =IF(OR('Data Inputs'!U160=0, 'Data Inputs'!U160=""), "N/A", 'Data Inputs'!U160*B165) -> N/A | L165: =IF(OR('Data Inputs'!U160=0, 'Data Inputs'!U160=""), "N/A", IF((G165-(D165-J165))>K165, K165, IF(K165>(G165-(D165-J165)), IF((G165-(D165-J165))<0, 0, (G165-(D165-J165))),0))) -> N/A | M165: 4794.6 | N165: 637.35 | O165: =ROUND(IF(O164+N165>=O164,IF(O164>='Data Inputs'!D160*B165,O164,IF(O164+N165>'Data Inputs'!D160*B165,'Data Inputs'!D160*B165,IF(O164+N165<'Data Inputs'!E160*B165,'Data Inputs'!E160*B165,O164+N165))),IF(O164+N165<O164,IF(O164+N165<'Data Inputs'!E160*B165,'Data Inputs'!E160*B165,O164+N165),"ERROR")),2) -> 799.1 | P165: 5 | Q165: 0 | R165: =$B165*'Data Inputs'!D160 -> 799.1 | S165: =$B165*'Data Inputs'!E160 -> -2397.3 | T165: 181.0648646 | U165: 159.82 | V165: 100 | W165: 43.55766667 | X165: 1.810648646
A166: ='Data Inputs'!C161 -> 2022-10-01 | B166: 159.82 | C166: 31 | D166: 4954.42 | E166: 130673 | F166: 4.1569 | G166: 5431.945937 | J166: =-IF(F166<'Data Inputs'!F161,(F166-'Data Inputs'!F161)*E166/100,0) -> 0 | K166: =IF(OR('Data Inputs'!U161=0, 'Data Inputs'!U161=""), "N/A", 'Data Inputs'!U161*B166) -> N/A | L166: =IF(OR('Data Inputs'!U161=0, 'Data Inputs'!U161=""), "N/A", IF((G166-(D166-J166))>K166, K166, IF(K166>(G166-(D166-J166)), IF((G166-(D166-J166))<0, 0, (G166-(D166-J166))),0))) -> N/A | M166: 4954.42 | N166: 477.53 | O166: =ROUND(IF(O165+N166>=O165,IF(O165>='Data Inputs'!D161*B166,O165,IF(O165+N166>'Data Inputs'!D161*B166,'Data Inputs'!D161*B166,IF(O165+N166<'Data Inputs'!E161*B166,'Data Inputs'!E161*B166,O165+N166))),IF(O165+N166<O165,IF(O165+N166<'Data Inputs'!E161*B166,'Data Inputs'!E161*B166,O165+N166),"ERROR")),2) -> 799.1 | P166: 5 | Q166: 0 | R166: =$B166*'Data Inputs'!D161 -> 799.1 | S166: =$B166*'Data Inputs'!E161 -> -2397.3 | T166: 175.2240625 | U166: 159.82 | V166: 100 | W166: 42.15258065 | X166: 1.752240625
A167: ='Data Inputs'!C162 -> 2022-11-01 | B167: 159.82 | C167: 30 | D167: 4794.6 | E167: 130673 | F167: 4.1569 | G167: 5431.945937 | J167: =-IF(F167<'Data Inputs'!F162,(F167-'Data Inputs'!F162)*E167/100,0) -> 0 | K167: =IF(OR('Data Inputs'!U162=0, 'Data Inputs'!U162=""), "N/A", 'Data Inputs'!U162*B167) -> N/A | L167: =IF(OR('Data Inputs'!U162=0, 'Data Inputs'!U162=""), "N/A", IF((G167-(D167-J167))>K167, K167, IF(K167>(G167-(D167-J167)), IF((G167-(D167-J167))<0, 0, (G167-(D167-J167))),0))) -> N/A | M167: 4794.6 | N167: 637.35 | O167: =ROUND(IF(O166+N167>=O166,IF(O166>='Data Inputs'!D162*B167,O166,IF(O166+N167>'Data Inputs'!D162*B167,'Data Inputs'!D162*B167,IF(O166+N167<'Data Inputs'!E162*B167,'Data Inputs'!E162*B167,O166+N167))),IF(O166+N167<O166,IF(O166+N167<'Data Inputs'!E162*B167,'Data Inputs'!E162*B167,O166+N167),"ERROR")),2) -> 799.1 | P167: 5 | Q167: 0 | R167: =$B167*'Data Inputs'!D162 -> 799.1 | S167: =$B167*'Data Inputs'!E162 -> -2397.3 | T167: 181.0648646 | U167: 159.82 | V167: 100 | W167: 43.55766667 | X167: 1.810648646
A168: ='Data Inputs'!C163 -> 2022-12-01 | B168: 159.82 | C168: 31 | D168: 4954.42 | E168: 130673 | F168: 4.1569 | G168: 5431.945937 | J168: =-IF(F168<'Data Inputs'!F163,(F168-'Data Inputs'!F163)*E168/100,0) -> 0 | K168: =IF(OR('Data Inputs'!U163=0, 'Data Inputs'!U163=""), "N/A", 'Data Inputs'!U163*B168) -> N/A | L168: =IF(OR('Data Inputs'!U163=0, 'Data Inputs'!U163=""), "N/A", IF((G168-(D168-J168))>K168, K168, IF(K168>(G168-(D168-J168)), IF((G168-(D168-J168))<0, 0, (G168-(D168-J168))),0))) -> N/A | M168: 4954.42 | N168: 477.53 | O168: =ROUND(IF(O167+N168>=O167,IF(O167>='Data Inputs'!D163*B168,O167,IF(O167+N168>'Data Inputs'!D163*B168,'Data Inputs'!D163*B168,IF(O167+N168<'Data Inputs'!E163*B168,'Data Inputs'!E163*B168,O167+N168))),IF(O167+N168<O167,IF(O167+N168<'Data Inputs'!E163*B168,'Data Inputs'!E163*B168,O167+N168),"ERROR")),2) -> 799.1 | P168: 5 | Q168: 0 | R168: =$B168*'Data Inputs'!D163 -> 799.1 | S168: =$B168*'Data Inputs'!E163 -> -2397.3 | T168: 175.2240625 | U168: 159.82 | V168: 100 | W168: 42.15258065 | X168: 1.752240625
A169: ='Data Inputs'!C164 -> 2023-01-01 | B169: 159.82 | C169: 31 | D169: 4954.42 | E169: 130673 | F169: 4.1569 | G169: 5431.945937 | J169: =-IF(F169<'Data Inputs'!F164,(F169-'Data Inputs'!F164)*E169/100,0) -> 0 | K169: =IF(OR('Data Inputs'!U164=0, 'Data Inputs'!U164=""), "N/A", 'Data Inputs'!U164*B169) -> N/A | L169: =IF(OR('Data Inputs'!U164=0, 'Data Inputs'!U164=""), "N/A", IF((G169-(D169-J169))>K169, K169, IF(K169>(G169-(D169-J169)), IF((G169-(D169-J169))<0, 0, (G169-(D169-J169))),0))) -> N/A | M169: 4954.42 | N169: 477.53 | O169: =ROUND(IF(O168+N169>=O168,IF(O168>='Data Inputs'!D164*B169,O168,IF(O168+N169>'Data Inputs'!D164*B169,'Data Inputs'!D164*B169,IF(O168+N169<'Data Inputs'!E164*B169,'Data Inputs'!E164*B169,O168+N169))),IF(O168+N169<O168,IF(O168+N169<'Data Inputs'!E164*B169,'Data Inputs'!E164*B169,O168+N169),"ERROR")),2) -> 799.1 | P169: 5 | Q169: 0 | R169: =$B169*'Data Inputs'!D164 -> 799.1 | S169: =$B169*'Data Inputs'!E164 -> -2397.3 | T169: 175.2240625 | U169: 159.82 | V169: 100 | W169: 42.15258065 | X169: 1.752240625
A170: ='Data Inputs'!C165 -> 2023-02-01 | B170: 159.82 | C170: 28 | D170: 4474.96 | E170: 130673 | F170: 4.1569 | G170: 5431.945937 | J170: =-IF(F170<'Data Inputs'!F165,(F170-'Data Inputs'!F165)*E170/100,0) -> 0 | K170: =IF(OR('Data Inputs'!U165=0, 'Data Inputs'!U165=""), "N/A", 'Data Inputs'!U165*B170) -> N/A | L170: =IF(OR('Data Inputs'!U165=0, 'Data Inputs'!U165=""), "N/A", IF((G170-(D170-J170))>K170, K170, IF(K170>(G170-(D170-J170)), IF((G170-(D170-J170))<0, 0, (G170-(D170-J170))),0))) -> N/A | M170: 4474.96 | N170: 956.99 | O170: =ROUND(IF(O169+N170>=O169,IF(O169>='Data Inputs'!D165*B170,O169,IF(O169+N170>'Data Inputs'!D165*B170,'Data Inputs'!D165*B170,IF(O169+N170<'Data Inputs'!E165*B170,'Data Inputs'!E165*B170,O169+N170))),IF(O169+N170<O169,IF(O169+N170<'Data Inputs'!E165*B170,'Data Inputs'!E165*B170,O169+N170),"ERROR")),2) -> 799.1 | P170: 5 | Q170: 0 | R170: =$B170*'Data Inputs'!D165 -> 799.1 | S170: =$B170*'Data Inputs'!E165 -> -2397.3 | T170: 193.9980692 | U170: 159.82 | V170: 100 | W170: 46.66892857 | X170: 1.939980692
A171: ='Data Inputs'!C166 -> 2023-03-01 | B171: 159.82 | C171: 31 | D171: 4954.42 | E171: 130673 | F171: 4.1569 | G171: 5431.945937 | J171: =-IF(F171<'Data Inputs'!F166,(F171-'Data Inputs'!F166)*E171/100,0) -> 0 | K171: =IF(OR('Data Inputs'!U166=0, 'Data Inputs'!U166=""), "N/A", 'Data Inputs'!U166*B171) -> N/A | L171: =IF(OR('Data Inputs'!U166=0, 'Data Inputs'!U166=""), "N/A", IF((G171-(D171-J171))>K171, K171, IF(K171>(G171-(D171-J171)), IF((G171-(D171-J171))<0, 0, (G171-(D171-J171))),0))) -> N/A | M171: 4954.42 | N171: 477.53 | O171: =ROUND(IF(O170+N171>=O170,IF(O170>='Data Inputs'!D166*B171,O170,IF(O170+N171>'Data Inputs'!D166*B171,'Data Inputs'!D166*B171,IF(O170+N171<'Data Inputs'!E166*B171,'Data Inputs'!E166*B171,O170+N171))),IF(O170+N171<O170,IF(O170+N171<'Data Inputs'!E166*B171,'Data Inputs'!E166*B171,O170+N171),"ERROR")),2) -> 799.1 | P171: 5 | Q171: 0 | R171: =$B171*'Data Inputs'!D166 -> 799.1 | S171: =$B171*'Data Inputs'!E166 -> -2397.3 | T171: 175.2240625 | U171: 159.82 | V171: 100 | W171: 42.15258065 | X171: 1.752240625
A172: ='Data Inputs'!C167 -> 2023-04-01 | B172: 159.82 | C172: 30 | D172: 4794.6 | E172: 130673 | F172: 4.1569 | G172: 5431.945937 | J172: =-IF(F172<'Data Inputs'!F167,(F172-'Data Inputs'!F167)*E172/100,0) -> 0 | K172: =IF(OR('Data Inputs'!U167=0, 'Data Inputs'!U167=""), "N/A", 'Data Inputs'!U167*B172) -> N/A | L172: =IF(OR('Data Inputs'!U167=0, 'Data Inputs'!U167=""), "N/A", IF((G172-(D172-J172))>K172, K172, IF(K172>(G172-(D172-J172)), IF((G172-(D172-J172))<0, 0, (G172-(D172-J172))),0))) -> N/A | M172: 4794.6 | N172: 637.35 | O172: =ROUND(IF(O171+N172>=O171,IF(O171>='Data Inputs'!D167*B172,O171,IF(O171+N172>'Data Inputs'!D167*B172,'Data Inputs'!D167*B172,IF(O171+N172<'Data Inputs'!E167*B172,'Data Inputs'!E167*B172,O171+N172))),IF(O171+N172<O171,IF(O171+N172<'Data Inputs'!E167*B172,'Data Inputs'!E167*B172,O171+N172),"ERROR")),2) -> 799.1 | P172: 5 | Q172: 0 | R172: =$B172*'Data Inputs'!D167 -> 799.1 | S172: =$B172*'Data Inputs'!E167 -> -2397.3 | T172: 181.0648646 | U172: 159.82 | V172: 100 | W172: 43.55766667 | X172: 1.810648646
A173: ='Data Inputs'!C168 -> 2023-05-01 | B173: 159.82 | C173: 31 | D173: 4954.42 | E173: 130673 | F173: 4.1569 | G173: 5431.945937 | J173: =-IF(F173<'Data Inputs'!F168,(F173-'Data Inputs'!F168)*E173/100,0) -> 0 | K173: =IF(OR('Data Inputs'!U168=0, 'Data Inputs'!U168=""), "N/A", 'Data Inputs'!U168*B173) -> N/A | L173: =IF(OR('Data Inputs'!U168=0, 'Data Inputs'!U168=""), "N/A", IF((G173-(D173-J173))>K173, K173, IF(K173>(G173-(D173-J173)), IF((G173-(D173-J173))<0, 0, (G173-(D173-J173))),0))) -> N/A | M173: 4954.42 | N173: 477.53 | O173: =ROUND(IF(O172+N173>=O172,IF(O172>='Data Inputs'!D168*B173,O172,IF(O172+N173>'Data Inputs'!D168*B173,'Data Inputs'!D168*B173,IF(O172+N173<'Data Inputs'!E168*B173,'Data Inputs'!E168*B173,O172+N173))),IF(O172+N173<O172,IF(O172+N173<'Data Inputs'!E168*B173,'Data Inputs'!E168*B173,O172+N173),"ERROR")),2) -> 799.1 | P173: 5 | Q173: 0 | R173: =$B173*'Data Inputs'!D168 -> 799.1 | S173: =$B173*'Data Inputs'!E168 -> -2397.3 | T173: 175.2240625 | U173: 159.82 | V173: 100 | W173: 42.15258065 | X173: 1.752240625
A174: ='Data Inputs'!C169 -> 2023-06-01 | B174: 159.82 | C174: 30 | D174: 4794.6 | E174: 130673 | F174: 4.1569 | G174: 5431.945937 | J174: =-IF(F174<'Data Inputs'!F169,(F174-'Data Inputs'!F169)*E174/100,0) -> 0 | K174: =IF(OR('Data Inputs'!U169=0, 'Data Inputs'!U169=""), "N/A", 'Data Inputs'!U169*B174) -> N/A | L174: =IF(OR('Data Inputs'!U169=0, 'Data Inputs'!U169=""), "N/A", IF((G174-(D174-J174))>K174, K174, IF(K174>(G174-(D174-J174)), IF((G174-(D174-J174))<0, 0, (G174-(D174-J174))),0))) -> N/A | M174: 4794.6 | N174: 637.35 | O174: =ROUND(IF(O173+N174>=O173,IF(O173>='Data Inputs'!D169*B174,O173,IF(O173+N174>'Data Inputs'!D169*B174,'Data Inputs'!D169*B174,IF(O173+N174<'Data Inputs'!E169*B174,'Data Inputs'!E169*B174,O173+N174))),IF(O173+N174<O173,IF(O173+N174<'Data Inputs'!E169*B174,'Data Inputs'!E169*B174,O173+N174),"ERROR")),2) -> 799.1 | P174: 5 | Q174: 0 | R174: =$B174*'Data Inputs'!D169 -> 799.1 | S174: =$B174*'Data Inputs'!E169 -> -2397.3 | T174: 181.0648646 | U174: 159.82 | V174: 100 | W174: 43.55766667 | X174: 1.810648646
A175: ='Data Inputs'!C170 -> 2023-07-01 | B175: 159.82 | C175: 31 | D175: 4954.42 | E175: 130673 | F175: 4.1569 | G175: 5431.945937 | J175: =-IF(F175<'Data Inputs'!F170,(F175-'Data Inputs'!F170)*E175/100,0) -> 0 | K175: =IF(OR('Data Inputs'!U170=0, 'Data Inputs'!U170=""), "N/A", 'Data Inputs'!U170*B175) -> N/A | L175: =IF(OR('Data Inputs'!U170=0, 'Data Inputs'!U170=""), "N/A", IF((G175-(D175-J175))>K175, K175, IF(K175>(G175-(D175-J175)), IF((G175-(D175-J175))<0, 0, (G175-(D175-J175))),0))) -> N/A | M175: 4954.42 | N175: 477.53 | O175: =ROUND(IF(O174+N175>=O174,IF(O174>='Data Inputs'!D170*B175,O174,IF(O174+N175>'Data Inputs'!D170*B175,'Data Inputs'!D170*B175,IF(O174+N175<'Data Inputs'!E170*B175,'Data Inputs'!E170*B175,O174+N175))),IF(O174+N175<O174,IF(O174+N175<'Data Inputs'!E170*B175,'Data Inputs'!E170*B175,O174+N175),"ERROR")),2) -> 799.1 | P175: 5 | Q175: 0 | R175: =$B175*'Data Inputs'!D170 -> 799.1 | S175: =$B175*'Data Inputs'!E170 -> -2397.3 | T175: 175.2240625 | U175: 159.82 | V175: 100 | W175: 42.15258065 | X175: 1.752240625
A176: ='Data Inputs'!C171 -> 2023-08-01 | B176: 159.82 | C176: 31 | D176: 4954.42 | E176: 130673 | F176: 4.1569 | G176: 5431.945937 | J176: =-IF(F176<'Data Inputs'!F171,(F176-'Data Inputs'!F171)*E176/100,0) -> 0 | K176: =IF(OR('Data Inputs'!U171=0, 'Data Inputs'!U171=""), "N/A", 'Data Inputs'!U171*B176) -> N/A | L176: =IF(OR('Data Inputs'!U171=0, 'Data Inputs'!U171=""), "N/A", IF((G176-(D176-J176))>K176, K176, IF(K176>(G176-(D176-J176)), IF((G176-(D176-J176))<0, 0, (G176-(D176-J176))),0))) -> N/A | M176: 4954.42 | N176: 477.53 | O176: =ROUND(IF(O175+N176>=O175,IF(O175>='Data Inputs'!D171*B176,O175,IF(O175+N176>'Data Inputs'!D171*B176,'Data Inputs'!D171*B176,IF(O175+N176<'Data Inputs'!E171*B176,'Data Inputs'!E171*B176,O175+N176))),IF(O175+N176<O175,IF(O175+N176<'Data Inputs'!E171*B176,'Data Inputs'!E171*B176,O175+N176),"ERROR")),2) -> 799.1 | P176: 5 | Q176: 0 | R176: =$B176*'Data Inputs'!D171 -> 799.1 | S176: =$B176*'Data Inputs'!E171 -> -2397.3 | T176: 175.2240625 | U176: 159.82 | V176: 100 | W176: 42.15258065 | X176: 1.752240625
A177: ='Data Inputs'!C172 -> 2023-09-01 | B177: 159.82 | C177: 30 | D177: 4794.6 | E177: 130673 | F177: 4.1569 | G177: 5431.945937 | J177: =-IF(F177<'Data Inputs'!F172,(F177-'Data Inputs'!F172)*E177/100,0) -> 0 | K177: =IF(OR('Data Inputs'!U172=0, 'Data Inputs'!U172=""), "N/A", 'Data Inputs'!U172*B177) -> N/A | L177: =IF(OR('Data Inputs'!U172=0, 'Data Inputs'!U172=""), "N/A", IF((G177-(D177-J177))>K177, K177, IF(K177>(G177-(D177-J177)), IF((G177-(D177-J177))<0, 0, (G177-(D177-J177))),0))) -> N/A | M177: 4794.6 | N177: 637.35 | O177: =ROUND(IF(O176+N177>=O176,IF(O176>='Data Inputs'!D172*B177,O176,IF(O176+N177>'Data Inputs'!D172*B177,'Data Inputs'!D172*B177,IF(O176+N177<'Data Inputs'!E172*B177,'Data Inputs'!E172*B177,O176+N177))),IF(O176+N177<O176,IF(O176+N177<'Data Inputs'!E172*B177,'Data Inputs'!E172*B177,O176+N177),"ERROR")),2) -> 799.1 | P177: 5 | Q177: 0 | R177: =$B177*'Data Inputs'!D172 -> 799.1 | S177: =$B177*'Data Inputs'!E172 -> -2397.3 | T177: 181.0648646 | U177: 159.82 | V177: 100 | W177: 43.55766667 | X177: 1.810648646
A178: ='Data Inputs'!C173 -> 2023-10-01 | B178: 159.82 | C178: 31 | D178: 4954.42 | E178: 130673 | F178: 4.1569 | G178: 5431.945937 | J178: =-IF(F178<'Data Inputs'!F173,(F178-'Data Inputs'!F173)*E178/100,0) -> 0 | K178: =IF(OR('Data Inputs'!U173=0, 'Data Inputs'!U173=""), "N/A", 'Data Inputs'!U173*B178) -> N/A | L178: =IF(OR('Data Inputs'!U173=0, 'Data Inputs'!U173=""), "N/A", IF((G178-(D178-J178))>K178, K178, IF(K178>(G178-(D178-J178)), IF((G178-(D178-J178))<0, 0, (G178-(D178-J178))),0))) -> N/A | M178: 4954.42 | N178: 477.53 | O178: =ROUND(IF(O177+N178>=O177,IF(O177>='Data Inputs'!D173*B178,O177,IF(O177+N178>'Data Inputs'!D173*B178,'Data Inputs'!D173*B178,IF(O177+N178<'Data Inputs'!E173*B178,'Data Inputs'!E173*B178,O177+N178))),IF(O177+N178<O177,IF(O177+N178<'Data Inputs'!E173*B178,'Data Inputs'!E173*B178,O177+N178),"ERROR")),2) -> 799.1 | P178: 5 | Q178: 0 | R178: =$B178*'Data Inputs'!D173 -> 799.1 | S178: =$B178*'Data Inputs'!E173 -> -2397.3 | T178: 175.2240625 | U178: 159.82 | V178: 100 | W178: 42.15258065 | X178: 1.752240625
A179: ='Data Inputs'!C174 -> 2023-11-01 | B179: 159.82 | C179: 30 | D179: 4794.6 | E179: 130673 | F179: 4.1569 | G179: 5431.945937 | J179: =-IF(F179<'Data Inputs'!F174,(F179-'Data Inputs'!F174)*E179/100,0) -> 0 | K179: =IF(OR('Data Inputs'!U174=0, 'Data Inputs'!U174=""), "N/A", 'Data Inputs'!U174*B179) -> N/A | L179: =IF(OR('Data Inputs'!U174=0, 'Data Inputs'!U174=""), "N/A", IF((G179-(D179-J179))>K179, K179, IF(K179>(G179-(D179-J179)), IF((G179-(D179-J179))<0, 0, (G179-(D179-J179))),0))) -> N/A | M179: 4794.6 | N179: 637.35 | O179: =ROUND(IF(O178+N179>=O178,IF(O178>='Data Inputs'!D174*B179,O178,IF(O178+N179>'Data Inputs'!D174*B179,'Data Inputs'!D174*B179,IF(O178+N179<'Data Inputs'!E174*B179,'Data Inputs'!E174*B179,O178+N179))),IF(O178+N179<O178,IF(O178+N179<'Data Inputs'!E174*B179,'Data Inputs'!E174*B179,O178+N179),"ERROR")),2) -> 799.1 | P179: 5 | Q179: 0 | R179: =$B179*'Data Inputs'!D174 -> 799.1 | S179: =$B179*'Data Inputs'!E174 -> -2397.3 | T179: 181.0648646 | U179: 159.82 | V179: 100 | W179: 43.55766667 | X179: 1.810648646
A180: ='Data Inputs'!C175 -> 2023-12-01 | B180: 159.82 | C180: 31 | D180: 4954.42 | E180: 130673 | F180: 4.1569 | G180: 5431.945937 | J180: =-IF(F180<'Data Inputs'!F175,(F180-'Data Inputs'!F175)*E180/100,0) -> 0 | K180: =IF(OR('Data Inputs'!U175=0, 'Data Inputs'!U175=""), "N/A", 'Data Inputs'!U175*B180) -> N/A | L180: =IF(OR('Data Inputs'!U175=0, 'Data Inputs'!U175=""), "N/A", IF((G180-(D180-J180))>K180, K180, IF(K180>(G180-(D180-J180)), IF((G180-(D180-J180))<0, 0, (G180-(D180-J180))),0))) -> N/A | M180: 4954.42 | N180: 477.53 | O180: =ROUND(IF(O179+N180>=O179,IF(O179>='Data Inputs'!D175*B180,O179,IF(O179+N180>'Data Inputs'!D175*B180,'Data Inputs'!D175*B180,IF(O179+N180<'Data Inputs'!E175*B180,'Data Inputs'!E175*B180,O179+N180))),IF(O179+N180<O179,IF(O179+N180<'Data Inputs'!E175*B180,'Data Inputs'!E175*B180,O179+N180),"ERROR")),2) -> 799.1 | P180: 5 | Q180: 0 | R180: =$B180*'Data Inputs'!D175 -> 799.1 | S180: =$B180*'Data Inputs'!E175 -> -2397.3 | T180: 175.2240625 | U180: 159.82 | V180: 100 | W180: 42.15258065 | X180: 1.752240625
A181: ='Data Inputs'!C176 -> 2024-01-01 | B181: 159.82 | C181: 31 | D181: 4954.42 | E181: 130673 | F181: 4.1569 | G181: 5431.945937 | J181: =-IF(F181<'Data Inputs'!F176,(F181-'Data Inputs'!F176)*E181/100,0) -> 0 | K181: =IF(OR('Data Inputs'!U176=0, 'Data Inputs'!U176=""), "N/A", 'Data Inputs'!U176*B181) -> N/A | L181: =IF(OR('Data Inputs'!U176=0, 'Data Inputs'!U176=""), "N/A", IF((G181-(D181-J181))>K181, K181, IF(K181>(G181-(D181-J181)), IF((G181-(D181-J181))<0, 0, (G181-(D181-J181))),0))) -> N/A | M181: 4954.42 | N181: 477.53 | O181: =ROUND(IF(O180+N181>=O180,IF(O180>='Data Inputs'!D176*B181,O180,IF(O180+N181>'Data Inputs'!D176*B181,'Data Inputs'!D176*B181,IF(O180+N181<'Data Inputs'!E176*B181,'Data Inputs'!E176*B181,O180+N181))),IF(O180+N181<O180,IF(O180+N181<'Data Inputs'!E176*B181,'Data Inputs'!E176*B181,O180+N181),"ERROR")),2) -> 799.1 | P181: 5 | Q181: 0 | R181: =$B181*'Data Inputs'!D176 -> 799.1 | S181: =$B181*'Data Inputs'!E176 -> -2397.3 | T181: 175.2240625 | U181: 159.82 | V181: 100 | W181: 42.15258065 | X181: 1.752240625
A182: ='Data Inputs'!C177 -> 2024-02-01 | B182: 159.82 | C182: 29 | D182: 4634.78 | E182: 130673 | F182: 4.1569 | G182: 5431.945937 | J182: =-IF(F182<'Data Inputs'!F177,(F182-'Data Inputs'!F177)*E182/100,0) -> 0 | K182: =IF(OR('Data Inputs'!U177=0, 'Data Inputs'!U177=""), "N/A", 'Data Inputs'!U177*B182) -> N/A | L182: =IF(OR('Data Inputs'!U177=0, 'Data Inputs'!U177=""), "N/A", IF((G182-(D182-J182))>K182, K182, IF(K182>(G182-(D182-J182)), IF((G182-(D182-J182))<0, 0, (G182-(D182-J182))),0))) -> N/A | M182: 4634.78 | N182: 797.17 | O182: =ROUND(IF(O181+N182>=O181,IF(O181>='Data Inputs'!D177*B182,O181,IF(O181+N182>'Data Inputs'!D177*B182,'Data Inputs'!D177*B182,IF(O181+N182<'Data Inputs'!E177*B182,'Data Inputs'!E177*B182,O181+N182))),IF(O181+N182<O181,IF(O181+N182<'Data Inputs'!E177*B182,'Data Inputs'!E177*B182,O181+N182),"ERROR")),2) -> 799.1 | P182: 5 | Q182: 0 | R182: =$B182*'Data Inputs'!D177 -> 799.1 | S182: =$B182*'Data Inputs'!E177 -> -2397.3 | T182: 187.3084806 | U182: 159.82 | V182: 100 | W182: 45.05965517 | X182: 1.873084806
A183: ='Data Inputs'!C178 -> 2024-03-01 | B183: 159.82 | C183: 31 | D183: 4954.42 | E183: 130673 | F183: 4.1569 | G183: 5431.945937 | J183: =-IF(F183<'Data Inputs'!F178,(F183-'Data Inputs'!F178)*E183/100,0) -> 0 | K183: =IF(OR('Data Inputs'!U178=0, 'Data Inputs'!U178=""), "N/A", 'Data Inputs'!U178*B183) -> N/A | L183: =IF(OR('Data Inputs'!U178=0, 'Data Inputs'!U178=""), "N/A", IF((G183-(D183-J183))>K183, K183, IF(K183>(G183-(D183-J183)), IF((G183-(D183-J183))<0, 0, (G183-(D183-J183))),0))) -> N/A | M183: 4954.42 | N183: 477.53 | O183: =ROUND(IF(O182+N183>=O182,IF(O182>='Data Inputs'!D178*B183,O182,IF(O182+N183>'Data Inputs'!D178*B183,'Data Inputs'!D178*B183,IF(O182+N183<'Data Inputs'!E178*B183,'Data Inputs'!E178*B183,O182+N183))),IF(O182+N183<O182,IF(O182+N183<'Data Inputs'!E178*B183,'Data Inputs'!E178*B183,O182+N183),"ERROR")),2) -> 799.1 | P183: 5 | Q183: 0 | R183: =$B183*'Data Inputs'!D178 -> 799.1 | S183: =$B183*'Data Inputs'!E178 -> -2397.3 | T183: 175.2240625 | U183: 159.82 | V183: 100 | W183: 42.15258065 | X183: 1.752240625
A184: ='Data Inputs'!C179 -> 2024-04-01 | B184: 159.82 | C184: 30 | D184: 4794.6 | E184: 130673 | F184: 4.1569 | G184: 5431.945937 | J184: =-IF(F184<'Data Inputs'!F179,(F184-'Data Inputs'!F179)*E184/100,0) -> 0 | K184: =IF(OR('Data Inputs'!U179=0, 'Data Inputs'!U179=""), "N/A", 'Data Inputs'!U179*B184) -> N/A | L184: =IF(OR('Data Inputs'!U179=0, 'Data Inputs'!U179=""), "N/A", IF((G184-(D184-J184))>K184, K184, IF(K184>(G184-(D184-J184)), IF((G184-(D184-J184))<0, 0, (G184-(D184-J184))),0))) -> N/A | M184: 4794.6 | N184: 637.35 | O184: =ROUND(IF(O183+N184>=O183,IF(O183>='Data Inputs'!D179*B184,O183,IF(O183+N184>'Data Inputs'!D179*B184,'Data Inputs'!D179*B184,IF(O183+N184<'Data Inputs'!E179*B184,'Data Inputs'!E179*B184,O183+N184))),IF(O183+N184<O183,IF(O183+N184<'Data Inputs'!E179*B184,'Data Inputs'!E179*B184,O183+N184),"ERROR")),2) -> 799.1 | P184: 5 | Q184: 0 | R184: =$B184*'Data Inputs'!D179 -> 799.1 | S184: =$B184*'Data Inputs'!E179 -> -2397.3 | T184: 181.0648646 | U184: 159.82 | V184: 100 | W184: 43.55766667 | X184: 1.810648646
A185: ='Data Inputs'!C180 -> 2024-05-01 | B185: 159.82 | C185: 31 | D185: 4954.42 | E185: 130673 | F185: 4.1569 | G185: 5431.945937 | J185: =-IF(F185<'Data Inputs'!F180,(F185-'Data Inputs'!F180)*E185/100,0) -> 0 | K185: =IF(OR('Data Inputs'!U180=0, 'Data Inputs'!U180=""), "N/A", 'Data Inputs'!U180*B185) -> N/A | L185: =IF(OR('Data Inputs'!U180=0, 'Data Inputs'!U180=""), "N/A", IF((G185-(D185-J185))>K185, K185, IF(K185>(G185-(D185-J185)), IF((G185-(D185-J185))<0, 0, (G185-(D185-J185))),0))) -> N/A | M185: 4954.42 | N185: 477.53 | O185: =ROUND(IF(O184+N185>=O184,IF(O184>='Data Inputs'!D180*B185,O184,IF(O184+N185>'Data Inputs'!D180*B185,'Data Inputs'!D180*B185,IF(O184+N185<'Data Inputs'!E180*B185,'Data Inputs'!E180*B185,O184+N185))),IF(O184+N185<O184,IF(O184+N185<'Data Inputs'!E180*B185,'Data Inputs'!E180*B185,O184+N185),"ERROR")),2) -> 799.1 | P185: 5 | Q185: 0 | R185: =$B185*'Data Inputs'!D180 -> 799.1 | S185: =$B185*'Data Inputs'!E180 -> -2397.3 | T185: 175.2240625 | U185: 159.82 | V185: 100 | W185: 42.15258065 | X185: 1.752240625
A186: ='Data Inputs'!C181 -> 2024-06-01 | B186: 159.82 | C186: 30 | D186: 4794.6 | E186: 130673 | F186: 4.1569 | G186: 5431.945937 | J186: =-IF(F186<'Data Inputs'!F181,(F186-'Data Inputs'!F181)*E186/100,0) -> 0 | K186: =IF(OR('Data Inputs'!U181=0, 'Data Inputs'!U181=""), "N/A", 'Data Inputs'!U181*B186) -> N/A | L186: =IF(OR('Data Inputs'!U181=0, 'Data Inputs'!U181=""), "N/A", IF((G186-(D186-J186))>K186, K186, IF(K186>(G186-(D186-J186)), IF((G186-(D186-J186))<0, 0, (G186-(D186-J186))),0))) -> N/A | M186: 4794.6 | N186: 637.35 | O186: =ROUND(IF(O185+N186>=O185,IF(O185>='Data Inputs'!D181*B186,O185,IF(O185+N186>'Data Inputs'!D181*B186,'Data Inputs'!D181*B186,IF(O185+N186<'Data Inputs'!E181*B186,'Data Inputs'!E181*B186,O185+N186))),IF(O185+N186<O185,IF(O185+N186<'Data Inputs'!E181*B186,'Data Inputs'!E181*B186,O185+N186),"ERROR")),2) -> 799.1 | P186: 5 | Q186: 0 | R186: =$B186*'Data Inputs'!D181 -> 799.1 | S186: =$B186*'Data Inputs'!E181 -> -2397.3 | T186: 181.0648646 | U186: 159.82 | V186: 100 | W186: 43.55766667 | X186: 1.810648646
A187: ='Data Inputs'!C182 -> 2024-07-01 | B187: 159.82 | C187: 31 | D187: 4954.42 | E187: 130673 | F187: 4.1569 | G187: 5431.945937 | J187: =-IF(F187<'Data Inputs'!F182,(F187-'Data Inputs'!F182)*E187/100,0) -> 0 | K187: =IF(OR('Data Inputs'!U182=0, 'Data Inputs'!U182=""), "N/A", 'Data Inputs'!U182*B187) -> N/A | L187: =IF(OR('Data Inputs'!U182=0, 'Data Inputs'!U182=""), "N/A", IF((G187-(D187-J187))>K187, K187, IF(K187>(G187-(D187-J187)), IF((G187-(D187-J187))<0, 0, (G187-(D187-J187))),0))) -> N/A | M187: 4954.42 | N187: 477.53 | O187: =ROUND(IF(O186+N187>=O186,IF(O186>='Data Inputs'!D182*B187,O186,IF(O186+N187>'Data Inputs'!D182*B187,'Data Inputs'!D182*B187,IF(O186+N187<'Data Inputs'!E182*B187,'Data Inputs'!E182*B187,O186+N187))),IF(O186+N187<O186,IF(O186+N187<'Data Inputs'!E182*B187,'Data Inputs'!E182*B187,O186+N187),"ERROR")),2) -> 799.1 | P187: 5 | Q187: 0 | R187: =$B187*'Data Inputs'!D182 -> 799.1 | S187: =$B187*'Data Inputs'!E182 -> -2397.3 | T187: 175.2240625 | U187: 159.82 | V187: 100 | W187: 42.15258065 | X187: 1.752240625
A188: ='Data Inputs'!C183 -> 2024-08-01 | B188: 159.82 | C188: 31 | D188: 4954.42 | E188: 130673 | F188: 4.1569 | G188: 5431.945937 | J188: =-IF(F188<'Data Inputs'!F183,(F188-'Data Inputs'!F183)*E188/100,0) -> 0 | K188: =IF(OR('Data Inputs'!U183=0, 'Data Inputs'!U183=""), "N/A", 'Data Inputs'!U183*B188) -> N/A | L188: =IF(OR('Data Inputs'!U183=0, 'Data Inputs'!U183=""), "N/A", IF((G188-(D188-J188))>K188, K188, IF(K188>(G188-(D188-J188)), IF((G188-(D188-J188))<0, 0, (G188-(D188-J188))),0))) -> N/A | M188: 4954.42 | N188: 477.53 | O188: =ROUND(IF(O187+N188>=O187,IF(O187>='Data Inputs'!D183*B188,O187,IF(O187+N188>'Data Inputs'!D183*B188,'Data Inputs'!D183*B188,IF(O187+N188<'Data Inputs'!E183*B188,'Data Inputs'!E183*B188,O187+N188))),IF(O187+N188<O187,IF(O187+N188<'Data Inputs'!E183*B188,'Data Inputs'!E183*B188,O187+N188),"ERROR")),2) -> 799.1 | P188: 5 | Q188: 0 | R188: =$B188*'Data Inputs'!D183 -> 799.1 | S188: =$B188*'Data Inputs'!E183 -> -2397.3 | T188: 175.2240625 | U188: 159.82 | V188: 100 | W188: 42.15258065 | X188: 1.752240625
A189: ='Data Inputs'!C184 -> 2024-09-01 | B189: 159.82 | C189: =EOMONTH(A188, 1)-EOMONTH(A188, 0) -> 30 | D189: 4794.6 | E189: 130673 | F189: 4.1569 | G189: 5431.945937 | J189: =-IF(F189<'Data Inputs'!F184,(F189-'Data Inputs'!F184)*E189/100,0) -> 0 | K189: =IF(OR('Data Inputs'!U184=0, 'Data Inputs'!U184=""), "N/A", 'Data Inputs'!U184*B189) -> N/A | L189: =IF(OR('Data Inputs'!U184=0, 'Data Inputs'!U184=""), "N/A", IF((G189-(D189-J189))>K189, K189, IF(K189>(G189-(D189-J189)), IF((G189-(D189-J189))<0, 0, (G189-(D189-J189))),0))) -> N/A | M189: 4794.6 | N189: 637.35 | O189: =ROUND(IF(O188+N189>=O188,IF(O188>='Data Inputs'!D184*B189,O188,IF(O188+N189>'Data Inputs'!D184*B189,'Data Inputs'!D184*B189,IF(O188+N189<'Data Inputs'!E184*B189,'Data Inputs'!E184*B189,O188+N189))),IF(O188+N189<O188,IF(O188+N189<'Data Inputs'!E184*B189,'Data Inputs'!E184*B189,O188+N189),"ERROR")),2) -> 799.1 | P189: 5 | Q189: 0 | R189: =$B189*'Data Inputs'!D184 -> 799.1 | S189: =$B189*'Data Inputs'!E184 -> -2397.3 | T189: 181.0648646 | U189: 159.82 | V189: 100 | W189: 43.55766667 | X189: 1.810648646
A190: ='Data Inputs'!C185 -> 2024-10-01 | B190: 159.82 | C190: 31 | D190: 4954.42 | E190: 130673 | F190: 4.1569 | G190: 5431.945937 | J190: =-IF(F190<'Data Inputs'!F185,(F190-'Data Inputs'!F185)*E190/100,0) -> 0 | K190: =IF(OR('Data Inputs'!U185=0, 'Data Inputs'!U185=""), "N/A", 'Data Inputs'!U185*B190) -> N/A | L190: =IF(OR('Data Inputs'!U185=0, 'Data Inputs'!U185=""), "N/A", IF((G190-(D190-J190))>K190, K190, IF(K190>(G190-(D190-J190)), IF((G190-(D190-J190))<0, 0, (G190-(D190-J190))),0))) -> N/A | M190: 4954.42 | N190: 477.53 | O190: =ROUND(IF(O189+N190>=O189,IF(O189>='Data Inputs'!D185*B190,O189,IF(O189+N190>'Data Inputs'!D185*B190,'Data Inputs'!D185*B190,IF(O189+N190<'Data Inputs'!E185*B190,'Data Inputs'!E185*B190,O189+N190))),IF(O189+N190<O189,IF(O189+N190<'Data Inputs'!E185*B190,'Data Inputs'!E185*B190,O189+N190),"ERROR")),2) -> 799.1 | P190: 5 | Q190: 0 | R190: =$B190*'Data Inputs'!D185 -> 799.1 | S190: =$B190*'Data Inputs'!E185 -> -2397.3 | T190: 175.2240625 | U190: 159.82 | V190: 100 | W190: 42.15258065 | X190: 1.752240625
A191: ='Data Inputs'!C186 -> 2024-11-01 | B191: 159.82 | C191: 30 | D191: 4794.6 | E191: 130673 | F191: 4.1569 | G191: 5431.945937 | J191: =-IF(F191<'Data Inputs'!F186,(F191-'Data Inputs'!F186)*E191/100,0) -> 0 | K191: =IF(OR('Data Inputs'!U186=0, 'Data Inputs'!U186=""), "N/A", 'Data Inputs'!U186*B191) -> N/A | L191: =IF(OR('Data Inputs'!U186=0, 'Data Inputs'!U186=""), "N/A", IF((G191-(D191-J191))>K191, K191, IF(K191>(G191-(D191-J191)), IF((G191-(D191-J191))<0, 0, (G191-(D191-J191))),0))) -> N/A | M191: 4794.6 | N191: 637.35 | O191: =ROUND(IF(O190+N191>=O190,IF(O190>='Data Inputs'!D186*B191,O190,IF(O190+N191>'Data Inputs'!D186*B191,'Data Inputs'!D186*B191,IF(O190+N191<'Data Inputs'!E186*B191,'Data Inputs'!E186*B191,O190+N191))),IF(O190+N191<O190,IF(O190+N191<'Data Inputs'!E186*B191,'Data Inputs'!E186*B191,O190+N191),"ERROR")),2) -> 799.1 | P191: 5 | Q191: 0 | R191: =$B191*'Data Inputs'!D186 -> 799.1 | S191: =$B191*'Data Inputs'!E186 -> -2397.3 | T191: 181.0648646 | U191: 159.82 | V191: 100 | W191: 43.55766667 | X191: 1.810648646
A192: ='Data Inputs'!C187 -> 2024-12-01 | B192: 159.82 | C192: 31 | D192: 4954.42 | E192: 130673 | F192: 4.1569 | G192: 5431.945937 | J192: =-IF(F192<'Data Inputs'!F187,(F192-'Data Inputs'!F187)*E192/100,0) -> 0 | K192: =IF(OR('Data Inputs'!U187=0, 'Data Inputs'!U187=""), "N/A", 'Data Inputs'!U187*B192) -> N/A | L192: =IF(OR('Data Inputs'!U187=0, 'Data Inputs'!U187=""), "N/A", IF((G192-(D192-J192))>K192, K192, IF(K192>(G192-(D192-J192)), IF((G192-(D192-J192))<0, 0, (G192-(D192-J192))),0))) -> N/A | M192: 4954.42 | N192: 477.53 | O192: =ROUND(IF(O191+N192>=O191,IF(O191>='Data Inputs'!D187*B192,O191,IF(O191+N192>'Data Inputs'!D187*B192,'Data Inputs'!D187*B192,IF(O191+N192<'Data Inputs'!E187*B192,'Data Inputs'!E187*B192,O191+N192))),IF(O191+N192<O191,IF(O191+N192<'Data Inputs'!E187*B192,'Data Inputs'!E187*B192,O191+N192),"ERROR")),2) -> 799.1 | P192: 5 | Q192: 0 | R192: =$B192*'Data Inputs'!D187 -> 799.1 | S192: =$B192*'Data Inputs'!E187 -> -2397.3 | T192: 175.2240625 | U192: 159.82 | V192: 100 | W192: 42.15258065 | X192: 1.752240625
A193: ='Data Inputs'!C188 -> 2025-01-01 | B193: 159.82 | C193: 31 | D193: 4954.42 | E193: 130673 | F193: 4.1569 | G193: 5431.945937 | J193: =-IF(F193<'Data Inputs'!F188,(F193-'Data Inputs'!F188)*E193/100,0) -> 0 | K193: =IF(OR('Data Inputs'!U188=0, 'Data Inputs'!U188=""), "N/A", 'Data Inputs'!U188*B193) -> N/A | L193: =IF(OR('Data Inputs'!U188=0, 'Data Inputs'!U188=""), "N/A", IF((G193-(D193-J193))>K193, K193, IF(K193>(G193-(D193-J193)), IF((G193-(D193-J193))<0, 0, (G193-(D193-J193))),0))) -> N/A | M193: 4954.42 | N193: 477.53 | O193: =ROUND(IF(O192+N193>=O192,IF(O192>='Data Inputs'!D188*B193,O192,IF(O192+N193>'Data Inputs'!D188*B193,'Data Inputs'!D188*B193,IF(O192+N193<'Data Inputs'!E188*B193,'Data Inputs'!E188*B193,O192+N193))),IF(O192+N193<O192,IF(O192+N193<'Data Inputs'!E188*B193,'Data Inputs'!E188*B193,O192+N193),"ERROR")),2) -> 799.1 | P193: 5 | Q193: 0 | R193: =$B193*'Data Inputs'!D188 -> 799.1 | S193: =$B193*'Data Inputs'!E188 -> -2397.3 | T193: 175.2240625 | U193: 159.82 | V193: 100 | W193: 42.15258065 | X193: 1.752240625
A194: ='Data Inputs'!C189 -> 2025-02-01 | B194: 159.82 | C194: 28 | D194: 4474.96 | E194: 130673 | F194: 4.1569 | G194: 5431.945937 | J194: =-IF(F194<'Data Inputs'!F189,(F194-'Data Inputs'!F189)*E194/100,0) -> 0 | K194: =IF(OR('Data Inputs'!U189=0, 'Data Inputs'!U189=""), "N/A", 'Data Inputs'!U189*B194) -> N/A | L194: =IF(OR('Data Inputs'!U189=0, 'Data Inputs'!U189=""), "N/A", IF((G194-(D194-J194))>K194, K194, IF(K194>(G194-(D194-J194)), IF((G194-(D194-J194))<0, 0, (G194-(D194-J194))),0))) -> N/A | M194: 4474.96 | N194: 956.99 | O194: =ROUND(IF(O193+N194>=O193,IF(O193>='Data Inputs'!D189*B194,O193,IF(O193+N194>'Data Inputs'!D189*B194,'Data Inputs'!D189*B194,IF(O193+N194<'Data Inputs'!E189*B194,'Data Inputs'!E189*B194,O193+N194))),IF(O193+N194<O193,IF(O193+N194<'Data Inputs'!E189*B194,'Data Inputs'!E189*B194,O193+N194),"ERROR")),2) -> 799.1 | P194: 5 | Q194: 0 | R194: =$B194*'Data Inputs'!D189 -> 799.1 | S194: =$B194*'Data Inputs'!E189 -> -2397.3 | T194: 193.9980692 | U194: 159.82 | V194: 100 | W194: 46.66892857 | X194: 1.939980692
A195: ='Data Inputs'!C190 -> 2025-03-01 | B195: 159.82 | C195: 31 | D195: 4954.42 | E195: 130673 | F195: 4.1569 | G195: 5431.945937 | J195: =-IF(F195<'Data Inputs'!F190,(F195-'Data Inputs'!F190)*E195/100,0) -> 0 | K195: =IF(OR('Data Inputs'!U190=0, 'Data Inputs'!U190=""), "N/A", 'Data Inputs'!U190*B195) -> N/A | L195: =IF(OR('Data Inputs'!U190=0, 'Data Inputs'!U190=""), "N/A", IF((G195-(D195-J195))>K195, K195, IF(K195>(G195-(D195-J195)), IF((G195-(D195-J195))<0, 0, (G195-(D195-J195))),0))) -> N/A | M195: 4954.42 | N195: 477.53 | O195: =ROUND(IF(O194+N195>=O194,IF(O194>='Data Inputs'!D190*B195,O194,IF(O194+N195>'Data Inputs'!D190*B195,'Data Inputs'!D190*B195,IF(O194+N195<'Data Inputs'!E190*B195,'Data Inputs'!E190*B195,O194+N195))),IF(O194+N195<O194,IF(O194+N195<'Data Inputs'!E190*B195,'Data Inputs'!E190*B195,O194+N195),"ERROR")),2) -> 799.1 | P195: 5 | Q195: 0 | R195: =$B195*'Data Inputs'!D190 -> 799.1 | S195: =$B195*'Data Inputs'!E190 -> -2397.3 | T195: 175.2240625 | U195: 159.82 | V195: 100 | W195: 42.15258065 | X195: 1.752240625
A196: ='Data Inputs'!C191 -> 2025-04-01 | B196: 159.82 | C196: 30 | D196: 4794.6 | E196: 130673 | F196: 4.1569 | G196: 5431.945937 | J196: =-IF(F196<'Data Inputs'!F191,(F196-'Data Inputs'!F191)*E196/100,0) -> 0 | K196: =IF(OR('Data Inputs'!U191=0, 'Data Inputs'!U191=""), "N/A", 'Data Inputs'!U191*B196) -> N/A | L196: =IF(OR('Data Inputs'!U191=0, 'Data Inputs'!U191=""), "N/A", IF((G196-(D196-J196))>K196, K196, IF(K196>(G196-(D196-J196)), IF((G196-(D196-J196))<0, 0, (G196-(D196-J196))),0))) -> N/A | M196: 4794.6 | N196: 637.35 | O196: =ROUND(IF(O195+N196>=O195,IF(O195>='Data Inputs'!D191*B196,O195,IF(O195+N196>'Data Inputs'!D191*B196,'Data Inputs'!D191*B196,IF(O195+N196<'Data Inputs'!E191*B196,'Data Inputs'!E191*B196,O195+N196))),IF(O195+N196<O195,IF(O195+N196<'Data Inputs'!E191*B196,'Data Inputs'!E191*B196,O195+N196),"ERROR")),2) -> 799.1 | P196: 5 | Q196: 0 | R196: =$B196*'Data Inputs'!D191 -> 799.1 | S196: =$B196*'Data Inputs'!E191 -> -2397.3 | T196: 181.0648646 | U196: 159.82 | V196: 100 | W196: 43.55766667 | X196: 1.810648646
A197: ='Data Inputs'!C192 -> 2025-05-01 | B197: 159.82 | C197: 31 | D197: 4954.42 | E197: 130673 | F197: 4.1569 | G197: 5431.945937 | J197: =-IF(F197<'Data Inputs'!F192,(F197-'Data Inputs'!F192)*E197/100,0) -> 0 | K197: =IF(OR('Data Inputs'!U192=0, 'Data Inputs'!U192=""), "N/A", 'Data Inputs'!U192*B197) -> N/A | L197: =IF(OR('Data Inputs'!U192=0, 'Data Inputs'!U192=""), "N/A", IF((G197-(D197-J197))>K197, K197, IF(K197>(G197-(D197-J197)), IF((G197-(D197-J197))<0, 0, (G197-(D197-J197))),0))) -> N/A | M197: 4954.42 | N197: 477.53 | O197: =ROUND(IF(O196+N197>=O196,IF(O196>='Data Inputs'!D192*B197,O196,IF(O196+N197>'Data Inputs'!D192*B197,'Data Inputs'!D192*B197,IF(O196+N197<'Data Inputs'!E192*B197,'Data Inputs'!E192*B197,O196+N197))),IF(O196+N197<O196,IF(O196+N197<'Data Inputs'!E192*B197,'Data Inputs'!E192*B197,O196+N197),"ERROR")),2) -> 799.1 | P197: 5 | Q197: 0 | R197: =$B197*'Data Inputs'!D192 -> 799.1 | S197: =$B197*'Data Inputs'!E192 -> -2397.3 | T197: 175.2240625 | U197: 159.82 | V197: 100 | W197: 42.15258065 | X197: 1.752240625
A198: ='Data Inputs'!C193 -> 2025-06-01 | B198: 159.82 | C198: 30 | D198: 4794.6 | E198: 130673 | F198: 4.1569 | G198: 5431.945937 | J198: =-IF(F198<'Data Inputs'!F193,(F198-'Data Inputs'!F193)*E198/100,0) -> 0 | K198: =IF(OR('Data Inputs'!U193=0, 'Data Inputs'!U193=""), "N/A", 'Data Inputs'!U193*B198) -> N/A | L198: =IF(OR('Data Inputs'!U193=0, 'Data Inputs'!U193=""), "N/A", IF((G198-(D198-J198))>K198, K198, IF(K198>(G198-(D198-J198)), IF((G198-(D198-J198))<0, 0, (G198-(D198-J198))),0))) -> N/A | M198: 4794.6 | N198: 637.35 | O198: =ROUND(IF(O197+N198>=O197,IF(O197>='Data Inputs'!D193*B198,O197,IF(O197+N198>'Data Inputs'!D193*B198,'Data Inputs'!D193*B198,IF(O197+N198<'Data Inputs'!E193*B198,'Data Inputs'!E193*B198,O197+N198))),IF(O197+N198<O197,IF(O197+N198<'Data Inputs'!E193*B198,'Data Inputs'!E193*B198,O197+N198),"ERROR")),2) -> 799.1 | P198: 5 | Q198: 0 | R198: =$B198*'Data Inputs'!D193 -> 799.1 | S198: =$B198*'Data Inputs'!E193 -> -2397.3 | T198: 181.0648646 | U198: 159.82 | V198: 100 | W198: 43.55766667 | X198: 1.810648646
A199: ='Data Inputs'!C194 -> 2025-07-01 | B199: 159.82 | C199: 31 | D199: 4954.42 | E199: 130673 | F199: 4.1569 | G199: 5431.945937 | J199: =-IF(F199<'Data Inputs'!F194,(F199-'Data Inputs'!F194)*E199/100,0) -> 0 | K199: =IF(OR('Data Inputs'!U194=0, 'Data Inputs'!U194=""), "N/A", 'Data Inputs'!U194*B199) -> N/A | L199: =IF(OR('Data Inputs'!U194=0, 'Data Inputs'!U194=""), "N/A", IF((G199-(D199-J199))>K199, K199, IF(K199>(G199-(D199-J199)), IF((G199-(D199-J199))<0, 0, (G199-(D199-J199))),0))) -> N/A | M199: 4954.42 | N199: 477.53 | O199: =ROUND(IF(O198+N199>=O198,IF(O198>='Data Inputs'!D194*B199,O198,IF(O198+N199>'Data Inputs'!D194*B199,'Data Inputs'!D194*B199,IF(O198+N199<'Data Inputs'!E194*B199,'Data Inputs'!E194*B199,O198+N199))),IF(O198+N199<O198,IF(O198+N199<'Data Inputs'!E194*B199,'Data Inputs'!E194*B199,O198+N199),"ERROR")),2) -> 799.1 | P199: =IF(B199>0,IF(O199=0,0,O199/B199),"-") -> 5 | Q199: 0 | R199: =$B199*'Data Inputs'!D194 -> 799.1 | S199: =$B199*'Data Inputs'!E194 -> -2397.3 | T199: 175.2240625 | U199: 159.82 | V199: 100 | W199: 42.15258065 | X199: 1.752240625
A200: ='Data Inputs'!C195 -> 2025-08-01 | B200: 159.82 | C200: 31 | D200: =IF(B200*C200=0,0,B200*C200) -> 4954.42 | E200: 130673 | F200: 4.1569 | G200: =IF(F200*E200>0,E200/100*F200,0) -> 5431.945937 | J200: =-IF(F200<'Data Inputs'!F195,(F200-'Data Inputs'!F195)*E200/100,0) -> 0 | K200: =IF(OR('Data Inputs'!U195=0, 'Data Inputs'!U195=""), "N/A", 'Data Inputs'!U195*B200) -> N/A | L200: =IF(OR('Data Inputs'!U195=0, 'Data Inputs'!U195=""), "N/A", IF((G200-(D200-J200))>K200, K200, IF(K200>(G200-(D200-J200)), IF((G200-(D200-J200))<0, 0, (G200-(D200-J200))),0))) -> N/A | M200: =(IF(D200=0,0,D200))+(IF(L200="N/A",0,L200))+(H200)-(I200)-(IF(J200>0,J200,0)) -> 4954.42 | N200: =ROUND(G200-M200,2) -> 477.53 | O200: =ROUND(IF(O199+N200>=O199,IF(O199>='Data Inputs'!D195*B200,O199,IF(O199+N200>'Data Inputs'!D195*B200,'Data Inputs'!D195*B200,IF(O199+N200<'Data Inputs'!E195*B200,'Data Inputs'!E195*B200,O199+N200))),IF(O199+N200<O199,IF(O199+N200<'Data Inputs'!E195*B200,'Data Inputs'!E195*B200,O199+N200),"ERROR")),2) -> 799.1 | P200: 5 | Q200: =IF(O199>=0,0,IF(O199-I199>0,0,ROUNDDOWN(-O199-I200,0))) -> 0 | R200: =$B200*'Data Inputs'!D195 -> 799.1 | S200: =$B200*'Data Inputs'!E195 -> -2397.3 | T200: =G200/$C200 -> 175.2240625 | U200: =M200/C200 -> 159.82 | V200: 100 | W200: =IF(E200*C200*V200>0,(E200/C200)/V200,0) -> 42.15258065 | X200: =IF(W200>0,W200*F200/100,0) -> 1.752240625 | Y200: =IF(AND(P200>=10,N200>0),"Upper Flexibility Limit Exceeded: "&TEXT((O199+N200-O200)/F200*100,"#,###")&" Litres Unpaid",IF(AND(P200<=-30,N200<0),"Lower Flexibility Limit Exceeded: "&TEXT(-(O199+N200-O200),"#,##0.00")&" Underproduction Credits Lost","")) -> 
A201: ='Data Inputs'!C196 -> 2025-09-01 | B201: =B200 -> 159.82 | C201: 30 | D201: 4794.6 | E201: =E200 -> 130673 | F201: 4.1569 | G201: 5431.945937 | J201: =-IF(F201<'Data Inputs'!F196,(F201-'Data Inputs'!F196)*E201/100,0) -> 0 | K201: =IF(OR('Data Inputs'!U196=0, 'Data Inputs'!U196=""), "N/A", 'Data Inputs'!U196*B201) -> N/A | L201: =IF(OR('Data Inputs'!U196=0, 'Data Inputs'!U196=""), "N/A", IF((G201-(D201-J201))>K201, K201, IF(K201>(G201-(D201-J201)), IF((G201-(D201-J201))<0, 0, (G201-(D201-J201))),0))) -> N/A | M201: 4794.6 | N201: 637.35 | O201: =ROUND(IF(O200+N201>=O200,IF(O200>='Data Inputs'!D196*B201,O200,IF(O200+N201>'Data Inputs'!D196*B201,'Data Inputs'!D196*B201,IF(O200+N201<'Data Inputs'!E196*B201,'Data Inputs'!E196*B201,O200+N201))),IF(O200+N201<O200,IF(O200+N201<'Data Inputs'!E196*B201,'Data Inputs'!E196*B201,O200+N201),"ERROR")),2) -> 799.1 | P201: 5 | Q201: 0 | R201: =$B201*'Data Inputs'!D196 -> 799.1 | S201: =$B201*'Data Inputs'!E196 -> -2397.3 | T201: 181.0648646 | U201: 159.82 | V201: 100 | W201: 43.55766667 | X201: 1.810648646
... 60 more rows

Sheet Revenue Calculator
A1: Alberta Milk Revenue Calculator v5.0
C2: Fiscal Year Begins | J2: Farm Name:
C3: 2019-01-01 | J3: Date: | K3: =TODAY() -> 2021-11-26
A5: Month | B5: Monthly Milk Volume Shipped (L) | C5: Butterfat Density (kg/hl) | D5: Protein Density (kg/hl) | E5: Lactose and Other Solids Density (kg/hl) | F5: Total Components Produced | M5: SNF/BF Ratio Limits | Q5: If You Qualified For the Milk Quality Bonus, Enter "Y" For the Appropriate Months | R5: Milk Quality Bonus ($) | S5: Environmental Compliance Bonus ($/hl) | T5: Milk Pay Deductions | AE5: Milk Quality Penalties ($) | AF5: Total Gross Revenue ($) | AG5: Gross Revenue ($) | AH5: Total Deductions ($) | AI5: Total Net Revenue ($) | AJ5: Net Revenue ($) | AK5: Notes
F6: Butterfat Produced (kg) | G6: Protein Produced (kg) | H6: Lactose and Other Solids Produced (kg) | I6: Butterfat Eligible - After Overproduction Penalties (kg) | J6: Protein Eligible - After Overproduction Penalties (kg) | K6: Lactose and Other Solids Eligible - After Overproduction Penalties (kg) | L6: Value of Overproduction Penalty ($) | M6: Year To Date SNF/BF Ratio | N6: SNF Penalty Incurred Year To Date? | O6: Amount of Excess SNF Penalty or Commuted SNF Penalty Penalty (kg) | P6: Value of Excess SNF Penalty or Commuted SNF Penalty Penalty ($) | T6: Alberta Milk Marketing Assessement ($) | U6: Alberta Milk Research Assessment ($) | V6: Alberta Milk Administration Assessment ($) | W6: Central Milk Testing Lab Fee ($) | X6: Hauling Volume Assessment ($/hl) | Y6: Hauling Yard Charge ($/pickup) | AA6: Hauling Inter-Provincial ($/hl) | AB6: Unusual Item Deductions ($) | AC6: GST ($) | AD6: Pool Deductions ($)
Y7: Number of Pickups | Z7: Total Pickup Charge ($) | AG7: Per Hectolitre | AJ7: Per Hectolitre
A8: B
A9: 2009-08-31 | B9: ='Quota Calculator'!E8 -> 100000 | C9: ='Quota Calculator'!F8 -> 3.42 | D9: 3.19 | E9: 5.67 | F9: =C9*B9/100 -> 3420 | G9: =$B9*D9/100 -> 3190 | H9: =$B9*E9/100 -> 5670 | I9: =IF('Quota Calculator'!P8>='Data Inputs'!D3, 'Quota Calculator'!G8-('Quota Calculator'!N8-'Quota Calculator'!O8+'Quota Calculator'!O7), 'Quota Calculator'!G8) -> 3420 | J9: =IF($C9>0,$I9*D9/$C9,0) -> 3190 | K9: =IF($C9>0,$I9*E9/$C9,0) -> 5670 | L9: =ROUND(-'Data Inputs'!P3*('Revenue Calculator'!F9-'Revenue Calculator'!I9)-'Data Inputs'!Q3*('Revenue Calculator'!G9-'Revenue Calculator'!J9)-'Data Inputs'!R3*('Revenue Calculator'!H9-'Revenue Calculator'!K9), 2) -> 0 | M9: =IFERROR(SUM(G9:H9)/SUM(F9), 0) -> 2.590643275 | N9: =IF(M9>'Data Inputs'!G3, "YES", "NO") -> YES | O9: =IF(N9="YES",(M9-'Data Inputs'!G3)*I9,0) -> 594.886 | P9: =IF(O9<>0,-O9*H9/SUM(I9:J9)*'Data Inputs'!R3-G9/SUM(I9:J9)*'Data Inputs'!Q3,0) -> -1975.870517 | Q9: Y | R9: =IF(Q9="y", 'Data Inputs'!T3*B9/100, 0) -> 364.5 | S9: ='Data Inputs'!S3*B9/100 -> 170 | T9: =(-$B9/100*'Data Inputs'!H3) -> -1290 | U9: =(-$B9/100*'Data Inputs'!I3) -> -50 | V9: =(-$B9/100*'Data Inputs'!J3) -> -340 | W9: =-'Data Inputs'!K3 -> -34 | X9: =(-B9/100*'Data Inputs'!M3) -> -2260 | Y9: =IF('Quota Calculator'!C8>30, 16, 15) -> 16 | Z9: =ROUND(-Y9*'Data Inputs'!L3,2) -> -303.52 | AA9: =(-B9/100*'Data Inputs'!N3) -> 0 | AB9: 0 | AC9: =0.05*(Z9+X9+W9+V9+U9+T9+AA9+AB9) -> -213.876 | AD9: =-SUM(F9:H9)*'Data Inputs'!O3 -> -433.484 | AE9: 0 | AF9: =I9*'Data Inputs'!P3+'Revenue Calculator'!J9*'Data Inputs'!Q3+'Revenue Calculator'!K9*'Data Inputs'!R3+R9+S9+P9 -> 70381.36748 | AG9: =IF(AND(AG$7="Per Day",'Quota Calculator'!C8>0),AF9/'Quota Calculator'!C8,IF(AND(AG$7="Per Hectolitre",$B9>0),AF9/($B9/100),IF(AND(AG$7="Per Kilogram of Butterfat",$F9>0),AF9/$F9,IF(AND(AG$7="Per Cow Per Day",'Quota Calculator'!C8>0),AF9/'Quota Calculator'!V8/'Quota Calculator'!C8,"-")))) -> 70.38136748 | AH9: =SUM(T9:X9,Z9:AE9) -> -4924.88 | AI9: ='Data Inputs'!P3*F9+'Data Inputs'!Q3*G9+'Data Inputs'!R3*H9+P9+R9+S9+T9+U9+V9+W9+X9+Z9+AE9+L9+AC9+AB9+AD9 -> 65456.48748 | AJ9: =IF(AND(AJ$7="Per Day",'Quota Calculator'!C8>0),AI9/'Quota Calculator'!C8,IF(AND(AJ$7="Per Hectolitre",$B9>0),AI9/($B9/100),IF(AND(AJ$7="Per Kilogram of Butterfat",$F9>0),AI9/$F9,IF(AND(AJ$7="Per Cow Per Day",'Quota Calculator'!C8>0),AI9/'Quota Calculator'!V8/'Quota Calculator'!C8,"-")))) -> 65.45648748
A10: 2009-09-30 | B10: ='Quota Calculator'!E9 -> 70000 | C10: ='Quota Calculator'!F9 -> 3.42 | D10: 3.27 | E10: 5.65 | F10: =C10*B10/100 -> 2394 | G10: =$B10*D10/100 -> 2289 | H10: =$B10*E10/100 -> 3955 | I10: =IF('Quota Calculator'!P9>='Data Inputs'!D4, 'Quota Calculator'!G9-('Quota Calculator'!N9-'Quota Calculator'!O9+'Quota Calculator'!O8), 'Quota Calculator'!G9) -> 2394 | J10: =IF($C10>0,$I10*D10/$C10,0) -> 2289 | K10: =IF($C10>0,$I10*E10/$C10,0) -> 3955 | L10: =ROUND(-'Data Inputs'!P4*('Revenue Calculator'!F10-'Revenue Calculator'!I10)-'Data Inputs'!Q4*('Revenue Calculator'!G10-'Revenue Calculator'!J10)-'Data Inputs'!R4*('Revenue Calculator'!H10-'Revenue Calculator'!K10), 2) -> 0 | M10: =IFERROR(SUM(G9:H10)/SUM(F9:F10), 0) -> 2.597867217 | N10: =IF(M10>'Data Inputs'!G4, "YES", "NO") -> YES | O10: =IF(N10="YES",(M10-'Data Inputs'!G4)*SUM(I9:I10,0)-SUM(O9),-SUM(O9)) -> 458.4202 | P10: =IF(O10<>0,-O10*H10/SUM(I10:J10)*'Data Inputs'!R4-G10/SUM(I10:J10)*'Data Inputs'!Q4,0) -> -1230.65008 | Q10: =Q9 -> Y | R10: =IF(Q10="y", 'Data Inputs'!T4*B10/100, 0) -> 241.43 | S10: ='Data Inputs'!S4*B10/100 -> 119 | T10: =(-$B10/100*'Data Inputs'!H4) -> -903 | U10: =(-$B10/100*'Data Inputs'!I4) -> -35 | V10: =(-$B10/100*'Data Inputs'!J4) -> -238 | W10: =-'Data Inputs'!K4 -> -34 | X10: =(-B10/100*'Data Inputs'!M4) -> -1582 | Y10: =IF('Quota Calculator'!C9>30, 16, 15) -> 15 | Z10: =ROUND(-Y10*'Data Inputs'!L4,2) -> -284.55 | AA10: =(-B10/100*'Data Inputs'!N4) -> 0 | AB10: 0 | AC10: =0.05*(Z10+X10+W10+V10+U10+T10+AA10+AB10) -> -153.8275 | AD10: =-SUM(F10:H10)*'Data Inputs'!O4 -> -160.6668 | AE10: 0 | AF10: =I10*'Data Inputs'!P4+'Revenue Calculator'!J10*'Data Inputs'!Q4+'Revenue Calculator'!K10*'Data Inputs'!R4+R10+S10+P10 -> 46415.86842 | AG10: =IF(AND(AG$7="Per Day",'Quota Calculator'!C9>0),AF10/'Quota Calculator'!C9,IF(AND(AG$7="Per Hectolitre",$B10>0),AF10/($B10/100),IF(AND(AG$7="Per Kilogram of Butterfat",$F10>0),AF10/$F10,IF(AND(AG$7="Per Cow Per Day",'Quota Calculator'!C9>0),AF10/'Quota Calculator'!V9/'Quota Calculator'!C9,"-")))) -> 66.30838346 | AH10: -3391.0443 | AI10: ='Data Inputs'!P4*F10+'Data Inputs'!Q4*G10+'Data Inputs'!R4*H10+P10+R10+S10+T10+U10+V10+W10+X10+Z10+AE10+L10+AC10+AB10+AD10 -> 43024.82412 | AJ10: =IF(AND(AJ$7="Per Day",'Quota Calculator'!C9>0),AI10/'Quota Calculator'!C9,IF(AND(AJ$7="Per Hectolitre",$B10>0),AI10/($B10/100),IF(AND(AJ$7="Per Kilogram of Butterfat",$F10>0),AI10/$F10,IF(AND(AJ$7="Per Cow Per Day",'Quota Calculator'!C9>0),AI10/'Quota Calculator'!V9/'Quota Calculator'!C9,"-")))) -> 61.46403446
A11: 2009-10-31 | B11: ='Quota Calculator'!E10 -> 70000 | C11: ='Quota Calculator'!F10 -> 3.42 | D11: 3.42 | E11: 5.72 | F11: 2394 | G11: 2394 | H11: 4004 | I11: =IF('Quota Calculator'!P10>='Data Inputs'!D5, 'Quota Calculator'!G10-('Quota Calculator'!N10-'Quota Calculator'!O10+'Quota Calculator'!O9), 'Quota Calculator'!G10) -> 2394 | J11: =IF($C11>0,$I11*D11/$C11,0) -> 2394 | K11: 4004 | L11: =ROUND(-'Data Inputs'!P5*('Revenue Calculator'!F11-'Revenue Calculator'!I11)-'Data Inputs'!Q5*('Revenue Calculator'!G11-'Revenue Calculator'!J11)-'Data Inputs'!R5*('Revenue Calculator'!H11-'Revenue Calculator'!K11), 2) -> 0 | M11: =IFERROR(SUM(G9:H11)/SUM(F9:F11), 0) -> 2.619639376 | N11: =IF(M11>'Data Inputs'!G5, "YES", "NO") -> YES | O11: =IF(N11="YES",(M11-'Data Inputs'!G5)*SUM(I9:I11,0)-SUM(O9:O10),-SUM(O9:O10)) -> 612.4202 | P11: =IF(O11<>0,-O11*H11/SUM(I11:J11)*'Data Inputs'!R5-G11/SUM(I11:J11)*'Data Inputs'!Q5,0) -> -1595.495884 | Q11: =Q10 -> Y | R11: =IF(Q11="y", 'Data Inputs'!T5*B11/100, 0) -> 235.48 | S11: ='Data Inputs'!S5*B11/100 -> 119 | T11: =(-$B11/100*'Data Inputs'!H5) -> -903 | U11: =(-$B11/100*'Data Inputs'!I5) -> -35 | V11: =(-$B11/100*'Data Inputs'!J5) -> -238 | W11: =-'Data Inputs'!K5 -> -34 | X11: =(-B11/100*'Data Inputs'!M5) -> -1582 | Y11: =IF('Quota Calculator'!C10>30, 16, 15) -> 16 | Z11: =ROUND(-Y11*'Data Inputs'!L5,2) -> -303.52 | AA11: =(-B11/100*'Data Inputs'!N5) -> 0 | AB11: 0 | AC11: -154.776 | AD11: =-SUM(F11:H11)*'Data Inputs'!O5 -> -272.552 | AE11: 0 | AF11: =I11*'Data Inputs'!P5+'Revenue Calculator'!J11*'Data Inputs'!Q5+'Revenue Calculator'!K11*'Data Inputs'!R5+R11+S11+P11 -> 47429.63972 | AG11: =IF(AND(AG$7="Per Day",'Quota Calculator'!C10>0),AF11/'Quota Calculator'!C10,IF(AND(AG$7="Per Hectolitre",$B11>0),AF11/($B11/100),IF(AND(AG$7="Per Kilogram of Butterfat",$F11>0),AF11/$F11,IF(AND(AG$7="Per Cow Per Day",'Quota Calculator'!C10>0),AF11/'Quota Calculator'!V10/'Quota Calculator'!C10,"-")))) -> 67.75662817 | AH11: -3522.848 | AI11: ='Data Inputs'!P5*F11+'Data Inputs'!Q5*G11+'Data Inputs'!R5*H11+P11+R11+S11+T11+U11+V11+W11+X11+Z11+AE11+L11+AC11+AB11+AD11 -> 43906.79172 | AJ11: =IF(AND(AJ$7="Per Day",'Quota Calculator'!C10>0),AI11/'Quota Calculator'!C10,IF(AND(AJ$7="Per Hectolitre",$B11>0),AI11/($B11/100),IF(AND(AJ$7="Per Kilogram of Butterfat",$F11>0),AI11/$F11,IF(AND(AJ$7="Per Cow Per Day",'Quota Calculator'!C10>0),AI11/'Quota Calculator'!V10/'Quota Calculator'!C10,"-")))) -> 62.72398817
A12: 2009-11-30 | B12: ='Quota Calculator'!E11 -> 70000 | C12: ='Quota Calculator'!F11 -> 3.42 | D12: 3.33 | E12: 5.71 | F12: 2394 | G12: 2331 | H12: 3997 | I12: =IF('Quota Calculator'!P11>='Data Inputs'!D6, 'Quota Calculator'!G11-('Quota Calculator'!N11-'Quota Calculator'!O11+'Quota Calculator'!O10), 'Quota Calculator'!G11) -> 2394 | J12: =IF($C12>0,$I12*D12/$C12,0) -> 2331 | K12: 3997 | L12: =ROUND(-'Data Inputs'!P6*('Revenue Calculator'!F12-'Revenue Calculator'!I12)-'Data Inputs'!Q6*('Revenue Calculator'!G12-'Revenue Calculator'!J12)-'Data Inputs'!R6*('Revenue Calculator'!H12-'Revenue Calculator'!K12), 2) -> 0 | M12: =IFERROR(SUM(G9:H12)/SUM(F9:F12), 0) -> 2.62497642 | N12: =IF(M12>'Data Inputs'!G6, "YES", "NO") -> YES | O12: =IF(N12="YES",(M12-'Data Inputs'!G6)*SUM(I9:I12,0)-SUM(O9:O11),-SUM(O9:O11)) -> 542.4202 | P12: =IF(O12<>0,-O12*H12/SUM(I12:J12)*'Data Inputs'!R6-G12/SUM(I12:J12)*'Data Inputs'!Q6,0) -> -1729.676116 | Q12: Y | R12: =IF(Q12="y", 'Data Inputs'!T6*B12/100, 0) -> 217.21 | S12: ='Data Inputs'!S6*B12/100 -> 119 | T12: =(-$B12/100*'Data Inputs'!H6) -> -903 | U12: =(-$B12/100*'Data Inputs'!I6) -> -35 | V12: =(-$B12/100*'Data Inputs'!J6) -> -238 | W12: =-'Data Inputs'!K6 -> -34 | X12: =(-B12/100*'Data Inputs'!M6) -> -1582 | Y12: =IF('Quota Calculator'!C11>30, 16, 15) -> 15 | Z12: =ROUND(-Y12*'Data Inputs'!L6,2) -> -284.55 | AA12: =(-B12/100*'Data Inputs'!N6) -> 0 | AB12: 0 | AC12: -153.8275 | AD12: =-SUM(F12:H12)*'Data Inputs'!O6 -> -191.0118 | AE12: 0 | AF12: =I12*'Data Inputs'!P6+'Revenue Calculator'!J12*'Data Inputs'!Q6+'Revenue Calculator'!K12*'Data Inputs'!R6+R12+S12+P12 -> 48754.97418 | AG12: =IF(AND(AG$7="Per Day",'Quota Calculator'!C11>0),AF12/'Quota Calculator'!C11,IF(AND(AG$7="Per Hectolitre",$B12>0),AF12/($B12/100),IF(AND(AG$7="Per Kilogram of Butterfat",$F12>0),AF12/$F12,IF(AND(AG$7="Per Cow Per Day",'Quota Calculator'!C11>0),AF12/'Quota Calculator'!V11/'Quota Calculator'!C11,"-")))) -> 69.64996312 | AH12: -3421.3893 | AI12: ='Data Inputs'!P6*F12+'Data Inputs'!Q6*G12+'Data Inputs'!R6*H12+P12+R12+S12+T12+U12+V12+W12+X12+Z12+AE12+L12+AC12+AB12+AD12 -> 45333.58488 | AJ12: =IF(AND(AJ$7="Per Day",'Quota Calculator'!C11>0),AI12/'Quota Calculator'!C11,IF(AND(AJ$7="Per Hectolitre",$B12>0),AI12/($B12/100),IF(AND(AJ$7="Per Kilogram of Butterfat",$F12>0),AI12/$F12,IF(AND(AJ$7="Per Cow Per Day",'Quota Calculator'!C11>0),AI12/'Quota Calculator'!V11/'Quota Calculator'!C11,"-")))) -> 64.76226412
A13: 2009-12-31 | B13: ='Quota Calculator'!E12 -> 70000 | C13: ='Quota Calculator'!F12 -> 3.42 | D13: 3.35 | E13: 5.7 | F13: 2394 | G13: 2345 | H13: 3990 | I13: =IF('Quota Calculator'!P12>='Data Inputs'!D7, 'Quota Calculator'!G12-('Quota Calculator'!N12-'Quota Calculator'!O12+'Quota Calculator'!O11), 'Quota Calculator'!G12) -> 2394 | J13: 2345 | K13: 3990 | L13: =ROUND(-'Data Inputs'!P7*('Revenue Calculator'!F13-'Revenue Calculator'!I13)-'Data Inputs'!Q7*('Revenue Calculator'!G13-'Revenue Calculator'!J13)-'Data Inputs'!R7*('Revenue Calculator'!H13-'Revenue Calculator'!K13), 2) -> 0 | M13: =IFERROR(SUM(G9:H13)/SUM(F9:F13),0) -> 2.628885811 | N13: =IF(M13>'Data Inputs'!G7, "YES", "NO") -> YES | O13: =IF(N13="YES",(M13-'Data Inputs'!G7)*SUM(I9:I13,0)-SUM(O9:O12),-SUM(O9:O12)) -> 549.4202 | P13: =IF(O13<>0,-O13*H13/SUM(I13:J13)*'Data Inputs'!R7-G13/SUM(I13:J13)*'Data Inputs'!Q7,0) -> -1845.141617 | Q13: Y | R13: =IF(Q13="y", 'Data Inputs'!T7*B13/100, 0) -> 228.27 | S13: ='Data Inputs'!S7*B13/100 -> 119 | T13: =(-$B13/100*'Data Inputs'!H7) -> -903 | U13: =(-$B13/100*'Data Inputs'!I7) -> -35 | V13: =(-$B13/100*'Data Inputs'!J7) -> -238 | W13: =-'Data Inputs'!K7 -> -34 | X13: =(-B13/100*'Data Inputs'!M7) -> -1582 | Y13: =IF('Quota Calculator'!C12>30, 16, 15) -> 16 | Z13: =ROUND(-Y13*'Data Inputs'!L7,2) -> -303.52 | AA13: =(-B13/100*'Data Inputs'!N7) -> 0 | AB13: 0 | AC13: -154.776 | AD13: =-SUM(F13:H13)*'Data Inputs'!O7 -> -343.0497 | AE13: 0 | AF13: =I13*'Data Inputs'!P7+'Revenue Calculator'!J13*'Data Inputs'!Q7+'Revenue Calculator'!K13*'Data Inputs'!R7+R13+S13+P13 -> 50619.09818 | AG13: =IF(AND(AG$7="Per Day",'Quota Calculator'!C12>0),AF13/'Quota Calculator'!C12,IF(AND(AG$7="Per Hectolitre",$B13>0),AF13/($B13/100),IF(AND(AG$7="Per Kilogram of Butterfat",$F13>0),AF13/$F13,IF(AND(AG$7="Per Cow Per Day",'Quota Calculator'!C12>0),AF13/'Quota Calculator'!V12/'Quota Calculator'!C12,"-")))) -> 72.3129974 | AH13: -3593.3457 | AI13: ='Data Inputs'!P7*F13+'Data Inputs'!Q7*G13+'Data Inputs'!R7*H13+P13+R13+S13+T13+U13+V13+W13+X13+Z13+AE13+L13+AC13+AB13+AD13 -> 47025.75248 | AJ13: =IF(AND(AJ$7="Per Day",'Quota Calculator'!C12>0),AI13/'Quota Calculator'!C12,IF(AND(AJ$7="Per Hectolitre",$B13>0),AI13/($B13/100),IF(AND(AJ$7="Per Kilogram of Butterfat",$F13>0),AI13/$F13,IF(AND(AJ$7="Per Cow Per Day",'Quota Calculator'!C12>0),AI13/'Quota Calculator'!V12/'Quota Calculator'!C12,"-")))) -> 67.1796464
A14: 2010-01-31 | B14: ='Quota Calculator'!E13 -> 70000 | C14: ='Quota Calculator'!F13 -> 3.42 | D14: 3.39 | E14: 5.7 | F14: 2394 | G14: 2373 | H14: 3990 | I14: =IF('Quota Calculator'!P13>='Data Inputs'!D8, 'Quota Calculator'!G13-('Quota Calculator'!N13-'Quota Calculator'!O13+'Quota Calculator'!O12), 'Quota Calculator'!G13) -> 2394 | J14: 2373 | K14: 3990 | L14: =ROUND(-'Data Inputs'!P8*('Revenue Calculator'!F14-'Revenue Calculator'!I14)-'Data Inputs'!Q8*('Revenue Calculator'!G14-'Revenue Calculator'!J14)-'Data Inputs'!R8*('Revenue Calculator'!H14-'Revenue Calculator'!K14), 2) -> 0 | M14: =IFERROR(SUM(G9:H14)/SUM(F9:F14), 0) -> 2.633398311 | N14: =IF(M14>'Data Inputs'!G8, "YES", "NO") -> YES | O14: =IF(N14="YES",(M14-'Data Inputs'!G8)*SUM(I9:I14,0)-SUM(O9:O13),-SUM(O9:O13)) -> 577.4202 | P14: =IF(O14<>0,-O14*H14/SUM(I14:J14)*'Data Inputs'!R8-G14/SUM(I14:J14)*'Data Inputs'!Q8,0) -> -1502.230729 | Q14: Y | R14: =IF(Q14="y", 'Data Inputs'!T8*B14/100, 0) -> 207.69 | S14: ='Data Inputs'!S8*B14/100 -> 119 | T14: =(-$B14/100*'Data Inputs'!H8) -> -903 | U14: =(-$B14/100*'Data Inputs'!I8) -> -35 | V14: =(-$B14/100*'Data Inputs'!J8) -> -238 | W14: =-'Data Inputs'!K8 -> -34 | X14: =(-B14/100*'Data Inputs'!M8) -> -1582 | Y14: =IF('Quota Calculator'!C13>30, 16, 15) -> 16 | Z14: =ROUND(-Y14*'Data Inputs'!L8,2) -> -303.52 | AA14: =(-B14/100*'Data Inputs'!N8) -> 0 | AB14: 0 | AC14: -154.776 | AD14: =-SUM(F14:H14)*'Data Inputs'!O8 -> -375.6753 | AE14: 0 | AF14: =I14*'Data Inputs'!P8+'Revenue Calculator'!J14*'Data Inputs'!Q8+'Revenue Calculator'!K14*'Data Inputs'!R8+R14+S14+P14 -> 47096.50407 | AG14: =IF(AND(AG$7="Per Day",'Quota Calculator'!C13>0),AF14/'Quota Calculator'!C13,IF(AND(AG$7="Per Hectolitre",$B14>0),AF14/($B14/100),IF(AND(AG$7="Per Kilogram of Butterfat",$F14>0),AF14/$F14,IF(AND(AG$7="Per Cow Per Day",'Quota Calculator'!C13>0),AF14/'Quota Calculator'!V13/'Quota Calculator'!C13,"-")))) -> 67.2807201 | AH14: -3625.9713 | AI14: ='Data Inputs'!P8*F14+'Data Inputs'!Q8*G14+'Data Inputs'!R8*H14+P14+R14+S14+T14+U14+V14+W14+X14+Z14+AE14+L14+AC14+AB14+AD14 -> 43470.53277 | AJ14: =IF(AND(AJ$7="Per Day",'Quota Calculator'!C13>0),AI14/'Quota Calculator'!C13,IF(AND(AJ$7="Per Hectolitre",$B14>0),AI14/($B14/100),IF(AND(AJ$7="Per Kilogram of Butterfat",$F14>0),AI14/$F14,IF(AND(AJ$7="Per Cow Per Day",'Quota Calculator'!C13>0),AI14/'Quota Calculator'!V13/'Quota Calculator'!C13,"-")))) -> 62.1007611
A15: 2010-02-28 | B15: ='Quota Calculator'!E14 -> 70000 | C15: ='Quota Calculator'!F14 -> 3.42 | D15: 3.37 | E15: 5.7 | F15: 2394 | G15: 2359 | H15: 3990 | I15: =IF('Quota Calculator'!P14>='Data Inputs'!D9, 'Quota Calculator'!G14-('Quota Calculator'!N14-'Quota Calculator'!O14+'Quota Calculator'!O13), 'Quota Calculator'!G14) -> 2394 | J15: 2359 | K15: 3990 | L15: =ROUND(-'Data Inputs'!P9*('Revenue Calculator'!F15-'Revenue Calculator'!I15)-'Data Inputs'!Q9*('Revenue Calculator'!G15-'Revenue Calculator'!J15)-'Data Inputs'!R9*('Revenue Calculator'!H15-'Revenue Calculator'!K15), 2) -> 0 | M15: =IFERROR(SUM(G9:H15)/SUM(F9:F15), 0) -> 2.635908682 | N15: =IF(M15>'Data Inputs'!G9, "YES", "NO") -> YES | O15: =IF(N15="YES",(M15-'Data Inputs'!G9)*SUM(I9:I15,0)-SUM(O9:O14),-SUM(O9:O14)) -> 563.4202 | P15: =IF(O15<>0,-O15*H15/SUM(I15:J15)*'Data Inputs'!R9-G15/SUM(I15:J15)*'Data Inputs'!Q9,0) -> -1722.592123 | Q15: Y | R15: =IF(Q15="y", 'Data Inputs'!T9*B15/100, 0) -> 220.64 | S15: ='Data Inputs'!S9*B15/100 -> 119 | T15: =(-$B15/100*'Data Inputs'!H9) -> -903 | U15: =(-$B15/100*'Data Inputs'!I9) -> -35 | V15: =(-$B15/100*'Data Inputs'!J9) -> -238 | W15: =-'Data Inputs'!K9 -> -34 | X15: =(-B15/100*'Data Inputs'!M9) -> -1582 | Y15: =IF('Quota Calculator'!C14>30, 16, 15) -> 15 | Z15: =ROUND(-Y15*'Data Inputs'!L9,2) -> -284.55 | AA15: =(-B15/100*'Data Inputs'!N9) -> 0 | AB15: 0 | AC15: -153.8275 | AD15: =-SUM(F15:H15)*'Data Inputs'!O9 -> -301.6335 | AE15: 0 | AF15: =I15*'Data Inputs'!P9+'Revenue Calculator'!J15*'Data Inputs'!Q9+'Revenue Calculator'!K15*'Data Inputs'!R9+R15+S15+P15 -> 48670.45828 | AG15: =IF(AND(AG$7="Per Day",'Quota Calculator'!C14>0),AF15/'Quota Calculator'!C14,IF(AND(AG$7="Per Hectolitre",$B15>0),AF15/($B15/100),IF(AND(AG$7="Per Kilogram of Butterfat",$F15>0),AF15/$F15,IF(AND(AG$7="Per Cow Per Day",'Quota Calculator'!C14>0),AF15/'Quota Calculator'!V14/'Quota Calculator'!C14,"-")))) -> 69.52922611 | AH15: -3532.011 | AI15: ='Data Inputs'!P9*F15+'Data Inputs'!Q9*G15+'Data Inputs'!R9*H15+P15+R15+S15+T15+U15+V15+W15+X15+Z15+AE15+L15+AC15+AB15+AD15 -> 45138.44728 | AJ15: =IF(AND(AJ$7="Per Day",'Quota Calculator'!C14>0),AI15/'Quota Calculator'!C14,IF(AND(AJ$7="Per Hectolitre",$B15>0),AI15/($B15/100),IF(AND(AJ$7="Per Kilogram of Butterfat",$F15>0),AI15/$F15,IF(AND(AJ$7="Per Cow Per Day",'Quota Calculator'!C14>0),AI15/'Quota Calculator'!V14/'Quota Calculator'!C14,"-")))) -> 64.48349611
A16: 2010-03-31 | B16: ='Quota Calculator'!E15 -> 70000 | C16: ='Quota Calculator'!F15 -> 3.42 | D16: 3.29 | E16: 5.67 | F16: 2394 | G16: 2303 | H16: 3969 | I16: =IF('Quota Calculator'!P15>='Data Inputs'!D10, 'Quota Calculator'!G15-('Quota Calculator'!N15-'Quota Calculator'!O15+'Quota Calculator'!O14), 'Quota Calculator'!G15) -> 2394 | J16: 2303 | K16: 3969 | L16: =ROUND(-'Data Inputs'!P10*('Revenue Calculator'!F16-'Revenue Calculator'!I16)-'Data Inputs'!Q10*('Revenue Calculator'!G16-'Revenue Calculator'!J16)-'Data Inputs'!R10*('Revenue Calculator'!H16-'Revenue Calculator'!K16), 2) -> 0 | M16: =IFERROR(SUM(G9:H16)/SUM(F9:F16), 0) -> 2.634007335 | N16: =IF(M16>'Data Inputs'!G10, "YES", "NO") -> YES | O16: =IF(N16="YES",(M16-'Data Inputs'!G10)*SUM(I9:I16,0)-SUM(O9:O15),-SUM(O9:O15)) -> 486.4202 | P16: =IF(O16<>0,-O16*H16/SUM(I16:J16)*'Data Inputs'!R10-G16/SUM(I16:J16)*'Data Inputs'!Q10,0) -> -1415.779517 | Q16: Y | R16: =IF(Q16="y", 'Data Inputs'!T10*B16/100, 0) -> 229.46 | S16: ='Data Inputs'!S10*B16/100 -> 119 | T16: =(-$B16/100*'Data Inputs'!H10) -> -903 | U16: =(-$B16/100*'Data Inputs'!I10) -> -35 | V16: =(-$B16/100*'Data Inputs'!J10) -> -238 | W16: =-'Data Inputs'!K10 -> -34 | X16: =(-B16/100*'Data Inputs'!M10) -> -1582 | Y16: =IF('Quota Calculator'!C15>30, 16, 15) -> 16 | Z16: =ROUND(-Y16*'Data Inputs'!L10,2) -> -303.52 | AA16: =(-B16/100*'Data Inputs'!N10) -> 0 | AB16: 0 | AC16: -154.776 | AD16: =-SUM(F16:H16)*'Data Inputs'!O10 -> -210.5838 | AE16: 0 | AF16: =I16*'Data Inputs'!P10+'Revenue Calculator'!J16*'Data Inputs'!Q10+'Revenue Calculator'!K16*'Data Inputs'!R10+R16+S16+P16 -> 48657.38418 | AG16: =IF(AND(AG$7="Per Day",'Quota Calculator'!C15>0),AF16/'Quota Calculator'!C15,IF(AND(AG$7="Per Hectolitre",$B16>0),AF16/($B16/100),IF(AND(AG$7="Per Kilogram of Butterfat",$F16>0),AF16/$F16,IF(AND(AG$7="Per Cow Per Day",'Quota Calculator'!C15>0),AF16/'Quota Calculator'!V15/'Quota Calculator'!C15,"-")))) -> 69.51054883 | AH16: -3460.8798 | AI16: ='Data Inputs'!P10*F16+'Data Inputs'!Q10*G16+'Data Inputs'!R10*H16+P16+R16+S16+T16+U16+V16+W16+X16+Z16+AE16+L16+AC16+AB16+AD16 -> 45196.50438 | AJ16: =IF(AND(AJ$7="Per Day",'Quota Calculator'!C15>0),AI16/'Quota Calculator'!C15,IF(AND(AJ$7="Per Hectolitre",$B16>0),AI16/($B16/100),IF(AND(AJ$7="Per Kilogram of Butterfat",$F16>0),AI16/$F16,IF(AND(AJ$7="Per Cow Per Day",'Quota Calculator'!C15>0),AI16/'Quota Calculator'!V15/'Quota Calculator'!C15,"-")))) -> 64.56643483
A17: 2010-04-30 | B17: ='Quota Calculator'!E16 -> 70000 | C17: ='Quota Calculator'!F16 -> 3.42 | D17: 3.25 | E17: 5.64 | F17: 2394 | G17: 2275 | H17: 3948 | I17: =IF('Quota Calculator'!P16>='Data Inputs'!D11, 'Quota Calculator'!G16-('Quota Calculator'!N16-'Quota Calculator'!O16+'Quota Calculator'!O15), 'Quota Calculator'!G16) -> 2394 | J17: 2275 | K17: 3948 | L17: =ROUND(-'Data Inputs'!P11*('Revenue Calculator'!F17-'Revenue Calculator'!I17)-'Data Inputs'!Q11*('Revenue Calculator'!G17-'Revenue Calculator'!J17)-'Data Inputs'!R11*('Revenue Calculator'!H17-'Revenue Calculator'!K17), 2) -> 0 | M17: =IFERROR(SUM(G9:H17)/SUM(F9:F17), 0) -> 2.630338472 | N17: =IF(M17>'Data Inputs'!G11, "YES", "NO") -> YES | O17: =IF(N17="YES",(M17-'Data Inputs'!G11)*SUM(I9:I17,0)-SUM(O9:O16),-SUM(O9:O16)) -> 437.4202 | P17: =IF(O17<>0,-O17*H17/SUM(I17:J17)*'Data Inputs'!R11-G17/SUM(I17:J17)*'Data Inputs'!Q11,0) -> -1280.80192 | Q17: Y | R17: =IF(Q17="y", 'Data Inputs'!T11*B17/100, 0) -> 233.31 | S17: ='Data Inputs'!S11*B17/100 -> 119 | T17: =(-$B17/100*'Data Inputs'!H11) -> -903 | U17: =(-$B17/100*'Data Inputs'!I11) -> -35 | V17: =(-$B17/100*'Data Inputs'!J11) -> -238 | W17: =-'Data Inputs'!K11 -> -34 | X17: =(-B17/100*'Data Inputs'!M11) -> -1582 | Y17: =IF('Quota Calculator'!C16>30, 16, 15) -> 15 | Z17: =ROUND(-Y17*'Data Inputs'!L11,2) -> -284.55 | AA17: =(-B17/100*'Data Inputs'!N11) -> 0 | AB17: 0 | AC17: -153.8275 | AD17: =-SUM(F17:H17)*'Data Inputs'!O11 -> -311.9354 | AE17: 0 | AF17: =I17*'Data Inputs'!P11+'Revenue Calculator'!J17*'Data Inputs'!Q11+'Revenue Calculator'!K17*'Data Inputs'!R11+R17+S17+P17 -> 48586.00948 | AG17: =IF(AND(AG$7="Per Day",'Quota Calculator'!C16>0),AF17/'Quota Calculator'!C16,IF(AND(AG$7="Per Hectolitre",$B17>0),AF17/($B17/100),IF(AND(AG$7="Per Kilogram of Butterfat",$F17>0),AF17/$F17,IF(AND(AG$7="Per Cow Per Day",'Quota Calculator'!C16>0),AF17/'Quota Calculator'!V16/'Quota Calculator'!C16,"-")))) -> 69.40858497 | AH17: -3542.3129 | AI17: ='Data Inputs'!P11*F17+'Data Inputs'!Q11*G17+'Data Inputs'!R11*H17+P17+R17+S17+T17+U17+V17+W17+X17+Z17+AE17+L17+AC17+AB17+AD17 -> 45043.69658 | AJ17: =IF(AND(AJ$7="Per Day",'Quota Calculator'!C16>0),AI17/'Quota Calculator'!C16,IF(AND(AJ$7="Per Hectolitre",$B17>0),AI17/($B17/100),IF(AND(AJ$7="Per Kilogram of Butterfat",$F17>0),AI17/$F17,IF(AND(AJ$7="Per Cow Per Day",'Quota Calculator'!C16>0),AI17/'Quota Calculator'!V16/'Quota Calculator'!C16,"-")))) -> 64.34813797
A18: 2010-05-31 | B18: ='Quota Calculator'!E17 -> 70000 | C18: ='Quota Calculator'!F17 -> 3.42 | D18: 3.26 | E18: 5.66 | F18: 2394 | G18: 2282 | H18: 3962 | I18: =IF('Quota Calculator'!P17>='Data Inputs'!D12, 'Quota Calculator'!G17-('Quota Calculator'!N17-'Quota Calculator'!O17+'Quota Calculator'!O16), 'Quota Calculator'!G17) -> 2394 | J18: 2282 | K18: 3962 | L18: =ROUND(-'Data Inputs'!P12*('Revenue Calculator'!F18-'Revenue Calculator'!I18)-'Data Inputs'!Q12*('Revenue Calculator'!G18-'Revenue Calculator'!J18)-'Data Inputs'!R12*('Revenue Calculator'!H18-'Revenue Calculator'!K18), 2) -> 0 | M18: =IFERROR(SUM(G9:H18)/SUM(F9:F18), 0) -> 2.628214372 | N18: =IF(M18>'Data Inputs'!G12, "YES", "NO") -> YES | O18: =IF(N18="YES",(M18-'Data Inputs'!G12)*SUM(I9:I18,0)-SUM(O9:O17),-SUM(O9:O17)) -> 458.4202 | P18: =IF(O18<>0,-O18*H18/SUM(I18:J18)*'Data Inputs'!R12-G18/SUM(I18:J18)*'Data Inputs'!Q12,0) -> -1470.344975 | Q18: Y | R18: =IF(Q18="y", 'Data Inputs'!T12*B18/100, 0) -> 233.66 | S18: ='Data Inputs'!S12*B18/100 -> 119 | T18: =(-$B18/100*'Data Inputs'!H12) -> -903 | U18: =(-$B18/100*'Data Inputs'!I12) -> -35 | V18: =(-$B18/100*'Data Inputs'!J12) -> -238 | W18: =-'Data Inputs'!K12 -> -34 | X18: =(-B18/100*'Data Inputs'!M12) -> -1582 | Y18: =IF('Quota Calculator'!C17>30, 16, 15) -> 16 | Z18: =ROUND(-Y18*'Data Inputs'!L12,2) -> -303.52 | AA18: =(-B18/100*'Data Inputs'!N12) -> 0 | AB18: 0 | AC18: -154.776 | AD18: =-SUM(F18:H18)*'Data Inputs'!O12 -> -197.8102 | AE18: 0 | AF18: =I18*'Data Inputs'!P12+'Revenue Calculator'!J18*'Data Inputs'!Q12+'Revenue Calculator'!K18*'Data Inputs'!R12+R18+S18+P18 -> 49216.38482 | AG18: =IF(AND(AG$7="Per Day",'Quota Calculator'!C17>0),AF18/'Quota Calculator'!C17,IF(AND(AG$7="Per Hectolitre",$B18>0),AF18/($B18/100),IF(AND(AG$7="Per Kilogram of Butterfat",$F18>0),AF18/$F18,IF(AND(AG$7="Per Cow Per Day",'Quota Calculator'!C17>0),AF18/'Quota Calculator'!V17/'Quota Calculator'!C17,"-")))) -> 70.30912118 | AH18: -3448.1062 | AI18: ='Data Inputs'!P12*F18+'Data Inputs'!Q12*G18+'Data Inputs'!R12*H18+P18+R18+S18+T18+U18+V18+W18+X18+Z18+AE18+L18+AC18+AB18+AD18 -> 45768.27862 | AJ18: =IF(AND(AJ$7="Per Day",'Quota Calculator'!C17>0),AI18/'Quota Calculator'!C17,IF(AND(AJ$7="Per Hectolitre",$B18>0),AI18/($B18/100),IF(AND(AJ$7="Per Kilogram of Butterfat",$F18>0),AI18/$F18,IF(AND(AJ$7="Per Cow Per Day",'Quota Calculator'!C17>0),AI18/'Quota Calculator'!V17/'Quota Calculator'!C17,"-")))) -> 65.38325518
A19: 2010-06-30 | B19: ='Quota Calculator'!E18 -> 70000 | C19: ='Quota Calculator'!F18 -> 3.42 | D19: 3.25 | E19: 5.68 | F19: 2394 | G19: 2275 | H19: 3976 | I19: =IF('Quota Calculator'!P18>='Data Inputs'!D13, 'Quota Calculator'!G18-('Quota Calculator'!N18-'Quota Calculator'!O18+'Quota Calculator'!O17), 'Quota Calculator'!G18) -> 2394 | J19: 2275 | K19: 3976 | L19: =ROUND(-'Data Inputs'!P13*('Revenue Calculator'!F19-'Revenue Calculator'!I19)-'Data Inputs'!Q13*('Revenue Calculator'!G19-'Revenue Calculator'!J19)-'Data Inputs'!R13*('Revenue Calculator'!H19-'Revenue Calculator'!K19), 2) -> 0 | M19: =IFERROR(SUM(G9:H19)/SUM(F9:F19), 0) -> 2.626717836 | N19: =IF(M19>'Data Inputs'!G13, "YES", "NO") -> YES | O19: =IF(N19="YES",(M19-'Data Inputs'!G13)*SUM(I9:I19,0)-SUM(O9:O18),-SUM(O9:O18)) -> 465.4202 | P19: =IF(O19<>0,-O19*H19/SUM(I19:J19)*'Data Inputs'!R13-G19/SUM(I19:J19)*'Data Inputs'!Q13,0) -> -1582.992055 | Q19: Y | R19: =IF(Q19="y", 'Data Inputs'!T13*B19/100, 0) -> 249.2 | S19: ='Data Inputs'!S13*B19/100 -> 119 | T19: =(-$B19/100*'Data Inputs'!H13) -> -903 | U19: =(-$B19/100*'Data Inputs'!I13) -> -35 | V19: =(-$B19/100*'Data Inputs'!J13) -> -238 | W19: =-'Data Inputs'!K13 -> -34 | X19: =(-B19/100*'Data Inputs'!M13) -> -1582 | Y19: =IF('Quota Calculator'!C18>30, 16, 15) -> 15 | Z19: =ROUND(-Y19*'Data Inputs'!L13,2) -> -284.55 | AA19: =(-B19/100*'Data Inputs'!N13) -> 0 | AB19: 0 | AC19: -153.8275 | AD19: =-SUM(F19:H19)*'Data Inputs'!O13 -> -399.399 | AE19: 0 | AF19: =I19*'Data Inputs'!P13+'Revenue Calculator'!J19*'Data Inputs'!Q13+'Revenue Calculator'!K19*'Data Inputs'!R13+R19+S19+P19 -> 50960.92034 | AG19: =IF(AND(AG$7="Per Day",'Quota Calculator'!C18>0),AF19/'Quota Calculator'!C18,IF(AND(AG$7="Per Hectolitre",$B19>0),AF19/($B19/100),IF(AND(AG$7="Per Kilogram of Butterfat",$F19>0),AF19/$F19,IF(AND(AG$7="Per Cow Per Day",'Quota Calculator'!C18>0),AF19/'Quota Calculator'!V18/'Quota Calculator'!C18,"-")))) -> 72.80131478 | AH19: -3629.7765 | AI19: ='Data Inputs'!P13*F19+'Data Inputs'!Q13*G19+'Data Inputs'!R13*H19+P19+R19+S19+T19+U19+V19+W19+X19+Z19+AE19+L19+AC19+AB19+AD19 -> 47331.14384 | AJ19: =IF(AND(AJ$7="Per Day",'Quota Calculator'!C18>0),AI19/'Quota Calculator'!C18,IF(AND(AJ$7="Per Hectolitre",$B19>0),AI19/($B19/100),IF(AND(AJ$7="Per Kilogram of Butterfat",$F19>0),AI19/$F19,IF(AND(AJ$7="Per Cow Per Day",'Quota Calculator'!C18>0),AI19/'Quota Calculator'!V18/'Quota Calculator'!C18,"-")))) -> 67.61591978
A20: 2010-07-31 | B20: ='Quota Calculator'!E19 -> 70000 | C20: ='Quota Calculator'!F19 -> 3.42 | D20: 3.26 | E20: 5.69 | F20: 2394 | G20: 2282 | H20: 3983 | I20: =IF('Quota Calculator'!P19>='Data Inputs'!D14, 'Quota Calculator'!G19-('Quota Calculator'!N19-'Quota Calculator'!O19+'Quota Calculator'!O18), 'Quota Calculator'!G19) -> 2394 | J20: 2282 | K20: 3983 | L20: =ROUND(-'Data Inputs'!P14*('Revenue Calculator'!F20-'Revenue Calculator'!I20)-'Data Inputs'!Q14*('Revenue Calculator'!G20-'Revenue Calculator'!J20)-'Data Inputs'!R14*('Revenue Calculator'!H20-'Revenue Calculator'!K20), 2) -> 0 | M20: =IFERROR(SUM(G9:H20)/SUM(F9:F20), 0) -> 2.625932648 | N20: =IF(M20>'Data Inputs'!G14, "YES", "NO") -> YES | O20: =IF(N20="YES",(M20-'Data Inputs'!G14)*SUM(I9:I20,0)-SUM(O9:O19),-SUM(O9:O19)) -> 479.4202 | P20: =IF(O20<>0,-O20*H20/SUM(I20:J20)*'Data Inputs'!R14-G20/SUM(I20:J20)*'Data Inputs'!Q14,0) -> -1338.251307 | Q20: Y | R20: =IF(Q20="y", 'Data Inputs'!T14*B20/100, 0) -> 279.02 | S20: ='Data Inputs'!S14*B20/100 -> 119 | T20: =(-$B20/100*'Data Inputs'!H14) -> -903 | U20: =(-$B20/100*'Data Inputs'!I14) -> -35 | V20: =(-$B20/100*'Data Inputs'!J14) -> -238 | W20: =-'Data Inputs'!K14 -> -34 | X20: =(-B20/100*'Data Inputs'!M14) -> -1582 | Y20: =IF('Quota Calculator'!C19>30, 16, 15) -> 16 | Z20: =ROUND(-Y20*'Data Inputs'!L14,2) -> -303.52 | AA20: =(-B20/100*'Data Inputs'!N14) -> 0 | AB20: 0 | AC20: =0.05*(Z20+X20+W20+V20+U20+T20+AA20+AB20) -> -154.776 | AD20: =-SUM(F20:H20)*'Data Inputs'!O14 -> -348.0918 | AE20: 0 | AF20: =I20*'Data Inputs'!P14+'Revenue Calculator'!J20*'Data Inputs'!Q14+'Revenue Calculator'!K20*'Data Inputs'!R14+R20+S20+P20 -> 49599.56569 | AG20: =IF(AND(AG$7="Per Day",'Quota Calculator'!C19>0),AF20/'Quota Calculator'!C19,IF(AND(AG$7="Per Hectolitre",$B20>0),AF20/($B20/100),IF(AND(AG$7="Per Kilogram of Butterfat",$F20>0),AF20/$F20,IF(AND(AG$7="Per Cow Per Day",'Quota Calculator'!C19>0),AF20/'Quota Calculator'!V19/'Quota Calculator'!C19,"-")))) -> 70.85652242 | AH20: -3598.3878 | AI20: ='Data Inputs'!P14*F20+'Data Inputs'!Q14*G20+'Data Inputs'!R14*H20+P20+R20+S20+T20+U20+V20+W20+X20+Z20+AE20+L20+AC20+AB20+AD20 -> 46001.17789 | AJ20: =IF(AND(AJ$7="Per Day",'Quota Calculator'!C19>0),AI20/'Quota Calculator'!C19,IF(AND(AJ$7="Per Hectolitre",$B20>0),AI20/($B20/100),IF(AND(AJ$7="Per Kilogram of Butterfat",$F20>0),AI20/$F20,IF(AND(AJ$7="Per Cow Per Day",'Quota Calculator'!C19>0),AI20/'Quota Calculator'!V19/'Quota Calculator'!C19,"-")))) -> 65.71596842
A21: 2010-08-31 | B21: ='Quota Calculator'!E20 -> 70000 | C21: ='Quota Calculator'!F20 -> 3.42 | D21: 3.28 | E21: 5.69 | F21: 2394 | G21: 2296 | H21: 3983 | I21: =IF('Quota Calculator'!P20>='Data Inputs'!D15, 'Quota Calculator'!G20-('Quota Calculator'!N20-'Quota Calculator'!O20+'Quota Calculator'!O19), 'Quota Calculator'!G20) -> 2394 | J21: 2296 | K21: 3983 | L21: =ROUND(-'Data Inputs'!P15*('Revenue Calculator'!F21-'Revenue Calculator'!I21)-'Data Inputs'!Q15*('Revenue Calculator'!G21-'Revenue Calculator'!J21)-'Data Inputs'!R15*('Revenue Calculator'!H21-'Revenue Calculator'!K21), 2) -> 0 | M21: =IFERROR(SUM(G21:H21)/SUM(F21), 0) -> 2.622807018 | N21: =IF(M21>'Data Inputs'!G15, "YES", "NO") -> YES | O21: =IF(N21="YES",(M21-'Data Inputs'!G15)*I21,0) -> 493.4202 | P21: =IF(O21<>0,-O21*H21/SUM(I21:J21)*'Data Inputs'!R15-G21/SUM(I21:J21)*'Data Inputs'!Q15,0) -> -1633.131775 | R21: =IF(Q21="y", 'Data Inputs'!T15*B21/100, 0) -> 0 | S21: ='Data Inputs'!S15*B21/100 -> 119 | T21: =(-$B21/100*'Data Inputs'!H15) -> -903 | U21: =(-$B21/100*'Data Inputs'!I15) -> -35 | V21: =(-$B21/100*'Data Inputs'!J15) -> -280 | W21: =-'Data Inputs'!K15 -> -34 | X21: =(-B21/100*'Data Inputs'!M15) -> -1666 | Y21: =IF('Quota Calculator'!C20>30, 16, 15) -> 16 | Z21: =ROUND(-Y21*'Data Inputs'!L15,2) -> -312.64 | AA21: =(-B21/100*'Data Inputs'!N15) -> 0 | AB21: 0 | AC21: =0.05*(Z21+X21+W21+V21+U21+T21+AA21+AB21) -> -161.532 | AD21: =-SUM(F21:H21)*'Data Inputs'!O15 -> -134.4315 | AE21: 0 | AF21: =I21*'Data Inputs'!P15+'Revenue Calculator'!J21*'Data Inputs'!Q15+'Revenue Calculator'!K21*'Data Inputs'!R15+R21+S21+P21 -> 50336.30743 | AG21: =IF(AND(AG$7="Per Day",'Quota Calculator'!C20>0),AF21/'Quota Calculator'!C20,IF(AND(AG$7="Per Hectolitre",$B21>0),AF21/($B21/100),IF(AND(AG$7="Per Kilogram of Butterfat",$F21>0),AF21/$F21,IF(AND(AG$7="Per Cow Per Day",'Quota Calculator'!C20>0),AF21/'Quota Calculator'!V20/'Quota Calculator'!C20,"-")))) -> 71.90901061 | AH21: -3526.6035 | AI21: ='Data Inputs'!P15*F21+'Data Inputs'!Q15*G21+'Data Inputs'!R15*H21+P21+R21+S21+T21+U21+V21+W21+X21+Z21+AE21+L21+AC21+AB21+AD21 -> 46809.70393 | AJ21: =IF(AND(AJ$7="Per Day",'Quota Calculator'!C20>0),AI21/'Quota Calculator'!C20,IF(AND(AJ$7="Per Hectolitre",$B21>0),AI21/($B21/100),IF(AND(AJ$7="Per Kilogram of Butterfat",$F21>0),AI21/$F21,IF(AND(AJ$7="Per Cow Per Day",'Quota Calculator'!C20>0),AI21/'Quota Calculator'!V20/'Quota Calculator'!C20,"-")))) -> 66.87100561
A22: 2010-09-30 | B22: ='Quota Calculator'!E21 -> 70000 | C22: ='Quota Calculator'!F21 -> 3.42 | D22: 3.39 | E22: 5.72 | F22: 2394 | G22: 2373 | H22: 4004 | I22: =IF('Quota Calculator'!P21>='Data Inputs'!D16, 'Quota Calculator'!G21-('Quota Calculator'!N21-'Quota Calculator'!O21+'Quota Calculator'!O20), 'Quota Calculator'!G21) -> 2394 | J22: 2373 | K22: 4004 | L22: =ROUND(-'Data Inputs'!P16*('Revenue Calculator'!F22-'Revenue Calculator'!I22)-'Data Inputs'!Q16*('Revenue Calculator'!G22-'Revenue Calculator'!J22)-'Data Inputs'!R16*('Revenue Calculator'!H22-'Revenue Calculator'!K22), 2) -> 0 | M22: =IFERROR(SUM(G21:H22)/SUM(F21:F22), 0) -> 2.643274854 | N22: =IF(M22>'Data Inputs'!G16, "YES", "NO") -> YES | O22: =IF(N22="YES",(M22-'Data Inputs'!G16)*SUM(I21:I22,0)-SUM(O21),-SUM(O21)) -> 591.4202 | P22: =IF(O22<>0,-O22*H22/SUM(I22:J22)*'Data Inputs'!R16-G22/SUM(I22:J22)*'Data Inputs'!Q16,0) -> -1747.276655 | R22: =IF(Q22="y", 'Data Inputs'!T16*B22/100, 0) -> 0 | S22: ='Data Inputs'!S16*B22/100 -> 119 | T22: =(-$B22/100*'Data Inputs'!H16) -> -903 | U22: =(-$B22/100*'Data Inputs'!I16) -> -35 | V22: =(-$B22/100*'Data Inputs'!J16) -> -280 | W22: =-'Data Inputs'!K16 -> -34 | X22: =(-B22/100*'Data Inputs'!M16) -> -1666 | Y22: =IF('Quota Calculator'!C21>30, 16, 15) -> 15 | Z22: =ROUND(-Y22*'Data Inputs'!L16,2) -> -293.1 | AA22: =(-B22/100*'Data Inputs'!N16) -> 0 | AB22: 0 | AC22: =0.05*(Z22+X22+W22+V22+U22+T22+AA22+AB22) -> -160.555 | AD22: =-SUM(F22:H22)*'Data Inputs'!O16 -> -181.5597 | AE22: 0 | AF22: =I22*'Data Inputs'!P16+'Revenue Calculator'!J22*'Data Inputs'!Q16+'Revenue Calculator'!K22*'Data Inputs'!R16+R22+S22+P22 -> 49105.24955 | AG22: =IF(AND(AG$7="Per Day",'Quota Calculator'!C21>0),AF22/'Quota Calculator'!C21,IF(AND(AG$7="Per Hectolitre",$B22>0),AF22/($B22/100),IF(AND(AG$7="Per Kilogram of Butterfat",$F22>0),AF22/$F22,IF(AND(AG$7="Per Cow Per Day",'Quota Calculator'!C21>0),AF22/'Quota Calculator'!V21/'Quota Calculator'!C21,"-")))) -> 70.15035649 | AH22: -3553.2147 | AI22: ='Data Inputs'!P16*F22+'Data Inputs'!Q16*G22+'Data Inputs'!R16*H22+P22+R22+S22+T22+U22+V22+W22+X22+Z22+AE22+L22+AC22+AB22+AD22 -> 45552.03485 | AJ22: =IF(AND(AJ$7="Per Day",'Quota Calculator'!C21>0),AI22/'Quota Calculator'!C21,IF(AND(AJ$7="Per Hectolitre",$B22>0),AI22/($B22/100),IF(AND(AJ$7="Per Kilogram of Butterfat",$F22>0),AI22/$F22,IF(AND(AJ$7="Per Cow Per Day",'Quota Calculator'!C21>0),AI22/'Quota Calculator'!V21/'Quota Calculator'!C21,"-")))) -> 65.07433549
A23: 2010-10-31 | B23: ='Quota Calculator'!E22 -> 70000 | C23: ='Quota Calculator'!F22 -> 3.42 | D23: 3.45 | E23: 5.69 | F23: 2394 | G23: 2415 | H23: 3983 | I23: =IF('Quota Calculator'!P22>='Data Inputs'!D17, 'Quota Calculator'!G22-('Quota Calculator'!N22-'Quota Calculator'!O22+'Quota Calculator'!O21), 'Quota Calculator'!G22) -> 2394 | J23: 2415 | K23: 3983 | L23: =ROUND(-'Data Inputs'!P17*('Revenue Calculator'!F23-'Revenue Calculator'!I23)-'Data Inputs'!Q17*('Revenue Calculator'!G23-'Revenue Calculator'!J23)-'Data Inputs'!R17*('Revenue Calculator'!H23-'Revenue Calculator'!K23), 2) -> 0 | M23: =IFERROR(SUM(G21:H23)/SUM(F21:F23), 0) -> 2.653021442 | N23: =IF(M23>'Data Inputs'!G17, "YES", "NO") -> YES | O23: =IF(N23="YES",(M23-'Data Inputs'!G17)*SUM(I21:I23,0)-SUM(O21:O22),-SUM(O21:O22)) -> 612.4202 | P23: =IF(O23<>0,-O23*H23/SUM(I23:J23)*'Data Inputs'!R17-G23/SUM(I23:J23)*'Data Inputs'!Q17,0) -> -1875.681106 | R23: =IF(Q23="y", 'Data Inputs'!T17*B23/100, 0) -> 0 | S23: ='Data Inputs'!S17*B23/100 -> 119 | T23: =(-$B23/100*'Data Inputs'!H17) -> -903 | U23: =(-$B23/100*'Data Inputs'!I17) -> -35 | V23: =(-$B23/100*'Data Inputs'!J17) -> -280 | W23: =-'Data Inputs'!K17 -> -34 | X23: =(-B23/100*'Data Inputs'!M17) -> -1666 | Y23: =IF('Quota Calculator'!C22>30, 16, 15) -> 16 | Z23: =ROUND(-Y23*'Data Inputs'!L17,2) -> -312.64 | AA23: =(-B23/100*'Data Inputs'!N17) -> 0 | AB23: 0 | AC23: -161.532 | AD23: =-SUM(F23:H23)*'Data Inputs'!O17 -> -241.78 | AE23: 0 | AF23: =I23*'Data Inputs'!P17+'Revenue Calculator'!J23*'Data Inputs'!Q17+'Revenue Calculator'!K23*'Data Inputs'!R17+R23+S23+P23 -> 48819.85049 | AG23: =IF(AND(AG$7="Per Day",'Quota Calculator'!C22>0),AF23/'Quota Calculator'!C22,IF(AND(AG$7="Per Hectolitre",$B23>0),AF23/($B23/100),IF(AND(AG$7="Per Kilogram of Butterfat",$F23>0),AF23/$F23,IF(AND(AG$7="Per Cow Per Day",'Quota Calculator'!C22>0),AF23/'Quota Calculator'!V22/'Quota Calculator'!C22,"-")))) -> 69.74264356 | AH23: -3633.952 | AI23: ='Data Inputs'!P17*F23+'Data Inputs'!Q17*G23+'Data Inputs'!R17*H23+P23+R23+S23+T23+U23+V23+W23+X23+Z23+AE23+L23+AC23+AB23+AD23 -> 45185.89849 | AJ23: =IF(AND(AJ$7="Per Day",'Quota Calculator'!C22>0),AI23/'Quota Calculator'!C22,IF(AND(AJ$7="Per Hectolitre",$B23>0),AI23/($B23/100),IF(AND(AJ$7="Per Kilogram of Butterfat",$F23>0),AI23/$F23,IF(AND(AJ$7="Per Cow Per Day",'Quota Calculator'!C22>0),AI23/'Quota Calculator'!V22/'Quota Calculator'!C22,"-")))) -> 64.55128356
A24: 2010-11-30 | B24: ='Quota Calculator'!E23 -> 70000 | C24: ='Quota Calculator'!F23 -> 3.42 | D24: 3.42 | E24: 5.66 | F24: 2394 | G24: 2394 | H24: 3962 | I24: =IF('Quota Calculator'!P23>='Data Inputs'!D18, 'Quota Calculator'!G23-('Quota Calculator'!N23-'Quota Calculator'!O23+'Quota Calculator'!O22), 'Quota Calculator'!G23) -> 2394 | J24: 2394 | K24: 3962 | L24: =ROUND(-'Data Inputs'!P18*('Revenue Calculator'!F24-'Revenue Calculator'!I24)-'Data Inputs'!Q18*('Revenue Calculator'!G24-'Revenue Calculator'!J24)-'Data Inputs'!R18*('Revenue Calculator'!H24-'Revenue Calculator'!K24), 2) -> 0 | M24: =IFERROR(SUM(G21:H24)/SUM(F21:F24), 0) -> 2.653508772 | N24: =IF(M24>'Data Inputs'!G18, "YES", "NO") -> YES | O24: =IF(N24="YES",(M24-'Data Inputs'!G18)*SUM(I21:I24,0)-SUM(O21:O23),-SUM(O21:O23)) -> 570.4202 | P24: =IF(O24<>0,-O24*H24/SUM(I24:J24)*'Data Inputs'!R18-G24/SUM(I24:J24)*'Data Inputs'!Q18,0) -> -1814.66196 | R24: =IF(Q24="y", 'Data Inputs'!T18*B24/100, 0) -> 0 | S24: ='Data Inputs'!S18*B24/100 -> 119 | T24: =(-$B24/100*'Data Inputs'!H18) -> -903 | U24: =(-$B24/100*'Data Inputs'!I18) -> -35 | V24: =(-$B24/100*'Data Inputs'!J18) -> -280 | W24: =-'Data Inputs'!K18 -> -34 | X24: =(-B24/100*'Data Inputs'!M18) -> -1666 | Y24: =IF('Quota Calculator'!C23>30, 16, 15) -> 15 | Z24: =ROUND(-Y24*'Data Inputs'!L18,2) -> -293.1 | AA24: =(-B24/100*'Data Inputs'!N18) -> 0 | AB24: 0 | AC24: -160.555 | AD24: =-SUM(F24:H24)*'Data Inputs'!O18 -> -246.75 | AE24: 0 | AF24: =I24*'Data Inputs'!P18+'Revenue Calculator'!J24*'Data Inputs'!Q18+'Revenue Calculator'!K24*'Data Inputs'!R18+R24+S24+P24 -> 49602.37084 | AG24: =IF(AND(AG$7="Per Day",'Quota Calculator'!C23>0),AF24/'Quota Calculator'!C23,IF(AND(AG$7="Per Hectolitre",$B24>0),AF24/($B24/100),IF(AND(AG$7="Per Kilogram of Butterfat",$F24>0),AF24/$F24,IF(AND(AG$7="Per Cow Per Day",'Quota Calculator'!C23>0),AF24/'Quota Calculator'!V23/'Quota Calculator'!C23,"-")))) -> 70.86052977 | AH24: -3618.405 | AI24: ='Data Inputs'!P18*F24+'Data Inputs'!Q18*G24+'Data Inputs'!R18*H24+P24+R24+S24+T24+U24+V24+W24+X24+Z24+AE24+L24+AC24+AB24+AD24 -> 45983.96584 | AJ24: =IF(AND(AJ$7="Per Day",'Quota Calculator'!C23>0),AI24/'Quota Calculator'!C23,IF(AND(AJ$7="Per Hectolitre",$B24>0),AI24/($B24/100),IF(AND(AJ$7="Per Kilogram of Butterfat",$F24>0),AI24/$F24,IF(AND(AJ$7="Per Cow Per Day",'Quota Calculator'!C23>0),AI24/'Quota Calculator'!V23/'Quota Calculator'!C23,"-")))) -> 65.69137977
A25: 2010-12-31 | B25: ='Quota Calculator'!E24 -> 70000 | C25: ='Quota Calculator'!F24 -> 3.42 | D25: 3.47 | E25: 5.7 | F25: 2394 | G25: 2429 | H25: 3990 | I25: =IF('Quota Calculator'!P24>='Data Inputs'!D19, 'Quota Calculator'!G24-('Quota Calculator'!N24-'Quota Calculator'!O24+'Quota Calculator'!O23), 'Quota Calculator'!G24) -> 2394 | J25: 2429 | K25: 3990 | L25: =ROUND(-'Data Inputs'!P19*('Revenue Calculator'!F25-'Revenue Calculator'!I25)-'Data Inputs'!Q19*('Revenue Calculator'!G25-'Revenue Calculator'!J25)-'Data Inputs'!R19*('Revenue Calculator'!H25-'Revenue Calculator'!K25), 2) -> 0 | M25: =IFERROR(SUM(G21:H25)/SUM(F21:F25),0) -> 2.659064327 | N25: =IF(M25>'Data Inputs'!G19, "YES", "NO") -> YES | O25: =IF(N25="YES",(M25-'Data Inputs'!G19)*SUM(I21:I25,0)-SUM(O21:O24),-SUM(O21:O24)) -> 633.4202 | P25: =IF(O25<>0,-O25*H25/SUM(I25:J25)*'Data Inputs'!R19-G25/SUM(I25:J25)*'Data Inputs'!Q19,0) -> -2096.352599 | R25: =IF(Q25="y", 'Data Inputs'!T19*B25/100, 0) -> 0 | S25: ='Data Inputs'!S19*B25/100 -> 119 | T25: =(-$B25/100*'Data Inputs'!H19) -> -903 | U25: =(-$B25/100*'Data Inputs'!I19) -> -35 | V25: =(-$B25/100*'Data Inputs'!J19) -> -280 | W25: =-'Data Inputs'!K19 -> -34 | X25: =(-B25/100*'Data Inputs'!M19) -> -1666 | Y25: =IF('Quota Calculator'!C24>30, 16, 15) -> 16 | Z25: =ROUND(-Y25*'Data Inputs'!L19,2) -> -312.64 | AA25: =(-B25/100*'Data Inputs'!N19) -> 0 | AB25: 0 | AC25: -161.532 | AD25: =-SUM(F25:H25)*'Data Inputs'!O19 -> -457.3947 | AE25: 0 | AF25: =I25*'Data Inputs'!P19+'Revenue Calculator'!J25*'Data Inputs'!Q19+'Revenue Calculator'!K25*'Data Inputs'!R19+R25+S25+P25 -> 50130.6173 | AG25: =IF(AND(AG$7="Per Day",'Quota Calculator'!C24>0),AF25/'Quota Calculator'!C24,IF(AND(AG$7="Per Hectolitre",$B25>0),AF25/($B25/100),IF(AND(AG$7="Per Kilogram of Butterfat",$F25>0),AF25/$F25,IF(AND(AG$7="Per Cow Per Day",'Quota Calculator'!C24>0),AF25/'Quota Calculator'!V24/'Quota Calculator'!C24,"-")))) -> 71.61516757 | AH25: -3849.5667 | AI25: ='Data Inputs'!P19*F25+'Data Inputs'!Q19*G25+'Data Inputs'!R19*H25+P25+R25+S25+T25+U25+V25+W25+X25+Z25+AE25+L25+AC25+AB25+AD25 -> 46281.0506 | AJ25: =IF(AND(AJ$7="Per Day",'Quota Calculator'!C24>0),AI25/'Quota Calculator'!C24,IF(AND(AJ$7="Per Hectolitre",$B25>0),AI25/($B25/100),IF(AND(AJ$7="Per Kilogram of Butterfat",$F25>0),AI25/$F25,IF(AND(AJ$7="Per Cow Per Day",'Quota Calculator'!C24>0),AI25/'Quota Calculator'!V24/'Quota Calculator'!C24,"-")))) -> 66.11578657
A26: 2011-01-31 | B26: ='Quota Calculator'!E25 -> 70000 | C26: ='Quota Calculator'!F25 -> 3.42 | D26: 3.43 | E26: 5.71 | F26: 2394 | G26: 2401 | H26: 3997 | I26: =IF('Quota Calculator'!P25>='Data Inputs'!D20, 'Quota Calculator'!G25-('Quota Calculator'!N25-'Quota Calculator'!O25+'Quota Calculator'!O24), 'Quota Calculator'!G25) -> 2394 | J26: 2401 | K26: 3997 | L26: =ROUND(-'Data Inputs'!P20*('Revenue Calculator'!F26-'Revenue Calculator'!I26)-'Data Inputs'!Q20*('Revenue Calculator'!G26-'Revenue Calculator'!J26)-'Data Inputs'!R20*('Revenue Calculator'!H26-'Revenue Calculator'!K26), 2) -> 0 | M26: =IFERROR(SUM(G21:H26)/SUM(F21:F26), 0) -> 2.661306043 | N26: =IF(M26>'Data Inputs'!G20, "YES", "NO") -> YES | O26: =IF(N26="YES",(M26-'Data Inputs'!G20)*SUM(I21:I26,0)-SUM(O21:O25),-SUM(O21:O25)) -> 612.4202 | P26: =IF(O26<>0,-O26*H26/SUM(I26:J26)*'Data Inputs'!R20-G26/SUM(I26:J26)*'Data Inputs'!Q20,0) -> -1899.947116 | R26: =IF(Q26="y", 'Data Inputs'!T20*B26/100, 0) -> 0 | S26: ='Data Inputs'!S20*B26/100 -> 119 | T26: =(-$B26/100*'Data Inputs'!H20) -> -903 | U26: =(-$B26/100*'Data Inputs'!I20) -> -35 | V26: =(-$B26/100*'Data Inputs'!J20) -> -280 | W26: =-'Data Inputs'!K20 -> -34 | X26: =(-B26/100*'Data Inputs'!M20) -> -1666 | Y26: =IF('Quota Calculator'!C25>30, 16, 15) -> 16 | Z26: =ROUND(-Y26*'Data Inputs'!L20,2) -> -312.64 | AA26: =(-B26/100*'Data Inputs'!N20) -> 0 | AB26: 0 | AC26: -161.532 | AD26: =-SUM(F26:H26)*'Data Inputs'!O20 -> -404.432 | AE26: 0 | AF26: =I26*'Data Inputs'!P20+'Revenue Calculator'!J26*'Data Inputs'!Q20+'Revenue Calculator'!K26*'Data Inputs'!R20+R26+S26+P26 -> 49082.06298 | AG26: =IF(AND(AG$7="Per Day",'Quota Calculator'!C25>0),AF26/'Quota Calculator'!C25,IF(AND(AG$7="Per Hectolitre",$B26>0),AF26/($B26/100),IF(AND(AG$7="Per Kilogram of Butterfat",$F26>0),AF26/$F26,IF(AND(AG$7="Per Cow Per Day",'Quota Calculator'!C25>0),AF26/'Quota Calculator'!V25/'Quota Calculator'!C25,"-")))) -> 70.11723283 | AH26: -3796.604 | AI26: ='Data Inputs'!P20*F26+'Data Inputs'!Q20*G26+'Data Inputs'!R20*H26+P26+R26+S26+T26+U26+V26+W26+X26+Z26+AE26+L26+AC26+AB26+AD26 -> 45285.45898 | AJ26: =IF(AND(AJ$7="Per Day",'Quota Calculator'!C25>0),AI26/'Quota Calculator'!C25,IF(AND(AJ$7="Per Hectolitre",$B26>0),AI26/($B26/100),IF(AND(AJ$7="Per Kilogram of Butterfat",$F26>0),AI26/$F26,IF(AND(AJ$7="Per Cow Per Day",'Quota Calculator'!C25>0),AI26/'Quota Calculator'!V25/'Quota Calculator'!C25,"-")))) -> 64.69351283
A27: 2011-02-28 | B27: ='Quota Calculator'!E26 -> 70000 | C27: ='Quota Calculator'!F26 -> 3.42 | D27: 3.39 | E27: 5.67 | F27: 2394 | G27: 2373 | H27: 3969 | I27: =IF('Quota Calculator'!P26>='Data Inputs'!D21, 'Quota Calculator'!G26-('Quota Calculator'!N26-'Quota Calculator'!O26+'Quota Calculator'!O25), 'Quota Calculator'!G26) -> 2394 | J27: 2373 | K27: 3969 | L27: =ROUND(-'Data Inputs'!P21*('Revenue Calculator'!F27-'Revenue Calculator'!I27)-'Data Inputs'!Q21*('Revenue Calculator'!G27-'Revenue Calculator'!J27)-'Data Inputs'!R21*('Revenue Calculator'!H27-'Revenue Calculator'!K27), 2) -> 0 | M27: =IFERROR(SUM(G21:H27)/SUM(F21:F27), 0) -> 2.659565581 | N27: =IF(M27>'Data Inputs'!G21, "YES", "NO") -> YES | O27: =IF(N27="YES",(M27-'Data Inputs'!G21)*SUM(I21:I27,0)-SUM(O21:O26),-SUM(O21:O26)) -> 556.4202 | P27: =IF(O27<>0,-O27*H27/SUM(I27:J27)*'Data Inputs'!R21-G27/SUM(I27:J27)*'Data Inputs'!Q21,0) -> -1800.787834 | R27: =IF(Q27="y", 'Data Inputs'!T21*B27/100, 0) -> 0 | S27: ='Data Inputs'!S21*B27/100 -> 119 | T27: =(-$B27/100*'Data Inputs'!H21) -> -903 | U27: =(-$B27/100*'Data Inputs'!I21) -> -35 | V27: =(-$B27/100*'Data Inputs'!J21) -> -280 | W27: =-'Data Inputs'!K21 -> -34 | X27: =(-B27/100*'Data Inputs'!M21) -> -1666 | Y27: =IF('Quota Calculator'!C26>30, 16, 15) -> 15 | Z27: =ROUND(-Y27*'Data Inputs'!L21,2) -> -293.1 | AA27: =(-B27/100*'Data Inputs'!N21) -> 0 | AB27: 0 | AC27: -160.555 | AD27: =-SUM(F27:H27)*'Data Inputs'!O21 -> -205.296 | AE27: 0 | AF27: =I27*'Data Inputs'!P21+'Revenue Calculator'!J27*'Data Inputs'!Q21+'Revenue Calculator'!K27*'Data Inputs'!R21+R27+S27+P27 -> 50259.10817 | AG27: =IF(AND(AG$7="Per Day",'Quota Calculator'!C26>0),AF27/'Quota Calculator'!C26,IF(AND(AG$7="Per Hectolitre",$B27>0),AF27/($B27/100),IF(AND(AG$7="Per Kilogram of Butterfat",$F27>0),AF27/$F27,IF(AND(AG$7="Per Cow Per Day",'Quota Calculator'!C26>0),AF27/'Quota Calculator'!V26/'Quota Calculator'!C26,"-")))) -> 71.79872595 | AH27: -3576.951 | AI27: ='Data Inputs'!P21*F27+'Data Inputs'!Q21*G27+'Data Inputs'!R21*H27+P27+R27+S27+T27+U27+V27+W27+X27+Z27+AE27+L27+AC27+AB27+AD27 -> 46682.15717 | AJ27: =IF(AND(AJ$7="Per Day",'Quota Calculator'!C26>0),AI27/'Quota Calculator'!C26,IF(AND(AJ$7="Per Hectolitre",$B27>0),AI27/($B27/100),IF(AND(AJ$7="Per Kilogram of Butterfat",$F27>0),AI27/$F27,IF(AND(AJ$7="Per Cow Per Day",'Quota Calculator'!C26>0),AI27/'Quota Calculator'!V26/'Quota Calculator'!C26,"-")))) -> 66.68879595
A28: 2011-03-31 | B28: ='Quota Calculator'!E27 -> 70000 | C28: ='Quota Calculator'!F27 -> 3.42 | D28: 3.43 | E28: 5.67 | F28: 2394 | G28: 2401 | H28: 3969 | I28: =IF('Quota Calculator'!P27>='Data Inputs'!D22, 'Quota Calculator'!G27-('Quota Calculator'!N27-'Quota Calculator'!O27+'Quota Calculator'!O26), 'Quota Calculator'!G27) -> 2394 | J28: 2401 | K28: 3969 | L28: =ROUND(-'Data Inputs'!P22*('Revenue Calculator'!F28-'Revenue Calculator'!I28)-'Data Inputs'!Q22*('Revenue Calculator'!G28-'Revenue Calculator'!J28)-'Data Inputs'!R22*('Revenue Calculator'!H28-'Revenue Calculator'!K28), 2) -> 0 | M28: =IFERROR(SUM(G21:H28)/SUM(F21:F28), 0) -> 2.659722222 | N28: =IF(M28>'Data Inputs'!G22, "YES", "NO") -> YES | O28: =IF(N28="YES",(M28-'Data Inputs'!G22)*SUM(I21:I28,0)-SUM(O21:O27),-SUM(O21:O27)) -> 584.4202 | P28: =IF(O28<>0,-O28*H28/SUM(I28:J28)*'Data Inputs'!R22-G28/SUM(I28:J28)*'Data Inputs'!Q22,0) -> -1628.920502 | R28: =IF(Q28="y", 'Data Inputs'!T22*B28/100, 0) -> 0 | S28: ='Data Inputs'!S22*B28/100 -> 119 | T28: =(-$B28/100*'Data Inputs'!H22) -> -903 | U28: =(-$B28/100*'Data Inputs'!I22) -> -35 | V28: =(-$B28/100*'Data Inputs'!J22) -> -280 | W28: =-'Data Inputs'!K22 -> -34 | X28: =(-B28/100*'Data Inputs'!M22) -> -1666 | Y28: =IF('Quota Calculator'!C27>30, 16, 15) -> 16 | Z28: =ROUND(-Y28*'Data Inputs'!L22,2) -> -312.64 | AA28: =(-B28/100*'Data Inputs'!N22) -> 0 | AB28: 0 | AC28: -161.532 | AD28: =-SUM(F28:H28)*'Data Inputs'!O22 -> -241.8864 | AE28: 0 | AF28: =I28*'Data Inputs'!P22+'Revenue Calculator'!J28*'Data Inputs'!Q22+'Revenue Calculator'!K28*'Data Inputs'!R22+R28+S28+P28 -> 48448.9206 | AG28: =IF(AND(AG$7="Per Day",'Quota Calculator'!C27>0),AF28/'Quota Calculator'!C27,IF(AND(AG$7="Per Hectolitre",$B28>0),AF28/($B28/100),IF(AND(AG$7="Per Kilogram of Butterfat",$F28>0),AF28/$F28,IF(AND(AG$7="Per Cow Per Day",'Quota Calculator'!C27>0),AF28/'Quota Calculator'!V27/'Quota Calculator'!C27,"-")))) -> 69.21274371 | AH28: -3634.0584 | AI28: ='Data Inputs'!P22*F28+'Data Inputs'!Q22*G28+'Data Inputs'!R22*H28+P28+R28+S28+T28+U28+V28+W28+X28+Z28+AE28+L28+AC28+AB28+AD28 -> 44814.8622 | AJ28: =IF(AND(AJ$7="Per Day",'Quota Calculator'!C27>0),AI28/'Quota Calculator'!C27,IF(AND(AJ$7="Per Hectolitre",$B28>0),AI28/($B28/100),IF(AND(AJ$7="Per Kilogram of Butterfat",$F28>0),AI28/$F28,IF(AND(AJ$7="Per Cow Per Day",'Quota Calculator'!C27>0),AI28/'Quota Calculator'!V27/'Quota Calculator'!C27,"-")))) -> 64.02123171
A29: 2011-04-30 | B29: ='Quota Calculator'!E28 -> 70000 | C29: ='Quota Calculator'!F28 -> 3.42 | D29: 3.39 | E29: 5.71 | F29: 2394 | G29: 2373 | H29: 3997 | I29: =IF('Quota Calculator'!P28>='Data Inputs'!D23, 'Quota Calculator'!G28-('Quota Calculator'!N28-'Quota Calculator'!O28+'Quota Calculator'!O27), 'Quota Calculator'!G28) -> 2394 | J29: 2373 | K29: 3997 | L29: =ROUND(-'Data Inputs'!P23*('Revenue Calculator'!F29-'Revenue Calculator'!I29)-'Data Inputs'!Q23*('Revenue Calculator'!G29-'Revenue Calculator'!J29)-'Data Inputs'!R23*('Revenue Calculator'!H29-'Revenue Calculator'!K29), 2) -> 0 | M29: =IFERROR(SUM(G21:H29)/SUM(F21:F29), 0) -> 2.659844055 | N29: =IF(M29>'Data Inputs'!G23, "YES", "NO") -> YES | O29: =IF(N29="YES",(M29-'Data Inputs'!G23)*SUM(I21:I29,0)-SUM(O21:O28),-SUM(O21:O28)) -> 584.4202 | P29: =IF(O29<>0,-O29*H29/SUM(I29:J29)*'Data Inputs'!R23-G29/SUM(I29:J29)*'Data Inputs'!Q23,0) -> -1723.299113 | R29: =IF(Q29="y", 'Data Inputs'!T23*B29/100, 0) -> 0 | S29: ='Data Inputs'!S23*B29/100 -> 119 | T29: =(-$B29/100*'Data Inputs'!H23) -> -903 | U29: =(-$B29/100*'Data Inputs'!I23) -> -35 | V29: =(-$B29/100*'Data Inputs'!J23) -> -280 | W29: =-'Data Inputs'!K23 -> -34 | X29: =(-B29/100*'Data Inputs'!M23) -> -1666 | Y29: =IF('Quota Calculator'!C28>30, 16, 15) -> 15 | Z29: =ROUND(-Y29*'Data Inputs'!L23,2) -> -293.1 | AA29: =(-B29/100*'Data Inputs'!N23) -> 0 | AB29: 0 | AC29: -160.555 | AD29: =-SUM(F29:H29)*'Data Inputs'!O23 -> -351.4364 | AE29: 0 | AF29: =I29*'Data Inputs'!P23+'Revenue Calculator'!J29*'Data Inputs'!Q23+'Revenue Calculator'!K29*'Data Inputs'!R23+R29+S29+P29 -> 49643.92659 | AG29: =IF(AND(AG$7="Per Day",'Quota Calculator'!C28>0),AF29/'Quota Calculator'!C28,IF(AND(AG$7="Per Hectolitre",$B29>0),AF29/($B29/100),IF(AND(AG$7="Per Kilogram of Butterfat",$F29>0),AF29/$F29,IF(AND(AG$7="Per Cow Per Day",'Quota Calculator'!C28>0),AF29/'Quota Calculator'!V28/'Quota Calculator'!C28,"-")))) -> 70.91989512 | AH29: -3723.0914 | AI29: ='Data Inputs'!P23*F29+'Data Inputs'!Q23*G29+'Data Inputs'!R23*H29+P29+R29+S29+T29+U29+V29+W29+X29+Z29+AE29+L29+AC29+AB29+AD29 -> 45920.83519 | AJ29: =IF(AND(AJ$7="Per Day",'Quota Calculator'!C28>0),AI29/'Quota Calculator'!C28,IF(AND(AJ$7="Per Hectolitre",$B29>0),AI29/($B29/100),IF(AND(AJ$7="Per Kilogram of Butterfat",$F29>0),AI29/$F29,IF(AND(AJ$7="Per Cow Per Day",'Quota Calculator'!C28>0),AI29/'Quota Calculator'!V28/'Quota Calculator'!C28,"-")))) -> 65.60119312
A30: 2011-05-31 | B30: ='Quota Calculator'!E29 -> 70000 | C30: ='Quota Calculator'!F29 -> 3.42 | D30: 3.32 | E30: 5.69 | F30: 2394 | G30: 2324 | H30: 3983 | I30: =IF('Quota Calculator'!P29>='Data Inputs'!D24, 'Quota Calculator'!G29-('Quota Calculator'!N29-'Quota Calculator'!O29+'Quota Calculator'!O28), 'Quota Calculator'!G29) -> 2394 | J30: 2324 | K30: 3983 | L30: =ROUND(-'Data Inputs'!P24*('Revenue Calculator'!F30-'Revenue Calculator'!I30)-'Data Inputs'!Q24*('Revenue Calculator'!G30-'Revenue Calculator'!J30)-'Data Inputs'!R24*('Revenue Calculator'!H30-'Revenue Calculator'!K30), 2) -> 0 | M30: =IFERROR(SUM(G21:H30)/SUM(F21:F30), 0) -> 2.657309942 | N30: =IF(M30>'Data Inputs'!G24, "YES", "NO") -> YES | O30: =IF(N30="YES",(M30-'Data Inputs'!G24)*SUM(I21:I30,0)-SUM(O21:O29),-SUM(O21:O29)) -> 521.4202 | P30: =IF(O30<>0,-O30*H30/SUM(I30:J30)*'Data Inputs'!R24-G30/SUM(I30:J30)*'Data Inputs'!Q24,0) -> -1777.143491 | R30: =IF(Q30="y", 'Data Inputs'!T24*B30/100, 0) -> 0 | S30: ='Data Inputs'!S24*B30/100 -> 119 | T30: =(-$B30/100*'Data Inputs'!H24) -> -903 | U30: =(-$B30/100*'Data Inputs'!I24) -> -35 | V30: =(-$B30/100*'Data Inputs'!J24) -> -280 | W30: =-'Data Inputs'!K24 -> -34 | X30: =(-B30/100*'Data Inputs'!M24) -> -1666 | Y30: =IF('Quota Calculator'!C29>30, 16, 15) -> 16 | Z30: =ROUND(-Y30*'Data Inputs'!L24,2) -> -312.64 | AA30: =(-B30/100*'Data Inputs'!N24) -> 0 | AB30: 0 | AC30: -161.532 | AD30: =-SUM(F30:H30)*'Data Inputs'!O24 -> -307.1453 | AE30: 0 | AF30: =I30*'Data Inputs'!P24+'Revenue Calculator'!J30*'Data Inputs'!Q24+'Revenue Calculator'!K30*'Data Inputs'!R24+R30+S30+P30 -> 51266.21191 | AG30: =IF(AND(AG$7="Per Day",'Quota Calculator'!C29>0),AF30/'Quota Calculator'!C29,IF(AND(AG$7="Per Hectolitre",$B30>0),AF30/($B30/100),IF(AND(AG$7="Per Kilogram of Butterfat",$F30>0),AF30/$F30,IF(AND(AG$7="Per Cow Per Day",'Quota Calculator'!C29>0),AF30/'Quota Calculator'!V29/'Quota Calculator'!C29,"-")))) -> 73.23744558 | AH30: -3699.3173 | AI30: ='Data Inputs'!P24*F30+'Data Inputs'!Q24*G30+'Data Inputs'!R24*H30+P30+R30+S30+T30+U30+V30+W30+X30+Z30+AE30+L30+AC30+AB30+AD30 -> 47566.89461 | AJ30: =IF(AND(AJ$7="Per Day",'Quota Calculator'!C29>0),AI30/'Quota Calculator'!C29,IF(AND(AJ$7="Per Hectolitre",$B30>0),AI30/($B30/100),IF(AND(AJ$7="Per Kilogram of Butterfat",$F30>0),AI30/$F30,IF(AND(AJ$7="Per Cow Per Day",'Quota Calculator'!C29>0),AI30/'Quota Calculator'!V29/'Quota Calculator'!C29,"-")))) -> 67.95270658
A31: 2011-06-30 | B31: ='Quota Calculator'!E30 -> 70000 | C31: ='Quota Calculator'!F30 -> 3.42 | D31: 3.31 | E31: 5.69 | F31: 2394 | G31: 2317 | H31: 3983 | I31: =IF('Quota Calculator'!P30>='Data Inputs'!D25, 'Quota Calculator'!G30-('Quota Calculator'!N30-'Quota Calculator'!O30+'Quota Calculator'!O29), 'Quota Calculator'!G30) -> 2394 | J31: 2317 | K31: 3983 | L31: =ROUND(-'Data Inputs'!P25*('Revenue Calculator'!F31-'Revenue Calculator'!I31)-'Data Inputs'!Q25*('Revenue Calculator'!G31-'Revenue Calculator'!J31)-'Data Inputs'!R25*('Revenue Calculator'!H31-'Revenue Calculator'!K31), 2) -> 0 | M31: =IFERROR(SUM(G21:H31)/SUM(F21:F31), 0) -> 2.65497076 | N31: =IF(M31>'Data Inputs'!G25, "YES", "NO") -> YES | O31: =IF(N31="YES",(M31-'Data Inputs'!G25)*SUM(I21:I31,0)-SUM(O21:O30),-SUM(O21:O30)) -> 514.4202 | P31: =IF(O31<>0,-O31*H31/SUM(I31:J31)*'Data Inputs'!R25-G31/SUM(I31:J31)*'Data Inputs'!Q25,0) -> -1830.538057 | R31: =IF(Q31="y", 'Data Inputs'!T25*B31/100, 0) -> 0 | S31: ='Data Inputs'!S25*B31/100 -> 119 | T31: =(-$B31/100*'Data Inputs'!H25) -> -903 | U31: =(-$B31/100*'Data Inputs'!I25) -> -35 | V31: =(-$B31/100*'Data Inputs'!J25) -> -280 | W31: =-'Data Inputs'!K25 -> -34 | X31: =(-B31/100*'Data Inputs'!M25) -> -1666 | Y31: =IF('Quota Calculator'!C30>30, 16, 15) -> 15 | Z31: =ROUND(-Y31*'Data Inputs'!L25,2) -> -293.1 | AA31: =(-B31/100*'Data Inputs'!N25) -> 0 | AB31: 0 | AC31: -160.555 | AD31: =-SUM(F31:H31)*'Data Inputs'!O25 -> -453.8268 | AE31: 0 | AF31: =I31*'Data Inputs'!P25+'Revenue Calculator'!J31*'Data Inputs'!Q25+'Revenue Calculator'!K31*'Data Inputs'!R25+R31+S31+P31 -> 51576.85094 | AG31: =IF(AND(AG$7="Per Day",'Quota Calculator'!C30>0),AF31/'Quota Calculator'!C30,IF(AND(AG$7="Per Hectolitre",$B31>0),AF31/($B31/100),IF(AND(AG$7="Per Kilogram of Butterfat",$F31>0),AF31/$F31,IF(AND(AG$7="Per Cow Per Day",'Quota Calculator'!C30>0),AF31/'Quota Calculator'!V30/'Quota Calculator'!C30,"-")))) -> 73.68121563 | AH31: -3825.4818 | AI31: ='Data Inputs'!P25*F31+'Data Inputs'!Q25*G31+'Data Inputs'!R25*H31+P31+R31+S31+T31+U31+V31+W31+X31+Z31+AE31+L31+AC31+AB31+AD31 -> 47751.36914 | AJ31: =IF(AND(AJ$7="Per Day",'Quota Calculator'!C30>0),AI31/'Quota Calculator'!C30,IF(AND(AJ$7="Per Hectolitre",$B31>0),AI31/($B31/100),IF(AND(AJ$7="Per Kilogram of Butterfat",$F31>0),AI31/$F31,IF(AND(AJ$7="Per Cow Per Day",'Quota Calculator'!C30>0),AI31/'Quota Calculator'!V30/'Quota Calculator'!C30,"-")))) -> 68.21624163
A32: 2011-07-31 | B32: ='Quota Calculator'!E31 -> 70000 | C32: ='Quota Calculator'!F31 -> 3.42 | D32: 3.28 | E32: 5.69 | F32: 2394 | G32: 2296 | H32: 3983 | I32: =IF('Quota Calculator'!P31>='Data Inputs'!D26, 'Quota Calculator'!G31-('Quota Calculator'!N31-'Quota Calculator'!O31+'Quota Calculator'!O30), 'Quota Calculator'!G31) -> 2394 | J32: 2296 | K32: 3983 | L32: =ROUND(-'Data Inputs'!P26*('Revenue Calculator'!F32-'Revenue Calculator'!I32)-'Data Inputs'!Q26*('Revenue Calculator'!G32-'Revenue Calculator'!J32)-'Data Inputs'!R26*('Revenue Calculator'!H32-'Revenue Calculator'!K32), 2) -> 0 | M32: =IFERROR(SUM(G21:H32)/SUM(F21:F32), 0) -> 2.652290448 | N32: =IF(M32>'Data Inputs'!G26, "YES", "NO") -> YES | O32: =IF(N32="YES",(M32-'Data Inputs'!G26)*SUM(I21:I32,0)-SUM(O21:O31),-SUM(O21:O31)) -> 493.4202 | P32: =IF(O32<>0,-O32*H32/SUM(I32:J32)*'Data Inputs'!R26-G32/SUM(I32:J32)*'Data Inputs'!Q26,0) -> -1642.777801 | R32: =IF(Q32="y", 'Data Inputs'!T26*B32/100, 0) -> 0 | S32: ='Data Inputs'!S26*B32/100 -> 119 | T32: =(-$B32/100*'Data Inputs'!H26) -> -903 | U32: =(-$B32/100*'Data Inputs'!I26) -> -35 | V32: =(-$B32/100*'Data Inputs'!J26) -> -280 | W32: =-'Data Inputs'!K26 -> -34 | X32: =(-B32/100*'Data Inputs'!M26) -> -1666 | Y32: =IF('Quota Calculator'!C31>30, 16, 15) -> 16 | Z32: =ROUND(-Y32*'Data Inputs'!L26,2) -> -312.64 | AA32: =(-B32/100*'Data Inputs'!N26) -> 0 | AB32: 0 | AC32: -161.532 | AD32: =-SUM(F32:H32)*'Data Inputs'!O26 -> -354.7257 | AE32: 0 | AF32: =I32*'Data Inputs'!P26+'Revenue Calculator'!J32*'Data Inputs'!Q26+'Revenue Calculator'!K32*'Data Inputs'!R26+R32+S32+P32 -> 52013.1042 | AG32: =IF(AND(AG$7="Per Day",'Quota Calculator'!C31>0),AF32/'Quota Calculator'!C31,IF(AND(AG$7="Per Hectolitre",$B32>0),AF32/($B32/100),IF(AND(AG$7="Per Kilogram of Butterfat",$F32>0),AF32/$F32,IF(AND(AG$7="Per Cow Per Day",'Quota Calculator'!C31>0),AF32/'Quota Calculator'!V31/'Quota Calculator'!C31,"-")))) -> 74.30443457 | AH32: -3746.8977 | AI32: ='Data Inputs'!P26*F32+'Data Inputs'!Q26*G32+'Data Inputs'!R26*H32+P32+R32+S32+T32+U32+V32+W32+X32+Z32+AE32+L32+AC32+AB32+AD32 -> 48266.2065 | AJ32: =IF(AND(AJ$7="Per Day",'Quota Calculator'!C31>0),AI32/'Quota Calculator'!C31,IF(AND(AJ$7="Per Hectolitre",$B32>0),AI32/($B32/100),IF(AND(AJ$7="Per Kilogram of Butterfat",$F32>0),AI32/$F32,IF(AND(AJ$7="Per Cow Per Day",'Quota Calculator'!C31>0),AI32/'Quota Calculator'!V31/'Quota Calculator'!C31,"-")))) -> 68.95172357
A33: 2011-08-31 | B33: ='Quota Calculator'!E32 -> 70000 | C33: ='Quota Calculator'!F32 -> 3.42 | D33: 3.33 | E33: 5.67 | F33: 2394 | G33: 2331 | H33: 3969 | I33: =IF('Quota Calculator'!P32>='Data Inputs'!D27, 'Quota Calculator'!G32-('Quota Calculator'!N32-'Quota Calculator'!O32+'Quota Calculator'!O31), 'Quota Calculator'!G32) -> 2394 | J33: 2331 | K33: 3969 | L33: =ROUND(-'Data Inputs'!P27*('Revenue Calculator'!F33-'Revenue Calculator'!I33)-'Data Inputs'!Q27*('Revenue Calculator'!G33-'Revenue Calculator'!J33)-'Data Inputs'!R27*('Revenue Calculator'!H33-'Revenue Calculator'!K33), 2) -> 0 | M33: =IFERROR(SUM(G33:H33)/SUM(F33), 0) -> 2.631578947 | N33: =IF(M33>'Data Inputs'!G27, "YES", "NO") -> YES | O33: =IF(N33="YES",(M33-'Data Inputs'!G27)*I33,0) -> 514.4202 | P33: =IF(O33<>0,-O33*H33/SUM(I33:J33)*'Data Inputs'!R27-G33/SUM(I33:J33)*'Data Inputs'!Q27,0) -> -1609.831293 | R33: =IF(Q33="y", 'Data Inputs'!T27*B33/100, 0) -> 0 | S33: ='Data Inputs'!S27*B33/100 -> 119 | T33: =(-$B33/100*'Data Inputs'!H27) -> -903 | U33: =(-$B33/100*'Data Inputs'!I27) -> -35 | V33: =(-$B33/100*'Data Inputs'!J27) -> -294 | W33: =-'Data Inputs'!K27 -> -34 | X33: =(-B33/100*'Data Inputs'!M27) -> -1799 | Y33: =IF('Quota Calculator'!C32>30, 16, 15) -> 16 | Z33: =ROUND(-Y33*'Data Inputs'!L27,2) -> -337.6 | AA33: =(-B33/100*'Data Inputs'!N27) -> 0 | AB33: 0 | AC33: -170.13 | AD33: =-SUM(F33:H33)*'Data Inputs'!O27 -> -351.2376 | AE33: 0 | AF33: =I33*'Data Inputs'!P27+'Revenue Calculator'!J33*'Data Inputs'!Q27+'Revenue Calculator'!K33*'Data Inputs'!R27+R33+S33+P33 -> 49991.27561 | AG33: =IF(AND(AG$7="Per Day",'Quota Calculator'!C32>0),AF33/'Quota Calculator'!C32,IF(AND(AG$7="Per Hectolitre",$B33>0),AF33/($B33/100),IF(AND(AG$7="Per Kilogram of Butterfat",$F33>0),AF33/$F33,IF(AND(AG$7="Per Cow Per Day",'Quota Calculator'!C32>0),AF33/'Quota Calculator'!V32/'Quota Calculator'!C32,"-")))) -> 71.41610801 | AH33: -3923.9676 | AI33: ='Data Inputs'!P27*F33+'Data Inputs'!Q27*G33+'Data Inputs'!R27*H33+P33+R33+S33+T33+U33+V33+W33+X33+Z33+AE33+L33+AC33+AB33+AD33 -> 46067.30801 | AJ33: =IF(AND(AJ$7="Per Day",'Quota Calculator'!C32>0),AI33/'Quota Calculator'!C32,IF(AND(AJ$7="Per Hectolitre",$B33>0),AI33/($B33/100),IF(AND(AJ$7="Per Kilogram of Butterfat",$F33>0),AI33/$F33,IF(AND(AJ$7="Per Cow Per Day",'Quota Calculator'!C32>0),AI33/'Quota Calculator'!V32/'Quota Calculator'!C32,"-")))) -> 65.81044001
A34: 2011-09-30 | B34: ='Quota Calculator'!E33 -> 70000 | C34: ='Quota Calculator'!F33 -> 3.42 | D34: 3.37 | E34: 5.66 | F34: 2394 | G34: 2359 | H34: 3962 | I34: =IF('Quota Calculator'!P33>='Data Inputs'!D28, 'Quota Calculator'!G33-('Quota Calculator'!N33-'Quota Calculator'!O33+'Quota Calculator'!O32), 'Quota Calculator'!G33) -> 2394 | J34: 2359 | K34: 3962 | L34: =ROUND(-'Data Inputs'!P28*('Revenue Calculator'!F34-'Revenue Calculator'!I34)-'Data Inputs'!Q28*('Revenue Calculator'!G34-'Revenue Calculator'!J34)-'Data Inputs'!R28*('Revenue Calculator'!H34-'Revenue Calculator'!K34), 2) -> 0 | M34: =IFERROR(SUM(G33:H34)/SUM(F33:F34), 0) -> 2.635964912 | N34: =IF(M34>'Data Inputs'!G28, "YES", "NO") -> YES | O34: =IF(N34="YES",(M34-'Data Inputs'!G28)*SUM(I33:I34,0)-SUM(O33),-SUM(O33)) -> 535.4202 | P34: =IF(O34<>0,-O34*H34/SUM(I34:J34)*'Data Inputs'!R28-G34/SUM(I34:J34)*'Data Inputs'!Q28,0) -> -1594.028028 | R34: =IF(Q34="y", 'Data Inputs'!T28*B34/100, 0) -> 0 | S34: ='Data Inputs'!S28*B34/100 -> 119 | T34: =(-$B34/100*'Data Inputs'!H28) -> -903 | U34: =(-$B34/100*'Data Inputs'!I28) -> -35 | V34: =(-$B34/100*'Data Inputs'!J28) -> -294 | W34: =-'Data Inputs'!K28 -> -34 | X34: =(-B34/100*'Data Inputs'!M28) -> -1799 | Y34: =IF('Quota Calculator'!C33>30, 16, 15) -> 15 | Z34: =ROUND(-Y34*'Data Inputs'!L28,2) -> -316.5 | AA34: =(-B34/100*'Data Inputs'!N28) -> 0 | AB34: 0 | AC34: =0.05*(Z34+X34+W34+V34+U34+T34+AA34+AB34) -> -169.075 | AD34: =-SUM(F34:H34)*'Data Inputs'!O28 -> -352.086 | AE34: 0 | AF34: =I34*'Data Inputs'!P28+'Revenue Calculator'!J34*'Data Inputs'!Q28+'Revenue Calculator'!K34*'Data Inputs'!R28+R34+S34+P34 -> 49316.84107 | AG34: =IF(AND(AG$7="Per Day",'Quota Calculator'!C33>0),AF34/'Quota Calculator'!C33,IF(AND(AG$7="Per Hectolitre",$B34>0),AF34/($B34/100),IF(AND(AG$7="Per Kilogram of Butterfat",$F34>0),AF34/$F34,IF(AND(AG$7="Per Cow Per Day",'Quota Calculator'!C33>0),AF34/'Quota Calculator'!V33/'Quota Calculator'!C33,"-")))) -> 70.4526301 | AH34: -3902.661 | AI34: ='Data Inputs'!P28*F34+'Data Inputs'!Q28*G34+'Data Inputs'!R28*H34+P34+R34+S34+T34+U34+V34+W34+X34+Z34+AE34+L34+AC34+AB34+AD34 -> 45414.18007 | AJ34: =IF(AND(AJ$7="Per Day",'Quota Calculator'!C33>0),AI34/'Quota Calculator'!C33,IF(AND(AJ$7="Per Hectolitre",$B34>0),AI34/($B34/100),IF(AND(AJ$7="Per Kilogram of Butterfat",$F34>0),AI34/$F34,IF(AND(AJ$7="Per Cow Per Day",'Quota Calculator'!C33>0),AI34/'Quota Calculator'!V33/'Quota Calculator'!C33,"-")))) -> 64.8774001
A35: 2011-10-31 | B35: ='Quota Calculator'!E34 -> 70000 | C35: ='Quota Calculator'!F34 -> 3.42 | D35: 3.4 | E35: 5.69 | F35: 2394 | G35: 2380 | H35: 3983 | I35: =IF('Quota Calculator'!P34>='Data Inputs'!D29, 'Quota Calculator'!G34-('Quota Calculator'!N34-'Quota Calculator'!O34+'Quota Calculator'!O33), 'Quota Calculator'!G34) -> 2394 | J35: 2380 | K35: 3983 | L35: =ROUND(-'Data Inputs'!P29*('Revenue Calculator'!F35-'Revenue Calculator'!I35)-'Data Inputs'!Q29*('Revenue Calculator'!G35-'Revenue Calculator'!J35)-'Data Inputs'!R29*('Revenue Calculator'!H35-'Revenue Calculator'!K35), 2) -> 0 | M35: =IFERROR(SUM(G33:H35)/SUM(F33:F35), 0) -> 2.643274854 | N35: =IF(M35>'Data Inputs'!G29, "YES", "NO") -> YES | O35: =IF(N35="YES",(M35-'Data Inputs'!G29)*SUM(I33:I35,0)-SUM(O33:O34),-SUM(O33:O34)) -> 577.4202 | P35: =IF(O35<>0,-O35*H35/SUM(I35:J35)*'Data Inputs'!R29-G35/SUM(I35:J35)*'Data Inputs'!Q29,0) -> -1748.167224 | R35: =IF(Q35="y", 'Data Inputs'!T29*B35/100, 0) -> 0 | S35: ='Data Inputs'!S29*B35/100 -> 119 | T35: =(-$B35/100*'Data Inputs'!H29) -> -903 | U35: =(-$B35/100*'Data Inputs'!I29) -> -35 | V35: =(-$B35/100*'Data Inputs'!J29) -> -294 | W35: =-'Data Inputs'!K29 -> -34 | X35: =(-B35/100*'Data Inputs'!M29) -> -1799 | Y35: =IF('Quota Calculator'!C34>30, 16, 15) -> 16 | Z35: =ROUND(-Y35*'Data Inputs'!L29,2) -> -337.6 | AA35: =(-B35/100*'Data Inputs'!N29) -> 0 | AB35: 0 | AC35: -170.13 | AD35: =-SUM(F35:H35)*'Data Inputs'!O29 -> -27.1467 | AE35: 0 | AF35: =I35*'Data Inputs'!P29+'Revenue Calculator'!J35*'Data Inputs'!Q29+'Revenue Calculator'!K35*'Data Inputs'!R29+R35+S35+P35 -> 49400.51848 | AG35: =IF(AND(AG$7="Per Day",'Quota Calculator'!C34>0),AF35/'Quota Calculator'!C34,IF(AND(AG$7="Per Hectolitre",$B35>0),AF35/($B35/100),IF(AND(AG$7="Per Kilogram of Butterfat",$F35>0),AF35/$F35,IF(AND(AG$7="Per Cow Per Day",'Quota Calculator'!C34>0),AF35/'Quota Calculator'!V34/'Quota Calculator'!C34,"-")))) -> 70.57216925 | AH35: -3599.8767 | AI35: ='Data Inputs'!P29*F35+'Data Inputs'!Q29*G35+'Data Inputs'!R29*H35+P35+R35+S35+T35+U35+V35+W35+X35+Z35+AE35+L35+AC35+AB35+AD35 -> 45800.64178 | AJ35: =IF(AND(AJ$7="Per Day",'Quota Calculator'!C34>0),AI35/'Quota Calculator'!C34,IF(AND(AJ$7="Per Hectolitre",$B35>0),AI35/($B35/100),IF(AND(AJ$7="Per Kilogram of Butterfat",$F35>0),AI35/$F35,IF(AND(AJ$7="Per Cow Per Day",'Quota Calculator'!C34>0),AI35/'Quota Calculator'!V34/'Quota Calculator'!C34,"-")))) -> 65.42948825
A36: 2011-11-30 | B36: ='Quota Calculator'!E35 -> 70000 | C36: ='Quota Calculator'!F35 -> 3.42 | D36: 3.37 | E36: 5.71 | F36: 2394 | G36: 2359 | H36: 3997 | I36: =IF('Quota Calculator'!P35>='Data Inputs'!D30, 'Quota Calculator'!G35-('Quota Calculator'!N35-'Quota Calculator'!O35+'Quota Calculator'!O34), 'Quota Calculator'!G35) -> 2394 | J36: 2359 | K36: 3997 | L36: =ROUND(-'Data Inputs'!P30*('Revenue Calculator'!F36-'Revenue Calculator'!I36)-'Data Inputs'!Q30*('Revenue Calculator'!G36-'Revenue Calculator'!J36)-'Data Inputs'!R30*('Revenue Calculator'!H36-'Revenue Calculator'!K36), 2) -> 0 | M36: =IFERROR(SUM(G33:H36)/SUM(F33:F36), 0) -> 2.64619883 | N36: =IF(M36>'Data Inputs'!G30, "YES", "NO") -> YES | O36: =IF(N36="YES",(M36-'Data Inputs'!G30)*SUM(I33:I36,0)-SUM(O33:O35),-SUM(O33:O35)) -> 570.4202 | P36: =IF(O36<>0,-O36*H36/SUM(I36:J36)*'Data Inputs'!R30-G36/SUM(I36:J36)*'Data Inputs'!Q30,0) -> -1957.896051 | R36: =IF(Q36="y", 'Data Inputs'!T30*B36/100, 0) -> 0 | S36: ='Data Inputs'!S30*B36/100 -> 119 | T36: =(-$B36/100*'Data Inputs'!H30) -> -903 | U36: =(-$B36/100*'Data Inputs'!I30) -> -35 | V36: =(-$B36/100*'Data Inputs'!J30) -> -294 | W36: =-'Data Inputs'!K30 -> -34 | X36: =(-B36/100*'Data Inputs'!M30) -> -1799 | Y36: =IF('Quota Calculator'!C35>30, 16, 15) -> 15 | Z36: =ROUND(-Y36*'Data Inputs'!L30,2) -> -316.5 | AA36: =(-B36/100*'Data Inputs'!N30) -> 0 | AB36: 0 | AC36: -169.075 | AD36: =-SUM(F36:H36)*'Data Inputs'!O30 -> -43.75 | AE36: 0 | AF36: =I36*'Data Inputs'!P30+'Revenue Calculator'!J36*'Data Inputs'!Q30+'Revenue Calculator'!K36*'Data Inputs'!R30+R36+S36+P36 -> 51312.29365 | AG36: =IF(AND(AG$7="Per Day",'Quota Calculator'!C35>0),AF36/'Quota Calculator'!C35,IF(AND(AG$7="Per Hectolitre",$B36>0),AF36/($B36/100),IF(AND(AG$7="Per Kilogram of Butterfat",$F36>0),AF36/$F36,IF(AND(AG$7="Per Cow Per Day",'Quota Calculator'!C35>0),AF36/'Quota Calculator'!V35/'Quota Calculator'!C35,"-")))) -> 73.30327664 | AH36: -3594.325 | AI36: ='Data Inputs'!P30*F36+'Data Inputs'!Q30*G36+'Data Inputs'!R30*H36+P36+R36+S36+T36+U36+V36+W36+X36+Z36+AE36+L36+AC36+AB36+AD36 -> 47717.96865 | AJ36: =IF(AND(AJ$7="Per Day",'Quota Calculator'!C35>0),AI36/'Quota Calculator'!C35,IF(AND(AJ$7="Per Hectolitre",$B36>0),AI36/($B36/100),IF(AND(AJ$7="Per Kilogram of Butterfat",$F36>0),AI36/$F36,IF(AND(AJ$7="Per Cow Per Day",'Quota Calculator'!C35>0),AI36/'Quota Calculator'!V35/'Quota Calculator'!C35,"-")))) -> 68.16852664
A37: 2011-12-31 | B37: ='Quota Calculator'!E36 -> 70000 | C37: ='Quota Calculator'!F36 -> 3.42 | D37: 3.33 | E37: 5.71 | F37: 2394 | G37: 2331 | H37: 3997 | I37: =IF('Quota Calculator'!P36>='Data Inputs'!D31, 'Quota Calculator'!G36-('Quota Calculator'!N36-'Quota Calculator'!O36+'Quota Calculator'!O35), 'Quota Calculator'!G36) -> 2394 | J37: 2331 | K37: 3997 | L37: =ROUND(-'Data Inputs'!P31*('Revenue Calculator'!F37-'Revenue Calculator'!I37)-'Data Inputs'!Q31*('Revenue Calculator'!G37-'Revenue Calculator'!J37)-'Data Inputs'!R31*('Revenue Calculator'!H37-'Revenue Calculator'!K37), 2) -> 0 | M37: =IFERROR(SUM(G33:H37)/SUM(F33:F37),0) -> 2.645614035 | N37: =IF(M37>'Data Inputs'!G31, "YES", "NO") -> YES | O37: =IF(N37="YES",(M37-'Data Inputs'!G31)*SUM(I33:I37,0)-SUM(O33:O36),-SUM(O33:O36)) -> 542.4202 | P37: =IF(O37<>0,-O37*H37/SUM(I37:J37)*'Data Inputs'!R31-G37/SUM(I37:J37)*'Data Inputs'!Q31,0) -> -1766.508117 | R37: =IF(Q37="y", 'Data Inputs'!T31*B37/100, 0) -> 0 | S37: ='Data Inputs'!S31*B37/100 -> 119 | T37: =(-$B37/100*'Data Inputs'!H31) -> -903 | U37: =(-$B37/100*'Data Inputs'!I31) -> -35 | V37: =(-$B37/100*'Data Inputs'!J31) -> -294 | W37: =-'Data Inputs'!K31 -> -34 | X37: =(-B37/100*'Data Inputs'!M31) -> -1799 | Y37: =IF('Quota Calculator'!C36>30, 16, 15) -> 16 | Z37: =ROUND(-Y37*'Data Inputs'!L31,2) -> -337.6 | AA37: =(-B37/100*'Data Inputs'!N31) -> 0 | AB37: 0 | AC37: -170.13 | AD37: =-SUM(F37:H37)*'Data Inputs'!O31 -> -41.8656 | AE37: 0 | AF37: =I37*'Data Inputs'!P31+'Revenue Calculator'!J37*'Data Inputs'!Q31+'Revenue Calculator'!K37*'Data Inputs'!R31+R37+S37+P37 -> 50068.10828 | AG37: =IF(AND(AG$7="Per Day",'Quota Calculator'!C36>0),AF37/'Quota Calculator'!C36,IF(AND(AG$7="Per Hectolitre",$B37>0),AF37/($B37/100),IF(AND(AG$7="Per Kilogram of Butterfat",$F37>0),AF37/$F37,IF(AND(AG$7="Per Cow Per Day",'Quota Calculator'!C36>0),AF37/'Quota Calculator'!V36/'Quota Calculator'!C36,"-")))) -> 71.52586898 | AH37: -3614.5956 | AI37: ='Data Inputs'!P31*F37+'Data Inputs'!Q31*G37+'Data Inputs'!R31*H37+P37+R37+S37+T37+U37+V37+W37+X37+Z37+AE37+L37+AC37+AB37+AD37 -> 46453.51268 | AJ37: =IF(AND(AJ$7="Per Day",'Quota Calculator'!C36>0),AI37/'Quota Calculator'!C36,IF(AND(AJ$7="Per Hectolitre",$B37>0),AI37/($B37/100),IF(AND(AJ$7="Per Kilogram of Butterfat",$F37>0),AI37/$F37,IF(AND(AJ$7="Per Cow Per Day",'Quota Calculator'!C36>0),AI37/'Quota Calculator'!V36/'Quota Calculator'!C36,"-")))) -> 66.36216098
A38: 2012-01-31 | B38: ='Quota Calculator'!E37 -> 70000 | C38: ='Quota Calculator'!F37 -> 3.42 | D38: 3.33 | E38: 5.71 | F38: 2394 | G38: 2331 | H38: 3997 | I38: =IF('Quota Calculator'!P37>='Data Inputs'!D32, 'Quota Calculator'!G37-('Quota Calculator'!N37-'Quota Calculator'!O37+'Quota Calculator'!O36), 'Quota Calculator'!G37) -> 2394 | J38: 2331 | K38: 3997 | L38: =ROUND(-'Data Inputs'!P32*('Revenue Calculator'!F38-'Revenue Calculator'!I38)-'Data Inputs'!Q32*('Revenue Calculator'!G38-'Revenue Calculator'!J38)-'Data Inputs'!R32*('Revenue Calculator'!H38-'Revenue Calculator'!K38), 2) -> 0 | M38: =IFERROR(SUM(G33:H38)/SUM(F33:F38), 0) -> 2.645224172 | N38: =IF(M38>'Data Inputs'!G32, "YES", "NO") -> YES | O38: =IF(N38="YES",(M38-'Data Inputs'!G32)*SUM(I33:I38,0)-SUM(O33:O37),-SUM(O33:O37)) -> 542.4202 | P38: =IF(O38<>0,-O38*H38/SUM(I38:J38)*'Data Inputs'!R32-G38/SUM(I38:J38)*'Data Inputs'!Q32,0) -> -1597.558026 | R38: =IF(Q38="y", 'Data Inputs'!T32*B38/100, 0) -> 0 | S38: ='Data Inputs'!S32*B38/100 -> 119 | T38: =(-$B38/100*'Data Inputs'!H32) -> -903 | U38: =(-$B38/100*'Data Inputs'!I32) -> -35 | V38: =(-$B38/100*'Data Inputs'!J32) -> -294 | W38: =-'Data Inputs'!K32 -> -34 | X38: =(-B38/100*'Data Inputs'!M32) -> -1799 | Y38: =IF('Quota Calculator'!C37>30, 16, 15) -> 16 | Z38: =ROUND(-Y38*'Data Inputs'!L32,2) -> -337.6 | AA38: =(-B38/100*'Data Inputs'!N32) -> 0 | AB38: 0 | AC38: -170.13 | AD38: =-SUM(F38:H38)*'Data Inputs'!O32 -> -310.5032 | AE38: 0 | AF38: =I38*'Data Inputs'!P32+'Revenue Calculator'!J38*'Data Inputs'!Q32+'Revenue Calculator'!K38*'Data Inputs'!R32+R38+S38+P38 -> 49766.88937 | AG38: =IF(AND(AG$7="Per Day",'Quota Calculator'!C37>0),AF38/'Quota Calculator'!C37,IF(AND(AG$7="Per Hectolitre",$B38>0),AF38/($B38/100),IF(AND(AG$7="Per Kilogram of Butterfat",$F38>0),AF38/$F38,IF(AND(AG$7="Per Cow Per Day",'Quota Calculator'!C37>0),AF38/'Quota Calculator'!V37/'Quota Calculator'!C37,"-")))) -> 71.09555625 | AH38: -3883.2332 | AI38: ='Data Inputs'!P32*F38+'Data Inputs'!Q32*G38+'Data Inputs'!R32*H38+P38+R38+S38+T38+U38+V38+W38+X38+Z38+AE38+L38+AC38+AB38+AD38 -> 45883.65617 | AJ38: =IF(AND(AJ$7="Per Day",'Quota Calculator'!C37>0),AI38/'Quota Calculator'!C37,IF(AND(AJ$7="Per Hectolitre",$B38>0),AI38/($B38/100),IF(AND(AJ$7="Per Kilogram of Butterfat",$F38>0),AI38/$F38,IF(AND(AJ$7="Per Cow Per Day",'Quota Calculator'!C37>0),AI38/'Quota Calculator'!V37/'Quota Calculator'!C37,"-")))) -> 65.54808025
A39: 2012-02-29 | B39: ='Quota Calculator'!E38 -> 70000 | C39: ='Quota Calculator'!F38 -> 3.42 | D39: 3.37 | E39: 5.73 | F39: 2394 | G39: 2359 | H39: 4011 | I39: =IF('Quota Calculator'!P38>='Data Inputs'!D33, 'Quota Calculator'!G38-('Quota Calculator'!N38-'Quota Calculator'!O38+'Quota Calculator'!O37), 'Quota Calculator'!G38) -> 2394 | J39: 2359 | K39: 4011 | L39: =ROUND(-'Data Inputs'!P33*('Revenue Calculator'!F39-'Revenue Calculator'!I39)-'Data Inputs'!Q33*('Revenue Calculator'!G39-'Revenue Calculator'!J39)-'Data Inputs'!R33*('Revenue Calculator'!H39-'Revenue Calculator'!K39), 2) -> 0 | M39: =IFERROR(SUM(G33:H39)/SUM(F33:F39), 0) -> 2.647451963 | N39: =IF(M39>'Data Inputs'!G33, "YES", "NO") -> YES | O39: =IF(N39="YES",(M39-'Data Inputs'!G33)*SUM(I33:I39,0)-SUM(O33:O38),-SUM(O33:O38)) -> 584.4202 | P39: =IF(O39<>0,-O39*H39/SUM(I39:J39)*'Data Inputs'!R33-G39/SUM(I39:J39)*'Data Inputs'!Q33,0) -> -1826.610741 | R39: =IF(Q39="y", 'Data Inputs'!T33*B39/100, 0) -> 0 | S39: ='Data Inputs'!S33*B39/100 -> 119 | T39: =(-$B39/100*'Data Inputs'!H33) -> -903 | U39: =(-$B39/100*'Data Inputs'!I33) -> -35 | V39: =(-$B39/100*'Data Inputs'!J33) -> -294 | W39: =-'Data Inputs'!K33 -> -39 | X39: =(-B39/100*'Data Inputs'!M33) -> -1799 | Y39: =IF('Quota Calculator'!C38>30, 16, 15) -> 15 | Z39: =ROUND(-Y39*'Data Inputs'!L33,2) -> -316.5 | AA39: =(-B39/100*'Data Inputs'!N33) -> 0 | AB39: 0 | AC39: -169.325 | AD39: =-SUM(F39:H39)*'Data Inputs'!O33 -> -350.56 | AE39: 0 | AF39: =I39*'Data Inputs'!P33+'Revenue Calculator'!J39*'Data Inputs'!Q33+'Revenue Calculator'!K39*'Data Inputs'!R33+R39+S39+P39 -> 50812.13416 | AG39: =IF(AND(AG$7="Per Day",'Quota Calculator'!C38>0),AF39/'Quota Calculator'!C38,IF(AND(AG$7="Per Hectolitre",$B39>0),AF39/($B39/100),IF(AND(AG$7="Per Kilogram of Butterfat",$F39>0),AF39/$F39,IF(AND(AG$7="Per Cow Per Day",'Quota Calculator'!C38>0),AF39/'Quota Calculator'!V38/'Quota Calculator'!C38,"-")))) -> 72.58876308 | AH39: -3906.385 | AI39: ='Data Inputs'!P33*F39+'Data Inputs'!Q33*G39+'Data Inputs'!R33*H39+P39+R39+S39+T39+U39+V39+W39+X39+Z39+AE39+L39+AC39+AB39+AD39 -> 46905.74916 | AJ39: =IF(AND(AJ$7="Per Day",'Quota Calculator'!C38>0),AI39/'Quota Calculator'!C38,IF(AND(AJ$7="Per Hectolitre",$B39>0),AI39/($B39/100),IF(AND(AJ$7="Per Kilogram of Butterfat",$F39>0),AI39/$F39,IF(AND(AJ$7="Per Cow Per Day",'Quota Calculator'!C38>0),AI39/'Quota Calculator'!V38/'Quota Calculator'!C38,"-")))) -> 67.00821308
A40: 2012-03-31 | B40: ='Quota Calculator'!E39 -> 70000 | C40: ='Quota Calculator'!F39 -> 3.42 | D40: 3.36 | E40: 5.73 | F40: 2394 | G40: 2352 | H40: 4011 | I40: =IF('Quota Calculator'!P39>='Data Inputs'!D34, 'Quota Calculator'!G39-('Quota Calculator'!N39-'Quota Calculator'!O39+'Quota Calculator'!O38), 'Quota Calculator'!G39) -> 2394 | J40: 2352 | K40: 4011 | L40: =ROUND(-'Data Inputs'!P34*('Revenue Calculator'!F40-'Revenue Calculator'!I40)-'Data Inputs'!Q34*('Revenue Calculator'!G40-'Revenue Calculator'!J40)-'Data Inputs'!R34*('Revenue Calculator'!H40-'Revenue Calculator'!K40), 2) -> 0 | M40: =IFERROR(SUM(G33:H40)/SUM(F33:F40), 0) -> 2.64875731 | N40: =IF(M40>'Data Inputs'!G34, "YES", "NO") -> YES | O40: =IF(N40="YES",(M40-'Data Inputs'!G34)*SUM(I33:I40,0)-SUM(O33:O39),-SUM(O33:O39)) -> 577.4202 | P40: =IF(O40<>0,-O40*H40/SUM(I40:J40)*'Data Inputs'!R34-G40/SUM(I40:J40)*'Data Inputs'!Q34,0) -> -1727.139738 | R40: =IF(Q40="y", 'Data Inputs'!T34*B40/100, 0) -> 0 | S40: ='Data Inputs'!S34*B40/100 -> 119 | T40: =(-$B40/100*'Data Inputs'!H34) -> -903 | U40: =(-$B40/100*'Data Inputs'!I34) -> -35 | V40: =(-$B40/100*'Data Inputs'!J34) -> -294 | W40: =-'Data Inputs'!K34 -> -39 | X40: =(-B40/100*'Data Inputs'!M34) -> -1799 | Y40: =IF('Quota Calculator'!C39>30, 16, 15) -> 16 | Z40: =ROUND(-Y40*'Data Inputs'!L34,2) -> -337.6 | AA40: =(-B40/100*'Data Inputs'!N34) -> 0 | AB40: 0 | AC40: -170.38 | AD40: =-SUM(F40:H40)*'Data Inputs'!O34 -> -92.8242 | AE40: 0 | AF40: =I40*'Data Inputs'!P34+'Revenue Calculator'!J40*'Data Inputs'!Q34+'Revenue Calculator'!K40*'Data Inputs'!R34+R40+S40+P40 -> 50698.46916 | AG40: =IF(AND(AG$7="Per Day",'Quota Calculator'!C39>0),AF40/'Quota Calculator'!C39,IF(AND(AG$7="Per Hectolitre",$B40>0),AF40/($B40/100),IF(AND(AG$7="Per Kilogram of Butterfat",$F40>0),AF40/$F40,IF(AND(AG$7="Per Cow Per Day",'Quota Calculator'!C39>0),AF40/'Quota Calculator'!V39/'Quota Calculator'!C39,"-")))) -> 72.42638452 | AH40: -3670.8042 | AI40: ='Data Inputs'!P34*F40+'Data Inputs'!Q34*G40+'Data Inputs'!R34*H40+P40+R40+S40+T40+U40+V40+W40+X40+Z40+AE40+L40+AC40+AB40+AD40 -> 47027.66496 | AJ40: =IF(AND(AJ$7="Per Day",'Quota Calculator'!C39>0),AI40/'Quota Calculator'!C39,IF(AND(AJ$7="Per Hectolitre",$B40>0),AI40/($B40/100),IF(AND(AJ$7="Per Kilogram of Butterfat",$F40>0),AI40/$F40,IF(AND(AJ$7="Per Cow Per Day",'Quota Calculator'!C39>0),AI40/'Quota Calculator'!V39/'Quota Calculator'!C39,"-")))) -> 67.18237852
A41: 2012-04-30 | B41: ='Quota Calculator'!E40 -> 70000 | C41: ='Quota Calculator'!F40 -> 3.42 | D41: 3.37 | E41: 5.72 | F41: 2394 | G41: 2359 | H41: 4004 | I41: =IF('Quota Calculator'!P40>='Data Inputs'!D35, 'Quota Calculator'!G40-('Quota Calculator'!N40-'Quota Calculator'!O40+'Quota Calculator'!O39), 'Quota Calculator'!G40) -> 2394 | J41: 2359 | K41: 4004 | L41: =ROUND(-'Data Inputs'!P35*('Revenue Calculator'!F41-'Revenue Calculator'!I41)-'Data Inputs'!Q35*('Revenue Calculator'!G41-'Revenue Calculator'!J41)-'Data Inputs'!R35*('Revenue Calculator'!H41-'Revenue Calculator'!K41), 2) -> 0 | M41: =IFERROR(SUM(G33:H41)/SUM(F33:F41), 0) -> 2.64977258 | N41: =IF(M41>'Data Inputs'!G35, "YES", "NO") -> YES | O41: =IF(N41="YES",(M41-'Data Inputs'!G35)*SUM(I33:I41,0)-SUM(O33:O40),-SUM(O33:O40)) -> 577.4202 | P41: =IF(O41<>0,-O41*H41/SUM(I41:J41)*'Data Inputs'!R35-G41/SUM(I41:J41)*'Data Inputs'!Q35,0) -> -1845.234337 | R41: =IF(Q41="y", 'Data Inputs'!T35*B41/100, 0) -> 0 | S41: ='Data Inputs'!S35*B41/100 -> 119 | T41: =(-$B41/100*'Data Inputs'!H35) -> -903 | U41: =(-$B41/100*'Data Inputs'!I35) -> -35 | V41: =(-$B41/100*'Data Inputs'!J35) -> -294 | W41: =-'Data Inputs'!K35 -> -39 | X41: =(-B41/100*'Data Inputs'!M35) -> -1799 | Y41: =IF('Quota Calculator'!C40>30, 16, 15) -> 15 | Z41: =ROUND(-Y41*'Data Inputs'!L35,2) -> -316.5 | AA41: =(-B41/100*'Data Inputs'!N35) -> 0 | AB41: 0 | AC41: -169.325 | AD41: =-SUM(F41:H41)*'Data Inputs'!O35 -> -172.5129 | AE41: 0 | AF41: =I41*'Data Inputs'!P35+'Revenue Calculator'!J41*'Data Inputs'!Q35+'Revenue Calculator'!K41*'Data Inputs'!R35+R41+S41+P41 -> 51164.23826 | AG41: =IF(AND(AG$7="Per Day",'Quota Calculator'!C40>0),AF41/'Quota Calculator'!C40,IF(AND(AG$7="Per Hectolitre",$B41>0),AF41/($B41/100),IF(AND(AG$7="Per Kilogram of Butterfat",$F41>0),AF41/$F41,IF(AND(AG$7="Per Cow Per Day",'Quota Calculator'!C40>0),AF41/'Quota Calculator'!V40/'Quota Calculator'!C40,"-")))) -> 73.09176895 | AH41: -3728.3379 | AI41: ='Data Inputs'!P35*F41+'Data Inputs'!Q35*G41+'Data Inputs'!R35*H41+P41+R41+S41+T41+U41+V41+W41+X41+Z41+AE41+L41+AC41+AB41+AD41 -> 47435.90036 | AJ41: =IF(AND(AJ$7="Per Day",'Quota Calculator'!C40>0),AI41/'Quota Calculator'!C40,IF(AND(AJ$7="Per Hectolitre",$B41>0),AI41/($B41/100),IF(AND(AJ$7="Per Kilogram of Butterfat",$F41>0),AI41/$F41,IF(AND(AJ$7="Per Cow Per Day",'Quota Calculator'!C40>0),AI41/'Quota Calculator'!V40/'Quota Calculator'!C40,"-")))) -> 67.76557195
A42: 2012-05-31 | B42: ='Quota Calculator'!E41 -> 70000 | C42: ='Quota Calculator'!F41 -> 3.42 | D42: 3.32 | E42: 5.71 | F42: 2394 | G42: 2324 | H42: 3997 | I42: =IF('Quota Calculator'!P41>='Data Inputs'!D36, 'Quota Calculator'!G41-('Quota Calculator'!N41-'Quota Calculator'!O41+'Quota Calculator'!O40), 'Quota Calculator'!G41) -> 2394 | J42: 2324 | K42: 3997 | L42: =ROUND(-'Data Inputs'!P36*('Revenue Calculator'!F42-'Revenue Calculator'!I42)-'Data Inputs'!Q36*('Revenue Calculator'!G42-'Revenue Calculator'!J42)-'Data Inputs'!R36*('Revenue Calculator'!H42-'Revenue Calculator'!K42), 2) -> 0 | M42: =IFERROR(SUM(G33:H42)/SUM(F33:F42), 0) -> 2.648830409 | N42: =IF(M42>'Data Inputs'!G36, "YES", "NO") -> YES | O42: =IF(N42="YES",(M42-'Data Inputs'!G36)*SUM(I33:I42,0)-SUM(O33:O41),-SUM(O33:O41)) -> 535.4202 | P42: =IF(O42<>0,-O42*H42/SUM(I42:J42)*'Data Inputs'!R36-G42/SUM(I42:J42)*'Data Inputs'!Q36,0) -> -1598.269302 | R42: =IF(Q42="y", 'Data Inputs'!T36*B42/100, 0) -> 0 | S42: ='Data Inputs'!S36*B42/100 -> 119 | T42: =(-$B42/100*'Data Inputs'!H36) -> -903 | U42: =(-$B42/100*'Data Inputs'!I36) -> -35 | V42: =(-$B42/100*'Data Inputs'!J36) -> -294 | W42: =-'Data Inputs'!K36 -> -39 | X42: =(-B42/100*'Data Inputs'!M36) -> -1799 | Y42: =IF('Quota Calculator'!C41>30, 16, 15) -> 16 | Z42: =ROUND(-Y42*'Data Inputs'!L36,2) -> -337.6 | AA42: =(-B42/100*'Data Inputs'!N36) -> 0 | AB42: 0 | AC42: -170.38 | AD42: =-SUM(F42:H42)*'Data Inputs'!O36 -> -73.206 | AE42: 0 | AF42: =I42*'Data Inputs'!P36+'Revenue Calculator'!J42*'Data Inputs'!Q36+'Revenue Calculator'!K42*'Data Inputs'!R36+R42+S42+P42 -> 50983.6454 | AG42: =IF(AND(AG$7="Per Day",'Quota Calculator'!C41>0),AF42/'Quota Calculator'!C41,IF(AND(AG$7="Per Hectolitre",$B42>0),AF42/($B42/100),IF(AND(AG$7="Per Kilogram of Butterfat",$F42>0),AF42/$F42,IF(AND(AG$7="Per Cow Per Day",'Quota Calculator'!C41>0),AF42/'Quota Calculator'!V41/'Quota Calculator'!C41,"-")))) -> 72.83377914 | AH42: -3651.186 | AI42: ='Data Inputs'!P36*F42+'Data Inputs'!Q36*G42+'Data Inputs'!R36*H42+P42+R42+S42+T42+U42+V42+W42+X42+Z42+AE42+L42+AC42+AB42+AD42 -> 47332.4594 | AJ42: =IF(AND(AJ$7="Per Day",'Quota Calculator'!C41>0),AI42/'Quota Calculator'!C41,IF(AND(AJ$7="Per Hectolitre",$B42>0),AI42/($B42/100),IF(AND(AJ$7="Per Kilogram of Butterfat",$F42>0),AI42/$F42,IF(AND(AJ$7="Per Cow Per Day",'Quota Calculator'!C41>0),AI42/'Quota Calculator'!V41/'Quota Calculator'!C41,"-")))) -> 67.61779914
A43: 2012-06-30 | B43: ='Quota Calculator'!E42 -> 70000 | C43: ='Quota Calculator'!F42 -> 3.42 | D43: 3.28 | E43: 5.69 | F43: 2394 | G43: 2296 | H43: 3983 | I43: =IF('Quota Calculator'!P42>='Data Inputs'!D37, 'Quota Calculator'!G42-('Quota Calculator'!N42-'Quota Calculator'!O42+'Quota Calculator'!O41), 'Quota Calculator'!G42) -> 2394 | J43: 2296 | K43: 3983 | L43: =ROUND(-'Data Inputs'!P37*('Revenue Calculator'!F43-'Revenue Calculator'!I43)-'Data Inputs'!Q37*('Revenue Calculator'!G43-'Revenue Calculator'!J43)-'Data Inputs'!R37*('Revenue Calculator'!H43-'Revenue Calculator'!K43), 2) -> 0 | M43: =IFERROR(SUM(G33:H43)/SUM(F33:F43), 0) -> 2.646464646 | N43: =IF(M43>'Data Inputs'!G37, "YES", "NO") -> YES | O43: =IF(N43="YES",(M43-'Data Inputs'!G37)*SUM(I33:I43,0)-SUM(O33:O42),-SUM(O33:O42)) -> 493.4202 | P43: =IF(O43<>0,-O43*H43/SUM(I43:J43)*'Data Inputs'!R37-G43/SUM(I43:J43)*'Data Inputs'!Q37,0) -> -1485.046503 | R43: =IF(Q43="y", 'Data Inputs'!T37*B43/100, 0) -> 0 | S43: ='Data Inputs'!S37*B43/100 -> 119 | T43: =(-$B43/100*'Data Inputs'!H37) -> -903 | U43: =(-$B43/100*'Data Inputs'!I37) -> -35 | V43: =(-$B43/100*'Data Inputs'!J37) -> -294 | W43: =-'Data Inputs'!K37 -> -39 | X43: =(-B43/100*'Data Inputs'!M37) -> -1799 | Y43: =IF('Quota Calculator'!C42>30, 16, 15) -> 15 | Z43: =ROUND(-Y43*'Data Inputs'!L37,2) -> -316.5 | AA43: =(-B43/100*'Data Inputs'!N37) -> 0 | AB43: 0 | AC43: -169.325 | AD43: =-SUM(F43:H43)*'Data Inputs'!O37 -> -24.2844 | AE43: 0 | AF43: =I43*'Data Inputs'!P37+'Revenue Calculator'!J43*'Data Inputs'!Q37+'Revenue Calculator'!K43*'Data Inputs'!R37+R43+S43+P43 -> 50830.0709 | AG43: =IF(AND(AG$7="Per Day",'Quota Calculator'!C42>0),AF43/'Quota Calculator'!C42,IF(AND(AG$7="Per Hectolitre",$B43>0),AF43/($B43/100),IF(AND(AG$7="Per Kilogram of Butterfat",$F43>0),AF43/$F43,IF(AND(AG$7="Per Cow Per Day",'Quota Calculator'!C42>0),AF43/'Quota Calculator'!V42/'Quota Calculator'!C42,"-")))) -> 72.614387 | AH43: -3580.1094 | AI43: ='Data Inputs'!P37*F43+'Data Inputs'!Q37*G43+'Data Inputs'!R37*H43+P43+R43+S43+T43+U43+V43+W43+X43+Z43+AE43+L43+AC43+AB43+AD43 -> 47249.9615 | AJ43: =IF(AND(AJ$7="Per Day",'Quota Calculator'!C42>0),AI43/'Quota Calculator'!C42,IF(AND(AJ$7="Per Hectolitre",$B43>0),AI43/($B43/100),IF(AND(AJ$7="Per Kilogram of Butterfat",$F43>0),AI43/$F43,IF(AND(AJ$7="Per Cow Per Day",'Quota Calculator'!C42>0),AI43/'Quota Calculator'!V42/'Quota Calculator'!C42,"-")))) -> 67.499945
